Workbook

Sheet Menu

Sheet Bareme
A2: Baccalauréat professionnel « maintenance des véhicules automobiles » – Unité U 11 | AE2: =(AE4+AE28) -> 100
A4: C 1.33: Se tenir informé des évolutions techniques | AE4: 55 | AF4: =SUM(AE6:AE27) -> 100
A6: Analyser un système d'un point de vue fonctionnel | N6: La fonction globale est identifiée sans ambiguité | AE6: 5
N8: La(les) matière(s) d'œuvre est(sont) identifiée(s) sans erreur | AE8: 4
N10: La valeur ajoutée est identifiée | AE10: 4
N12: Les fonctions techniques sont listées | AE12: 4
A14: Analyser et représenter le fonctionnement d'un système | N14: La mobilité du mécanisme est quantifiée | AE14: 9
N16: Les liaisons mécaniques sont identifiées | AE16: 10
N18: Un schéma cinématique conforme à la structure et au fonctionnement du mécanisme est produit | AE18: 10
A20: Analyser et vérifier les conditions fonctionnelles d'une solution constructive | N20: La mobilité du mécanisme est quantifiée | AE20: 4
N22: Les liaisons mécaniques sont identifiées | AE22: 10
N24: Un schéma cinématique conforme à la structure et au fonctionnement du mécanisme est produit | AE24: 25
A26: Vérifier et valider le choix des éléments fonctionnels standard en conformité avec les conditions de fonctionnement | N26: La solution constructive est identifiée sur les documents proposés | AE26: 15
A28: C 1.32: Utiliser les outils de communication | AE28: 45 | AF28: =SUM(AE30:AE43) -> 100
A30: Etablir les représentations graphiques des solutions constructives | N30: Les schémas réalisés sont conformes aux solutions et respectent les normes de représentation. | AE30: 21
N32: Les croquis sont exploitables | AE32: 7
A34: Décrire et vérifier par le calcul des solutions constructives | N34: La description est conforme à l'ensemble étudié | AE34: 7
N36: Les formules adéquates sont maîtrisées | AE36: 30
N38: Les représentations graphiques sont adaptées | AE38: 21
N40: Les résultats sont analysés | AE40: 7
N42: Les logiciels de calcul et les résultats fournis sont exploités et maîtrisés | AE42: 7
A45: Baccalauréat professionnel « maintenance des véhicules automobiles » – Unité U 31 | AE45: =(AE47+AE53+AE73+AE91) -> 100
A47: C 1.2 : Informer le client et l'entreprise sur la nature de l'intervention. | AE47: 10 | AF47: =SUM(AE49:AE52) -> 100
A49: C 124 | D49: Compléter les documents de suivi et fournir les éléments nécessaires à la facturation. | N49: Les documents sont correctement renseignés | AE49: 50
N51: La liste des éléments nécessaires à la facturation est fournie sans omission. | AE51: 50
A53: C 2.2 : Diagnostiquer | AE53: 40 | AF53: =SUM(AE55:AE72) -> 100
A55: C 222 | D55: Choisir et définir les essais, les mesures, les contrôles à réaliser, adapter le processus de contrôle si besoin. | N55: Le choix et la définition des essais sont conformes. | AE55: 5
N57: Le choix des mesures et contrôles assure l’efficacité et la rapidité du diagnostic. | AE57: 15
N59: L’hygiène, la sécurité et l’ergonomie sont pris en compte. | AE59: 5
A61: C 223 | D61: Mettre en œuvre les essais et mesures prévus, analyser la démarche utilisée. | N61: Les essais et mesures sont réalisés selon les procédures et garantissent l’intégrité des personnes et des biens. | AE61: 15
N63: Les résultats relevés sont exprimés dans l’unité et l’ordre de grandeur de la valeur attendue. | AE63: 5
N65: L'analyse de la démarche utilisée est cohérente. | AE65: 15
A67: C 227 | D67: Décider de l'intervention à réaliser et définir son processus opératoire s'il y a lieu. | N67: La proposition d’intervention est justifiée, | AE67: 20
N69: Elle tient compte des contraintes techniques et économiques et de l’objectif de l’intervention (dépannage ou réparation) | AE69: 10
N71: Le processus proposé est adapté. | AE71: 10
A73: C 3.1 : Réaliser une intervention sur systèmes complexes. | AE73: 40 | AF73: =SUM(AE75:AE90) -> 100
A75: C311 | D75: Déposer, reposer, poser un élément ou un sous-ensemble. | N75: Le temps d’intervention est économiquement acceptable | AE75: 10
N77: Le véhicule, le bateau ou le système est remis en conformité. | AE77: 10
N79: L’action n’appelle aucune remarque sur le plan de la sécurité. Elle est conforme au cahier des charges constructeur | AE79: 5
A81: C 312 | D81: Démonter, remettre en conformité, remonter les éléments et les organes. | N81: Le temps d’intervention est économiquement acceptable. | AE81: 10
N83: L’élément est remis en conformité | AE83: 25
N85: L’action garantit l’intégrité des personnes et des biens, elle est conforme au cahier des charges constructeur | AE85: 10
A87: C 315 | D87: Identifier et signaler les manquements aux prescriptions réglementaires sur la sécurité des véhicules ou des bateaux de plaisance. | N87: La réglementation en vigueur du point de vue sécurité est respectée. | AE87: 10
N89: Les anomalies sont identifiées et signalées. | AE89: 20
A91: C 4.1 : Evaluer la qualité de son intervention. | AE91: 10 | AF91: =SUM(AE93:AE102) -> 100
A93: C411 | D93: Effectuer le contrôle qualité de son intervention (auto contrôle) : - essai en atelier ou sur site s'il y a lieu, - compte rendu d'essai. | N93: La qualité de l’intervention est validée. | AE93: 20
N95: La procédure qualité de l’entreprise est respectée. | AE95: 15
N97: Le compte rendu est cohérent. | AE97: 15
A99: C 412 | D99: Apprécier les risques professionnels liés à l’intervention. | N99: L’intervention ne présente pas de risques d’accidents ou d’atteinte à la santé. | AE99: 25
N101: Les situations dangereuses sont signalées. | AE101: 25
A104: Baccalauréat professionnel « maintenance des véhicules automobiles » – Unité U 32 | AE104: =AE194+AE106+AE124+AE150+AE176+AE188 -> 100
A106: C 2.1 - Organiser son poste de travail | AE106: 10 | AF106: =SUM(AE108:AE123) -> 100
A108: C 211 | D108: Choisir une aire de travail et ses équipements (adaptés au diagnostic ou à l’intervention) | N108: Le poste choisi correspond à la réparation à effectuer | AE108: 10
N110: L’hygiène, la sécurité et l’ergonomie sont pris en compte. | AE110: 5
A112: C 212 | D112: Positionner et conditionner le véhicule. | N112: Le positionnement n’appelle aucune remarque sur le plan de la sécurité et de l’ergonomie. | AE112: 20
N114: La protection du véhicule est assurée. | AE114: 20
N116: L’intégrité du véhicule est respectée. | AE116: 20
A118: C 213 | D118: Maintenir en état son poste de travail | N118: Le poste de travail et les équipements utilisés sont nettoyés, rangés et remis en état. | AE118: 10
N120: Les déchets sont classés et évacués dans le respect des normes ou des prescriptions de l’entreprise. | AE120: 10
N122: L’hygiène, la sécurité et l’ergonomie sont pris en compte. | AE122: 5
A124: C 2.2 - Diagnostiquer | AE124: 25 | AF124: =SUM(AE126:AE149) -> 100
A126: C 222 | D126: Choisir et définir les essais, les mesures, les contrôles à réaliser, adapter le processus de contrôle si besoin. | N126: Le choix et la définition des essais sont conformes. | AE126: 5
N128: Le choix des mesures et contrôles assure l’efficacité et la rapidité du diagnostic. | AE128: 7
N130: L’hygiène, la sécurité et l’ergonomie sont pris en compte. | AE130: 2
A132: C 223 | D132: Mettre en œuvre les essais et mesures prévus, analyser la démarche utilisée. | N132: Les essais et mesures sont réalisés selon les procédures et garantissent l’intégrité des personnes et des biens. | AE132: 5
N134: Les résultats relevés sont exprimés dans l’unité et l’ordre de grandeur de la valeur attendue. | AE134: 2
N136: L'analyse de la démarche utilisée est cohérente. | AE136: 15
A138: C 224 | D138: Interpréter les relevés et identi-fier le ou les élément(s) défectueux. | N138: Seuls les éléments défectueux sont signalés. | AE138: 5
N140: Les résultats des mesures sont correctement interprétés. | AE140: 10
A142: C 225 | D142: Identifier la ou les cause(s) du dysfonctionnement et mettre en œuvre une autre procédure pour confirmer le diagnostic initial. | N142: La (ou les) cause(s) du dysfonctionnement est (sont) identi-fiée(s) sans ambiguïté. | AE142: 25
N144: Le contrôle complémentaire confirme le diagnostic. | AE144: 10
A146: C 226 | D146: Recenser les conséquences sur un autre système ou composant. | N146: Les incidences possibles sur un ou plusieurs autres systèmes sont recensées. | AE146: 4
N148: Le choix des contrôles à mettre en œuvre est pertinent. | AE148: 10
A150: C 3.1 : Réaliser une intervention sur systèmes complexes. | AE150: 35 | AF150: =SUM(AE152:AE175) -> 100
A152: C311 | D152: Déposer, reposer, poser un élément ou un sous-ensemble. | N152: Le temps d’intervention est économiquement acceptable | AE152: 5
N154: Le véhicule, le bateau ou le système est remis en conformité. | AE154: 10
N156: L’action n’appelle aucune remarque sur le plan de la sécurité. Elle est conforme au cahier des charges constructeur | AE156: 10
A158: C 312 | D158: Démonter, remettre en conformité, remonter les éléments et les organes. | N158: Le temps d’intervention est économiquement acceptable. | AE158: 5
N160: L’élément est remis en conformité | AE160: 10
N162: L’action garantit l’intégrité des personnes et des biens, elle est conforme au cahier des charges constructeur | AE162: 10
A164: C 313 | D164: Réaliser la mise au point du véhicule et s'assurer de la fiabilité des réglages. | N164: Les performances ou caractéristiques sont vérifiées et con-formes aux prescriptions du constructeur. | AE164: 10
N166: L'intervention est conforme à l'ordre de réparation. | AE166: 10
A168: C 314 | D168: Contrôler les performances et les caractéristiques du véhicule. | N168: Les performances ou caractéristiques sont vérifiées et con-formes aux prescriptions du constructeur. | AE168: 10
N170: L'intervention est conforme à l'OR. | AE170: 10
A172: C 315 | D172: Identifier et signaler les manquements aux prescriptions réglementaires sur la sécurité des véhicules ou des bateaux de plaisance. | N172: La réglementation en vigueur du point de vue sécurité est respectée. | AE172: 5
N174: Les anomalies sont identifiées et signalées. | AE174: 5
A176: C41 - Évaluer la qualité de son intervention | AE176: 10 | AF176: =SUM(AE178:AE187) -> 100
A178: C 411 | D178: Effectuer le contrôle qualité de son intervention (auto contrôle) et rédiger un compte rendu d'essai. | N178: La qualité de l’intervention est validée. | AE178: 20
N180: La procédure qualité de l’entreprise est respectée. | AE180: 15
N182: Le compte rendu est cohérent. | AE182: 15
A184: C 412 | D184: Apprécier les risques profes-sionnels liés à l’intervention. | N184: L’intervention ne présente pas de risques d’accidents ou d’atteinte à la santé. | AE184: 25
N186: Les situations dangereuses sont signalées. | AE186: 25
A188: C 1 2 - Informer le client et l'entreprise sur la nature de l'intervention | AE188: 10 | AF188: =SUM(AE190:AE193) -> 100
A190: C 124 | D190: Compléter les documents de suivi et fournir les éléments né-cessaires à la facturation. | N190: Les documents sont correctement renseignés. | AE190: 50
N192: La liste des éléments nécessaires à la facturation est fournie sans omission. | AE192: 50
A194: C 1.3 - Collecter les données techniques | AE194: 10 | AF194: =SUM(AE196) -> 100
A196: C 131 | D196: Collecter toutes les données nécessaires à une intervention | N196: Toutes les données, techniques et réglementaires, sont correctement recensées et collectées | AE196: 100
A200: Baccalauréat professionnel « maintenance des véhicules automobiles » – Unité U 33 | AE200: =AE202+AE210+AE248+AE258 -> 100
A202: C 1.3 - Collecter les données techniques | AE202: 12 | AF202: =SUM(AE204:AE209) -> 100
A204: C 131 | D204: Collecter toutes les données nécessaires à une intervention | N204: Toutes les données, techniques et réglementaires, sont correctement recensées et collectées. | AE204: 30
A206: C 132 | D206: Utiliser les outils de communication. | N206: L’utilisation des outils est maîtrisée. | AE206: 30
N208: Les saisies sont exploitables. | AE208: 40
A210: C 2.2 : Diagnostiquer | AE210: 60 | AF210: =SUM(AE212:AE247) -> 100
A212: C 221 | D212: Analyser, interpréter, traiter toutes les informations nécessaires au diagnostic et émettre des hypothèses. | N212: Le traitement de la documentation est rationnel et adaptée. | AE212: 1
N214: L’analyse et l’interprétation des informations sont cohérentes. | AE214: 5
N216: Les hypothèses énoncées sont plausibles. | AE216: 7
A218: C 222 | D218: Choisir et définir les essais, les mesures, les contrôles à réaliser, adapter le processus de contrôle si besoin. | N218: Le choix et la définition des essais sont conformes. | AE218: 5
N220: Le choix des mesures et contrôles assure l’efficacité et la rapidité du diagnostic. | AE220: 7
N222: L’hygiène, la sécurité et l’ergonomie sont pris en compte. | AE222: 2
A224: C 223 | D224: Mettre en œuvre les essais et mesures prévus, analyser la démarche utilisée. | N224: Les essais et mesures sont réalisés selon les procédures et garantissent l’intégrité des personnes et des biens. | AE224: 5
N226: Les résultats relevés sont exprimés dans l’unité et l’ordre de grandeur de la valeur attendue. | AE226: 4
N228: L'analyse de la démarche utilisée est cohérente. | AE228: 7
A230: C 224 | D230: Interpréter les relevés et identifier le ou les élément(s) défectueux. | N230: Seuls les éléments défectueux sont signalés. | AE230: 5
N232: Les résultats des mesures sont correctement interprétés. | AE232: 10
A234: C 225 | D234: Identifier la ou les cause(s) du dysfonctionnement et mettre en œuvre une autre procédure pour confirmer le diagnostic initial. | N234: La (ou les) cause(s) du dysfonctionnement est (sont) identifiée(s) sans ambiguïté. | AE234: 10
N236: Le contrôle complémentaire confirme le diagnostic. | AE236: 5
A238: C 226 | D238: Recenser les conséquences sur un autre système ou composant. | N238: Les incidences possibles sur un ou plusieurs autres systèmes sont recensées. | AE238: 5
N240: Le choix des contrôles à mettre en œuvre est pertinent. | AE240: 5
A242: C 227 | D242: Décider de l'intervention à réaliser et définir son processus opératoire s'il y a lieu. | N242: La proposition d’intervention est justifiée, | AE242: 7
N244: Elle tient compte des contraintes techniques et économiques et de l’objectif de l’intervention (dépannage ou réparation) | AE244: 5
N246: Le processus proposé est adapté. | AE246: 5
A248: C 3.1 - Réaliser une intervention sur un système complexe | AE248: 20 | AF248: =SUM(AE250:AE257) -> 100
A250: C 313 | D250: Réaliser la mise au point du véhicule et s'assurer de la fiabilité des réglages. | N250: Les performances ou caractéristiques sont vérifiées et conformes aux prescriptions du constructeur. | AE250: 25
N252: L'intervention est conforme à l'ordre de réparation. | AE252: 25
A254: C 314 | D254: Contrôler les performances et les caractéristiques du véhicule. | N254: Les performances ou caractéristiques sont vérifiées et conformes aux prescriptions du constructeur. | AE254: 25
N256: L'intervention est conforme à l'OR. | AE256: 25
A258: C 4.1 - Évaluer la qualité de son intervention | AE258: 8 | AF258: =SUM(AE260:AE263) -> 100
A260: C 412 | D260: Apprécier les risques professionnels liés à l’intervention. | N260: L’intervention ne présente pas de risques d’accidents ou d’atteinte à la santé. | AE260: 50
N262: Les situations dangereuses sont signalées. | AE262: 50
A265: Certificat d'aptitude professionnelle « Maintenance des véhicules automobiles » – EP2.2 | AE265: =AE267+AE289+AE307+AE329 -> 100
A267: C1.1 - Communiquer avec la hiérarchie, le client et/ou l’utilisateur | AE267: 10 | AF267: =SUM(AE269:AE288) -> 100
A269: C 111 | D269: Accueillir un client, écouter sa demande. | N269: Le client est courtoisement accueilli, les règles de politesse sont appliquées. | AE269: 10
N271: Le client est mis en rapport avec la personne compétente. | AE271: 10
A273: C 112 | D273: Réceptionner le véhicule confié. | N273: Le véhicule est correctement identifié. | AE273: 4
N275: Le bilan du contrôle, olfactif, sonore ou visuel est conforme à l’état du véhicule ou du matériel. | AE275: 2
N277: Les anomalies constatées lors de la réception sont correctement consignées. | AE277: 4
A279: C 113 | D279: Rendre compte à l’entreprise et/ou au client du travail effectué | N279: Les travaux réalisés sont clairement expliqués. | AE279: 15
N281: Les prochaines interventions nécessaires sont signalées et/ou consignées dans le livret d'entretien ou sur la facture. | AE281: 15
A283: C114 | D283: Renseigner les documents de suivi et fournir la liste des éléments utilisés nécessaires pour la facturation. | N283: Les éléments indiqués sont conformes au travail effectué. | AE283: 15
N285: Aucun oubli n’est constaté. | AE285: 15
N287: L’utilisation des outils informatiques est maîtrisée. | AE287: 10
A289: C 3.3 - Démonter remonter des sous ensembles | AE289: 10 | AF289: =SUM(AE291:AE306) -> 100
A291: C 332 | D291: Monter des équipements et accessoires sur des supports pré équipés | N291: L’accessoire ou l’équipement est monté en conformité en respectant les prescriptions du constructeur et/ou de l'équipementier ou la procédure fournie. | AE291: 20
N293: Les connexions sont réalisées en conformité. | AE293: 20
N295: L’action respecte les règles en matière d’hygiène, sécurité et de respect de l'environnement. | AE295: 5
N297: Aucune détérioration n’est constatée | AE297: 5
A299: C 333 | D299: Réaliser des opérations de remise en état et/ou de réparation. | N299: Les opérations sont réalisées en conformité | AE299: 20
N301: La réparation est fonctionnelle | AE301: 20
N303: L’action respecte les règles en matière d’hygiène, sécurité et de respect de l'environnement. | AE303: 5
N305: Aucune détérioration n’est constatée | AE305: 5
A307: C 3.4 - Mesurer – contrôler | AE307: 50 | AF307: =SUM(AE309:AE328) -> 100
A309: C 341 | D309: Réaliser les mesures, les contrôles sur les organes mécaniques. | N309: L'intégrité des appareils de contrôle et de mesure est respectée. | AE309: 10
N311: Les mesures et les contrôles sont réalisés selon les procédures du constructeur et/ou de l'équipementier. | AE311: 10
N313: Les résultats relevés sont exprimés dans l’unité attendue avec la précision requise. | AE313: 10
A315: C 342 | D315: Réaliser les mesures, les contrôles sur circuits hydrauliques, électriques et pneumatiques. | N315: L'intégrité des appareils de contrôle et de mesure est respectée. | AE315: 10
N317: Les mesures et les contrôles sont réalisés selon les procédures du constructeur et/ou de l'équipementier. | AE317: 10
N319: Les résultats relevés sont exprimés dans l’unité attendue avec la précision requise. | AE319: 10
A321: C 343 | D321: Identifier le ou les élément(s) défectueux. | N321: Les résultats des mesures sont correctement interprétés. | AE321: 10
N323: Le ou les éléments défectueux est ou sont signalé(s). | AE323: 10
A325: C 344 | D325: Signaler les anomalies périphériques. | N325: Les anomalies constatées durant l’intervention sont consignées. | AE325: 10
N327: L’utilisation des outils informatiques est maîtrisée. | AE327: 10
A329: C 3.5 - Régler des sous-ensembles | AE329: 30 | AF329: =SUM(AE331:AE344) -> 100
A331: C 351 | D331: Réaliser les réglages sur des sous-ensembles isolés | N331: Les réglages effectués sont conformes à la procédure fournie. | AE331: 25
N333: L’action respecte les règles en matière d’hygiène, sécurité et de respect de l'environnement. | AE333: 25
N335: Aucune détérioration n’est constatée | AE335: 10
A337: C 352 | D337: Réaliser les réglages sur des véhicules. | N337: Les conditions de mise en oeuvre sont respectées. | AE337: 15
N339: Les réglages effectués sont conformes aux prescriptions du constructeur et/ou de l'équipementier ou la procédure fournie. | AE339: 15
N341: L’action respecte les règles en matière d’hygiène, sécurité et de respect de l'environnement. | AE341: 5
N343: Aucune détérioration n’est constatée | AE343: 5

Sheet Situations
A1: Double-cliquer pour créer vos situations
A2: Situations d'évaluation U 11
A3: U11_A | B3: =IF(U11_A!$A$11="","",U11_A!$A$11) -> 
A5: U11_B | B5: =IF(U11_B!$A$11="","",U11_B!$A$11) -> 
A7: U11_C | B7: =IF(U11_C!$A$11="","",U11_C!$A$11) -> 
A9: U11_D | B9: =IF(U11_D!$A$11="","",U11_D!$A$11) -> 
A11: U11_E | B11: =IF(U11_E!$A$11="","",U11_E!$A$11) -> 
A13: U11_F | B13: =IF(U11_F!$A$11="","",U11_F!$A$11) -> 
A15: U11_G | B15: =IF(U11_G!$A$11="","",U11_G!$A$11) -> 
A17: U11_H | B17: =IF(U11_H!$A$11="","",U11_H!$A$11) -> 
A19: Situations d'évaluation U 32
A20: U32_A | B20: =IF(U32_A!$A$11="","",U32_A!$A$11) -> Train roulant Audi R8
A22: U32_B | B22: =IF(U32_B!$A$11="","",U32_B!$A$11) -> 
A24: U32_C | B24: =IF(U32_C!$A$11="","",U32_C!$A$11) -> 
A26: U32_D | B26: =IF(U32_D!$A$11="","",U32_D!$A$11) -> 
A28: U32_E | B28: =IF(U32_E!$A$11="","",U32_E!$A$11) -> 
A30: U32_F | B30: =IF(U32_F!$A$11="","",U32_F!$A$11) -> 
A32: U32_G | B32: =IF(U32_G!$A$11="","",U32_G!$A$11) -> 
A34: U32_H | B34: =IF(U32_H!$A$11="","",U32_H!$A$11) -> 
A36: Sitations d'évaluation U 33
A37: U33_A | B37: =IF(U33_A!$A$11="","",U33_A!$A$11) -> 
A39: U33_B | B39: =IF(U33_B!$A$11="","",U33_B!$A$11) -> 
A41: U33_C | B41: =IF(U33_C!$A$11="","",U33_C!$A$11) -> 
A43: U33_D | B43: =IF(U33_D!$A$11="","",U33_D!$A$11) -> 
A45: U33_E | B45: =IF(U33_E!$A$11="","",U33_E!$A$11) -> 
A47: U33_F | B47: =IF(U33_F!$A$11="","",U33_F!$A$11) -> 
A49: U33_G | B49: =IF(U33_G!$A$11="","",U33_G!$A$11) -> 
A51: U33_H | B51: =IF(U33_H!$A$11="","",U33_H!$A$11) -> 

Sheet Bilan
A2: Session | B2: 2012 | N2: 2 | O2: 2 | P2: 3 | Q2: 3 | T2: 3
A3: Lycée | B3: LP de l'académie de grenoble | C3: Accès fiches (cliquer) | J3: /20 | N3: coef 2 | O3: coef 2 | P3: coef 3 | Q3: coef 3 | T3: /10
A4: N° | B4: Noms & Prénoms | C4: U11 | E4: U31 | F4: U32 | H4: U33 | J4: U11 | K4: U31 | L4: U32 | M4: U33 | N4: U11 | O4: U31 | P4: U32 | Q4: U33 | S4: EP22
A5: 1 | B5: Jean Dupond | C5: U11_01 | E5: U31_01 | F5: U32_01 | G5: A | H5: U33_01 | N5: =IF(J5="","",J5*$N$2) ->  | O5: =IF(K5="","",K5*$O$2) ->  | P5: =IF(L5="","",L5*$P$2) ->  | Q5: =IF(M5="","",M5*$Q$2) ->  | S5: EP22_01
A6: 2 | C6: U11_02 | E6: U31_02 | F6: U32_02 | H6: U33_02 | N6: =IF(J6="","",J6*$N$2) ->  | O6: =IF(K6="","",K6*$O$2) ->  | P6: =IF(L6="","",L6*$P$2) ->  | Q6: =IF(M6="","",M6*$Q$2) -> 
A7: 3 | C7: U11_03 | E7: U31_03 | F7: U32_03 | H7: U33_03
A8: 4 | C8: U11_04 | E8: U31_04 | F8: U32_04 | H8: U33_04
A9: 5 | C9: U11_05 | E9: U31_05 | F9: U32_05 | H9: U33_05
A10: 6 | C10: U11_06 | E10: U31_06 | F10: U32_06 | H10: U33_06
A11: 7 | C11: U11_07 | E11: U31_07 | F11: U32_07 | H11: U33_07
A12: 8 | C12: U11_08 | E12: U31_08 | F12: U32_08 | H12: U33_08
A13: 9 | C13: U11_09 | E13: U31_09 | F13: U32_09 | H13: U33_09
A14: 10 | C14: U11_10 | E14: U31_10 | F14: U32_10 | H14: U33_10
A15: 11 | C15: U11_11 | E15: U31_11 | F15: U32_11 | H15: U33_11
A16: 12 | C16: U11_12 | E16: U31_12 | F16: U32_12 | H16: U33_12
A17: 13 | C17: U11_13 | E17: U31_13 | F17: U32_13 | H17: U33_13
A18: 14 | C18: U11_14 | E18: U31_14 | F18: U32_14 | H18: U33_14
A19: 15 | C19: U11_15 | E19: U31_15 | F19: U32_15 | H19: U33_15
A20: 16 | C20: U11_16 | E20: U31_16 | F20: U32_16 | H20: U33_16
A21: 17 | C21: U11_17 | E21: U31_17 | F21: U32_17 | H21: U33_17
A22: 18 | C22: U11_18 | E22: U31_18 | F22: U32_18 | H22: U33_18
A23: 19 | C23: U11_19 | E23: U31_19 | F23: U32_19 | H23: U33_19
A24: 20 | C24: U11_20 | E24: U31_20 | F24: U32_20 | H24: U33_20
A25: 21 | C25: U11_21 | E25: U31_21 | F25: U32_21 | H25: U33_21
A26: 22 | C26: U11_22 | E26: U31_22 | F26: U32_22 | H26: U33_22
A27: 23 | C27: U11_23 | E27: U31_23 | F27: U32_23 | H27: U33_23
A28: 24 | C28: U11_24 | E28: U31_24 | F28: U32_24 | H28: U33_24
A29: 25 | C29: U11_25 | E29: U31_25 | F29: U32_25 | H29: U33_25
A30: 26 | C30: U11_26 | E30: U31_26 | F30: U32_26 | H30: U33_26
A31: 27 | C31: U11_27 | E31: U31_27 | F31: U32_27 | H31: U33_27
A32: 28 | C32: U11_28 | E32: U31_28 | F32: U32_28 | H32: U33_28
A33: 29 | C33: U11_29 | E33: U31_29 | F33: U32_29 | H33: U33_29
A34: 30 | C34: U11_30 | E34: U31_30 | F34: U32_30 | H34: U33_30
C35: Moyenne | J35: =IF(SUM(J5:J34)=0,"",AVERAGE(J5:J34)) ->  | K35: =IF(SUM(K5:K34)=0,"",AVERAGE(K5:K34)) ->  | L35: =IF(SUM(L5:L34)=0,"",AVERAGE(L5:L34)) ->  | M35: =IF(SUM(M5:M34)=0,"",AVERAGE(M5:M34)) ->  | T35: =IF(SUM(T5:T34)=0,"",AVERAGE(T5:T34)) -> 

Sheet U11 (hidden)
A1: Baccalauréat professionnel « maintenance des véhicules automobiles »
A2: Épreuve E1.1 (Unité U1.1) : Etude d'un système technique
A3: Établissement : (tampon) | X3: Session : | AE3: =IF(Bilan!B2="","",Bilan!B2) -> 2012
A4: =IF(Bilan!B3="","",Bilan!B3) -> LP de l'académie de grenoble | X4: Nom du candidat: | AE4: =IF(INDEX((Bilan!B5:B34),(MATCH(RIGHT(CELL("nomfichier",A1),LEN(CELL("nomfichier",A1))-FIND("]",CELL("nomfichier",A1))),Bilan!C5:C34,0)))="","",INDEX((Bilan!B5:B34),(MATCH(RIGHT(CELL("nomfichier",A1),LEN(CELL("nomfichier",A1))-FIND("]",CELL("nomfichier",A1))),Bilan!C5:C34,0)))) -> 
X5: Prénom :
X6: Date de l'évaluation: | AV6: Choisisser votre situation
A7: Lieu d’évaluation :
A8: Etablissement
A9: Entreprise :
A10: Description sommaire du travail demandé :
A11: =IF($AV$7="","",IF($AV$7="A",IF(U11_A!A11="","",U11_A!A11),IF($AV$7="B",IF(U11_B!A11="","",U11_B!A11),IF($AV$7="C",IF(U11_C!A11="","",U11_C!A11),IF($AV$7="D",IF(U11_D!A11="","",U11_D!A11),IF($AV$7="E",IF(U11_E!A11="","",U11_E!A11),IF($AV$7="F",IF(U11_F!A11="","",U11_F!A11),IF($AV$7="G",IF(U11_G!A11="","",U11_G!A11),IF($AV$7="H",IF(U11_H!A11="","",U11_H!A11),""))))))))) ->  | B11: =IF($AV$7="","",IF($AV$7="A",IF(U11_A!B11="","",U11_A!B11),IF($AV$7="B",IF(U11_B!B11="","",U11_B!B11),IF($AV$7="C",IF(U11_C!B11="","",U11_C!B11),IF($AV$7="D",IF(U11_D!B11="","",U11_D!B11),IF($AV$7="E",IF(U11_E!B11="","",U11_E!B11),IF($AV$7="F",IF(U11_F!B11="","",U11_F!B11),IF($AV$7="G",IF(U11_G!B11="","",U11_G!B11),IF($AV$7="H",IF(U11_H!B11="","",U11_H!B11),""))))))))) ->  | C11: =IF($AV$7="","",IF($AV$7="A",IF(U11_A!C11="","",U11_A!C11),IF($AV$7="B",IF(U11_B!C11="","",U11_B!C11),IF($AV$7="C",IF(U11_C!C11="","",U11_C!C11),IF($AV$7="D",IF(U11_D!C11="","",U11_D!C11),IF($AV$7="E",IF(U11_E!C11="","",U11_E!C11),IF($AV$7="F",IF(U11_F!C11="","",U11_F!C11),IF($AV$7="G",IF(U11_G!C11="","",U11_G!C11),IF($AV$7="H",IF(U11_H!C11="","",U11_H!C11),""))))))))) ->  | D11: =IF($AV$7="","",IF($AV$7="A",IF(U11_A!D11="","",U11_A!D11),IF($AV$7="B",IF(U11_B!D11="","",U11_B!D11),IF($AV$7="C",IF(U11_C!D11="","",U11_C!D11),IF($AV$7="D",IF(U11_D!D11="","",U11_D!D11),IF($AV$7="E",IF(U11_E!D11="","",U11_E!D11),IF($AV$7="F",IF(U11_F!D11="","",U11_F!D11),IF($AV$7="G",IF(U11_G!D11="","",U11_G!D11),IF($AV$7="H",IF(U11_H!D11="","",U11_H!D11),""))))))))) ->  | E11: =IF($AV$7="","",IF($AV$7="A",IF(U11_A!E11="","",U11_A!E11),IF($AV$7="B",IF(U11_B!E11="","",U11_B!E11),IF($AV$7="C",IF(U11_C!E11="","",U11_C!E11),IF($AV$7="D",IF(U11_D!E11="","",U11_D!E11),IF($AV$7="E",IF(U11_E!E11="","",U11_E!E11),IF($AV$7="F",IF(U11_F!E11="","",U11_F!E11),IF($AV$7="G",IF(U11_G!E11="","",U11_G!E11),IF($AV$7="H",IF(U11_H!E11="","",U11_H!E11),""))))))))) ->  | F11: =IF($AV$7="","",IF($AV$7="A",IF(U11_A!F11="","",U11_A!F11),IF($AV$7="B",IF(U11_B!F11="","",U11_B!F11),IF($AV$7="C",IF(U11_C!F11="","",U11_C!F11),IF($AV$7="D",IF(U11_D!F11="","",U11_D!F11),IF($AV$7="E",IF(U11_E!F11="","",U11_E!F11),IF($AV$7="F",IF(U11_F!F11="","",U11_F!F11),IF($AV$7="G",IF(U11_G!F11="","",U11_G!F11),IF($AV$7="H",IF(U11_H!F11="","",U11_H!F11),""))))))))) ->  | G11: =IF($AV$7="","",IF($AV$7="A",IF(U11_A!G11="","",U11_A!G11),IF($AV$7="B",IF(U11_B!G11="","",U11_B!G11),IF($AV$7="C",IF(U11_C!G11="","",U11_C!G11),IF($AV$7="D",IF(U11_D!G11="","",U11_D!G11),IF($AV$7="E",IF(U11_E!G11="","",U11_E!G11),IF($AV$7="F",IF(U11_F!G11="","",U11_F!G11),IF($AV$7="G",IF(U11_G!G11="","",U11_G!G11),IF($AV$7="H",IF(U11_H!G11="","",U11_H!G11),""))))))))) ->  | H11: =IF($AV$7="","",IF($AV$7="A",IF(U11_A!H11="","",U11_A!H11),IF($AV$7="B",IF(U11_B!H11="","",U11_B!H11),IF($AV$7="C",IF(U11_C!H11="","",U11_C!H11),IF($AV$7="D",IF(U11_D!H11="","",U11_D!H11),IF($AV$7="E",IF(U11_E!H11="","",U11_E!H11),IF($AV$7="F",IF(U11_F!H11="","",U11_F!H11),IF($AV$7="G",IF(U11_G!H11="","",U11_G!H11),IF($AV$7="H",IF(U11_H!H11="","",U11_H!H11),""))))))))) ->  | I11: =IF($AV$7="","",IF($AV$7="A",IF(U11_A!I11="","",U11_A!I11),IF($AV$7="B",IF(U11_B!I11="","",U11_B!I11),IF($AV$7="C",IF(U11_C!I11="","",U11_C!I11),IF($AV$7="D",IF(U11_D!I11="","",U11_D!I11),IF($AV$7="E",IF(U11_E!I11="","",U11_E!I11),IF($AV$7="F",IF(U11_F!I11="","",U11_F!I11),IF($AV$7="G",IF(U11_G!I11="","",U11_G!I11),IF($AV$7="H",IF(U11_H!I11="","",U11_H!I11),""))))))))) ->  | J11: =IF($AV$7="","",IF($AV$7="A",IF(U11_A!J11="","",U11_A!J11),IF($AV$7="B",IF(U11_B!J11="","",U11_B!J11),IF($AV$7="C",IF(U11_C!J11="","",U11_C!J11),IF($AV$7="D",IF(U11_D!J11="","",U11_D!J11),IF($AV$7="E",IF(U11_E!J11="","",U11_E!J11),IF($AV$7="F",IF(U11_F!J11="","",U11_F!J11),IF($AV$7="G",IF(U11_G!J11="","",U11_G!J11),IF($AV$7="H",IF(U11_H!J11="","",U11_H!J11),""))))))))) ->  | K11: =IF($AV$7="","",IF($AV$7="A",IF(U11_A!K11="","",U11_A!K11),IF($AV$7="B",IF(U11_B!K11="","",U11_B!K11),IF($AV$7="C",IF(U11_C!K11="","",U11_C!K11),IF($AV$7="D",IF(U11_D!K11="","",U11_D!K11),IF($AV$7="E",IF(U11_E!K11="","",U11_E!K11),IF($AV$7="F",IF(U11_F!K11="","",U11_F!K11),IF($AV$7="G",IF(U11_G!K11="","",U11_G!K11),IF($AV$7="H",IF(U11_H!K11="","",U11_H!K11),""))))))))) ->  | L11: =IF($AV$7="","",IF($AV$7="A",IF(U11_A!L11="","",U11_A!L11),IF($AV$7="B",IF(U11_B!L11="","",U11_B!L11),IF($AV$7="C",IF(U11_C!L11="","",U11_C!L11),IF($AV$7="D",IF(U11_D!L11="","",U11_D!L11),IF($AV$7="E",IF(U11_E!L11="","",U11_E!L11),IF($AV$7="F",IF(U11_F!L11="","",U11_F!L11),IF($AV$7="G",IF(U11_G!L11="","",U11_G!L11),IF($AV$7="H",IF(U11_H!L11="","",U11_H!L11),""))))))))) ->  | M11: =IF($AV$7="","",IF($AV$7="A",IF(U11_A!M11="","",U11_A!M11),IF($AV$7="B",IF(U11_B!M11="","",U11_B!M11),IF($AV$7="C",IF(U11_C!M11="","",U11_C!M11),IF($AV$7="D",IF(U11_D!M11="","",U11_D!M11),IF($AV$7="E",IF(U11_E!M11="","",U11_E!M11),IF($AV$7="F",IF(U11_F!M11="","",U11_F!M11),IF($AV$7="G",IF(U11_G!M11="","",U11_G!M11),IF($AV$7="H",IF(U11_H!M11="","",U11_H!M11),""))))))))) ->  | N11: =IF($AV$7="","",IF($AV$7="A",IF(U11_A!N11="","",U11_A!N11),IF($AV$7="B",IF(U11_B!N11="","",U11_B!N11),IF($AV$7="C",IF(U11_C!N11="","",U11_C!N11),IF($AV$7="D",IF(U11_D!N11="","",U11_D!N11),IF($AV$7="E",IF(U11_E!N11="","",U11_E!N11),IF($AV$7="F",IF(U11_F!N11="","",U11_F!N11),IF($AV$7="G",IF(U11_G!N11="","",U11_G!N11),IF($AV$7="H",IF(U11_H!N11="","",U11_H!N11),""))))))))) ->  | O11: =IF($AV$7="","",IF($AV$7="A",IF(U11_A!O11="","",U11_A!O11),IF($AV$7="B",IF(U11_B!O11="","",U11_B!O11),IF($AV$7="C",IF(U11_C!O11="","",U11_C!O11),IF($AV$7="D",IF(U11_D!O11="","",U11_D!O11),IF($AV$7="E",IF(U11_E!O11="","",U11_E!O11),IF($AV$7="F",IF(U11_F!O11="","",U11_F!O11),IF($AV$7="G",IF(U11_G!O11="","",U11_G!O11),IF($AV$7="H",IF(U11_H!O11="","",U11_H!O11),""))))))))) ->  | P11: =IF($AV$7="","",IF($AV$7="A",IF(U11_A!P11="","",U11_A!P11),IF($AV$7="B",IF(U11_B!P11="","",U11_B!P11),IF($AV$7="C",IF(U11_C!P11="","",U11_C!P11),IF($AV$7="D",IF(U11_D!P11="","",U11_D!P11),IF($AV$7="E",IF(U11_E!P11="","",U11_E!P11),IF($AV$7="F",IF(U11_F!P11="","",U11_F!P11),IF($AV$7="G",IF(U11_G!P11="","",U11_G!P11),IF($AV$7="H",IF(U11_H!P11="","",U11_H!P11),""))))))))) ->  | Q11: =IF($AV$7="","",IF($AV$7="A",IF(U11_A!Q11="","",U11_A!Q11),IF($AV$7="B",IF(U11_B!Q11="","",U11_B!Q11),IF($AV$7="C",IF(U11_C!Q11="","",U11_C!Q11),IF($AV$7="D",IF(U11_D!Q11="","",U11_D!Q11),IF($AV$7="E",IF(U11_E!Q11="","",U11_E!Q11),IF($AV$7="F",IF(U11_F!Q11="","",U11_F!Q11),IF($AV$7="G",IF(U11_G!Q11="","",U11_G!Q11),IF($AV$7="H",IF(U11_H!Q11="","",U11_H!Q11),""))))))))) ->  | R11: =IF($AV$7="","",IF($AV$7="A",IF(U11_A!R11="","",U11_A!R11),IF($AV$7="B",IF(U11_B!R11="","",U11_B!R11),IF($AV$7="C",IF(U11_C!R11="","",U11_C!R11),IF($AV$7="D",IF(U11_D!R11="","",U11_D!R11),IF($AV$7="E",IF(U11_E!R11="","",U11_E!R11),IF($AV$7="F",IF(U11_F!R11="","",U11_F!R11),IF($AV$7="G",IF(U11_G!R11="","",U11_G!R11),IF($AV$7="H",IF(U11_H!R11="","",U11_H!R11),""))))))))) ->  | S11: =IF($AV$7="","",IF($AV$7="A",IF(U11_A!S11="","",U11_A!S11),IF($AV$7="B",IF(U11_B!S11="","",U11_B!S11),IF($AV$7="C",IF(U11_C!S11="","",U11_C!S11),IF($AV$7="D",IF(U11_D!S11="","",U11_D!S11),IF($AV$7="E",IF(U11_E!S11="","",U11_E!S11),IF($AV$7="F",IF(U11_F!S11="","",U11_F!S11),IF($AV$7="G",IF(U11_G!S11="","",U11_G!S11),IF($AV$7="H",IF(U11_H!S11="","",U11_H!S11),""))))))))) ->  | T11: =IF($AV$7="","",IF($AV$7="A",IF(U11_A!T11="","",U11_A!T11),IF($AV$7="B",IF(U11_B!T11="","",U11_B!T11),IF($AV$7="C",IF(U11_C!T11="","",U11_C!T11),IF($AV$7="D",IF(U11_D!T11="","",U11_D!T11),IF($AV$7="E",IF(U11_E!T11="","",U11_E!T11),IF($AV$7="F",IF(U11_F!T11="","",U11_F!T11),IF($AV$7="G",IF(U11_G!T11="","",U11_G!T11),IF($AV$7="H",IF(U11_H!T11="","",U11_H!T11),""))))))))) ->  | U11: =IF($AV$7="","",IF($AV$7="A",IF(U11_A!U11="","",U11_A!U11),IF($AV$7="B",IF(U11_B!U11="","",U11_B!U11),IF($AV$7="C",IF(U11_C!U11="","",U11_C!U11),IF($AV$7="D",IF(U11_D!U11="","",U11_D!U11),IF($AV$7="E",IF(U11_E!U11="","",U11_E!U11),IF($AV$7="F",IF(U11_F!U11="","",U11_F!U11),IF($AV$7="G",IF(U11_G!U11="","",U11_G!U11),IF($AV$7="H",IF(U11_H!U11="","",U11_H!U11),""))))))))) ->  | V11: =IF($AV$7="","",IF($AV$7="A",IF(U11_A!V11="","",U11_A!V11),IF($AV$7="B",IF(U11_B!V11="","",U11_B!V11),IF($AV$7="C",IF(U11_C!V11="","",U11_C!V11),IF($AV$7="D",IF(U11_D!V11="","",U11_D!V11),IF($AV$7="E",IF(U11_E!V11="","",U11_E!V11),IF($AV$7="F",IF(U11_F!V11="","",U11_F!V11),IF($AV$7="G",IF(U11_G!V11="","",U11_G!V11),IF($AV$7="H",IF(U11_H!V11="","",U11_H!V11),""))))))))) ->  | W11: =IF($AV$7="","",IF($AV$7="A",IF(U11_A!W11="","",U11_A!W11),IF($AV$7="B",IF(U11_B!W11="","",U11_B!W11),IF($AV$7="C",IF(U11_C!W11="","",U11_C!W11),IF($AV$7="D",IF(U11_D!W11="","",U11_D!W11),IF($AV$7="E",IF(U11_E!W11="","",U11_E!W11),IF($AV$7="F",IF(U11_F!W11="","",U11_F!W11),IF($AV$7="G",IF(U11_G!W11="","",U11_G!W11),IF($AV$7="H",IF(U11_H!W11="","",U11_H!W11),""))))))))) ->  | X11: =IF($AV$7="","",IF($AV$7="A",IF(U11_A!X11="","",U11_A!X11),IF($AV$7="B",IF(U11_B!X11="","",U11_B!X11),IF($AV$7="C",IF(U11_C!X11="","",U11_C!X11),IF($AV$7="D",IF(U11_D!X11="","",U11_D!X11),IF($AV$7="E",IF(U11_E!X11="","",U11_E!X11),IF($AV$7="F",IF(U11_F!X11="","",U11_F!X11),IF($AV$7="G",IF(U11_G!X11="","",U11_G!X11),IF($AV$7="H",IF(U11_H!X11="","",U11_H!X11),""))))))))) ->  | Y11: =IF($AV$7="","",IF($AV$7="A",IF(U11_A!Y11="","",U11_A!Y11),IF($AV$7="B",IF(U11_B!Y11="","",U11_B!Y11),IF($AV$7="C",IF(U11_C!Y11="","",U11_C!Y11),IF($AV$7="D",IF(U11_D!Y11="","",U11_D!Y11),IF($AV$7="E",IF(U11_E!Y11="","",U11_E!Y11),IF($AV$7="F",IF(U11_F!Y11="","",U11_F!Y11),IF($AV$7="G",IF(U11_G!Y11="","",U11_G!Y11),IF($AV$7="H",IF(U11_H!Y11="","",U11_H!Y11),""))))))))) ->  | Z11: =IF($AV$7="","",IF($AV$7="A",IF(U11_A!Z11="","",U11_A!Z11),IF($AV$7="B",IF(U11_B!Z11="","",U11_B!Z11),IF($AV$7="C",IF(U11_C!Z11="","",U11_C!Z11),IF($AV$7="D",IF(U11_D!Z11="","",U11_D!Z11),IF($AV$7="E",IF(U11_E!Z11="","",U11_E!Z11),IF($AV$7="F",IF(U11_F!Z11="","",U11_F!Z11),IF($AV$7="G",IF(U11_G!Z11="","",U11_G!Z11),IF($AV$7="H",IF(U11_H!Z11="","",U11_H!Z11),""))))))))) ->  | AA11: =IF($AV$7="","",IF($AV$7="A",IF(U11_A!AA11="","",U11_A!AA11),IF($AV$7="B",IF(U11_B!AA11="","",U11_B!AA11),IF($AV$7="C",IF(U11_C!AA11="","",U11_C!AA11),IF($AV$7="D",IF(U11_D!AA11="","",U11_D!AA11),IF($AV$7="E",IF(U11_E!AA11="","",U11_E!AA11),IF($AV$7="F",IF(U11_F!AA11="","",U11_F!AA11),IF($AV$7="G",IF(U11_G!AA11="","",U11_G!AA11),IF($AV$7="H",IF(U11_H!AA11="","",U11_H!AA11),""))))))))) ->  | AB11: =IF($AV$7="","",IF($AV$7="A",IF(U11_A!AB11="","",U11_A!AB11),IF($AV$7="B",IF(U11_B!AB11="","",U11_B!AB11),IF($AV$7="C",IF(U11_C!AB11="","",U11_C!AB11),IF($AV$7="D",IF(U11_D!AB11="","",U11_D!AB11),IF($AV$7="E",IF(U11_E!AB11="","",U11_E!AB11),IF($AV$7="F",IF(U11_F!AB11="","",U11_F!AB11),IF($AV$7="G",IF(U11_G!AB11="","",U11_G!AB11),IF($AV$7="H",IF(U11_H!AB11="","",U11_H!AB11),""))))))))) ->  | AC11: =IF($AV$7="","",IF($AV$7="A",IF(U11_A!AC11="","",U11_A!AC11),IF($AV$7="B",IF(U11_B!AC11="","",U11_B!AC11),IF($AV$7="C",IF(U11_C!AC11="","",U11_C!AC11),IF($AV$7="D",IF(U11_D!AC11="","",U11_D!AC11),IF($AV$7="E",IF(U11_E!AC11="","",U11_E!AC11),IF($AV$7="F",IF(U11_F!AC11="","",U11_F!AC11),IF($AV$7="G",IF(U11_G!AC11="","",U11_G!AC11),IF($AV$7="H",IF(U11_H!AC11="","",U11_H!AC11),""))))))))) ->  | AD11: =IF($AV$7="","",IF($AV$7="A",IF(U11_A!AD11="","",U11_A!AD11),IF($AV$7="B",IF(U11_B!AD11="","",U11_B!AD11),IF($AV$7="C",IF(U11_C!AD11="","",U11_C!AD11),IF($AV$7="D",IF(U11_D!AD11="","",U11_D!AD11),IF($AV$7="E",IF(U11_E!AD11="","",U11_E!AD11),IF($AV$7="F",IF(U11_F!AD11="","",U11_F!AD11),IF($AV$7="G",IF(U11_G!AD11="","",U11_G!AD11),IF($AV$7="H",IF(U11_H!AD11="","",U11_H!AD11),""))))))))) ->  | AE11: =IF($AV$7="","",IF($AV$7="A",IF(U11_A!AE11="","",U11_A!AE11),IF($AV$7="B",IF(U11_B!AE11="","",U11_B!AE11),IF($AV$7="C",IF(U11_C!AE11="","",U11_C!AE11),IF($AV$7="D",IF(U11_D!AE11="","",U11_D!AE11),IF($AV$7="E",IF(U11_E!AE11="","",U11_E!AE11),IF($AV$7="F",IF(U11_F!AE11="","",U11_F!AE11),IF($AV$7="G",IF(U11_G!AE11="","",U11_G!AE11),IF($AV$7="H",IF(U11_H!AE11="","",U11_H!AE11),""))))))))) ->  | AF11: =IF($AV$7="","",IF($AV$7="A",IF(U11_A!AF11="","",U11_A!AF11),IF($AV$7="B",IF(U11_B!AF11="","",U11_B!AF11),IF($AV$7="C",IF(U11_C!AF11="","",U11_C!AF11),IF($AV$7="D",IF(U11_D!AF11="","",U11_D!AF11),IF($AV$7="E",IF(U11_E!AF11="","",U11_E!AF11),IF($AV$7="F",IF(U11_F!AF11="","",U11_F!AF11),IF($AV$7="G",IF(U11_G!AF11="","",U11_G!AF11),IF($AV$7="H",IF(U11_H!AF11="","",U11_H!AF11),""))))))))) ->  | AG11: =IF($AV$7="","",IF($AV$7="A",IF(U11_A!AG11="","",U11_A!AG11),IF($AV$7="B",IF(U11_B!AG11="","",U11_B!AG11),IF($AV$7="C",IF(U11_C!AG11="","",U11_C!AG11),IF($AV$7="D",IF(U11_D!AG11="","",U11_D!AG11),IF($AV$7="E",IF(U11_E!AG11="","",U11_E!AG11),IF($AV$7="F",IF(U11_F!AG11="","",U11_F!AG11),IF($AV$7="G",IF(U11_G!AG11="","",U11_G!AG11),IF($AV$7="H",IF(U11_H!AG11="","",U11_H!AG11),""))))))))) ->  | AH11: =IF($AV$7="","",IF($AV$7="A",IF(U11_A!AH11="","",U11_A!AH11),IF($AV$7="B",IF(U11_B!AH11="","",U11_B!AH11),IF($AV$7="C",IF(U11_C!AH11="","",U11_C!AH11),IF($AV$7="D",IF(U11_D!AH11="","",U11_D!AH11),IF($AV$7="E",IF(U11_E!AH11="","",U11_E!AH11),IF($AV$7="F",IF(U11_F!AH11="","",U11_F!AH11),IF($AV$7="G",IF(U11_G!AH11="","",U11_G!AH11),IF($AV$7="H",IF(U11_H!AH11="","",U11_H!AH11),""))))))))) ->  | AI11: =IF($AV$7="","",IF($AV$7="A",IF(U11_A!AI11="","",U11_A!AI11),IF($AV$7="B",IF(U11_B!AI11="","",U11_B!AI11),IF($AV$7="C",IF(U11_C!AI11="","",U11_C!AI11),IF($AV$7="D",IF(U11_D!AI11="","",U11_D!AI11),IF($AV$7="E",IF(U11_E!AI11="","",U11_E!AI11),IF($AV$7="F",IF(U11_F!AI11="","",U11_F!AI11),IF($AV$7="G",IF(U11_G!AI11="","",U11_G!AI11),IF($AV$7="H",IF(U11_H!AI11="","",U11_H!AI11),""))))))))) ->  | AJ11: =IF($AV$7="","",IF($AV$7="A",IF(U11_A!AJ11="","",U11_A!AJ11),IF($AV$7="B",IF(U11_B!AJ11="","",U11_B!AJ11),IF($AV$7="C",IF(U11_C!AJ11="","",U11_C!AJ11),IF($AV$7="D",IF(U11_D!AJ11="","",U11_D!AJ11),IF($AV$7="E",IF(U11_E!AJ11="","",U11_E!AJ11),IF($AV$7="F",IF(U11_F!AJ11="","",U11_F!AJ11),IF($AV$7="G",IF(U11_G!AJ11="","",U11_G!AJ11),IF($AV$7="H",IF(U11_H!AJ11="","",U11_H!AJ11),""))))))))) ->  | AK11: =IF($AV$7="","",IF($AV$7="A",IF(U11_A!AK11="","",U11_A!AK11),IF($AV$7="B",IF(U11_B!AK11="","",U11_B!AK11),IF($AV$7="C",IF(U11_C!AK11="","",U11_C!AK11),IF($AV$7="D",IF(U11_D!AK11="","",U11_D!AK11),IF($AV$7="E",IF(U11_E!AK11="","",U11_E!AK11),IF($AV$7="F",IF(U11_F!AK11="","",U11_F!AK11),IF($AV$7="G",IF(U11_G!AK11="","",U11_G!AK11),IF($AV$7="H",IF(U11_H!AK11="","",U11_H!AK11),""))))))))) ->  | AL11: =IF($AV$7="","",IF($AV$7="A",IF(U11_A!AL11="","",U11_A!AL11),IF($AV$7="B",IF(U11_B!AL11="","",U11_B!AL11),IF($AV$7="C",IF(U11_C!AL11="","",U11_C!AL11),IF($AV$7="D",IF(U11_D!AL11="","",U11_D!AL11),IF($AV$7="E",IF(U11_E!AL11="","",U11_E!AL11),IF($AV$7="F",IF(U11_F!AL11="","",U11_F!AL11),IF($AV$7="G",IF(U11_G!AL11="","",U11_G!AL11),IF($AV$7="H",IF(U11_H!AL11="","",U11_H!AL11),""))))))))) ->  | AM11: =IF($AV$7="","",IF($AV$7="A",IF(U11_A!AM11="","",U11_A!AM11),IF($AV$7="B",IF(U11_B!AM11="","",U11_B!AM11),IF($AV$7="C",IF(U11_C!AM11="","",U11_C!AM11),IF($AV$7="D",IF(U11_D!AM11="","",U11_D!AM11),IF($AV$7="E",IF(U11_E!AM11="","",U11_E!AM11),IF($AV$7="F",IF(U11_F!AM11="","",U11_F!AM11),IF($AV$7="G",IF(U11_G!AM11="","",U11_G!AM11),IF($AV$7="H",IF(U11_H!AM11="","",U11_H!AM11),""))))))))) ->  | AN11: =IF($AV$7="","",IF($AV$7="A",IF(U11_A!AN11="","",U11_A!AN11),IF($AV$7="B",IF(U11_B!AN11="","",U11_B!AN11),IF($AV$7="C",IF(U11_C!AN11="","",U11_C!AN11),IF($AV$7="D",IF(U11_D!AN11="","",U11_D!AN11),IF($AV$7="E",IF(U11_E!AN11="","",U11_E!AN11),IF($AV$7="F",IF(U11_F!AN11="","",U11_F!AN11),IF($AV$7="G",IF(U11_G!AN11="","",U11_G!AN11),IF($AV$7="H",IF(U11_H!AN11="","",U11_H!AN11),""))))))))) ->  | AO11: =IF($AV$7="","",IF($AV$7="A",IF(U11_A!AO11="","",U11_A!AO11),IF($AV$7="B",IF(U11_B!AO11="","",U11_B!AO11),IF($AV$7="C",IF(U11_C!AO11="","",U11_C!AO11),IF($AV$7="D",IF(U11_D!AO11="","",U11_D!AO11),IF($AV$7="E",IF(U11_E!AO11="","",U11_E!AO11),IF($AV$7="F",IF(U11_F!AO11="","",U11_F!AO11),IF($AV$7="G",IF(U11_G!AO11="","",U11_G!AO11),IF($AV$7="H",IF(U11_H!AO11="","",U11_H!AO11),""))))))))) ->  | AP11: =IF($AV$7="","",IF($AV$7="A",IF(U11_A!AP11="","",U11_A!AP11),IF($AV$7="B",IF(U11_B!AP11="","",U11_B!AP11),IF($AV$7="C",IF(U11_C!AP11="","",U11_C!AP11),IF($AV$7="D",IF(U11_D!AP11="","",U11_D!AP11),IF($AV$7="E",IF(U11_E!AP11="","",U11_E!AP11),IF($AV$7="F",IF(U11_F!AP11="","",U11_F!AP11),IF($AV$7="G",IF(U11_G!AP11="","",U11_G!AP11),IF($AV$7="H",IF(U11_H!AP11="","",U11_H!AP11),""))))))))) ->  | AQ11: =IF($AV$7="","",IF($AV$7="A",IF(U11_A!AQ11="","",U11_A!AQ11),IF($AV$7="B",IF(U11_B!AQ11="","",U11_B!AQ11),IF($AV$7="C",IF(U11_C!AQ11="","",U11_C!AQ11),IF($AV$7="D",IF(U11_D!AQ11="","",U11_D!AQ11),IF($AV$7="E",IF(U11_E!AQ11="","",U11_E!AQ11),IF($AV$7="F",IF(U11_F!AQ11="","",U11_F!AQ11),IF($AV$7="G",IF(U11_G!AQ11="","",U11_G!AQ11),IF($AV$7="H",IF(U11_H!AQ11="","",U11_H!AQ11),""))))))))) ->  | AR11: =IF($AV$7="","",IF($AV$7="A",IF(U11_A!AR11="","",U11_A!AR11),IF($AV$7="B",IF(U11_B!AR11="","",U11_B!AR11),IF($AV$7="C",IF(U11_C!AR11="","",U11_C!AR11),IF($AV$7="D",IF(U11_D!AR11="","",U11_D!AR11),IF($AV$7="E",IF(U11_E!AR11="","",U11_E!AR11),IF($AV$7="F",IF(U11_F!AR11="","",U11_F!AR11),IF($AV$7="G",IF(U11_G!AR11="","",U11_G!AR11),IF($AV$7="H",IF(U11_H!AR11="","",U11_H!AR11),""))))))))) ->  | AS11: =IF($AV$7="","",IF($AV$7="A",IF(U11_A!AS11="","",U11_A!AS11),IF($AV$7="B",IF(U11_B!AS11="","",U11_B!AS11),IF($AV$7="C",IF(U11_C!AS11="","",U11_C!AS11),IF($AV$7="D",IF(U11_D!AS11="","",U11_D!AS11),IF($AV$7="E",IF(U11_E!AS11="","",U11_E!AS11),IF($AV$7="F",IF(U11_F!AS11="","",U11_F!AS11),IF($AV$7="G",IF(U11_G!AS11="","",U11_G!AS11),IF($AV$7="H",IF(U11_H!AS11="","",U11_H!AS11),""))))))))) ->  | AT11: =IF($AV$7="","",IF($AV$7="A",IF(U11_A!AT11="","",U11_A!AT11),IF($AV$7="B",IF(U11_B!AT11="","",U11_B!AT11),IF($AV$7="C",IF(U11_C!AT11="","",U11_C!AT11),IF($AV$7="D",IF(U11_D!AT11="","",U11_D!AT11),IF($AV$7="E",IF(U11_E!AT11="","",U11_E!AT11),IF($AV$7="F",IF(U11_F!AT11="","",U11_F!AT11),IF($AV$7="G",IF(U11_G!AT11="","",U11_G!AT11),IF($AV$7="H",IF(U11_H!AT11="","",U11_H!AT11),""))))))))) -> 
A13: Données fournies au candidat
A14: =IF($AV$7="","",IF($AV$7="A",IF(U11_A!A14="","",U11_A!A14),IF($AV$7="B",IF(U11_B!A14="","",U11_B!A14),IF($AV$7="C",IF(U11_C!A14="","",U11_C!A14),IF($AV$7="D",IF(U11_D!A14="","",U11_D!A14),IF($AV$7="E",IF(U11_E!A14="","",U11_E!A14),IF($AV$7="F",IF(U11_F!A14="","",U11_F!A14),IF($AV$7="G",IF(U11_G!A14="","",U11_G!A14),IF($AV$7="H",IF(U11_H!A14="","",U11_H!A14),""))))))))) ->  | B14: Un véhicule, un système ou sous-système | X14: =IF($AV$7="","",IF($AV$7="A",IF(U11_A!X14="","",U11_A!X14),IF($AV$7="B",IF(U11_B!X14="","",U11_B!X14),IF($AV$7="C",IF(U11_C!X14="","",U11_C!X14),IF($AV$7="D",IF(U11_D!X14="","",U11_D!X14),IF($AV$7="E",IF(U11_E!X14="","",U11_E!X14),IF($AV$7="F",IF(U11_F!X14="","",U11_F!X14),IF($AV$7="G",IF(U11_G!X14="","",U11_G!X14),IF($AV$7="H",IF(U11_H!X14="","",U11_H!X14),""))))))))) ->  | Y14: Outils d’aide au diagnostic (internes à l’entreprise et à distance)
A15: =IF($AV$7="","",IF($AV$7="A",IF(U11_A!A15="","",U11_A!A15),IF($AV$7="B",IF(U11_B!A15="","",U11_B!A15),IF($AV$7="C",IF(U11_C!A15="","",U11_C!A15),IF($AV$7="D",IF(U11_D!A15="","",U11_D!A15),IF($AV$7="E",IF(U11_E!A15="","",U11_E!A15),IF($AV$7="F",IF(U11_F!A15="","",U11_F!A15),IF($AV$7="G",IF(U11_G!A15="","",U11_G!A15),IF($AV$7="H",IF(U11_H!A15="","",U11_H!A15),""))))))))) ->  | B15: Un ou plusieurs éléments d’un système en dysfonctionnement. | X15: =IF($AV$7="","",IF($AV$7="A",IF(U11_A!X15="","",U11_A!X15),IF($AV$7="B",IF(U11_B!X15="","",U11_B!X15),IF($AV$7="C",IF(U11_C!X15="","",U11_C!X15),IF($AV$7="D",IF(U11_D!X15="","",U11_D!X15),IF($AV$7="E",IF(U11_E!X15="","",U11_E!X15),IF($AV$7="F",IF(U11_F!X15="","",U11_F!X15),IF($AV$7="G",IF(U11_G!X15="","",U11_G!X15),IF($AV$7="H",IF(U11_H!X15="","",U11_H!X15),""))))))))) ->  | Y15: Protections intérieures et extérieures
A16: =IF($AV$7="","",IF($AV$7="A",IF(U11_A!A16="","",U11_A!A16),IF($AV$7="B",IF(U11_B!A16="","",U11_B!A16),IF($AV$7="C",IF(U11_C!A16="","",U11_C!A16),IF($AV$7="D",IF(U11_D!A16="","",U11_D!A16),IF($AV$7="E",IF(U11_E!A16="","",U11_E!A16),IF($AV$7="F",IF(U11_F!A16="","",U11_F!A16),IF($AV$7="G",IF(U11_G!A16="","",U11_G!A16),IF($AV$7="H",IF(U11_H!A16="","",U11_H!A16),""))))))))) ->  | B16: Ordre de réparation | X16: =IF($AV$7="","",IF($AV$7="A",IF(U11_A!X16="","",U11_A!X16),IF($AV$7="B",IF(U11_B!X16="","",U11_B!X16),IF($AV$7="C",IF(U11_C!X16="","",U11_C!X16),IF($AV$7="D",IF(U11_D!X16="","",U11_D!X16),IF($AV$7="E",IF(U11_E!X16="","",U11_E!X16),IF($AV$7="F",IF(U11_F!X16="","",U11_F!X16),IF($AV$7="G",IF(U11_G!X16="","",U11_G!X16),IF($AV$7="H",IF(U11_H!X16="","",U11_H!X16),""))))))))) ->  | Y16: Équipements, outillages et notices d’utilisation nécessaires à l’intervention.
A17: =IF($AV$7="","",IF($AV$7="A",IF(U11_A!A17="","",U11_A!A17),IF($AV$7="B",IF(U11_B!A17="","",U11_B!A17),IF($AV$7="C",IF(U11_C!A17="","",U11_C!A17),IF($AV$7="D",IF(U11_D!A17="","",U11_D!A17),IF($AV$7="E",IF(U11_E!A17="","",U11_E!A17),IF($AV$7="F",IF(U11_F!A17="","",U11_F!A17),IF($AV$7="G",IF(U11_G!A17="","",U11_G!A17),IF($AV$7="H",IF(U11_H!A17="","",U11_H!A17),""))))))))) ->  | B17: Description de l’anomalie constatée et/ou de ses effets | X17: =IF($AV$7="","",IF($AV$7="A",IF(U11_A!X17="","",U11_A!X17),IF($AV$7="B",IF(U11_B!X17="","",U11_B!X17),IF($AV$7="C",IF(U11_C!X17="","",U11_C!X17),IF($AV$7="D",IF(U11_D!X17="","",U11_D!X17),IF($AV$7="E",IF(U11_E!X17="","",U11_E!X17),IF($AV$7="F",IF(U11_F!X17="","",U11_F!X17),IF($AV$7="G",IF(U11_G!X17="","",U11_G!X17),IF($AV$7="H",IF(U11_H!X17="","",U11_H!X17),""))))))))) ->  | Y17: Appareils de mesures et de contrôles fixes ou embarqués avec les notices d’utilisation.
A18: =IF($AV$7="","",IF($AV$7="A",IF(U11_A!A18="","",U11_A!A18),IF($AV$7="B",IF(U11_B!A18="","",U11_B!A18),IF($AV$7="C",IF(U11_C!A18="","",U11_C!A18),IF($AV$7="D",IF(U11_D!A18="","",U11_D!A18),IF($AV$7="E",IF(U11_E!A18="","",U11_E!A18),IF($AV$7="F",IF(U11_F!A18="","",U11_F!A18),IF($AV$7="G",IF(U11_G!A18="","",U11_G!A18),IF($AV$7="H",IF(U11_H!A18="","",U11_H!A18),""))))))))) ->  | B18: Historique technique du véhicule (documents de suivi) | X18: =IF($AV$7="","",IF($AV$7="A",IF(U11_A!X18="","",U11_A!X18),IF($AV$7="B",IF(U11_B!X18="","",U11_B!X18),IF($AV$7="C",IF(U11_C!X18="","",U11_C!X18),IF($AV$7="D",IF(U11_D!X18="","",U11_D!X18),IF($AV$7="E",IF(U11_E!X18="","",U11_E!X18),IF($AV$7="F",IF(U11_F!X18="","",U11_F!X18),IF($AV$7="G",IF(U11_G!X18="","",U11_G!X18),IF($AV$7="H",IF(U11_H!X18="","",U11_H!X18),""))))))))) ->  | Y18: Résultats des mesures et contrôles.
A19: =IF($AV$7="","",IF($AV$7="A",IF(U11_A!A19="","",U11_A!A19),IF($AV$7="B",IF(U11_B!A19="","",U11_B!A19),IF($AV$7="C",IF(U11_C!A19="","",U11_C!A19),IF($AV$7="D",IF(U11_D!A19="","",U11_D!A19),IF($AV$7="E",IF(U11_E!A19="","",U11_E!A19),IF($AV$7="F",IF(U11_F!A19="","",U11_F!A19),IF($AV$7="G",IF(U11_G!A19="","",U11_G!A19),IF($AV$7="H",IF(U11_H!A19="","",U11_H!A19),""))))))))) ->  | B19: Documentation technique du véhicule (données constructeur) | X19: =IF($AV$7="","",IF($AV$7="A",IF(U11_A!X19="","",U11_A!X19),IF($AV$7="B",IF(U11_B!X19="","",U11_B!X19),IF($AV$7="C",IF(U11_C!X19="","",U11_C!X19),IF($AV$7="D",IF(U11_D!X19="","",U11_D!X19),IF($AV$7="E",IF(U11_E!X19="","",U11_E!X19),IF($AV$7="F",IF(U11_F!X19="","",U11_F!X19),IF($AV$7="G",IF(U11_G!X19="","",U11_G!X19),IF($AV$7="H",IF(U11_H!X19="","",U11_H!X19),""))))))))) ->  | Y19: Un essai à effectuer si besoin
A20: =IF($AV$7="","",IF($AV$7="A",IF(U11_A!A20="","",U11_A!A20),IF($AV$7="B",IF(U11_B!A20="","",U11_B!A20),IF($AV$7="C",IF(U11_C!A20="","",U11_C!A20),IF($AV$7="D",IF(U11_D!A20="","",U11_D!A20),IF($AV$7="E",IF(U11_E!A20="","",U11_E!A20),IF($AV$7="F",IF(U11_F!A20="","",U11_F!A20),IF($AV$7="G",IF(U11_G!A20="","",U11_G!A20),IF($AV$7="H",IF(U11_H!A20="","",U11_H!A20),""))))))))) ->  | B20: Planning de charge de l’atelier | X20: =IF($AV$7="","",IF($AV$7="A",IF(U11_A!X20="","",U11_A!X20),IF($AV$7="B",IF(U11_B!X20="","",U11_B!X20),IF($AV$7="C",IF(U11_C!X20="","",U11_C!X20),IF($AV$7="D",IF(U11_D!X20="","",U11_D!X20),IF($AV$7="E",IF(U11_E!X20="","",U11_E!X20),IF($AV$7="F",IF(U11_F!X20="","",U11_F!X20),IF($AV$7="G",IF(U11_G!X20="","",U11_G!X20),IF($AV$7="H",IF(U11_H!X20="","",U11_H!X20),""))))))))) ->  | Y20: La réglementation.
A21: =IF($AV$7="","",IF($AV$7="A",IF(U11_A!A21="","",U11_A!A21),IF($AV$7="B",IF(U11_B!A21="","",U11_B!A21),IF($AV$7="C",IF(U11_C!A21="","",U11_C!A21),IF($AV$7="D",IF(U11_D!A21="","",U11_D!A21),IF($AV$7="E",IF(U11_E!A21="","",U11_E!A21),IF($AV$7="F",IF(U11_F!A21="","",U11_F!A21),IF($AV$7="G",IF(U11_G!A21="","",U11_G!A21),IF($AV$7="H",IF(U11_H!A21="","",U11_H!A21),""))))))))) ->  | B21: Poste de travail | X21: =IF($AV$7="","",IF($AV$7="A",IF(U11_A!X21="","",U11_A!X21),IF($AV$7="B",IF(U11_B!X21="","",U11_B!X21),IF($AV$7="C",IF(U11_C!X21="","",U11_C!X21),IF($AV$7="D",IF(U11_D!X21="","",U11_D!X21),IF($AV$7="E",IF(U11_E!X21="","",U11_E!X21),IF($AV$7="F",IF(U11_F!X21="","",U11_F!X21),IF($AV$7="G",IF(U11_G!X21="","",U11_G!X21),IF($AV$7="H",IF(U11_H!X21="","",U11_H!X21),""))))))))) ->  | Y21: Matériel de nettoyage et de remise en état
A22: =IF($AV$7="","",IF($AV$7="A",IF(U11_A!A22="","",U11_A!A22),IF($AV$7="B",IF(U11_B!A22="","",U11_B!A22),IF($AV$7="C",IF(U11_C!A22="","",U11_C!A22),IF($AV$7="D",IF(U11_D!A22="","",U11_D!A22),IF($AV$7="E",IF(U11_E!A22="","",U11_E!A22),IF($AV$7="F",IF(U11_F!A22="","",U11_F!A22),IF($AV$7="G",IF(U11_G!A22="","",U11_G!A22),IF($AV$7="H",IF(U11_H!A22="","",U11_H!A22),""))))))))) ->  | B22: Les matériels de manutention et leurs notices d’utilisation | X22: =IF($AV$7="","",IF($AV$7="A",IF(U11_A!X22="","",U11_A!X22),IF($AV$7="B",IF(U11_B!X22="","",U11_B!X22),IF($AV$7="C",IF(U11_C!X22="","",U11_C!X22),IF($AV$7="D",IF(U11_D!X22="","",U11_D!X22),IF($AV$7="E",IF(U11_E!X22="","",U11_E!X22),IF($AV$7="F",IF(U11_F!X22="","",U11_F!X22),IF($AV$7="G",IF(U11_G!X22="","",U11_G!X22),IF($AV$7="H",IF(U11_H!X22="","",U11_H!X22),""))))))))) ->  | Y22: Déchets résultants d’une intervention sur un véhicule ou bateau.
A23: =IF($AV$7="","",IF($AV$7="A",IF(U11_A!A23="","",U11_A!A23),IF($AV$7="B",IF(U11_B!A23="","",U11_B!A23),IF($AV$7="C",IF(U11_C!A23="","",U11_C!A23),IF($AV$7="D",IF(U11_D!A23="","",U11_D!A23),IF($AV$7="E",IF(U11_E!A23="","",U11_E!A23),IF($AV$7="F",IF(U11_F!A23="","",U11_F!A23),IF($AV$7="G",IF(U11_G!A23="","",U11_G!A23),IF($AV$7="H",IF(U11_H!A23="","",U11_H!A23),""))))))))) ->  | B23: Liste des opérations effectuées | X23: =IF($AV$7="","",IF($AV$7="A",IF(U11_A!X23="","",U11_A!X23),IF($AV$7="B",IF(U11_B!X23="","",U11_B!X23),IF($AV$7="C",IF(U11_C!X23="","",U11_C!X23),IF($AV$7="D",IF(U11_D!X23="","",U11_D!X23),IF($AV$7="E",IF(U11_E!X23="","",U11_E!X23),IF($AV$7="F",IF(U11_F!X23="","",U11_F!X23),IF($AV$7="G",IF(U11_G!X23="","",U11_G!X23),IF($AV$7="H",IF(U11_H!X23="","",U11_H!X23),""))))))))) ->  | Y23: Bacs et conteneurs de récupération.
A24: =IF($AV$7="","",IF($AV$7="A",IF(U11_A!A24="","",U11_A!A24),IF($AV$7="B",IF(U11_B!A24="","",U11_B!A24),IF($AV$7="C",IF(U11_C!A24="","",U11_C!A24),IF($AV$7="D",IF(U11_D!A24="","",U11_D!A24),IF($AV$7="E",IF(U11_E!A24="","",U11_E!A24),IF($AV$7="F",IF(U11_F!A24="","",U11_F!A24),IF($AV$7="G",IF(U11_G!A24="","",U11_G!A24),IF($AV$7="H",IF(U11_H!A24="","",U11_H!A24),""))))))))) ->  | B24: L'accessoire ou l'équipement à poser | X24: =IF($AV$7="","",IF($AV$7="A",IF(U11_A!X24="","",U11_A!X24),IF($AV$7="B",IF(U11_B!X24="","",U11_B!X24),IF($AV$7="C",IF(U11_C!X24="","",U11_C!X24),IF($AV$7="D",IF(U11_D!X24="","",U11_D!X24),IF($AV$7="E",IF(U11_E!X24="","",U11_E!X24),IF($AV$7="F",IF(U11_F!X24="","",U11_F!X24),IF($AV$7="G",IF(U11_G!X24="","",U11_G!X24),IF($AV$7="H",IF(U11_H!X24="","",U11_H!X24),""))))))))) ->  | Y24: Les outils de communication
A25: =IF($AV$7="","",IF($AV$7="A",IF(U11_A!A25="","",U11_A!A25),IF($AV$7="B",IF(U11_B!A25="","",U11_B!A25),IF($AV$7="C",IF(U11_C!A25="","",U11_C!A25),IF($AV$7="D",IF(U11_D!A25="","",U11_D!A25),IF($AV$7="E",IF(U11_E!A25="","",U11_E!A25),IF($AV$7="F",IF(U11_F!A25="","",U11_F!A25),IF($AV$7="G",IF(U11_G!A25="","",U11_G!A25),IF($AV$7="H",IF(U11_H!A25="","",U11_H!A25),""))))))))) ->  | B25: Liste des pièces et des fournitures | X25: =IF($AV$7="","",IF($AV$7="A",IF(U11_A!X25="","",U11_A!X25),IF($AV$7="B",IF(U11_B!X25="","",U11_B!X25),IF($AV$7="C",IF(U11_C!X25="","",U11_C!X25),IF($AV$7="D",IF(U11_D!X25="","",U11_D!X25),IF($AV$7="E",IF(U11_E!X25="","",U11_E!X25),IF($AV$7="F",IF(U11_F!X25="","",U11_F!X25),IF($AV$7="G",IF(U11_G!X25="","",U11_G!X25),IF($AV$7="H",IF(U11_H!X25="","",U11_H!X25),""))))))))) ->  | Y25: Liste des pièces et des fournitures
A26: =IF($AV$7="","",IF($AV$7="A",IF(U11_A!A26="","",U11_A!A26),IF($AV$7="B",IF(U11_B!A26="","",U11_B!A26),IF($AV$7="C",IF(U11_C!A26="","",U11_C!A26),IF($AV$7="D",IF(U11_D!A26="","",U11_D!A26),IF($AV$7="E",IF(U11_E!A26="","",U11_E!A26),IF($AV$7="F",IF(U11_F!A26="","",U11_F!A26),IF($AV$7="G",IF(U11_G!A26="","",U11_G!A26),IF($AV$7="H",IF(U11_H!A26="","",U11_H!A26),""))))))))) ->  | B26: Equipement informatique avec logiciel de DAO - CAO | X26: =IF($AV$7="","",IF($AV$7="A",IF(U11_A!X26="","",U11_A!X26),IF($AV$7="B",IF(U11_B!X26="","",U11_B!X26),IF($AV$7="C",IF(U11_C!X26="","",U11_C!X26),IF($AV$7="D",IF(U11_D!X26="","",U11_D!X26),IF($AV$7="E",IF(U11_E!X26="","",U11_E!X26),IF($AV$7="F",IF(U11_F!X26="","",U11_F!X26),IF($AV$7="G",IF(U11_G!X26="","",U11_G!X26),IF($AV$7="H",IF(U11_H!X26="","",U11_H!X26),""))))))))) ->  | Y26: Les outils de communication
A27: ÇRepérer les données fournies | Y27: ÇRepérer les données fournies
A28: Travail demandé
A29: =IF($AV$7="","",IF($AV$7="A",IF(U11_A!A29="","",U11_A!A29),IF($AV$7="B",IF(U11_B!A29="","",U11_B!A29),IF($AV$7="C",IF(U11_C!A29="","",U11_C!A29),IF($AV$7="D",IF(U11_D!A29="","",U11_D!A29),IF($AV$7="E",IF(U11_E!A29="","",U11_E!A29),IF($AV$7="F",IF(U11_F!A29="","",U11_F!A29),IF($AV$7="G",IF(U11_G!A29="","",U11_G!A29),IF($AV$7="H",IF(U11_H!A29="","",U11_H!A29),""))))))))) ->  | B29: A2T1 | D29: Mettre le véhicule en situation d'intervention, organiser son poste de travail | X29: =IF($AV$7="","",IF($AV$7="A",IF(U11_A!X29="","",U11_A!X29),IF($AV$7="B",IF(U11_B!X29="","",U11_B!X29),IF($AV$7="C",IF(U11_C!X29="","",U11_C!X29),IF($AV$7="D",IF(U11_D!X29="","",U11_D!X29),IF($AV$7="E",IF(U11_E!X29="","",U11_E!X29),IF($AV$7="F",IF(U11_F!X29="","",U11_F!X29),IF($AV$7="G",IF(U11_G!X29="","",U11_G!X29),IF($AV$7="H",IF(U11_H!X29="","",U11_H!X29),""))))))))) ->  | Y29: A3T1 | AA29: Organiser son intervention et pratiquer l'auto contrôle de son activité
A30: =IF($AV$7="","",IF($AV$7="A",IF(U11_A!A30="","",U11_A!A30),IF($AV$7="B",IF(U11_B!A30="","",U11_B!A30),IF($AV$7="C",IF(U11_C!A30="","",U11_C!A30),IF($AV$7="D",IF(U11_D!A30="","",U11_D!A30),IF($AV$7="E",IF(U11_E!A30="","",U11_E!A30),IF($AV$7="F",IF(U11_F!A30="","",U11_F!A30),IF($AV$7="G",IF(U11_G!A30="","",U11_G!A30),IF($AV$7="H",IF(U11_H!A30="","",U11_H!A30),""))))))))) ->  | B30: A2T2 | D30: Emettre des hypothèses sur le dysfonctionnement | X30: =IF($AV$7="","",IF($AV$7="A",IF(U11_A!X30="","",U11_A!X30),IF($AV$7="B",IF(U11_B!X30="","",U11_B!X30),IF($AV$7="C",IF(U11_C!X30="","",U11_C!X30),IF($AV$7="D",IF(U11_D!X30="","",U11_D!X30),IF($AV$7="E",IF(U11_E!X30="","",U11_E!X30),IF($AV$7="F",IF(U11_F!X30="","",U11_F!X30),IF($AV$7="G",IF(U11_G!X30="","",U11_G!X30),IF($AV$7="H",IF(U11_H!X30="","",U11_H!X30),""))))))))) ->  | Y30: A3T2 | AA30: Appliquer les procédures,
A31: =IF($AV$7="","",IF($AV$7="A",IF(U11_A!A31="","",U11_A!A31),IF($AV$7="B",IF(U11_B!A31="","",U11_B!A31),IF($AV$7="C",IF(U11_C!A31="","",U11_C!A31),IF($AV$7="D",IF(U11_D!A31="","",U11_D!A31),IF($AV$7="E",IF(U11_E!A31="","",U11_E!A31),IF($AV$7="F",IF(U11_F!A31="","",U11_F!A31),IF($AV$7="G",IF(U11_G!A31="","",U11_G!A31),IF($AV$7="H",IF(U11_H!A31="","",U11_H!A31),""))))))))) ->  | B31: A2T3 | D31: Collecter, analyser, interpréter, traiter toutes les informations techniques nécessaires à l'intervention | X31: =IF($AV$7="","",IF($AV$7="A",IF(U11_A!X31="","",U11_A!X31),IF($AV$7="B",IF(U11_B!X31="","",U11_B!X31),IF($AV$7="C",IF(U11_C!X31="","",U11_C!X31),IF($AV$7="D",IF(U11_D!X31="","",U11_D!X31),IF($AV$7="E",IF(U11_E!X31="","",U11_E!X31),IF($AV$7="F",IF(U11_F!X31="","",U11_F!X31),IF($AV$7="G",IF(U11_G!X31="","",U11_G!X31),IF($AV$7="H",IF(U11_H!X31="","",U11_H!X31),""))))))))) ->  | Y31: A3T3 | AA31: Poser, déposer, démonter, remonter les organes des différents systèmes
A32: =IF($AV$7="","",IF($AV$7="A",IF(U11_A!A32="","",U11_A!A32),IF($AV$7="B",IF(U11_B!A32="","",U11_B!A32),IF($AV$7="C",IF(U11_C!A32="","",U11_C!A32),IF($AV$7="D",IF(U11_D!A32="","",U11_D!A32),IF($AV$7="E",IF(U11_E!A32="","",U11_E!A32),IF($AV$7="F",IF(U11_F!A32="","",U11_F!A32),IF($AV$7="G",IF(U11_G!A32="","",U11_G!A32),IF($AV$7="H",IF(U11_H!A32="","",U11_H!A32),""))))))))) ->  | B32: A2T4 | D32: Choisir les contrôles, les mesures, les essais à réaliser | X32: =IF($AV$7="","",IF($AV$7="A",IF(U11_A!X32="","",U11_A!X32),IF($AV$7="B",IF(U11_B!X32="","",U11_B!X32),IF($AV$7="C",IF(U11_C!X32="","",U11_C!X32),IF($AV$7="D",IF(U11_D!X32="","",U11_D!X32),IF($AV$7="E",IF(U11_E!X32="","",U11_E!X32),IF($AV$7="F",IF(U11_F!X32="","",U11_F!X32),IF($AV$7="G",IF(U11_G!X32="","",U11_G!X32),IF($AV$7="H",IF(U11_H!X32="","",U11_H!X32),""))))))))) ->  | Y32: A3T4 | AA32: Changer ou réparer les organes des différents systèmes
A33: =IF($AV$7="","",IF($AV$7="A",IF(U11_A!A33="","",U11_A!A33),IF($AV$7="B",IF(U11_B!A33="","",U11_B!A33),IF($AV$7="C",IF(U11_C!A33="","",U11_C!A33),IF($AV$7="D",IF(U11_D!A33="","",U11_D!A33),IF($AV$7="E",IF(U11_E!A33="","",U11_E!A33),IF($AV$7="F",IF(U11_F!A33="","",U11_F!A33),IF($AV$7="G",IF(U11_G!A33="","",U11_G!A33),IF($AV$7="H",IF(U11_H!A33="","",U11_H!A33),""))))))))) ->  | B33: A2T5 | D33: Mettre en œuvre un matériel d’aide au diagnostic | X33: =IF($AV$7="","",IF($AV$7="A",IF(U11_A!X33="","",U11_A!X33),IF($AV$7="B",IF(U11_B!X33="","",U11_B!X33),IF($AV$7="C",IF(U11_C!X33="","",U11_C!X33),IF($AV$7="D",IF(U11_D!X33="","",U11_D!X33),IF($AV$7="E",IF(U11_E!X33="","",U11_E!X33),IF($AV$7="F",IF(U11_F!X33="","",U11_F!X33),IF($AV$7="G",IF(U11_G!X33="","",U11_G!X33),IF($AV$7="H",IF(U11_H!X33="","",U11_H!X33),""))))))))) ->  | Y33: A3T5 | AA33: Régler les organes et les systèmes conformément aux données constructeur
A34: =IF($AV$7="","",IF($AV$7="A",IF(U11_A!A34="","",U11_A!A34),IF($AV$7="B",IF(U11_B!A34="","",U11_B!A34),IF($AV$7="C",IF(U11_C!A34="","",U11_C!A34),IF($AV$7="D",IF(U11_D!A34="","",U11_D!A34),IF($AV$7="E",IF(U11_E!A34="","",U11_E!A34),IF($AV$7="F",IF(U11_F!A34="","",U11_F!A34),IF($AV$7="G",IF(U11_G!A34="","",U11_G!A34),IF($AV$7="H",IF(U11_H!A34="","",U11_H!A34),""))))))))) ->  | B34: A2T6 | D34: Mesurer, contrôler les caractéristiques mécaniques, hydrauliques, électriques, pneumatiques | X34: =IF($AV$7="","",IF($AV$7="A",IF(U11_A!X34="","",U11_A!X34),IF($AV$7="B",IF(U11_B!X34="","",U11_B!X34),IF($AV$7="C",IF(U11_C!X34="","",U11_C!X34),IF($AV$7="D",IF(U11_D!X34="","",U11_D!X34),IF($AV$7="E",IF(U11_E!X34="","",U11_E!X34),IF($AV$7="F",IF(U11_F!X34="","",U11_F!X34),IF($AV$7="G",IF(U11_G!X34="","",U11_G!X34),IF($AV$7="H",IF(U11_H!X34="","",U11_H!X34),""))))))))) ->  | Y34: A3T6 | AA34: Contrôler les performances et mettre au point le véhicule ou le bateau
A35: =IF($AV$7="","",IF($AV$7="A",IF(U11_A!A35="","",U11_A!A35),IF($AV$7="B",IF(U11_B!A35="","",U11_B!A35),IF($AV$7="C",IF(U11_C!A35="","",U11_C!A35),IF($AV$7="D",IF(U11_D!A35="","",U11_D!A35),IF($AV$7="E",IF(U11_E!A35="","",U11_E!A35),IF($AV$7="F",IF(U11_F!A35="","",U11_F!A35),IF($AV$7="G",IF(U11_G!A35="","",U11_G!A35),IF($AV$7="H",IF(U11_H!A35="","",U11_H!A35),""))))))))) ->  | B35: A2T7 | D35: Interpréter les résultats, identifier le (ou les)éléments défectueux | X35: =IF($AV$7="","",IF($AV$7="A",IF(U11_A!X35="","",U11_A!X35),IF($AV$7="B",IF(U11_B!X35="","",U11_B!X35),IF($AV$7="C",IF(U11_C!X35="","",U11_C!X35),IF($AV$7="D",IF(U11_D!X35="","",U11_D!X35),IF($AV$7="E",IF(U11_E!X35="","",U11_E!X35),IF($AV$7="F",IF(U11_F!X35="","",U11_F!X35),IF($AV$7="G",IF(U11_G!X35="","",U11_G!X35),IF($AV$7="H",IF(U11_H!X35="","",U11_H!X35),""))))))))) ->  | Y35: A3T7 | AA35: Mettre en conformité le fonctionnement du véhicule en appliquant les normes en vigueur
A36: =IF($AV$7="","",IF($AV$7="A",IF(U11_A!A36="","",U11_A!A36),IF($AV$7="B",IF(U11_B!A36="","",U11_B!A36),IF($AV$7="C",IF(U11_C!A36="","",U11_C!A36),IF($AV$7="D",IF(U11_D!A36="","",U11_D!A36),IF($AV$7="E",IF(U11_E!A36="","",U11_E!A36),IF($AV$7="F",IF(U11_F!A36="","",U11_F!A36),IF($AV$7="G",IF(U11_G!A36="","",U11_G!A36),IF($AV$7="H",IF(U11_H!A36="","",U11_H!A36),""))))))))) ->  | B36: A2T8 | D36: Réaliser les essais | X36: =IF($AV$7="","",IF($AV$7="A",IF(U11_A!X36="","",U11_A!X36),IF($AV$7="B",IF(U11_B!X36="","",U11_B!X36),IF($AV$7="C",IF(U11_C!X36="","",U11_C!X36),IF($AV$7="D",IF(U11_D!X36="","",U11_D!X36),IF($AV$7="E",IF(U11_E!X36="","",U11_E!X36),IF($AV$7="F",IF(U11_F!X36="","",U11_F!X36),IF($AV$7="G",IF(U11_G!X36="","",U11_G!X36),IF($AV$7="H",IF(U11_H!X36="","",U11_H!X36),""))))))))) ->  | Y36: A3T8 | AA36: Fournir les éléments nécessaires à la facturation
A37: =IF($AV$7="","",IF($AV$7="A",IF(U11_A!A37="","",U11_A!A37),IF($AV$7="B",IF(U11_B!A37="","",U11_B!A37),IF($AV$7="C",IF(U11_C!A37="","",U11_C!A37),IF($AV$7="D",IF(U11_D!A37="","",U11_D!A37),IF($AV$7="E",IF(U11_E!A37="","",U11_E!A37),IF($AV$7="F",IF(U11_F!A37="","",U11_F!A37),IF($AV$7="G",IF(U11_G!A37="","",U11_G!A37),IF($AV$7="H",IF(U11_H!A37="","",U11_H!A37),""))))))))) ->  | B37: A2T9 | D37: Apprécier si le dysfonctionnement et/ou son origine ont pu entraîner des conséquences sur d'autres composants ou fonctions | X37: =IF($AV$7="","",IF($AV$7="A",IF(U11_A!X37="","",U11_A!X37),IF($AV$7="B",IF(U11_B!X37="","",U11_B!X37),IF($AV$7="C",IF(U11_C!X37="","",U11_C!X37),IF($AV$7="D",IF(U11_D!X37="","",U11_D!X37),IF($AV$7="E",IF(U11_E!X37="","",U11_E!X37),IF($AV$7="F",IF(U11_F!X37="","",U11_F!X37),IF($AV$7="G",IF(U11_G!X37="","",U11_G!X37),IF($AV$7="H",IF(U11_H!X37="","",U11_H!X37),""))))))))) ->  | Y37: A3T9 | AA37: Maintenir en état son poste de travail
A38: Consulter le référentiel des activités professionnelles pour obtenir le détail des tâches.
A39: Ç Repérer les tâches demandées (ce sont celles qui correspondent à l’unité dans le référentiel de certification, à l’exclusion de toute autre)
A40: Appréciation globale et proposition de note :
A42: Noms et signatures des évaluateurs : | AJ42: Note proposée : | AO42: =IF(AI94="","",AI94) ->  | AR42: /20
AJ43: Note affectée de son coefficient : | AO43: =IF(AO42="","",AO42*2) ->  | AR43: /40
A48: Baccalauréat professionnel « maintenance des véhicules automobiles » – Unité U 11 | AI48: Validé | AM48: - Synthèse +
A50: C 1.33: Se tenir informé des évolutions techniques | AE50: Evalué | AI50: =IF(AE50="Non Evalué","NE",IF(AE50="Evalué","E","")) -> E | AJ50: =COUNTIF(AI52:AL73,"Validé") -> 0 | AK50: =COUNTIF(AI52:AL73,"Non Validé") -> 0 | AL50: =COUNTIF(AI52:AL73,"Non Evalué") -> 0 | AV50: =IF(AE50="","Souhaitez-vous évaluer la C1.33 ?",IF(AND(AE50="Non Evalué",OR(AI52="Validé",AI54="Validé",AI56="Validé",AI58="Validé",AI60="Validé",AI62="Validé",AI64="Validé",AI66="Validé",AI68="Validé",AI70="Validé",AI72="Validé",AI52="Non Validé",AI54="Non Validé",AI56="Non Validé",AI58="Non Validé",AI60="Non Validé",AI62="Non Validé",AI64="Non Validé",AI66="Non Validé",AI68="Non Validé",AI70="Non Validé",AI72="Non Validé")),"Vous avez choisi de ne pas évaluer la C1.33. Ne rien indiquez dans la colonne Validé.",IF(AND(AE50="Evalué",OR(AI52="",AI54="",AI56="",AI58="",AI60="",AI62="",AI64="",AI66="",AI68="",AI70="",AI72="")),"Vous avez choisi d'évaluer la C1.33. Indiquez pour chaques actions : Validé, Non Validé ou Non Evalué.",IF(OR(AE50="Non Evalué",(AJ50+AK50)=0),"",CONCATENATE(ROUND((100*AJ51/(AJ51+AK51)),0)," % de l'action est validée. ",AJ50," validée(s) sur ",AJ50+AK50," . Conseil: Au maximum , grisez ",ROUND((100*AJ51/(AJ51+AK51))*8/100,0)," colonnes"))))) -> Vous avez choisi d'évaluer la C1.33. Indiquez pour chaques actions : Validé, Non Validé ou Non Evalué.
AJ51: =SUMPRODUCT((AI52:AL73="Validé")*(Bareme!AE6:AE27)) -> 0 | AK51: =SUMPRODUCT((AI52:AL73="Non Validé")*(Bareme!AE6:AE27)) -> 0
A52: Analyser un système d'un point de vue fonctionnel | N52: La fonction globale est identifiée sans ambiguité | AV52: 0
N54: La(les) matière(s) d'œuvre est(sont) identifiée(s) sans erreur
N56: La valeur ajoutée est identifiée
N58: Les fonctions techniques sont listées
A60: Analyser et représenter le fonctionnement d'un système | N60: La mobilité du mécanisme est quantifiée
AM61: Commentaires:
N62: Les liaisons mécaniques sont identifiées
N64: Un schéma cinématique conforme à la structure et au fonctionnement du mécanisme est produit
A66: Analyser et vérifier les conditions fonctionnelles d'une solution constructive | N66: La mobilité du mécanisme est quantifiée
N68: Les liaisons mécaniques sont identifiées
N70: Un schéma cinématique conforme à la structure et au fonctionnement du mécanisme est produit
A72: Vérifier et valider le choix des éléments fonctionnels standard en conformité avec les conditions de fonctionnement | N72: La solution constructive est identifiée sur les documents proposés
A74: C 1.32: Utiliser les outils de communication | AE74: Evalué | AI74: =IF(AE74="Non Evalué","NE",IF(AE74="Evalué","E","")) -> E | AJ74: =COUNTIF(AI76:AL89,"Validé") -> 0 | AK74: =COUNTIF(AI76:AL89,"Non Validé") -> 0 | AL74: =COUNTIF(AI76:AL89,"Non Evalué") -> 0 | AV74: =IF(AE74="","Souhaitez-vous évaluer la C1.32 ?",IF(AND(AE74="Non Evalué",OR(AI76="Validé",AI78="Validé",AI80="Validé",AI82="Validé",AI84="Validé",AI86="Validé",AI88="Validé",AI76="Non Validé",AI78="Non Validé",AI80="Non Validé",AI82="Non Validé",AI84="Non Validé",AI86="Non Validé",AI88="Non Validé")),"Vous avez choisi de ne pas évaluer la C1.32. Ne rien indiquez dans la colonne Validé.",IF(AND(AE74="Evalué",OR(AI76="",AI78="",AI80="",AI82="",AI84="",AI86="",AI88="")),"Vous avez choisi d'évaluer la C1.32. Indiquez pour chaques actions : Validé, Non Validé ou Non Evalué.",IF(OR(AE74="Non Evalué",(AJ74+AK74)=0),"",CONCATENATE(ROUND((100*AJ75/(AJ75+AK75)),0)," % de l'action est validée. ",AJ74," validée(s) sur ",AJ74+AK74," . Conseil: Au maximum , grisez ",ROUND((100*AJ75/(AJ75+AK75))*8/100,0)," colonnes"))))) -> Vous avez choisi d'évaluer la C1.32. Indiquez pour chaques actions : Validé, Non Validé ou Non Evalué.
AJ75: =SUMPRODUCT((AI76:AL89="Validé")*(Bareme!AE30:AE43)) -> 0 | AK75: =SUMPRODUCT((AI76:AL89="Non Validé")*(Bareme!AE30:AE43)) -> 0
A76: Etablir les représentations graphiques des solutions constructives | N76: Les schémas réalisés sont conformes aux solutions et respectent les normes de représentation. | AV76: 0
N78: Les croquis sont exploitables
A80: Décrire et vérifier par le calcul des solutions constructives | N80: La description est conforme à l'ensemble étudié
AM81: Commentaires:
N82: Les formules adéquates sont maîtrisées
N84: Les représentations graphiques sont adaptées
N86: Les résultats sont analysés
N88: Les logiciels de calcul et les résultats fournis sont exploités et maîtrisés
E91: =IF(AND(AE50="",AE74=""),"",CONCATENATE("PROPOSITION: ",IF(AND(AI50="NE",AI74="NE"),"",CEILING(SUM(IF(AI50="E",AV52*Bareme!$AE$4,0),IF(AI74="E",AV76*Bareme!$AE$28,0))*20/SUM(IF(AI50="E",8*Bareme!$AE$4,0),IF(AI74="E",8*Bareme!$AE$28,0)),0.5)),"/20")) -> PROPOSITION: 0/20
E94: Proposition des évaluateurs:

Sheet U31 (hidden)
A1: Baccalauréat professionnel « maintenance des véhicules automobiles »
A2: Épreuve E3.1 (Unité U3.1) : Evaluation de la formation en milieu professionnel
A3: Établissement : (tampon) | X3: Session : | AE3: =IF(Bilan!B2="","",Bilan!B2) -> 2012
A4: =IF(Bilan!B3="","",Bilan!B3) -> LP de l'académie de grenoble | X4: Nom du candidat: | AE4: =IF(INDEX((Bilan!B5:B34),(MATCH(RIGHT(CELL("nomfichier",A1),LEN(CELL("nomfichier",A1))-FIND("]",CELL("nomfichier",A1))),Bilan!E5:E34,0)))="","",INDEX((Bilan!B5:B34),(MATCH(RIGHT(CELL("nomfichier",A1),LEN(CELL("nomfichier",A1))-FIND("]",CELL("nomfichier",A1))),Bilan!E5:E34,0)))) -> 
X5: Prénom :
X6: Date de l'évaluation:
A7: Lieu d’évaluation :
A8: Etablissement
A9: Entreprise :
A10: Description sommaire du travail demandé :
A13: Données et condition de réalisation.
A14: X | B14: Un véhicule, un système ou sous-système | X14: X | Y14: Outils d’aide au diagnostic (internes à l’entreprise et à distance)
A15: X | B15: Un ou plusieurs éléments d’un système en dysfonctionnement. | X15: X | Y15: Protections intérieures et extérieures
A16: X | B16: Présence du client | X16: X | Y16: Équipements, outillages et notices d’utilisation nécessaires à l’intervention.
A17: X | B17: Ordre de réparation | X17: X | Y17: Appareils de mesures et de contrôles fixes ou embarqués avec les notices d’utilisation.
A18: X | B18: Description de l’anomalie constatée et/ou de ses effets | X18: X | Y18: Résultats des mesures et contrôles.
A19: X | B19: Historique technique du véhicule (documents de suivi) | X19: X | Y19: Un essai à effectuer si besoin
A20: X | B20: Documentation technique du véhicule (données constructeur) | X20: X | Y20: La réglementation.
A21: X | B21: Planning de charge de l’atelier | X21: X | Y21: Matériel de nettoyage et de remise en état
A22: X | B22: Poste de travail | X22: X | Y22: Déchets résultants d’une intervention sur un véhicule ou bateau.
A23: X | B23: Les matériels de manutention et leurs notices d’utilisation | X23: X | Y23: Bacs et conteneurs de récupération.
A24: X | B24: Liste des opérations effectuées | X24: X | Y24: Les outils de communication
A25: X | B25: L’accessoire ou l’équipement à poser | X25: X | Y25: Liste des pièces et des fournitures
A26: X | B26: Liste des pièces et des fournitures
A27: ÇRepérer les données fournies | Y27: ÇRepérer les données fournies
A28: Travail demandé
A29: X | B29: A1T5 | D29: Rédiger un ordre de réparation et établir un devis | X29: X | Y29: A3T2 | AA29: Appliquer les procédures,
A30: X | B30: A2T4 | D30: Choisir les contrôles, les mesures, les essais à réaliser | X30: X | Y30: A3T3 | AA30: Poser, déposer, démonter, remonter les organes des différents systèmes
A31: X | B31: A2T5 | D31: Mettre en œuvre un matériel d’aide au diagnostic | X31: X | Y31: A3T4 | AA31: Changer ou réparer les organes des différents systèmes
A32: X | B32: A2T6 | D32: Mesurer, contrôler les caractéristiques mécaniques, hydrauliques, électriques, pneumatiques | X32: X | Y32: A3T7 | AA32: Mettre en conformité le fonctionnement du véhicule en appliquant les normes en vigueur
A33: X | B33: A3T1 | D33: Organiser son intervention et pratiquer l'auto contrôle de son activité | X33: X | Y33: A3T8 | AA33: Fournir les éléments nécessaires à la facturation
A34: Consulter le référentiel des activités professionnelles pour obtenir le détail des tâches.
A35: Ç Repérer les tâches demandées (ce sont celles qui correspondent à l’unité dans le référentiel de certification, à l’exclusion de toute autre)
A36: Appréciation globale et proposition de note :
A42: Noms et signatures des évaluateurs : | AJ42: Note proposée : | AO42: =IF(AI129="","",AI129) ->  | AR42: /20
AJ43: Note affectée de son coefficient : | AO43: =IF(AO42="","",AO42*2) ->  | AR43: /40
A44: Nota important : Les compétences référencées C111, C112, C121, C122, C123, C124, C125, C126, C141, C142, C222, C223, C227, C311, C312, C315, C411, C412, C413., sont aussi mentionnées dans les épreuves E32 et E33. On veillera à ne pas en évaluer certaines dans plusieurs épreuves. Un choix judicieux de la répartition des compétences à évaluer sur l’ensemble des situations d’évaluation est donc à faire globalement pour les trois épreuves. La proposition de note sera issue de cette grille d’évaluation, complétée conjointement par le tuteur de l’entreprise et l’enseignant lors de la situation d’évaluation, en s’appuyant sur le livret individuel de formation. Un dossier constitué de fiches de compte rendu d’activités, renseignées par le candidat lors des travaux réalisés en entreprise servira de support lors de l’entretien. Ce dossier doit contenir les éléments justifiant l’évaluation proposée ; il n’est pas noté.
A48: Baccalauréat professionnel « maintenance des véhicules automobiles » – Unité U 31 | AI48: Validé | AM48: - Synthèse +
A50: C 1.2 : Informer le client et l'entreprise sur la nature de l'intervention. | AE50: Evalué | AI50: =IF(AE50="Non Evalué","NE",IF(AE50="Evalué","E","")) -> E | AJ50: =COUNTIF(AI52:AL55,"Validé") -> 0 | AK50: =COUNTIF(AI52:AL55,"Non Validé") -> 0 | AL50: =COUNTIF(AI52:AL55,"Non Evalué") -> 0 | AV50: =IF(AE50="","Souhaitez-vous évaluer la C1.2 ?",IF(AND(AE50="Non Evalué",OR(AI52="Validé",AI54="Validé",AI52="Non Validé",AI54="Non Validé")),"Vous avez choisi de ne pas évaluer la C1.2. Ne rien indiquez dans la colonne Validé.",IF(AND(AE50="Evalué",OR(,AI52="",AI54="")),"Vous avez choisi d'évaluer la C1.2. Indiquez pour chaques actions : Validé, Non Validé ou Non Evalué.",IF(OR(AE50="Non Evalué",(AJ50+AK50)=0),"",CONCATENATE(ROUND((100*AJ51/(AJ51+AK51)),0)," % d'actions validées. ",AJ50," validée(s) sur ",AJ50+AK50," . Conseil: Au maximum , grisez ",ROUND((100*AJ51/(AJ51+AK51))*8/100,0)," colonnes"))))) -> Vous avez choisi d'évaluer la C1.2. Indiquez pour chaques actions : Validé, Non Validé ou Non Evalué.
AJ51: =SUMPRODUCT((AI52:AL55="Validé")*(Bareme!AE49:AE52)) -> 0 | AK51: =SUMPRODUCT((AI52:AL55="Non Validé")*(Bareme!AE49:AE52)) -> 0
A52: C 124 | D52: Compléter les documents de suivi et fournir les éléments nécessaires à la facturation. | N52: Les documents sont correctement renseignés | AM52: Commentaires: | AV52: 0
N54: La liste des éléments nécessaires à la facturation est fournie sans omission.
A56: C 2.2 : Diagnostiquer | AE56: Evalué | AI56: =IF(AE56="Non Evalué","NE",IF(AE56="Evalué","E","")) -> E | AJ56: =COUNTIF(AI58:AL75,"Validé") -> 0 | AK56: =COUNTIF(AI58:AL75,"Non Validé") -> 0 | AL56: =COUNTIF(AI58:AL75,"Non Evalué") -> 0 | AV56: =IF(AE56="","Souhaitez-vous évaluer la C2.2 ?",IF(AND(AE56="Non Evalué",OR(AI58="Validé",AI60="Validé",AI62="Validé",AI64="Validé",AI66="Validé",AI68="Validé",AI70="Validé",AI72="Validé",AI74="Validé",AI58="Non Validé",AI60="Non Validé",AI62="Non Validé",AI64="Non Validé",AI66="Non Validé",AI68="Non Validé",AI70="Non Validé",AI72="Non Validé",AI74="Non Validé")),"Vous avez choisi de ne pas évaluer la C2.2. Ne rien indiquez dans la colonne Validé.",IF(AND(AE56="Evalué",OR(AI58="",AI60="",AI62="",AI64="",AI66="",AI68="",AI70="",AI72="",AI74="")),"Vous avez choisi d'évaluer la C2.2. Indiquez pour chaques actions : Validé, Non Validé ou Non Evalué.",IF(OR(AE56="Non Evalué",(AJ56+AK56)=0),"",CONCATENATE(ROUND((100*AJ57/(AJ57+AK57)),0)," % d'actions validées. ",AJ56," validée(s) sur ",AJ56+AK56," . Conseil: Au maximum , grisez ",ROUND((100*AJ57/(AJ57+AK57))*8/100,0)," colonnes"))))) -> Vous avez choisi d'évaluer la C2.2. Indiquez pour chaques actions : Validé, Non Validé ou Non Evalué.
AJ57: =SUMPRODUCT((AI58:AL75="Validé")*(Bareme!AE55:AE72)) -> 0 | AK57: =SUMPRODUCT((AI58:AL75="Non Validé")*(Bareme!AE55:AE72)) -> 0
A58: C 222 | D58: Choisir et définir les essais, les mesures, les contrôles à réaliser, adapter le processus de contrôle si besoin. | N58: Le choix et la définition des essais sont conformes. | AV58: 0
N60: Le choix des mesures et contrôles assure l’efficacité et la rapidité du diagnostic.
N62: L’hygiène, la sécurité et l’ergonomie sont pris en compte.
A64: C 223 | D64: Mettre en œuvre les essais et mesures prévus, analyser la démarche utilisée. | N64: Les essais et mesures sont réalisés selon les procédures et garantissent l’intégrité des personnes et des biens.
N66: Les résultats relevés sont exprimés dans l’unité et l’ordre de grandeur de la valeur attendue.
AM67: Commentaires:
N68: L'analyse de la démarche utilisée est cohérente.
A70: C 227 | D70: Décider de l'intervention à réaliser et définir son processus opératoire s'il y a lieu. | N70: La proposition d’intervention est justifiée,
N72: Elle tient compte des contraintes techniques et économiques et de l’objectif de l’intervention (dépannage ou réparation)
N74: Le processus proposé est adapté.
A76: C 3.1 : Réaliser une intervention sur systèmes complexes. | AE76: Evalué | AI76: =IF(AE76="Non Evalué","NE",IF(AE76="Evalué","E","")) -> E | AJ76: =COUNTIF(AI78:AL93,"Validé") -> 0 | AK76: =COUNTIF(AI78:AL93,"Non Validé") -> 0 | AL76: =COUNTIF(AI78:AL93,"Non Evalué") -> 0 | AV76: =IF(AE76="","Souhaitez-vous évaluer la C3.1 ?",IF(AND(AE76="Non Evalué",OR(AI78="Validé",AI80="Validé",AI82="Validé",AI84="Validé",AI86="Validé",AI88="Validé",AI90="Validé",AI92="Validé",AI78="Non Validé",AI80="Non Validé",AI82="Non Validé",AI84="Non Validé",AI86="Non Validé",AI88="Non Validé",AI90="Non Validé",AI92="Non Validé")),"Vous avez choisi de ne pas évaluer la C3.1. Ne rien indiquez dans la colonne Validé.",IF(AND(AE76="Evalué",OR(AI78="",AI80="",AI82="",AI84="",AI86="",AI88="",AI90="",AI92="")),"Vous avez choisi d'évaluer la C3.1. Indiquez pour chaques actions : Validé, Non Validé ou Non Evalué.",IF(OR(AE76="Non Evalué",(AJ76+AK76)=0),"",CONCATENATE(ROUND((100*AJ77/(AJ77+AK77)),0)," % d'actions validées. ",AJ76," validée(s) sur ",AJ76+AK76," . Conseil: Au maximum , grisez ",ROUND((100*AJ77/(AJ77+AK77))*8/100,0)," colonnes"))))) -> Vous avez choisi d'évaluer la C3.1. Indiquez pour chaques actions : Validé, Non Validé ou Non Evalué.
AJ77: =SUMPRODUCT((AI78:AL93="Validé")*(Bareme!AE75:AE90)) -> 0 | AK77: =SUMPRODUCT((AI78:AL93="Non Validé")*(Bareme!AE75:AE90)) -> 0
A78: C311 | D78: Déposer, reposer, poser un élément ou un sous-ensemble. | N78: Le temps d’intervention est économiquement acceptable | AV78: 0
N80: Le véhicule, le bateau ou le système est remis en conformité.
N82: L’action n’appelle aucune remarque sur le plan de la sécurité. Elle est conforme au cahier des charges constructeur
A84: C 312 | D84: Démonter, remettre en conformité, remonter les éléments et les organes. | N84: Le temps d’intervention est économiquement acceptable.
N86: L’élément est remis en conformité
N88: L’action garantit l’intégrité des personnes et des biens, elle est conforme au cahier des charges constructeur
AM89: Commentaires:
A90: C 315 | D90: Identifier et signaler les manquements aux prescriptions réglementaires sur la sécurité des véhicules ou des bateaux de plaisance. | N90: La réglementation en vigueur du point de vue sécurité est respectée.
N92: Les anomalies sont identifiées et signalées.
A94: C 4.1 : Evaluer la qualité de son intervention. | AE94: Evalué | AI94: =IF(AE94="Non Evalué","NE",IF(AE94="Evalué","E","")) -> E | AJ94: =COUNTIF(AI96:AL105,"Validé") -> 0 | AK94: =COUNTIF(AI96:AL105,"Non Validé") -> 0 | AL94: =COUNTIF(AI96:AL105,"Non Evalué") -> 0 | AV94: =IF(AE94="","Souhaitez-vous évaluer la C4.1 ?",IF(AND(AE94="Non Evalué",OR(AI96="Validé",AI98="Validé",AI100="Validé",AI102="Validé",AI104="Validé",AI96="Non Validé",AI98="Non Validé",AI100="Non Validé",AI102="Non Validé",AI104="Non Validé")),"Vous avez choisi de ne pas évaluer la C14.1. Ne rien indiquez dans la colonne Validé.",IF(AND(AE94="Evalué",OR(AI96="",AI98="",AI100="",AI102="",AI104="")),"Vous avez choisi d'évaluer la C4.1. Indiquez pour chaques actions : Validé, Non Validé ou Non Evalué.",IF(OR(AE94="Non Evalué",(AJ94+AK94)=0),"",CONCATENATE(ROUND((100*AJ95/(AJ95+AK95)),0)," % d'actions validées. ",AJ94," validée(s) sur ",AJ94+AK94," . Conseil: Au maximum , grisez ",ROUND((100*AJ95/(AJ95+AK95))*8/100,0)," colonnes"))))) -> Vous avez choisi d'évaluer la C4.1. Indiquez pour chaques actions : Validé, Non Validé ou Non Evalué.
AJ95: =SUMPRODUCT((AI96:AL105="Validé")*(Bareme!AE93:AE102)) -> 0 | AK95: =SUMPRODUCT((AI96:AL105="Non Validé")*(Bareme!AE93:AE102)) -> 0
A96: C411 | D96: Effectuer le contrôle qualité de son intervention (auto contrôle) : - essai en atelier ou sur site s'il y a lieu, - compte rendu d'essai. | N96: La qualité de l’intervention est validée. | AM96: Commentaires: | AV96: 0
N98: La procédure qualité de l’entreprise est respectée.
N100: Le compte rendu est cohérent.
A102: C 412 | D102: Apprécier les risques professionnels liés à l’intervention. | N102: L’intervention ne présente pas de risques d’accidents ou d’atteinte à la santé.
N104: Les situations dangereuses sont signalées.
E126: =IF(OR(I137="",(AJ50+AK50+AJ56+AK56+AJ76+AK76+AJ94+AK94)=0),"",CONCATENATE("PROPOSITION: ",CEILING(I137,0.5),"/20 (",ROUND(100*COUNTIF(U136:U139,"E")/(COUNTIF(U136:U139,"E")+COUNTIF(U136:U139,"NE")),0),"% des compétences évaluées).")) -> 
E129: Proposition des évaluateurs:
E133: Ne pas effacer
O134: =CONCATENATE("Statistique U31 de ",$AE$4) -> 
O135: Compétences | P135: =IF(AE4="","",AE4) ->  | Q135: Satisfaction maximale | R135: Satisfaction moyenne | S135: =CONCATENATE("Statistique U31 de ",$AE$4) ->  | T135: Coefficients | U135: Validée ou Non Validée
C136: Somme | I136: =SUMPRODUCT((P136:P139)) -> 0 | K136: =SUM(Q136:Q139) -> 800 | O136: =A50 -> C 1.2 : Informer le client et l'entreprise sur la nature de l'intervention. | P136: =IF(OR(U136="NE",U136=""),"",S136*T136) -> 0 | Q136: =IF(OR(U136="NE",U136=""),"",T136*8) -> 80 | R136: =IF(OR(U136="NE",U136=""),"",Q136/2) -> 40 | S136: =IF($AV$52="","",$AV$52) -> 0 | T136: =Bareme!AE47 -> 10 | U136: =IF(AI50="","",AI50) -> E
C137: Moyenne /20 | I137: =IF($K$136=0,"",K137*$I$136/$K$136) -> 0 | K137: 20 | O137: =A56 -> C 2.2 : Diagnostiquer | P137: =IF(OR(U137="NE",U137=""),"",S137*T137) -> 0 | Q137: =IF(OR(U137="NE",U137=""),"",T137*8) -> 320 | R137: =IF(OR(U137="NE",U137=""),"",Q137/2) -> 160 | S137: =IF($AV$58="","",$AV$58) -> 0 | T137: =Bareme!AE53 -> 40 | U137: =IF(AI56="","",AI56) -> E
C138: Moyenne /40 | I138: =IF($K$136=0,"",K138*$I$136/$K$136) -> 0 | K138: 40 | O138: =A76 -> C 3.1 : Réaliser une intervention sur systèmes complexes. | P138: =IF(OR(U138="NE",U138=""),"",S138*T138) -> 0 | Q138: =IF(OR(U138="NE",U138=""),"",T138*8) -> 320 | R138: =IF(OR(U138="NE",U138=""),"",Q138/2) -> 160 | S138: =IF($AV$78="","",$AV$78) -> 0 | T138: =Bareme!AE73 -> 40 | U138: =IF(AI76="","",AI76) -> E
O139: =A94 -> C 4.1 : Evaluer la qualité de son intervention. | P139: =IF(OR(U139="NE",U139=""),"",S139*T139) -> 0 | Q139: =IF(OR(U139="NE",U139=""),"",T139*8) -> 80 | R139: =IF(OR(U139="NE",U139=""),"",Q139/2) -> 40 | S139: =IF($AV$96="","",$AV$96) -> 0 | T139: =Bareme!AE91 -> 10 | U139: =IF(AI94="","",AI94) -> E
E140: Ne pas effacer

Sheet U32_01 (hidden)
A1: Baccalauréat professionnel « maintenance des véhicules automobiles »
A2: Épreuve E3.2 (Unité U3.2) : Intervention sur véhicules
A3: Établissement : (tampon) | X3: Session : | AE3: =IF(Bilan!B2="","",Bilan!B2) -> 2012
A4: =IF(Bilan!B3="","",Bilan!B3) -> LP de l'académie de grenoble | X4: Nom du candidat: | AE4: =IF(INDEX((Bilan!B5:B34),(MATCH(RIGHT(CELL("nomfichier",A1),LEN(CELL("nomfichier",A1))-FIND("]",CELL("nomfichier",A1))),Bilan!F5:F34,0)))="","",INDEX((Bilan!B5:B34),(MATCH(RIGHT(CELL("nomfichier",A1),LEN(CELL("nomfichier",A1))-FIND("]",CELL("nomfichier",A1))),Bilan!F5:F34,0)))) -> Jean Dupond
X5: Prénom :
X6: Date de l'évaluation: | AV6: Choisisser votre situation
A7: Lieu d’évaluation : | AV7: A
A8: Etablissement
A9: Entreprise :
A10: Description sommaire du travail demandé :
A11: =IF($AV$7="","",IF($AV$7="A",IF(U32_A!A11="","",U32_A!A11),IF($AV$7="B",IF(U32_B!A11="","",U32_B!A11),IF($AV$7="C",IF(U32_C!A11="","",U32_C!A11),IF($AV$7="D",IF(U32_D!A11="","",U32_D!A11),IF($AV$7="E",IF(U32_E!A11="","",U32_E!A11),IF($AV$7="F",IF(U32_F!A11="","",U32_F!A11),IF($AV$7="G",IF(U32_G!A11="","",U32_G!A11),IF($AV$7="H",IF(U32_H!A11="","",U32_H!A11),""))))))))) -> Train roulant Audi R8 | B11: =IF($AV$7="","",IF($AV$7="A",IF(U32_A!B11="","",U32_A!B11),IF($AV$7="B",IF(U32_B!B11="","",U32_B!B11),IF($AV$7="C",IF(U32_C!B11="","",U32_C!B11),IF($AV$7="D",IF(U32_D!B11="","",U32_D!B11),IF($AV$7="E",IF(U32_E!B11="","",U32_E!B11),IF($AV$7="F",IF(U32_F!B11="","",U32_F!B11),IF($AV$7="G",IF(U32_G!B11="","",U32_G!B11),IF($AV$7="H",IF(U32_H!B11="","",U32_H!B11),""))))))))) ->  | C11: =IF($AV$7="","",IF($AV$7="A",IF(U32_A!C11="","",U32_A!C11),IF($AV$7="B",IF(U32_B!C11="","",U32_B!C11),IF($AV$7="C",IF(U32_C!C11="","",U32_C!C11),IF($AV$7="D",IF(U32_D!C11="","",U32_D!C11),IF($AV$7="E",IF(U32_E!C11="","",U32_E!C11),IF($AV$7="F",IF(U32_F!C11="","",U32_F!C11),IF($AV$7="G",IF(U32_G!C11="","",U32_G!C11),IF($AV$7="H",IF(U32_H!C11="","",U32_H!C11),""))))))))) ->  | D11: =IF($AV$7="","",IF($AV$7="A",IF(U32_A!D11="","",U32_A!D11),IF($AV$7="B",IF(U32_B!D11="","",U32_B!D11),IF($AV$7="C",IF(U32_C!D11="","",U32_C!D11),IF($AV$7="D",IF(U32_D!D11="","",U32_D!D11),IF($AV$7="E",IF(U32_E!D11="","",U32_E!D11),IF($AV$7="F",IF(U32_F!D11="","",U32_F!D11),IF($AV$7="G",IF(U32_G!D11="","",U32_G!D11),IF($AV$7="H",IF(U32_H!D11="","",U32_H!D11),""))))))))) ->  | E11: =IF($AV$7="","",IF($AV$7="A",IF(U32_A!E11="","",U32_A!E11),IF($AV$7="B",IF(U32_B!E11="","",U32_B!E11),IF($AV$7="C",IF(U32_C!E11="","",U32_C!E11),IF($AV$7="D",IF(U32_D!E11="","",U32_D!E11),IF($AV$7="E",IF(U32_E!E11="","",U32_E!E11),IF($AV$7="F",IF(U32_F!E11="","",U32_F!E11),IF($AV$7="G",IF(U32_G!E11="","",U32_G!E11),IF($AV$7="H",IF(U32_H!E11="","",U32_H!E11),""))))))))) ->  | F11: =IF($AV$7="","",IF($AV$7="A",IF(U32_A!F11="","",U32_A!F11),IF($AV$7="B",IF(U32_B!F11="","",U32_B!F11),IF($AV$7="C",IF(U32_C!F11="","",U32_C!F11),IF($AV$7="D",IF(U32_D!F11="","",U32_D!F11),IF($AV$7="E",IF(U32_E!F11="","",U32_E!F11),IF($AV$7="F",IF(U32_F!F11="","",U32_F!F11),IF($AV$7="G",IF(U32_G!F11="","",U32_G!F11),IF($AV$7="H",IF(U32_H!F11="","",U32_H!F11),""))))))))) ->  | G11: =IF($AV$7="","",IF($AV$7="A",IF(U32_A!G11="","",U32_A!G11),IF($AV$7="B",IF(U32_B!G11="","",U32_B!G11),IF($AV$7="C",IF(U32_C!G11="","",U32_C!G11),IF($AV$7="D",IF(U32_D!G11="","",U32_D!G11),IF($AV$7="E",IF(U32_E!G11="","",U32_E!G11),IF($AV$7="F",IF(U32_F!G11="","",U32_F!G11),IF($AV$7="G",IF(U32_G!G11="","",U32_G!G11),IF($AV$7="H",IF(U32_H!G11="","",U32_H!G11),""))))))))) ->  | H11: =IF($AV$7="","",IF($AV$7="A",IF(U32_A!H11="","",U32_A!H11),IF($AV$7="B",IF(U32_B!H11="","",U32_B!H11),IF($AV$7="C",IF(U32_C!H11="","",U32_C!H11),IF($AV$7="D",IF(U32_D!H11="","",U32_D!H11),IF($AV$7="E",IF(U32_E!H11="","",U32_E!H11),IF($AV$7="F",IF(U32_F!H11="","",U32_F!H11),IF($AV$7="G",IF(U32_G!H11="","",U32_G!H11),IF($AV$7="H",IF(U32_H!H11="","",U32_H!H11),""))))))))) ->  | I11: =IF($AV$7="","",IF($AV$7="A",IF(U32_A!I11="","",U32_A!I11),IF($AV$7="B",IF(U32_B!I11="","",U32_B!I11),IF($AV$7="C",IF(U32_C!I11="","",U32_C!I11),IF($AV$7="D",IF(U32_D!I11="","",U32_D!I11),IF($AV$7="E",IF(U32_E!I11="","",U32_E!I11),IF($AV$7="F",IF(U32_F!I11="","",U32_F!I11),IF($AV$7="G",IF(U32_G!I11="","",U32_G!I11),IF($AV$7="H",IF(U32_H!I11="","",U32_H!I11),""))))))))) ->  | J11: =IF($AV$7="","",IF($AV$7="A",IF(U32_A!J11="","",U32_A!J11),IF($AV$7="B",IF(U32_B!J11="","",U32_B!J11),IF($AV$7="C",IF(U32_C!J11="","",U32_C!J11),IF($AV$7="D",IF(U32_D!J11="","",U32_D!J11),IF($AV$7="E",IF(U32_E!J11="","",U32_E!J11),IF($AV$7="F",IF(U32_F!J11="","",U32_F!J11),IF($AV$7="G",IF(U32_G!J11="","",U32_G!J11),IF($AV$7="H",IF(U32_H!J11="","",U32_H!J11),""))))))))) ->  | K11: =IF($AV$7="","",IF($AV$7="A",IF(U32_A!K11="","",U32_A!K11),IF($AV$7="B",IF(U32_B!K11="","",U32_B!K11),IF($AV$7="C",IF(U32_C!K11="","",U32_C!K11),IF($AV$7="D",IF(U32_D!K11="","",U32_D!K11),IF($AV$7="E",IF(U32_E!K11="","",U32_E!K11),IF($AV$7="F",IF(U32_F!K11="","",U32_F!K11),IF($AV$7="G",IF(U32_G!K11="","",U32_G!K11),IF($AV$7="H",IF(U32_H!K11="","",U32_H!K11),""))))))))) ->  | L11: =IF($AV$7="","",IF($AV$7="A",IF(U32_A!L11="","",U32_A!L11),IF($AV$7="B",IF(U32_B!L11="","",U32_B!L11),IF($AV$7="C",IF(U32_C!L11="","",U32_C!L11),IF($AV$7="D",IF(U32_D!L11="","",U32_D!L11),IF($AV$7="E",IF(U32_E!L11="","",U32_E!L11),IF($AV$7="F",IF(U32_F!L11="","",U32_F!L11),IF($AV$7="G",IF(U32_G!L11="","",U32_G!L11),IF($AV$7="H",IF(U32_H!L11="","",U32_H!L11),""))))))))) ->  | M11: =IF($AV$7="","",IF($AV$7="A",IF(U32_A!M11="","",U32_A!M11),IF($AV$7="B",IF(U32_B!M11="","",U32_B!M11),IF($AV$7="C",IF(U32_C!M11="","",U32_C!M11),IF($AV$7="D",IF(U32_D!M11="","",U32_D!M11),IF($AV$7="E",IF(U32_E!M11="","",U32_E!M11),IF($AV$7="F",IF(U32_F!M11="","",U32_F!M11),IF($AV$7="G",IF(U32_G!M11="","",U32_G!M11),IF($AV$7="H",IF(U32_H!M11="","",U32_H!M11),""))))))))) ->  | N11: =IF($AV$7="","",IF($AV$7="A",IF(U32_A!N11="","",U32_A!N11),IF($AV$7="B",IF(U32_B!N11="","",U32_B!N11),IF($AV$7="C",IF(U32_C!N11="","",U32_C!N11),IF($AV$7="D",IF(U32_D!N11="","",U32_D!N11),IF($AV$7="E",IF(U32_E!N11="","",U32_E!N11),IF($AV$7="F",IF(U32_F!N11="","",U32_F!N11),IF($AV$7="G",IF(U32_G!N11="","",U32_G!N11),IF($AV$7="H",IF(U32_H!N11="","",U32_H!N11),""))))))))) ->  | O11: =IF($AV$7="","",IF($AV$7="A",IF(U32_A!O11="","",U32_A!O11),IF($AV$7="B",IF(U32_B!O11="","",U32_B!O11),IF($AV$7="C",IF(U32_C!O11="","",U32_C!O11),IF($AV$7="D",IF(U32_D!O11="","",U32_D!O11),IF($AV$7="E",IF(U32_E!O11="","",U32_E!O11),IF($AV$7="F",IF(U32_F!O11="","",U32_F!O11),IF($AV$7="G",IF(U32_G!O11="","",U32_G!O11),IF($AV$7="H",IF(U32_H!O11="","",U32_H!O11),""))))))))) ->  | P11: =IF($AV$7="","",IF($AV$7="A",IF(U32_A!P11="","",U32_A!P11),IF($AV$7="B",IF(U32_B!P11="","",U32_B!P11),IF($AV$7="C",IF(U32_C!P11="","",U32_C!P11),IF($AV$7="D",IF(U32_D!P11="","",U32_D!P11),IF($AV$7="E",IF(U32_E!P11="","",U32_E!P11),IF($AV$7="F",IF(U32_F!P11="","",U32_F!P11),IF($AV$7="G",IF(U32_G!P11="","",U32_G!P11),IF($AV$7="H",IF(U32_H!P11="","",U32_H!P11),""))))))))) ->  | Q11: =IF($AV$7="","",IF($AV$7="A",IF(U32_A!Q11="","",U32_A!Q11),IF($AV$7="B",IF(U32_B!Q11="","",U32_B!Q11),IF($AV$7="C",IF(U32_C!Q11="","",U32_C!Q11),IF($AV$7="D",IF(U32_D!Q11="","",U32_D!Q11),IF($AV$7="E",IF(U32_E!Q11="","",U32_E!Q11),IF($AV$7="F",IF(U32_F!Q11="","",U32_F!Q11),IF($AV$7="G",IF(U32_G!Q11="","",U32_G!Q11),IF($AV$7="H",IF(U32_H!Q11="","",U32_H!Q11),""))))))))) ->  | R11: =IF($AV$7="","",IF($AV$7="A",IF(U32_A!R11="","",U32_A!R11),IF($AV$7="B",IF(U32_B!R11="","",U32_B!R11),IF($AV$7="C",IF(U32_C!R11="","",U32_C!R11),IF($AV$7="D",IF(U32_D!R11="","",U32_D!R11),IF($AV$7="E",IF(U32_E!R11="","",U32_E!R11),IF($AV$7="F",IF(U32_F!R11="","",U32_F!R11),IF($AV$7="G",IF(U32_G!R11="","",U32_G!R11),IF($AV$7="H",IF(U32_H!R11="","",U32_H!R11),""))))))))) ->  | S11: =IF($AV$7="","",IF($AV$7="A",IF(U32_A!S11="","",U32_A!S11),IF($AV$7="B",IF(U32_B!S11="","",U32_B!S11),IF($AV$7="C",IF(U32_C!S11="","",U32_C!S11),IF($AV$7="D",IF(U32_D!S11="","",U32_D!S11),IF($AV$7="E",IF(U32_E!S11="","",U32_E!S11),IF($AV$7="F",IF(U32_F!S11="","",U32_F!S11),IF($AV$7="G",IF(U32_G!S11="","",U32_G!S11),IF($AV$7="H",IF(U32_H!S11="","",U32_H!S11),""))))))))) ->  | T11: =IF($AV$7="","",IF($AV$7="A",IF(U32_A!T11="","",U32_A!T11),IF($AV$7="B",IF(U32_B!T11="","",U32_B!T11),IF($AV$7="C",IF(U32_C!T11="","",U32_C!T11),IF($AV$7="D",IF(U32_D!T11="","",U32_D!T11),IF($AV$7="E",IF(U32_E!T11="","",U32_E!T11),IF($AV$7="F",IF(U32_F!T11="","",U32_F!T11),IF($AV$7="G",IF(U32_G!T11="","",U32_G!T11),IF($AV$7="H",IF(U32_H!T11="","",U32_H!T11),""))))))))) ->  | U11: =IF($AV$7="","",IF($AV$7="A",IF(U32_A!U11="","",U32_A!U11),IF($AV$7="B",IF(U32_B!U11="","",U32_B!U11),IF($AV$7="C",IF(U32_C!U11="","",U32_C!U11),IF($AV$7="D",IF(U32_D!U11="","",U32_D!U11),IF($AV$7="E",IF(U32_E!U11="","",U32_E!U11),IF($AV$7="F",IF(U32_F!U11="","",U32_F!U11),IF($AV$7="G",IF(U32_G!U11="","",U32_G!U11),IF($AV$7="H",IF(U32_H!U11="","",U32_H!U11),""))))))))) ->  | V11: =IF($AV$7="","",IF($AV$7="A",IF(U32_A!V11="","",U32_A!V11),IF($AV$7="B",IF(U32_B!V11="","",U32_B!V11),IF($AV$7="C",IF(U32_C!V11="","",U32_C!V11),IF($AV$7="D",IF(U32_D!V11="","",U32_D!V11),IF($AV$7="E",IF(U32_E!V11="","",U32_E!V11),IF($AV$7="F",IF(U32_F!V11="","",U32_F!V11),IF($AV$7="G",IF(U32_G!V11="","",U32_G!V11),IF($AV$7="H",IF(U32_H!V11="","",U32_H!V11),""))))))))) ->  | W11: =IF($AV$7="","",IF($AV$7="A",IF(U32_A!W11="","",U32_A!W11),IF($AV$7="B",IF(U32_B!W11="","",U32_B!W11),IF($AV$7="C",IF(U32_C!W11="","",U32_C!W11),IF($AV$7="D",IF(U32_D!W11="","",U32_D!W11),IF($AV$7="E",IF(U32_E!W11="","",U32_E!W11),IF($AV$7="F",IF(U32_F!W11="","",U32_F!W11),IF($AV$7="G",IF(U32_G!W11="","",U32_G!W11),IF($AV$7="H",IF(U32_H!W11="","",U32_H!W11),""))))))))) ->  | X11: =IF($AV$7="","",IF($AV$7="A",IF(U32_A!X11="","",U32_A!X11),IF($AV$7="B",IF(U32_B!X11="","",U32_B!X11),IF($AV$7="C",IF(U32_C!X11="","",U32_C!X11),IF($AV$7="D",IF(U32_D!X11="","",U32_D!X11),IF($AV$7="E",IF(U32_E!X11="","",U32_E!X11),IF($AV$7="F",IF(U32_F!X11="","",U32_F!X11),IF($AV$7="G",IF(U32_G!X11="","",U32_G!X11),IF($AV$7="H",IF(U32_H!X11="","",U32_H!X11),""))))))))) ->  | Y11: =IF($AV$7="","",IF($AV$7="A",IF(U32_A!Y11="","",U32_A!Y11),IF($AV$7="B",IF(U32_B!Y11="","",U32_B!Y11),IF($AV$7="C",IF(U32_C!Y11="","",U32_C!Y11),IF($AV$7="D",IF(U32_D!Y11="","",U32_D!Y11),IF($AV$7="E",IF(U32_E!Y11="","",U32_E!Y11),IF($AV$7="F",IF(U32_F!Y11="","",U32_F!Y11),IF($AV$7="G",IF(U32_G!Y11="","",U32_G!Y11),IF($AV$7="H",IF(U32_H!Y11="","",U32_H!Y11),""))))))))) ->  | Z11: =IF($AV$7="","",IF($AV$7="A",IF(U32_A!Z11="","",U32_A!Z11),IF($AV$7="B",IF(U32_B!Z11="","",U32_B!Z11),IF($AV$7="C",IF(U32_C!Z11="","",U32_C!Z11),IF($AV$7="D",IF(U32_D!Z11="","",U32_D!Z11),IF($AV$7="E",IF(U32_E!Z11="","",U32_E!Z11),IF($AV$7="F",IF(U32_F!Z11="","",U32_F!Z11),IF($AV$7="G",IF(U32_G!Z11="","",U32_G!Z11),IF($AV$7="H",IF(U32_H!Z11="","",U32_H!Z11),""))))))))) ->  | AA11: =IF($AV$7="","",IF($AV$7="A",IF(U32_A!AA11="","",U32_A!AA11),IF($AV$7="B",IF(U32_B!AA11="","",U32_B!AA11),IF($AV$7="C",IF(U32_C!AA11="","",U32_C!AA11),IF($AV$7="D",IF(U32_D!AA11="","",U32_D!AA11),IF($AV$7="E",IF(U32_E!AA11="","",U32_E!AA11),IF($AV$7="F",IF(U32_F!AA11="","",U32_F!AA11),IF($AV$7="G",IF(U32_G!AA11="","",U32_G!AA11),IF($AV$7="H",IF(U32_H!AA11="","",U32_H!AA11),""))))))))) ->  | AB11: =IF($AV$7="","",IF($AV$7="A",IF(U32_A!AB11="","",U32_A!AB11),IF($AV$7="B",IF(U32_B!AB11="","",U32_B!AB11),IF($AV$7="C",IF(U32_C!AB11="","",U32_C!AB11),IF($AV$7="D",IF(U32_D!AB11="","",U32_D!AB11),IF($AV$7="E",IF(U32_E!AB11="","",U32_E!AB11),IF($AV$7="F",IF(U32_F!AB11="","",U32_F!AB11),IF($AV$7="G",IF(U32_G!AB11="","",U32_G!AB11),IF($AV$7="H",IF(U32_H!AB11="","",U32_H!AB11),""))))))))) ->  | AC11: =IF($AV$7="","",IF($AV$7="A",IF(U32_A!AC11="","",U32_A!AC11),IF($AV$7="B",IF(U32_B!AC11="","",U32_B!AC11),IF($AV$7="C",IF(U32_C!AC11="","",U32_C!AC11),IF($AV$7="D",IF(U32_D!AC11="","",U32_D!AC11),IF($AV$7="E",IF(U32_E!AC11="","",U32_E!AC11),IF($AV$7="F",IF(U32_F!AC11="","",U32_F!AC11),IF($AV$7="G",IF(U32_G!AC11="","",U32_G!AC11),IF($AV$7="H",IF(U32_H!AC11="","",U32_H!AC11),""))))))))) ->  | AD11: =IF($AV$7="","",IF($AV$7="A",IF(U32_A!AD11="","",U32_A!AD11),IF($AV$7="B",IF(U32_B!AD11="","",U32_B!AD11),IF($AV$7="C",IF(U32_C!AD11="","",U32_C!AD11),IF($AV$7="D",IF(U32_D!AD11="","",U32_D!AD11),IF($AV$7="E",IF(U32_E!AD11="","",U32_E!AD11),IF($AV$7="F",IF(U32_F!AD11="","",U32_F!AD11),IF($AV$7="G",IF(U32_G!AD11="","",U32_G!AD11),IF($AV$7="H",IF(U32_H!AD11="","",U32_H!AD11),""))))))))) ->  | AE11: =IF($AV$7="","",IF($AV$7="A",IF(U32_A!AE11="","",U32_A!AE11),IF($AV$7="B",IF(U32_B!AE11="","",U32_B!AE11),IF($AV$7="C",IF(U32_C!AE11="","",U32_C!AE11),IF($AV$7="D",IF(U32_D!AE11="","",U32_D!AE11),IF($AV$7="E",IF(U32_E!AE11="","",U32_E!AE11),IF($AV$7="F",IF(U32_F!AE11="","",U32_F!AE11),IF($AV$7="G",IF(U32_G!AE11="","",U32_G!AE11),IF($AV$7="H",IF(U32_H!AE11="","",U32_H!AE11),""))))))))) ->  | AF11: =IF($AV$7="","",IF($AV$7="A",IF(U32_A!AF11="","",U32_A!AF11),IF($AV$7="B",IF(U32_B!AF11="","",U32_B!AF11),IF($AV$7="C",IF(U32_C!AF11="","",U32_C!AF11),IF($AV$7="D",IF(U32_D!AF11="","",U32_D!AF11),IF($AV$7="E",IF(U32_E!AF11="","",U32_E!AF11),IF($AV$7="F",IF(U32_F!AF11="","",U32_F!AF11),IF($AV$7="G",IF(U32_G!AF11="","",U32_G!AF11),IF($AV$7="H",IF(U32_H!AF11="","",U32_H!AF11),""))))))))) ->  | AG11: =IF($AV$7="","",IF($AV$7="A",IF(U32_A!AG11="","",U32_A!AG11),IF($AV$7="B",IF(U32_B!AG11="","",U32_B!AG11),IF($AV$7="C",IF(U32_C!AG11="","",U32_C!AG11),IF($AV$7="D",IF(U32_D!AG11="","",U32_D!AG11),IF($AV$7="E",IF(U32_E!AG11="","",U32_E!AG11),IF($AV$7="F",IF(U32_F!AG11="","",U32_F!AG11),IF($AV$7="G",IF(U32_G!AG11="","",U32_G!AG11),IF($AV$7="H",IF(U32_H!AG11="","",U32_H!AG11),""))))))))) ->  | AH11: =IF($AV$7="","",IF($AV$7="A",IF(U32_A!AH11="","",U32_A!AH11),IF($AV$7="B",IF(U32_B!AH11="","",U32_B!AH11),IF($AV$7="C",IF(U32_C!AH11="","",U32_C!AH11),IF($AV$7="D",IF(U32_D!AH11="","",U32_D!AH11),IF($AV$7="E",IF(U32_E!AH11="","",U32_E!AH11),IF($AV$7="F",IF(U32_F!AH11="","",U32_F!AH11),IF($AV$7="G",IF(U32_G!AH11="","",U32_G!AH11),IF($AV$7="H",IF(U32_H!AH11="","",U32_H!AH11),""))))))))) ->  | AI11: =IF($AV$7="","",IF($AV$7="A",IF(U32_A!AI11="","",U32_A!AI11),IF($AV$7="B",IF(U32_B!AI11="","",U32_B!AI11),IF($AV$7="C",IF(U32_C!AI11="","",U32_C!AI11),IF($AV$7="D",IF(U32_D!AI11="","",U32_D!AI11),IF($AV$7="E",IF(U32_E!AI11="","",U32_E!AI11),IF($AV$7="F",IF(U32_F!AI11="","",U32_F!AI11),IF($AV$7="G",IF(U32_G!AI11="","",U32_G!AI11),IF($AV$7="H",IF(U32_H!AI11="","",U32_H!AI11),""))))))))) ->  | AJ11: =IF($AV$7="","",IF($AV$7="A",IF(U32_A!AJ11="","",U32_A!AJ11),IF($AV$7="B",IF(U32_B!AJ11="","",U32_B!AJ11),IF($AV$7="C",IF(U32_C!AJ11="","",U32_C!AJ11),IF($AV$7="D",IF(U32_D!AJ11="","",U32_D!AJ11),IF($AV$7="E",IF(U32_E!AJ11="","",U32_E!AJ11),IF($AV$7="F",IF(U32_F!AJ11="","",U32_F!AJ11),IF($AV$7="G",IF(U32_G!AJ11="","",U32_G!AJ11),IF($AV$7="H",IF(U32_H!AJ11="","",U32_H!AJ11),""))))))))) ->  | AK11: =IF($AV$7="","",IF($AV$7="A",IF(U32_A!AK11="","",U32_A!AK11),IF($AV$7="B",IF(U32_B!AK11="","",U32_B!AK11),IF($AV$7="C",IF(U32_C!AK11="","",U32_C!AK11),IF($AV$7="D",IF(U32_D!AK11="","",U32_D!AK11),IF($AV$7="E",IF(U32_E!AK11="","",U32_E!AK11),IF($AV$7="F",IF(U32_F!AK11="","",U32_F!AK11),IF($AV$7="G",IF(U32_G!AK11="","",U32_G!AK11),IF($AV$7="H",IF(U32_H!AK11="","",U32_H!AK11),""))))))))) ->  | AL11: =IF($AV$7="","",IF($AV$7="A",IF(U32_A!AL11="","",U32_A!AL11),IF($AV$7="B",IF(U32_B!AL11="","",U32_B!AL11),IF($AV$7="C",IF(U32_C!AL11="","",U32_C!AL11),IF($AV$7="D",IF(U32_D!AL11="","",U32_D!AL11),IF($AV$7="E",IF(U32_E!AL11="","",U32_E!AL11),IF($AV$7="F",IF(U32_F!AL11="","",U32_F!AL11),IF($AV$7="G",IF(U32_G!AL11="","",U32_G!AL11),IF($AV$7="H",IF(U32_H!AL11="","",U32_H!AL11),""))))))))) ->  | AM11: =IF($AV$7="","",IF($AV$7="A",IF(U32_A!AM11="","",U32_A!AM11),IF($AV$7="B",IF(U32_B!AM11="","",U32_B!AM11),IF($AV$7="C",IF(U32_C!AM11="","",U32_C!AM11),IF($AV$7="D",IF(U32_D!AM11="","",U32_D!AM11),IF($AV$7="E",IF(U32_E!AM11="","",U32_E!AM11),IF($AV$7="F",IF(U32_F!AM11="","",U32_F!AM11),IF($AV$7="G",IF(U32_G!AM11="","",U32_G!AM11),IF($AV$7="H",IF(U32_H!AM11="","",U32_H!AM11),""))))))))) ->  | AN11: =IF($AV$7="","",IF($AV$7="A",IF(U32_A!AN11="","",U32_A!AN11),IF($AV$7="B",IF(U32_B!AN11="","",U32_B!AN11),IF($AV$7="C",IF(U32_C!AN11="","",U32_C!AN11),IF($AV$7="D",IF(U32_D!AN11="","",U32_D!AN11),IF($AV$7="E",IF(U32_E!AN11="","",U32_E!AN11),IF($AV$7="F",IF(U32_F!AN11="","",U32_F!AN11),IF($AV$7="G",IF(U32_G!AN11="","",U32_G!AN11),IF($AV$7="H",IF(U32_H!AN11="","",U32_H!AN11),""))))))))) ->  | AO11: =IF($AV$7="","",IF($AV$7="A",IF(U32_A!AO11="","",U32_A!AO11),IF($AV$7="B",IF(U32_B!AO11="","",U32_B!AO11),IF($AV$7="C",IF(U32_C!AO11="","",U32_C!AO11),IF($AV$7="D",IF(U32_D!AO11="","",U32_D!AO11),IF($AV$7="E",IF(U32_E!AO11="","",U32_E!AO11),IF($AV$7="F",IF(U32_F!AO11="","",U32_F!AO11),IF($AV$7="G",IF(U32_G!AO11="","",U32_G!AO11),IF($AV$7="H",IF(U32_H!AO11="","",U32_H!AO11),""))))))))) ->  | AP11: =IF($AV$7="","",IF($AV$7="A",IF(U32_A!AP11="","",U32_A!AP11),IF($AV$7="B",IF(U32_B!AP11="","",U32_B!AP11),IF($AV$7="C",IF(U32_C!AP11="","",U32_C!AP11),IF($AV$7="D",IF(U32_D!AP11="","",U32_D!AP11),IF($AV$7="E",IF(U32_E!AP11="","",U32_E!AP11),IF($AV$7="F",IF(U32_F!AP11="","",U32_F!AP11),IF($AV$7="G",IF(U32_G!AP11="","",U32_G!AP11),IF($AV$7="H",IF(U32_H!AP11="","",U32_H!AP11),""))))))))) ->  | AQ11: =IF($AV$7="","",IF($AV$7="A",IF(U32_A!AQ11="","",U32_A!AQ11),IF($AV$7="B",IF(U32_B!AQ11="","",U32_B!AQ11),IF($AV$7="C",IF(U32_C!AQ11="","",U32_C!AQ11),IF($AV$7="D",IF(U32_D!AQ11="","",U32_D!AQ11),IF($AV$7="E",IF(U32_E!AQ11="","",U32_E!AQ11),IF($AV$7="F",IF(U32_F!AQ11="","",U32_F!AQ11),IF($AV$7="G",IF(U32_G!AQ11="","",U32_G!AQ11),IF($AV$7="H",IF(U32_H!AQ11="","",U32_H!AQ11),""))))))))) ->  | AR11: =IF($AV$7="","",IF($AV$7="A",IF(U32_A!AR11="","",U32_A!AR11),IF($AV$7="B",IF(U32_B!AR11="","",U32_B!AR11),IF($AV$7="C",IF(U32_C!AR11="","",U32_C!AR11),IF($AV$7="D",IF(U32_D!AR11="","",U32_D!AR11),IF($AV$7="E",IF(U32_E!AR11="","",U32_E!AR11),IF($AV$7="F",IF(U32_F!AR11="","",U32_F!AR11),IF($AV$7="G",IF(U32_G!AR11="","",U32_G!AR11),IF($AV$7="H",IF(U32_H!AR11="","",U32_H!AR11),""))))))))) ->  | AS11: =IF($AV$7="","",IF($AV$7="A",IF(U32_A!AS11="","",U32_A!AS11),IF($AV$7="B",IF(U32_B!AS11="","",U32_B!AS11),IF($AV$7="C",IF(U32_C!AS11="","",U32_C!AS11),IF($AV$7="D",IF(U32_D!AS11="","",U32_D!AS11),IF($AV$7="E",IF(U32_E!AS11="","",U32_E!AS11),IF($AV$7="F",IF(U32_F!AS11="","",U32_F!AS11),IF($AV$7="G",IF(U32_G!AS11="","",U32_G!AS11),IF($AV$7="H",IF(U32_H!AS11="","",U32_H!AS11),""))))))))) ->  | AT11: =IF($AV$7="","",IF($AV$7="A",IF(U32_A!AT11="","",U32_A!AT11),IF($AV$7="B",IF(U32_B!AT11="","",U32_B!AT11),IF($AV$7="C",IF(U32_C!AT11="","",U32_C!AT11),IF($AV$7="D",IF(U32_D!AT11="","",U32_D!AT11),IF($AV$7="E",IF(U32_E!AT11="","",U32_E!AT11),IF($AV$7="F",IF(U32_F!AT11="","",U32_F!AT11),IF($AV$7="G",IF(U32_G!AT11="","",U32_G!AT11),IF($AV$7="H",IF(U32_H!AT11="","",U32_H!AT11),""))))))))) -> 
A13: Données fournies au candidat
A14: =IF($AV$7="","",IF($AV$7="A",IF(U32_A!A14="","",U32_A!A14),IF($AV$7="B",IF(U32_B!A14="","",U32_B!A14),IF($AV$7="C",IF(U32_C!A14="","",U32_C!A14),IF($AV$7="D",IF(U32_D!A14="","",U32_D!A14),IF($AV$7="E",IF(U32_E!A14="","",U32_E!A14),IF($AV$7="F",IF(U32_F!A14="","",U32_F!A14),IF($AV$7="G",IF(U32_G!A14="","",U32_G!A14),IF($AV$7="H",IF(U32_H!A14="","",U32_H!A14),""))))))))) -> X | B14: Un véhicule, un système ou sous-système | X14: =IF($AV$7="","",IF($AV$7="A",IF(U32_A!X14="","",U32_A!X14),IF($AV$7="B",IF(U32_B!X14="","",U32_B!X14),IF($AV$7="C",IF(U32_C!X14="","",U32_C!X14),IF($AV$7="D",IF(U32_D!X14="","",U32_D!X14),IF($AV$7="E",IF(U32_E!X14="","",U32_E!X14),IF($AV$7="F",IF(U32_F!X14="","",U32_F!X14),IF($AV$7="G",IF(U32_G!X14="","",U32_G!X14),IF($AV$7="H",IF(U32_H!X14="","",U32_H!X14),""))))))))) -> X | Y14: Outils d’aide au diagnostic (internes à l’entreprise et à distance)
A15: =IF($AV$7="","",IF($AV$7="A",IF(U32_A!A15="","",U32_A!A15),IF($AV$7="B",IF(U32_B!A15="","",U32_B!A15),IF($AV$7="C",IF(U32_C!A15="","",U32_C!A15),IF($AV$7="D",IF(U32_D!A15="","",U32_D!A15),IF($AV$7="E",IF(U32_E!A15="","",U32_E!A15),IF($AV$7="F",IF(U32_F!A15="","",U32_F!A15),IF($AV$7="G",IF(U32_G!A15="","",U32_G!A15),IF($AV$7="H",IF(U32_H!A15="","",U32_H!A15),""))))))))) -> X | B15: Un ou plusieurs éléments d’un système en dysfonctionnement. | X15: =IF($AV$7="","",IF($AV$7="A",IF(U32_A!X15="","",U32_A!X15),IF($AV$7="B",IF(U32_B!X15="","",U32_B!X15),IF($AV$7="C",IF(U32_C!X15="","",U32_C!X15),IF($AV$7="D",IF(U32_D!X15="","",U32_D!X15),IF($AV$7="E",IF(U32_E!X15="","",U32_E!X15),IF($AV$7="F",IF(U32_F!X15="","",U32_F!X15),IF($AV$7="G",IF(U32_G!X15="","",U32_G!X15),IF($AV$7="H",IF(U32_H!X15="","",U32_H!X15),""))))))))) -> X | Y15: Protections intérieures et extérieures
A16: =IF($AV$7="","",IF($AV$7="A",IF(U32_A!A16="","",U32_A!A16),IF($AV$7="B",IF(U32_B!A16="","",U32_B!A16),IF($AV$7="C",IF(U32_C!A16="","",U32_C!A16),IF($AV$7="D",IF(U32_D!A16="","",U32_D!A16),IF($AV$7="E",IF(U32_E!A16="","",U32_E!A16),IF($AV$7="F",IF(U32_F!A16="","",U32_F!A16),IF($AV$7="G",IF(U32_G!A16="","",U32_G!A16),IF($AV$7="H",IF(U32_H!A16="","",U32_H!A16),""))))))))) ->  | B16: Présence du client | X16: =IF($AV$7="","",IF($AV$7="A",IF(U32_A!X16="","",U32_A!X16),IF($AV$7="B",IF(U32_B!X16="","",U32_B!X16),IF($AV$7="C",IF(U32_C!X16="","",U32_C!X16),IF($AV$7="D",IF(U32_D!X16="","",U32_D!X16),IF($AV$7="E",IF(U32_E!X16="","",U32_E!X16),IF($AV$7="F",IF(U32_F!X16="","",U32_F!X16),IF($AV$7="G",IF(U32_G!X16="","",U32_G!X16),IF($AV$7="H",IF(U32_H!X16="","",U32_H!X16),""))))))))) -> X | Y16: Équipements, outillages et notices d’utilisation nécessaires à l’intervention.
A17: =IF($AV$7="","",IF($AV$7="A",IF(U32_A!A17="","",U32_A!A17),IF($AV$7="B",IF(U32_B!A17="","",U32_B!A17),IF($AV$7="C",IF(U32_C!A17="","",U32_C!A17),IF($AV$7="D",IF(U32_D!A17="","",U32_D!A17),IF($AV$7="E",IF(U32_E!A17="","",U32_E!A17),IF($AV$7="F",IF(U32_F!A17="","",U32_F!A17),IF($AV$7="G",IF(U32_G!A17="","",U32_G!A17),IF($AV$7="H",IF(U32_H!A17="","",U32_H!A17),""))))))))) -> X | B17: Ordre de réparation | X17: =IF($AV$7="","",IF($AV$7="A",IF(U32_A!X17="","",U32_A!X17),IF($AV$7="B",IF(U32_B!X17="","",U32_B!X17),IF($AV$7="C",IF(U32_C!X17="","",U32_C!X17),IF($AV$7="D",IF(U32_D!X17="","",U32_D!X17),IF($AV$7="E",IF(U32_E!X17="","",U32_E!X17),IF($AV$7="F",IF(U32_F!X17="","",U32_F!X17),IF($AV$7="G",IF(U32_G!X17="","",U32_G!X17),IF($AV$7="H",IF(U32_H!X17="","",U32_H!X17),""))))))))) -> X | Y17: Appareils de mesures et de contrôles fixes ou embarqués avec les notices d’utilisation.
A18: =IF($AV$7="","",IF($AV$7="A",IF(U32_A!A18="","",U32_A!A18),IF($AV$7="B",IF(U32_B!A18="","",U32_B!A18),IF($AV$7="C",IF(U32_C!A18="","",U32_C!A18),IF($AV$7="D",IF(U32_D!A18="","",U32_D!A18),IF($AV$7="E",IF(U32_E!A18="","",U32_E!A18),IF($AV$7="F",IF(U32_F!A18="","",U32_F!A18),IF($AV$7="G",IF(U32_G!A18="","",U32_G!A18),IF($AV$7="H",IF(U32_H!A18="","",U32_H!A18),""))))))))) -> X | B18: Description de l’anomalie constatée et/ou de ses effets | X18: =IF($AV$7="","",IF($AV$7="A",IF(U32_A!X18="","",U32_A!X18),IF($AV$7="B",IF(U32_B!X18="","",U32_B!X18),IF($AV$7="C",IF(U32_C!X18="","",U32_C!X18),IF($AV$7="D",IF(U32_D!X18="","",U32_D!X18),IF($AV$7="E",IF(U32_E!X18="","",U32_E!X18),IF($AV$7="F",IF(U32_F!X18="","",U32_F!X18),IF($AV$7="G",IF(U32_G!X18="","",U32_G!X18),IF($AV$7="H",IF(U32_H!X18="","",U32_H!X18),""))))))))) -> X | Y18: Résultats des mesures et contrôles.
A19: =IF($AV$7="","",IF($AV$7="A",IF(U32_A!A19="","",U32_A!A19),IF($AV$7="B",IF(U32_B!A19="","",U32_B!A19),IF($AV$7="C",IF(U32_C!A19="","",U32_C!A19),IF($AV$7="D",IF(U32_D!A19="","",U32_D!A19),IF($AV$7="E",IF(U32_E!A19="","",U32_E!A19),IF($AV$7="F",IF(U32_F!A19="","",U32_F!A19),IF($AV$7="G",IF(U32_G!A19="","",U32_G!A19),IF($AV$7="H",IF(U32_H!A19="","",U32_H!A19),""))))))))) ->  | B19: Historique technique du véhicule (documents de suivi) | X19: =IF($AV$7="","",IF($AV$7="A",IF(U32_A!X19="","",U32_A!X19),IF($AV$7="B",IF(U32_B!X19="","",U32_B!X19),IF($AV$7="C",IF(U32_C!X19="","",U32_C!X19),IF($AV$7="D",IF(U32_D!X19="","",U32_D!X19),IF($AV$7="E",IF(U32_E!X19="","",U32_E!X19),IF($AV$7="F",IF(U32_F!X19="","",U32_F!X19),IF($AV$7="G",IF(U32_G!X19="","",U32_G!X19),IF($AV$7="H",IF(U32_H!X19="","",U32_H!X19),""))))))))) ->  | Y19: Un essai à effectuer si besoin
A20: =IF($AV$7="","",IF($AV$7="A",IF(U32_A!A20="","",U32_A!A20),IF($AV$7="B",IF(U32_B!A20="","",U32_B!A20),IF($AV$7="C",IF(U32_C!A20="","",U32_C!A20),IF($AV$7="D",IF(U32_D!A20="","",U32_D!A20),IF($AV$7="E",IF(U32_E!A20="","",U32_E!A20),IF($AV$7="F",IF(U32_F!A20="","",U32_F!A20),IF($AV$7="G",IF(U32_G!A20="","",U32_G!A20),IF($AV$7="H",IF(U32_H!A20="","",U32_H!A20),""))))))))) -> X | B20: Documentation technique du véhicule (données constructeur) | X20: =IF($AV$7="","",IF($AV$7="A",IF(U32_A!X20="","",U32_A!X20),IF($AV$7="B",IF(U32_B!X20="","",U32_B!X20),IF($AV$7="C",IF(U32_C!X20="","",U32_C!X20),IF($AV$7="D",IF(U32_D!X20="","",U32_D!X20),IF($AV$7="E",IF(U32_E!X20="","",U32_E!X20),IF($AV$7="F",IF(U32_F!X20="","",U32_F!X20),IF($AV$7="G",IF(U32_G!X20="","",U32_G!X20),IF($AV$7="H",IF(U32_H!X20="","",U32_H!X20),""))))))))) -> X | Y20: La réglementation.
A21: =IF($AV$7="","",IF($AV$7="A",IF(U32_A!A21="","",U32_A!A21),IF($AV$7="B",IF(U32_B!A21="","",U32_B!A21),IF($AV$7="C",IF(U32_C!A21="","",U32_C!A21),IF($AV$7="D",IF(U32_D!A21="","",U32_D!A21),IF($AV$7="E",IF(U32_E!A21="","",U32_E!A21),IF($AV$7="F",IF(U32_F!A21="","",U32_F!A21),IF($AV$7="G",IF(U32_G!A21="","",U32_G!A21),IF($AV$7="H",IF(U32_H!A21="","",U32_H!A21),""))))))))) ->  | B21: Planning de charge de l’atelier | X21: =IF($AV$7="","",IF($AV$7="A",IF(U32_A!X21="","",U32_A!X21),IF($AV$7="B",IF(U32_B!X21="","",U32_B!X21),IF($AV$7="C",IF(U32_C!X21="","",U32_C!X21),IF($AV$7="D",IF(U32_D!X21="","",U32_D!X21),IF($AV$7="E",IF(U32_E!X21="","",U32_E!X21),IF($AV$7="F",IF(U32_F!X21="","",U32_F!X21),IF($AV$7="G",IF(U32_G!X21="","",U32_G!X21),IF($AV$7="H",IF(U32_H!X21="","",U32_H!X21),""))))))))) -> X | Y21: Matériel de nettoyage et de remise en état
A22: =IF($AV$7="","",IF($AV$7="A",IF(U32_A!A22="","",U32_A!A22),IF($AV$7="B",IF(U32_B!A22="","",U32_B!A22),IF($AV$7="C",IF(U32_C!A22="","",U32_C!A22),IF($AV$7="D",IF(U32_D!A22="","",U32_D!A22),IF($AV$7="E",IF(U32_E!A22="","",U32_E!A22),IF($AV$7="F",IF(U32_F!A22="","",U32_F!A22),IF($AV$7="G",IF(U32_G!A22="","",U32_G!A22),IF($AV$7="H",IF(U32_H!A22="","",U32_H!A22),""))))))))) -> X | B22: Poste de travail | X22: =IF($AV$7="","",IF($AV$7="A",IF(U32_A!X22="","",U32_A!X22),IF($AV$7="B",IF(U32_B!X22="","",U32_B!X22),IF($AV$7="C",IF(U32_C!X22="","",U32_C!X22),IF($AV$7="D",IF(U32_D!X22="","",U32_D!X22),IF($AV$7="E",IF(U32_E!X22="","",U32_E!X22),IF($AV$7="F",IF(U32_F!X22="","",U32_F!X22),IF($AV$7="G",IF(U32_G!X22="","",U32_G!X22),IF($AV$7="H",IF(U32_H!X22="","",U32_H!X22),""))))))))) ->  | Y22: Déchets résultants d’une intervention sur un véhicule ou bateau.
A23: =IF($AV$7="","",IF($AV$7="A",IF(U32_A!A23="","",U32_A!A23),IF($AV$7="B",IF(U32_B!A23="","",U32_B!A23),IF($AV$7="C",IF(U32_C!A23="","",U32_C!A23),IF($AV$7="D",IF(U32_D!A23="","",U32_D!A23),IF($AV$7="E",IF(U32_E!A23="","",U32_E!A23),IF($AV$7="F",IF(U32_F!A23="","",U32_F!A23),IF($AV$7="G",IF(U32_G!A23="","",U32_G!A23),IF($AV$7="H",IF(U32_H!A23="","",U32_H!A23),""))))))))) -> X | B23: Les matériels de manutention et leurs notices d’utilisation | X23: =IF($AV$7="","",IF($AV$7="A",IF(U32_A!X23="","",U32_A!X23),IF($AV$7="B",IF(U32_B!X23="","",U32_B!X23),IF($AV$7="C",IF(U32_C!X23="","",U32_C!X23),IF($AV$7="D",IF(U32_D!X23="","",U32_D!X23),IF($AV$7="E",IF(U32_E!X23="","",U32_E!X23),IF($AV$7="F",IF(U32_F!X23="","",U32_F!X23),IF($AV$7="G",IF(U32_G!X23="","",U32_G!X23),IF($AV$7="H",IF(U32_H!X23="","",U32_H!X23),""))))))))) -> X | Y23: Bacs et conteneurs de récupération.
A24: =IF($AV$7="","",IF($AV$7="A",IF(U32_A!A24="","",U32_A!A24),IF($AV$7="B",IF(U32_B!A24="","",U32_B!A24),IF($AV$7="C",IF(U32_C!A24="","",U32_C!A24),IF($AV$7="D",IF(U32_D!A24="","",U32_D!A24),IF($AV$7="E",IF(U32_E!A24="","",U32_E!A24),IF($AV$7="F",IF(U32_F!A24="","",U32_F!A24),IF($AV$7="G",IF(U32_G!A24="","",U32_G!A24),IF($AV$7="H",IF(U32_H!A24="","",U32_H!A24),""))))))))) ->  | B24: Liste des opérations effectuées | X24: =IF($AV$7="","",IF($AV$7="A",IF(U32_A!X24="","",U32_A!X24),IF($AV$7="B",IF(U32_B!X24="","",U32_B!X24),IF($AV$7="C",IF(U32_C!X24="","",U32_C!X24),IF($AV$7="D",IF(U32_D!X24="","",U32_D!X24),IF($AV$7="E",IF(U32_E!X24="","",U32_E!X24),IF($AV$7="F",IF(U32_F!X24="","",U32_F!X24),IF($AV$7="G",IF(U32_G!X24="","",U32_G!X24),IF($AV$7="H",IF(U32_H!X24="","",U32_H!X24),""))))))))) -> X | Y24: Les outils de communication
A25: =IF($AV$7="","",IF($AV$7="A",IF(U32_A!A25="","",U32_A!A25),IF($AV$7="B",IF(U32_B!A25="","",U32_B!A25),IF($AV$7="C",IF(U32_C!A25="","",U32_C!A25),IF($AV$7="D",IF(U32_D!A25="","",U32_D!A25),IF($AV$7="E",IF(U32_E!A25="","",U32_E!A25),IF($AV$7="F",IF(U32_F!A25="","",U32_F!A25),IF($AV$7="G",IF(U32_G!A25="","",U32_G!A25),IF($AV$7="H",IF(U32_H!A25="","",U32_H!A25),""))))))))) ->  | B25: L’accessoire ou l’équipement à poser | X25: =IF($AV$7="","",IF($AV$7="A",IF(U32_A!X25="","",U32_A!X25),IF($AV$7="B",IF(U32_B!X25="","",U32_B!X25),IF($AV$7="C",IF(U32_C!X25="","",U32_C!X25),IF($AV$7="D",IF(U32_D!X25="","",U32_D!X25),IF($AV$7="E",IF(U32_E!X25="","",U32_E!X25),IF($AV$7="F",IF(U32_F!X25="","",U32_F!X25),IF($AV$7="G",IF(U32_G!X25="","",U32_G!X25),IF($AV$7="H",IF(U32_H!X25="","",U32_H!X25),""))))))))) -> 
A26: =IF($AV$7="","",IF($AV$7="A",IF(U32_A!A26="","",U32_A!A26),IF($AV$7="B",IF(U32_B!A26="","",U32_B!A26),IF($AV$7="C",IF(U32_C!A26="","",U32_C!A26),IF($AV$7="D",IF(U32_D!A26="","",U32_D!A26),IF($AV$7="E",IF(U32_E!A26="","",U32_E!A26),IF($AV$7="F",IF(U32_F!A26="","",U32_F!A26),IF($AV$7="G",IF(U32_G!A26="","",U32_G!A26),IF($AV$7="H",IF(U32_H!A26="","",U32_H!A26),""))))))))) ->  | B26: Liste des pièces et des fournitures | X26: =IF($AV$7="","",IF($AV$7="A",IF(U32_A!X26="","",U32_A!X26),IF($AV$7="B",IF(U32_B!X26="","",U32_B!X26),IF($AV$7="C",IF(U32_C!X26="","",U32_C!X26),IF($AV$7="D",IF(U32_D!X26="","",U32_D!X26),IF($AV$7="E",IF(U32_E!X26="","",U32_E!X26),IF($AV$7="F",IF(U32_F!X26="","",U32_F!X26),IF($AV$7="G",IF(U32_G!X26="","",U32_G!X26),IF($AV$7="H",IF(U32_H!X26="","",U32_H!X26),""))))))))) -> 
A27: ÇRepérer les données fournies | Y27: ÇRepérer les données fournies
A28: Travail demandé
A29: =IF($AV$7="","",IF($AV$7="A",IF(U32_A!A29="","",U32_A!A29),IF($AV$7="B",IF(U32_B!A29="","",U32_B!A29),IF($AV$7="C",IF(U32_C!A29="","",U32_C!A29),IF($AV$7="D",IF(U32_D!A29="","",U32_D!A29),IF($AV$7="E",IF(U32_E!A29="","",U32_E!A29),IF($AV$7="F",IF(U32_F!A29="","",U32_F!A29),IF($AV$7="G",IF(U32_G!A29="","",U32_G!A29),IF($AV$7="H",IF(U32_H!A29="","",U32_H!A29),""))))))))) -> X | B29: A2T1 | D29: Mettre le véhicule en situation d'intervention, organiser son poste de travail | X29: =IF($AV$7="","",IF($AV$7="A",IF(U32_A!X29="","",U32_A!X29),IF($AV$7="B",IF(U32_B!X29="","",U32_B!X29),IF($AV$7="C",IF(U32_C!X29="","",U32_C!X29),IF($AV$7="D",IF(U32_D!X29="","",U32_D!X29),IF($AV$7="E",IF(U32_E!X29="","",U32_E!X29),IF($AV$7="F",IF(U32_F!X29="","",U32_F!X29),IF($AV$7="G",IF(U32_G!X29="","",U32_G!X29),IF($AV$7="H",IF(U32_H!X29="","",U32_H!X29),""))))))))) -> X | Y29: A3T1 | AA29: Organiser son intervention et pratiquer l'auto contrôle de son activité
A30: =IF($AV$7="","",IF($AV$7="A",IF(U32_A!A30="","",U32_A!A30),IF($AV$7="B",IF(U32_B!A30="","",U32_B!A30),IF($AV$7="C",IF(U32_C!A30="","",U32_C!A30),IF($AV$7="D",IF(U32_D!A30="","",U32_D!A30),IF($AV$7="E",IF(U32_E!A30="","",U32_E!A30),IF($AV$7="F",IF(U32_F!A30="","",U32_F!A30),IF($AV$7="G",IF(U32_G!A30="","",U32_G!A30),IF($AV$7="H",IF(U32_H!A30="","",U32_H!A30),""))))))))) ->  | B30: A2T2 | D30: Émettre des hypothèses sur le dysfonctionnement | X30: =IF($AV$7="","",IF($AV$7="A",IF(U32_A!X30="","",U32_A!X30),IF($AV$7="B",IF(U32_B!X30="","",U32_B!X30),IF($AV$7="C",IF(U32_C!X30="","",U32_C!X30),IF($AV$7="D",IF(U32_D!X30="","",U32_D!X30),IF($AV$7="E",IF(U32_E!X30="","",U32_E!X30),IF($AV$7="F",IF(U32_F!X30="","",U32_F!X30),IF($AV$7="G",IF(U32_G!X30="","",U32_G!X30),IF($AV$7="H",IF(U32_H!X30="","",U32_H!X30),""))))))))) -> X | Y30: A3T2 | AA30: Appliquer les procédures,
A31: =IF($AV$7="","",IF($AV$7="A",IF(U32_A!A31="","",U32_A!A31),IF($AV$7="B",IF(U32_B!A31="","",U32_B!A31),IF($AV$7="C",IF(U32_C!A31="","",U32_C!A31),IF($AV$7="D",IF(U32_D!A31="","",U32_D!A31),IF($AV$7="E",IF(U32_E!A31="","",U32_E!A31),IF($AV$7="F",IF(U32_F!A31="","",U32_F!A31),IF($AV$7="G",IF(U32_G!A31="","",U32_G!A31),IF($AV$7="H",IF(U32_H!A31="","",U32_H!A31),""))))))))) -> X | B31: A2T3 | D31: Collecter, analyser, interpréter, traiter toutes les informations techniques nécessaires à l'intervention | X31: =IF($AV$7="","",IF($AV$7="A",IF(U32_A!X31="","",U32_A!X31),IF($AV$7="B",IF(U32_B!X31="","",U32_B!X31),IF($AV$7="C",IF(U32_C!X31="","",U32_C!X31),IF($AV$7="D",IF(U32_D!X31="","",U32_D!X31),IF($AV$7="E",IF(U32_E!X31="","",U32_E!X31),IF($AV$7="F",IF(U32_F!X31="","",U32_F!X31),IF($AV$7="G",IF(U32_G!X31="","",U32_G!X31),IF($AV$7="H",IF(U32_H!X31="","",U32_H!X31),""))))))))) -> X | Y31: A3T3 | AA31: Poser, déposer, démonter, remonter les organes des différents systèmes
A32: =IF($AV$7="","",IF($AV$7="A",IF(U32_A!A32="","",U32_A!A32),IF($AV$7="B",IF(U32_B!A32="","",U32_B!A32),IF($AV$7="C",IF(U32_C!A32="","",U32_C!A32),IF($AV$7="D",IF(U32_D!A32="","",U32_D!A32),IF($AV$7="E",IF(U32_E!A32="","",U32_E!A32),IF($AV$7="F",IF(U32_F!A32="","",U32_F!A32),IF($AV$7="G",IF(U32_G!A32="","",U32_G!A32),IF($AV$7="H",IF(U32_H!A32="","",U32_H!A32),""))))))))) -> X | B32: A2T4 | D32: Choisir les contrôles, les mesures, les essais à réaliser | X32: =IF($AV$7="","",IF($AV$7="A",IF(U32_A!X32="","",U32_A!X32),IF($AV$7="B",IF(U32_B!X32="","",U32_B!X32),IF($AV$7="C",IF(U32_C!X32="","",U32_C!X32),IF($AV$7="D",IF(U32_D!X32="","",U32_D!X32),IF($AV$7="E",IF(U32_E!X32="","",U32_E!X32),IF($AV$7="F",IF(U32_F!X32="","",U32_F!X32),IF($AV$7="G",IF(U32_G!X32="","",U32_G!X32),IF($AV$7="H",IF(U32_H!X32="","",U32_H!X32),""))))))))) ->  | Y32: A3T4 | AA32: Changer ou réparer les organes des différents systèmes
A33: =IF($AV$7="","",IF($AV$7="A",IF(U32_A!A33="","",U32_A!A33),IF($AV$7="B",IF(U32_B!A33="","",U32_B!A33),IF($AV$7="C",IF(U32_C!A33="","",U32_C!A33),IF($AV$7="D",IF(U32_D!A33="","",U32_D!A33),IF($AV$7="E",IF(U32_E!A33="","",U32_E!A33),IF($AV$7="F",IF(U32_F!A33="","",U32_F!A33),IF($AV$7="G",IF(U32_G!A33="","",U32_G!A33),IF($AV$7="H",IF(U32_H!A33="","",U32_H!A33),""))))))))) ->  | B33: A2T5 | D33: Mettre en œuvre un matériel d’aide au diagnostic | X33: =IF($AV$7="","",IF($AV$7="A",IF(U32_A!X33="","",U32_A!X33),IF($AV$7="B",IF(U32_B!X33="","",U32_B!X33),IF($AV$7="C",IF(U32_C!X33="","",U32_C!X33),IF($AV$7="D",IF(U32_D!X33="","",U32_D!X33),IF($AV$7="E",IF(U32_E!X33="","",U32_E!X33),IF($AV$7="F",IF(U32_F!X33="","",U32_F!X33),IF($AV$7="G",IF(U32_G!X33="","",U32_G!X33),IF($AV$7="H",IF(U32_H!X33="","",U32_H!X33),""))))))))) -> X | Y33: A3T5 | AA33: Régler les organes et les systèmes conformément aux données constructeur
A34: =IF($AV$7="","",IF($AV$7="A",IF(U32_A!A34="","",U32_A!A34),IF($AV$7="B",IF(U32_B!A34="","",U32_B!A34),IF($AV$7="C",IF(U32_C!A34="","",U32_C!A34),IF($AV$7="D",IF(U32_D!A34="","",U32_D!A34),IF($AV$7="E",IF(U32_E!A34="","",U32_E!A34),IF($AV$7="F",IF(U32_F!A34="","",U32_F!A34),IF($AV$7="G",IF(U32_G!A34="","",U32_G!A34),IF($AV$7="H",IF(U32_H!A34="","",U32_H!A34),""))))))))) -> X | B34: A2T6 | D34: Mesurer, contrôler les caractéristiques mécaniques, hydrauliques, électriques, pneumatiques | X34: =IF($AV$7="","",IF($AV$7="A",IF(U32_A!X34="","",U32_A!X34),IF($AV$7="B",IF(U32_B!X34="","",U32_B!X34),IF($AV$7="C",IF(U32_C!X34="","",U32_C!X34),IF($AV$7="D",IF(U32_D!X34="","",U32_D!X34),IF($AV$7="E",IF(U32_E!X34="","",U32_E!X34),IF($AV$7="F",IF(U32_F!X34="","",U32_F!X34),IF($AV$7="G",IF(U32_G!X34="","",U32_G!X34),IF($AV$7="H",IF(U32_H!X34="","",U32_H!X34),""))))))))) ->  | Y34: A3T6 | AA34: Contrôler les performances et mettre au point le véhicule ou le bateau
A35: =IF($AV$7="","",IF($AV$7="A",IF(U32_A!A35="","",U32_A!A35),IF($AV$7="B",IF(U32_B!A35="","",U32_B!A35),IF($AV$7="C",IF(U32_C!A35="","",U32_C!A35),IF($AV$7="D",IF(U32_D!A35="","",U32_D!A35),IF($AV$7="E",IF(U32_E!A35="","",U32_E!A35),IF($AV$7="F",IF(U32_F!A35="","",U32_F!A35),IF($AV$7="G",IF(U32_G!A35="","",U32_G!A35),IF($AV$7="H",IF(U32_H!A35="","",U32_H!A35),""))))))))) ->  | B35: A2T7 | D35: Interpréter les résultats, identifier le (ou les) élément(s) défectueux | X35: =IF($AV$7="","",IF($AV$7="A",IF(U32_A!X35="","",U32_A!X35),IF($AV$7="B",IF(U32_B!X35="","",U32_B!X35),IF($AV$7="C",IF(U32_C!X35="","",U32_C!X35),IF($AV$7="D",IF(U32_D!X35="","",U32_D!X35),IF($AV$7="E",IF(U32_E!X35="","",U32_E!X35),IF($AV$7="F",IF(U32_F!X35="","",U32_F!X35),IF($AV$7="G",IF(U32_G!X35="","",U32_G!X35),IF($AV$7="H",IF(U32_H!X35="","",U32_H!X35),""))))))))) -> X | Y35: A3T7 | AA35: Mettre en conformité le fonctionnement du véhicule en appliquant les normes en vigueur
A36: =IF($AV$7="","",IF($AV$7="A",IF(U32_A!A36="","",U32_A!A36),IF($AV$7="B",IF(U32_B!A36="","",U32_B!A36),IF($AV$7="C",IF(U32_C!A36="","",U32_C!A36),IF($AV$7="D",IF(U32_D!A36="","",U32_D!A36),IF($AV$7="E",IF(U32_E!A36="","",U32_E!A36),IF($AV$7="F",IF(U32_F!A36="","",U32_F!A36),IF($AV$7="G",IF(U32_G!A36="","",U32_G!A36),IF($AV$7="H",IF(U32_H!A36="","",U32_H!A36),""))))))))) ->  | B36: A2T8 | D36: Réaliser les essais | X36: =IF($AV$7="","",IF($AV$7="A",IF(U32_A!X36="","",U32_A!X36),IF($AV$7="B",IF(U32_B!X36="","",U32_B!X36),IF($AV$7="C",IF(U32_C!X36="","",U32_C!X36),IF($AV$7="D",IF(U32_D!X36="","",U32_D!X36),IF($AV$7="E",IF(U32_E!X36="","",U32_E!X36),IF($AV$7="F",IF(U32_F!X36="","",U32_F!X36),IF($AV$7="G",IF(U32_G!X36="","",U32_G!X36),IF($AV$7="H",IF(U32_H!X36="","",U32_H!X36),""))))))))) ->  | Y36: A3T8 | AA36: Fournir les éléments nécessaires à la facturation
A37: =IF($AV$7="","",IF($AV$7="A",IF(U32_A!A37="","",U32_A!A37),IF($AV$7="B",IF(U32_B!A37="","",U32_B!A37),IF($AV$7="C",IF(U32_C!A37="","",U32_C!A37),IF($AV$7="D",IF(U32_D!A37="","",U32_D!A37),IF($AV$7="E",IF(U32_E!A37="","",U32_E!A37),IF($AV$7="F",IF(U32_F!A37="","",U32_F!A37),IF($AV$7="G",IF(U32_G!A37="","",U32_G!A37),IF($AV$7="H",IF(U32_H!A37="","",U32_H!A37),""))))))))) ->  | B37: A2T9 | D37: Apprécier si le dysfonctionnement et/ou son origine ont pu entraîner des conséquences sur d’autres composants ou fonctions | X37: =IF($AV$7="","",IF($AV$7="A",IF(U32_A!X37="","",U32_A!X37),IF($AV$7="B",IF(U32_B!X37="","",U32_B!X37),IF($AV$7="C",IF(U32_C!X37="","",U32_C!X37),IF($AV$7="D",IF(U32_D!X37="","",U32_D!X37),IF($AV$7="E",IF(U32_E!X37="","",U32_E!X37),IF($AV$7="F",IF(U32_F!X37="","",U32_F!X37),IF($AV$7="G",IF(U32_G!X37="","",U32_G!X37),IF($AV$7="H",IF(U32_H!X37="","",U32_H!X37),""))))))))) -> X | Y37: A3T9 | AA37: Maintenir en état (son poste de travail)
A38: Consulter le référentiel des activités professionnelles pour obtenir le détail des tâches.
A39: Ç Repérer les tâches demandées (ce sont celles qui correspondent à l’unité dans le référentiel de certification, à l’exclusion de toute autre)
A40: Appréciation globale et proposition de note :
A42: Noms et signatures des évaluateurs : | AJ42: Note proposée : | AO42: =IF(AI168="","",AI168) ->  | AR42: /20
AJ43: Note affectée de son coefficient : | AO43: =IF(AO42="","",AO42*3) ->  | AR43: /60
A44: Nota important : Les compétences référencées C111, C112, C121, C122, C123, C124, C125, C126, C141, C142, C222, C223, C227, C311, C312, C315, C411, C412, C413., sont aussi mentionnées dans les épreuves E31 et E33. On veillera à ne pas en évaluer certaines dans plusieurs épreuves. Un choix judicieux de la répartition des compétences à évaluer sur l’ensemble des situations d’évaluation est donc à faire globalement pour les trois épreuves.
A48: Baccalauréat professionnel « maintenance des véhicules automobiles » – Unité U 32 | AI48: Validé | AM48: - Synthèse +
A50: C 2.1 - Organiser son poste de travail | AE50: Evalué | AI50: =IF(AE50="Non Evalué","NE",IF(AE50="Evalué","E","")) -> E | AJ50: =COUNTIF(AI52:AK67,"Validé") -> 7 | AK50: =COUNTIF(AI52:AK67,"Non Validé") -> 1 | AL50: =COUNTIF(AI52:AK67,"Non Evalué") -> 0 | AV50: =IF(AE50="","Souhaitez-vous évaluer la C2.1 ?",IF(AND(AE50="Non Evalué",OR(AI52="Validé",AI54="Validé",AI56="Validé",AI58="Validé",AI60="Validé",AI62="Validé",AI64="Validé",AI66="Validé",AI52="Non Validé",AI54="Non Validé",AI56="Non Validé",AI58="Non Validé",AI60="Non Validé",AI62="Non Validé",AI64="Non Validé",AI66="Non Validé")),"Vous avez choisi de ne pas évaluer la C2.1. Ne rien indiquez dans la colonne Validé.",IF(AND(AE50="Evalué",OR(AI52="",AI54="",AI56="",AI58="",AI60="",AI62="",AI64="",AI66="")),"Vous avez choisi d'évaluer la C2.1. Indiquez pour chaques actions : Validé, Non Validé ou Non Evalué.",IF(OR(AE50="Non Evalué",(AJ50+AK50)=0),"",CONCATENATE(ROUND((AL51),0)," % d'actions validées. ",AJ50," validée(s) sur ",AJ50+AK50," . Conseil: Grisez ",ROUND((AL51)*8/100,0)," colonnes"))))) -> 65 % d'actions validées. 7 validée(s) sur 8 . Conseil: Grisez 5 colonnes
AJ51: =SUMPRODUCT((AI52:AL67="Validé")*(Bareme!AE108:AE123)) -> 90 | AK51: =SUMPRODUCT((AI52:AK67="Non Validé")*(Bareme!AE108:AE123)) -> 10 | AL51: =100*SUM(AY52:BA67)/SUMPRODUCT((AL52:AL67<>"x")*(Bareme!AE108:AE123)) -> 65
A52: C 211 | D52: Choisir une aire de travail et ses équipements (adaptés au diagnostic ou à l’intervention) | N52: Le poste choisi correspond à la réparation à effectuer | AI52: =IF(AL52="","",IF(AL52="x","Non Evalué",(IF(AL52=0,"Non Validé","Validé")))) -> Non Validé | AL52: 0 | AM52: Commentaires: | AV52: 5 | AY52: =IF(AL52="","",IF(AL52="x","",IF(AL52=0,0,Bareme!AE108*AL52/3))) -> 0
N54: L’hygiène, la sécurité et l’ergonomie sont pris en compte. | AI54: =IF(AL54="","",IF(AL54="x","Non Evalué",(IF(AL54=0,"Non Validé","Validé")))) -> Validé | AL54: 1 | AY54: =IF(AL54="","",IF(AL54="x","",IF(AL54=0,0,Bareme!AE110*AL54/3))) -> 1.666666667
A56: C 212 | D56: Positionner et conditionner le véhicule. | N56: Le positionnement n’appelle aucune remarque sur le plan de la sécurité et de l’ergonomie. | AI56: =IF(AL56="","",IF(AL56="x","Non Evalué",(IF(AL56=0,"Non Validé","Validé")))) -> Validé | AL56: 2 | AV56: Nota : les compétences en couleur rouge sont spécifiques au CAP MVA. * correspondance des critères de performances du BAC et CAP MVA | AY56: =IF(AL56="","",IF(AL56="x","",IF(AL56=0,0,Bareme!AE112*AL56/3))) -> 13.33333333
N58: La protection du véhicule est assurée. | AI58: =IF(AL58="","",IF(AL58="x","Non Evalué",(IF(AL58=0,"Non Validé","Validé")))) -> Validé | AL58: 2 | AY58: =IF(AL58="","",IF(AL58="x","",IF(AL58=0,0,Bareme!AE114*AL58/3))) -> 13.33333333
N60: L’intégrité du véhicule est respectée. | AI60: =IF(AL60="","",IF(AL60="x","Non Evalué",(IF(AL60=0,"Non Validé","Validé")))) -> Validé | AL60: 3 | AY60: =IF(AL60="","",IF(AL60="x","",IF(AL60=0,0,Bareme!AE116*AL60/3))) -> 20
A62: C 213 | D62: Maintenir en état son poste de travail | N62: Le poste de travail et les équipements utilisés sont nettoyés, rangés et remis en état. | AI62: =IF(AL62="","",IF(AL62="x","Non Evalué",(IF(AL62=0,"Non Validé","Validé")))) -> Validé | AL62: 2 | AY62: =IF(AL62="","",IF(AL62="x","",IF(AL62=0,0,Bareme!AE118*AL62/3))) -> 6.666666667
N64: Les déchets sont classés et évacués dans le respect des normes ou des prescriptions de l’entreprise. | AI64: =IF(AL64="","",IF(AL64="x","Non Evalué",(IF(AL64=0,"Non Validé","Validé")))) -> Validé | AL64: 2 | AY64: =IF(AL64="","",IF(AL64="x","",IF(AL64=0,0,Bareme!AE120*AL64/3))) -> 6.666666667
N66: L’hygiène, la sécurité et l’ergonomie sont pris en compte. | AI66: =IF(AL66="","",IF(AL66="x","Non Evalué",(IF(AL66=0,"Non Validé","Validé")))) -> Validé | AL66: 2 | AY66: =IF(AL66="","",IF(AL66="x","",IF(AL66=0,0,Bareme!AE122*AL66/3))) -> 3.333333333
A68: C 2.2 - Diagnostiquer | AE68: Evalué | AI68: =IF(AE68="Non Evalué","NE",IF(AE68="Evalué","E","")) -> E | AJ68: =COUNTIF(AI70:AK93,"Validé") -> 0 | AK68: =COUNTIF(AI70:AK93,"Non Validé") -> 0 | AL68: =COUNTIF(AI70:AK93,"Non Evalué") -> 0 | AV68: =IF(AE68="","Souhaitez-vous évaluer la C2.2 ?",IF(AND(AE68="Non Evalué",OR(AI70="Validé",AI72="Validé",AI74="Validé",AI76="Validé",AI78="Validé",AI80="Validé",AI82="Validé",AI84="Validé",AI86="Validé",AI88="Validé",AI90="Validé",AI92="Validé",AI70="Non Validé",AI72="Non Validé",AI74="Non Validé",AI76="Non Validé",AI78="Non Validé",AI80="Non Validé",AI82="Non Validé",AI84="Non Validé",AI86="Non Validé",AI88="Non Validé",AI90="Non Validé",AI92="Non Validé")),"Vous avez choisi de ne pas évaluer la C2.2. Ne rien indiquez dans la colonne Validé.",IF(AND(AE68="Evalué",OR(AI70="",AI72="",AI74="",AI76="",AI78="",AI80="",AI82="",AI84="",AI86="",AI88="",AI90="",AI92="")),"Vous avez choisi d'évaluer la C2.2 Indiquez pour chaques actions : Validé, Non Validé ou Non Evalué.",IF(OR(AE68="Non Evalué",(AJ68+AK68)=0),"",CONCATENATE(ROUND((AL69),0)," % d'actions validées. ",AJ68," validée(s) sur ",AJ68+AK68," . Conseil: Grisez ",ROUND((AL69)*8/100,0)," colonnes"))))) -> Vous avez choisi d'évaluer la C2.2 Indiquez pour chaques actions : Validé, Non Validé ou Non Evalué.
AJ69: =SUMPRODUCT((AI70:AK93="Validé")*(Bareme!AE126:AE149)) -> 0 | AK69: =SUMPRODUCT((AI70:AK93="Non Validé")*(Bareme!AE126:AE149)) -> 0 | AL69: =100*SUM(AY70:BA93)/SUMPRODUCT((AL70:AL93<>"x")*(Bareme!AE126:AE149)) -> 0
A70: C 222 | D70: Choisir et définir les essais, les mesures, les contrôles à réaliser, adapter le processus de contrôle si besoin. | N70: Le choix et la définition des essais sont conformes. | AI70: =IF(AL70="","",IF(AL70="x","Non Evalué",(IF(AL70=0,"Non Validé","Validé")))) ->  | AV70: 0 | AY70: =IF(AL70="","",IF(AL70="x","",IF(AL70=0,0,Bareme!AE126*AL70/3))) -> 
N72: Le choix des mesures et contrôles assure l’efficacité et la rapidité du diagnostic. | AI72: =IF(AL72="","",IF(AL72="x","Non Evalué",(IF(AL72=0,"Non Validé","Validé")))) ->  | AY72: =IF(AL72="","",IF(AL72="x","",IF(AL72=0,0,Bareme!AE128*AL72/3))) -> 
N74: L’hygiène, la sécurité et l’ergonomie sont pris en compte. | AI74: =IF(AL74="","",IF(AL74="x","Non Evalué",(IF(AL74=0,"Non Validé","Validé")))) ->  | AY74: =IF(AL74="","",IF(AL74="x","",IF(AL74=0,0,Bareme!AE130*AL74/3))) -> 
AM75: Commentaires: | AV75: Nota : les compétences en couleur rouge sont spécifiques au CAP MVA. * correspondance des critères de performances du BAC et CAP MVA
A76: C 223 C 341 C 343 | D76: Mettre en œuvre les essais et mesures prévus, analyser la démarche utilisée. | N76: Les essais et mesures sont réalisés selon les procédures et garantissent l’intégrité des personnes et des biens. * | AI76: =IF(AL76="","",IF(AL76="x","Non Evalué",(IF(AL76=0,"Non Validé","Validé")))) ->  | AY76: =IF(AL76="","",IF(AL76="x","",IF(AL76=0,0,Bareme!AE132*AL76/3))) -> 
N78: Les résultats relevés sont exprimés dans l’unité et l’ordre de grandeur de la valeur attendue. * | AI78: =IF(AL78="","",IF(AL78="x","Non Evalué",(IF(AL78=0,"Non Validé","Validé")))) ->  | AY78: =IF(AL78="","",IF(AL78="x","",IF(AL78=0,0,Bareme!AE134*AL78/3))) -> 
N80: L'analyse de la démarche utilisée est cohérente. | AI80: =IF(AL80="","",IF(AL80="x","Non Evalué",(IF(AL80=0,"Non Validé","Validé")))) ->  | AY80: =IF(AL80="","",IF(AL80="x","",IF(AL80=0,0,Bareme!AE136*AL80/3))) -> 
A82: C 224 C 343 | D82: Interpréter les relevés et identi-fier le ou les élément(s) défectueux. | N82: Seuls les éléments défectueux sont signalés. * | AI82: =IF(AL82="","",IF(AL82="x","Non Evalué",(IF(AL82=0,"Non Validé","Validé")))) ->  | AY82: =IF(AL82="","",IF(AL82="x","",IF(AL82=0,0,Bareme!AE138*AL82/3))) -> 
N84: Les résultats des mesures sont correctement interprétés.* | AI84: =IF(AL84="","",IF(AL84="x","Non Evalué",(IF(AL84=0,"Non Validé","Validé")))) ->  | AY84: =IF(AL84="","",IF(AL84="x","",IF(AL84=0,0,Bareme!AE140*AL84/3))) -> 
A86: C 225 | D86: Identifier la ou les cause(s) du dysfonctionnement et mettre en œuvre une autre procédure pour confirmer le diagnostic initial. | N86: La (ou les) cause(s) du dysfonctionnement est (sont) identi-fiée(s) sans ambiguïté. | AI86: =IF(AL86="","",IF(AL86="x","Non Evalué",(IF(AL86=0,"Non Validé","Validé")))) ->  | AY86: =IF(AL86="","",IF(AL86="x","",IF(AL86=0,0,Bareme!AE142*AL86/3))) -> 
N88: Le contrôle complémentaire confirme le diagnostic. | AI88: =IF(AL88="","",IF(AL88="x","Non Evalué",(IF(AL88=0,"Non Validé","Validé")))) ->  | AY88: =IF(AL88="","",IF(AL88="x","",IF(AL88=0,0,Bareme!AE144*AL88/3))) -> 
A90: C 226 C 344 | D90: Recenser les conséquences sur un autre système ou composant. | N90: Les incidences possibles sur un ou plusieurs autres systèmes sont recensées. | AI90: =IF(AL90="","",IF(AL90="x","Non Evalué",(IF(AL90=0,"Non Validé","Validé")))) ->  | AY90: =IF(AL90="","",IF(AL90="x","",IF(AL90=0,0,Bareme!AE146*AL90/3))) -> 
N92: Le choix des contrôles à mettre en œuvre est pertinent.* | AI92: =IF(AL92="","",IF(AL92="x","Non Evalué",(IF(AL92=0,"Non Validé","Validé")))) ->  | AY92: =IF(AL92="","",IF(AL92="x","",IF(AL92=0,0,Bareme!AE148*AL92/3))) -> 
A94: C 3.1 : Réaliser une intervention sur systèmes complexes. | AE94: Evalué | AI94: =IF(AE94="Non Evalué","NE",IF(AE94="Evalué","E","")) -> E | AJ94: =COUNTIF(AI96:AK119,"Validé") -> 0 | AK94: =COUNTIF(AI96:AK119,"Non Validé") -> 0 | AL94: =COUNTIF(AI96:AK119,"Non Evalué") -> 0 | AV94: =IF(AE94="","Souhaitez-vous évaluer la C3.1 ?",IF(AND(AE94="Non Evalué",OR(AI96="Validé",AI98="Validé",AI100="Validé",AI102="Validé",AI104="Validé",AI106="Validé",AI108="Validé",AI110="Validé",AI112="Validé",AI114="Validé",AI116="Validé",AI118="Validé",AI96="Non Validé",AI98="Non Validé",AI100="Non Validé",AI102="Non Validé",AI104="Non Validé",AI106="Non Validé",AI108="Non Validé",AI110="Non Validé",AI112="Non Validé",AI114="Non Validé",AI116="Non Validé",AI118="Non Validé")),"Vous avez choisi de ne pas évaluer la C3.1. Ne rien indiquez dans la colonne Validé.",IF(AND(AE94="Evalué",OR(AI96="",AI98="",AI100="",AI102="",AI104="",AI106="",AI108="N",AI110="",AI112="",AI114="",AI116="",AI118="")),"Vous avez choisi d'évaluer la C3.1 Indiquez pour chaques actions : Validé, Non Validé ou Non Evalué.",IF(OR(AE94="Non Evalué",(AJ94+AK94)=0),"",CONCATENATE(ROUND((AL95),0)," % d'actions validées. ",AJ94," validée(s) sur ",AJ94+AK94," . Conseil: Grisez ",ROUND((AL95)*8/100,0)," colonnes"))))) -> Vous avez choisi d'évaluer la C3.1 Indiquez pour chaques actions : Validé, Non Validé ou Non Evalué.
AJ95: =SUMPRODUCT((AI96:AK119="Validé")*(Bareme!AE152:AE175)) -> 0 | AK95: =SUMPRODUCT((AI96:AK119="Non Validé")*(Bareme!AE152:AE175)) -> 0 | AL95: =100*SUM(AY96:BA119)/SUMPRODUCT((AL96:AL119<>"x")*(Bareme!AE152:AE175)) -> 0
A96: C311 C 332 | D96: Déposer, reposer, poser un élément ou un sous-ensemble. | N96: Le temps d’intervention est économiquement acceptable | AI96: =IF(AL96="","",IF(AL96="x","Non Evalué",(IF(AL96=0,"Non Validé","Validé")))) ->  | AV96: 0 | AY96: =IF(AL96="","",IF(AL96="x","",IF(AL96=0,0,Bareme!AE152*AL96/3))) -> 
N98: Le véhicule, le bateau ou le système est remis en conformité.* | AI98: =IF(AL98="","",IF(AL98="x","Non Evalué",(IF(AL98=0,"Non Validé","Validé")))) ->  | AY98: =IF(AL98="","",IF(AL98="x","",IF(AL98=0,0,Bareme!AE154*AL98/3))) -> 
N100: L’action n’appelle aucune remarque sur le plan de la sécurité. Elle est conforme au cahier des charges constructeur. * | AI100: =IF(AL100="","",IF(AL100="x","Non Evalué",(IF(AL100=0,"Non Validé","Validé")))) ->  | AV100: Nota : les compétences en couleur rouge sont spécifiques au CAP MVA. * correspondance des critères de performances du BAC et CAP MVA | AY100: =IF(AL100="","",IF(AL100="x","",IF(AL100=0,0,Bareme!AE156*AL100/3))) -> 
A102: C 312 C 333 C 352 | D102: Démonter, remettre en conformité, remonter les éléments et les organes. | N102: Le temps d’intervention est économiquement acceptable. | AI102: =IF(AL102="","",IF(AL102="x","Non Evalué",(IF(AL102=0,"Non Validé","Validé")))) ->  | AY102: =IF(AL102="","",IF(AL102="x","",IF(AL102=0,0,Bareme!AE158*AL102/3))) -> 
N104: L’élément est remis en conformité * | AI104: =IF(AL104="","",IF(AL104="x","Non Evalué",(IF(AL104=0,"Non Validé","Validé")))) ->  | AY104: =IF(AL104="","",IF(AL104="x","",IF(AL104=0,0,Bareme!AE160*AL104/3))) -> 
AM105: Commentaires:
N106: L’action garantit l’intégrité des personnes et des biens, elle est conforme au cahier des charges constructeur * | AI106: =IF(AL106="","",IF(AL106="x","Non Evalué",(IF(AL106=0,"Non Validé","Validé")))) ->  | AY106: =IF(AL106="","",IF(AL106="x","",IF(AL106=0,0,Bareme!AE162*AL106/3))) -> 
A108: C 313 C 351 C 352 | D108: Réaliser la mise au point du véhicule et s'assurer de la fiabilité des réglages. | N108: Les performances ou caractéristiques sont vérifiées et con-formes aux prescriptions du constructeur. * | AI108: =IF(AL108="","",IF(AL108="x","Non Evalué",(IF(AL108=0,"Non Validé","Validé")))) ->  | AY108: =IF(AL108="","",IF(AL108="x","",IF(AL108=0,0,Bareme!AE164*AL108/3))) -> 
N110: L'intervention est conforme à l'ordre de réparation. | AI110: =IF(AL110="","",IF(AL110="x","Non Evalué",(IF(AL110=0,"Non Validé","Validé")))) ->  | AY110: =IF(AL110="","",IF(AL110="x","",IF(AL110=0,0,Bareme!AE166*AL110/3))) -> 
A112: C 314 | D112: Contrôler les performances et les caractéristiques du véhicule. | N112: Les performances ou caractéristiques sont vérifiées et con-formes aux prescriptions du constructeur. | AI112: =IF(AL112="","",IF(AL112="x","Non Evalué",(IF(AL112=0,"Non Validé","Validé")))) ->  | AY112: =IF(AL112="","",IF(AL112="x","",IF(AL112=0,0,Bareme!AE168*AL112/3))) -> 
N114: L'intervention est conforme à l'OR. | AI114: =IF(AL114="","",IF(AL114="x","Non Evalué",(IF(AL114=0,"Non Validé","Validé")))) ->  | AY114: =IF(AL114="","",IF(AL114="x","",IF(AL114=0,0,Bareme!AE170*AL114/3))) -> 
A116: C 315 | D116: Identifier et signaler les manquements aux prescriptions réglementaires sur la sécurité des véhicules ou des bateaux de plaisance. | N116: La réglementation en vigueur du point de vue sécurité est respectée. | AI116: =IF(AL116="","",IF(AL116="x","Non Evalué",(IF(AL116=0,"Non Validé","Validé")))) ->  | AY116: =IF(AL116="","",IF(AL116="x","",IF(AL116=0,0,Bareme!AE172*AL116/3))) -> 
N118: Les anomalies sont identifiées et signalées. | AI118: =IF(AL118="","",IF(AL118="x","Non Evalué",(IF(AL118=0,"Non Validé","Validé")))) ->  | AY118: =IF(AL118="","",IF(AL118="x","",IF(AL118=0,0,Bareme!AE174*AL118/3))) -> 
A120: Baccalauréat professionnel « maintenance des véhicules automobiles » – Unité U 32 | AI120: Validé | AM120: - Synthèse +
A122: C41 - Évaluer la qualité de son intervention | AE122: Evalué | AI122: =IF(AE122="Non Evalué","NE",IF(AE122="Evalué","E","")) -> E | AJ122: =COUNTIF(AI124:AK133,"Validé") -> 0 | AK122: =COUNTIF(AI124:AK133,"Non Validé") -> 0 | AL122: =COUNTIF(AI124:AK133,"Non Evalué") -> 0 | AV122: =IF(AE122="","Souhaitez-vous évaluer la C4.1 ?",IF(AND(AE122="Non Evalué",OR(AI124="Validé",AI126="Validé",AI128="Validé",AI130="Validé",AI132="Validé",AI124="Non Validé",AI126="Non Validé",AI128="Non Validé",AI130="Non Validé",AI132="Non Validé")),"Vous avez choisi de ne pas évaluer la C4.1. Ne rien indiquez dans la colonne Validé.",IF(AND(AE122="Evalué",OR(AI124="",AI126="",AI128="",AI130="",AI132="")),"Vous avez choisi d'évaluer la C4.1. Indiquez pour chaques actions : Validé, Non Validé ou Non Evalué.",IF(OR(AE122="Non Evalué",(AJ122+AK122)=0),"",CONCATENATE(ROUND((AL123),0)," % d'actions validées. ",AJ122," validée(s) sur ",AJ122+AK122," . Conseil: Grisez ",ROUND((AL123)*8/100,0)," colonnes"))))) -> Vous avez choisi d'évaluer la C4.1. Indiquez pour chaques actions : Validé, Non Validé ou Non Evalué.
AJ123: =SUMPRODUCT((AI124:AK133="Validé")*(Bareme!AE178:AE187)) -> 0 | AK123: =SUMPRODUCT((AI124:AK133="Non Validé")*(Bareme!AE178:AE187)) -> 0 | AL123: =100*SUM(AY124:BA133)/SUMPRODUCT((AL124:AL133<>"x")*(Bareme!AE178:AE187)) -> 0
A124: C 411 C332 333 C351 352 C113 | D124: Effectuer le contrôle qualité de son intervention (auto contrôle) et rédiger un compte rendu d'essai. | N124: La qualité de l’intervention est validée. * | AI124: =IF(AL124="","",IF(AL124="x","Non Evalué",(IF(AL124=0,"Non Validé","Validé")))) ->  | AM124: Commentaires: | AV124: 0 | AY124: =IF(AL124="","",IF(AL124="x","",IF(AL124=0,0,Bareme!AE178*AL124/3))) -> 
N126: La procédure qualité de l’entreprise est respectée. | AI126: =IF(AL126="","",IF(AL126="x","Non Evalué",(IF(AL126=0,"Non Validé","Validé")))) ->  | AV126: Nota : les compétences en couleur rouge sont spécifiques au CAP MVA. * correspondance des critères de performances du BAC et CAP MVA | AY126: =IF(AL126="","",IF(AL126="x","",IF(AL126=0,0,Bareme!AE180*AL126/3))) -> 
N128: Le compte rendu est cohérent. * | AI128: =IF(AL128="","",IF(AL128="x","Non Evalué",(IF(AL128=0,"Non Validé","Validé")))) ->  | AY128: =IF(AL128="","",IF(AL128="x","",IF(AL128=0,0,Bareme!AE182*AL128/3))) -> 
A130: C 412 C332 333 C351 352 | D130: Apprécier les risques profes-sionnels liés à l’intervention. | N130: L’intervention ne présente pas de risques d’accidents ou d’atteinte à la santé. * | AI130: =IF(AL130="","",IF(AL130="x","Non Evalué",(IF(AL130=0,"Non Validé","Validé")))) ->  | AY130: =IF(AL130="","",IF(AL130="x","",IF(AL130=0,0,Bareme!AE184*AL130/3))) -> 
N132: Les situations dangereuses sont signalées. | AI132: =IF(AL132="","",IF(AL132="x","Non Evalué",(IF(AL132=0,"Non Validé","Validé")))) ->  | AY132: =IF(AL132="","",IF(AL132="x","",IF(AL132=0,0,Bareme!AE186*AL132/3))) -> 
A134: C 1 2 - Informer le client et l'entreprise sur la nature de l'intervention | AE134: Evalué | AI134: =IF(AE134="Non Evalué","NE",IF(AE134="Evalué","E","")) -> E | AJ134: =COUNTIF(AI136:AK139,"Validé") -> 0 | AK134: =COUNTIF(AI136:AK139,"Non Validé") -> 0 | AL134: =COUNTIF(AI136:AK139,"Non Evalué") -> 0 | AV134: =IF(AE134="","Souhaitez-vous évaluer la C1.2 ?",IF(AND(AE134="Non Evalué",OR(AI136="Validé",AI138="Validé",AI136="Non Validé",AI138="Non Validé",)),"Vous avez choisi de ne pas évaluer la C1.2. Ne rien indiquez dans la colonne Validé.",IF(AND(AE134="Evalué",OR(AI136="",AI138="")),"Vous avez choisi d'évaluer la C1.2. Indiquez pour chaques actions : Validé, Non Validé ou Non Evalué.",IF(OR(AE134="Non Evalué",(AJ134+AK134)=0),"",CONCATENATE(ROUND((AL135),0)," % d'actions validées. ",AJ134," validée(s) sur ",AJ134+AK134," . Conseil: Grisez ",ROUND((AL135)*8/100,0)," colonnes"))))) -> Vous avez choisi d'évaluer la C1.2. Indiquez pour chaques actions : Validé, Non Validé ou Non Evalué.
AJ135: =SUMPRODUCT((AI136:AK139="Validé")*(Bareme!AE190:AE193)) -> 0 | AK135: =SUMPRODUCT((AI136:AK139="Non Validé")*(Bareme!AE190:AE193)) -> 0 | AL135: =100*SUM(AY136:BA139)/SUMPRODUCT((AL136:AL139<>"x")*(Bareme!AE190:AE193)) -> 0
A136: C 124 C 113 C 114 | D136: Compléter les documents de suivi et fournir les éléments né-cessaires à la facturation. | N136: Les documents sont correctement renseignés. * | AI136: =IF(AL136="","",IF(AL136="x","Non Evalué",(IF(AL136=0,"Non Validé","Validé")))) ->  | AM136: Commentaires: | AV136: 0 | AY136: =IF(AL136="","",IF(AL136="x","",IF(AL136=0,0,Bareme!AE190*AL136/3))) -> 
N138: La liste des éléments nécessaires à la facturation est fournie sans omission. | AI138: =IF(AL138="","",IF(AL138="x","Non Evalué",(IF(AL138=0,"Non Validé","Validé")))) ->  | AY138: =IF(AL138="","",IF(AL138="x","",IF(AL138=0,0,Bareme!AE192*AL138/3))) -> 
A140: C 1.3 - Collecter les données techniques | AE140: Evalué | AI140: =IF(AE140="Non Evalué","NE",IF(AE140="Evalué","E","")) -> E | AJ140: =COUNTIF(AI142,"Validé") -> 0 | AK140: =COUNTIF(AI142,"Non Validé") -> 0 | AL140: =COUNTIF(AI142,"Non Evalué") -> 0 | AV140: =IF(AE140="","Souhaitez-vous évaluer la C1.3?",IF(AND(AE140="Non Evalué",OR(AI142="Validé",AI142="Non Validé")),"Vous avez choisi de ne pas évaluer la C1.3. Ne rien indiquez dans la colonne Validé.",IF(AND(AE140="Evalué",OR(AI142="")),"Vous avez choisi d'évaluer la C1.3. Indiquez pour chaques actions : Validé, Non Validé ou Non Evalué.",IF(OR(AE140="Non Evalué",(AJ140+AK140)=0),"",CONCATENATE(ROUND((AL141),0)," % d'actions validées. ",AJ140," validée(s) sur ",AJ140+AK140," . Conseil: Grisez ",ROUND((AL141)*8/100,0)," colonnes"))))) -> Vous avez choisi d'évaluer la C1.3. Indiquez pour chaques actions : Validé, Non Validé ou Non Evalué.
AJ141: =SUMPRODUCT((AI142="Validé")*(Bareme!AE196)) -> 0 | AK141: =SUMPRODUCT((AI142="Non Validé")*(Bareme!AE196)) -> 0 | AL141: =100*SUM(AY142:AY144)/SUMPRODUCT((AL142:AL144<>"x")*(Bareme!AE196:AE198)) -> 0
A142: C 131 | D142: Collecter toutes les données nécessaires à une intervention | N142: Toutes les données, techniques et réglementaires, sont correctement recensées et collectées | AI142: =IF(AL142="","",IF(AL142="x","Non Evalué",(IF(AL142=0,"Non Validé","Validé")))) ->  | AM142: Commentaires: | AV142: 0 | AY142: =IF(AL142="","",IF(AL142="x","",IF(AL142=0,0,Bareme!AE196*AL142/3))) -> 
E165: =IF(OR(I178="",(AND(AE50="",AE68="",AE94="",AE122="",AE134="",AE140=""))=0),"",CONCATENATE("PROPOSITION: ",CEILING(I178,0.5),"/20 (",ROUND(100*COUNTIF(U176:U181,"E")/(COUNTIF(U176:U181,"E")+COUNTIF(U176:U181,"NE")),0),"% des compétences évaluées).")) -> PROPOSITION: 1,5/20 (100% des compétences évaluées).
E168: Proposition des évaluateurs:
C173: Ne pas effacer
O174: =CONCATENATE("Statistique U32 de ",$AE$4) -> Statistique U32 de Jean Dupond
O175: Compétences | P175: =IF(AE4="","",AE4) -> Jean Dupond | Q175: Satisfaction maximale | R175: Satisfaction moyenne | S175: =CONCATENATE("Statistique U31 de ",$AE$4) -> Statistique U31 de Jean Dupond | T175: Coefficients | U175: Validée ou Non Validée
C176: Somme | I176: =SUMPRODUCT((P176:P181)) -> 50 | K176: =SUM(Q176:Q181) -> 800 | O176: =A140 -> C 1.3 - Collecter les données techniques | P176: =IF(OR(U176="NE",U176=""),"",S176*T176) -> 0 | Q176: =IF(OR(U176="NE",U176=""),"",T176*8) -> 80 | R176: =IF(OR(U176="NE",U176=""),"",Q176/2) -> 40 | S176: =IF($AV$142="","",$AV$142) -> 0 | T176: =Bareme!AE194 -> 10 | U176: =IF(AI140="","",AI140) -> E
O177: =A50 -> C 2.1 - Organiser son poste de travail | P177: 50 | Q177: 80 | R177: 40 | S177: =IF($AV$52="","",$AV$52) -> 5 | T177: =Bareme!AE106 -> 10 | U177: =IF(AI50="","",AI50) -> E
C178: Moyenne /20 | I178: =IF($K$176=0,"",K178*$I$176/$K$176) -> 1.25 | K178: 20 | O178: =A68 -> C 2.2 - Diagnostiquer | P178: 0 | Q178: 200 | R178: 100 | S178: =IF($AV$70="","",$AV$70) -> 0 | T178: =Bareme!AE124 -> 25 | U178: =IF(AI68="","",AI68) -> E
O179: =A94 -> C 3.1 : Réaliser une intervention sur systèmes complexes. | P179: 0 | Q179: 280 | R179: 140 | S179: =IF($AV$96="","",$AV$96) -> 0 | T179: =Bareme!AE150 -> 35 | U179: =IF(AI94="","",AI94) -> E
C180: Moyenne /40 | I180: =IF($K$176=0,"",K180*$I$176/$K$176) -> 2.5 | K180: 40 | O180: =A122 -> C41 - Évaluer la qualité de son intervention | P180: 0 | Q180: 80 | R180: 40 | S180: =IF($AV$124="","",$AV$124) -> 0 | T180: =Bareme!AE176 -> 10 | U180: =IF(AI122="","",AI122) -> E
O181: =A134 -> C 1 2 - Informer le client et l'entreprise sur la nature de l'intervention | P181: 0 | Q181: 80 | R181: 40 | S181: =IF($AV$136="","",$AV$136) -> 0 | T181: =Bareme!AE194 -> 10 | U181: =IF(AI134="","",AI134) -> E
C182: Ne pas effacer

Sheet U32 (hidden)
A1: Baccalauréat professionnel « maintenance des véhicules automobiles »
A2: Épreuve E3.2 (Unité U3.2) : Intervention sur véhicules
A3: Établissement : (tampon) | X3: Session : | AE3: =IF(Bilan!B2="","",Bilan!B2) -> 2012
A4: =IF(Bilan!B3="","",Bilan!B3) -> LP de l'académie de grenoble | X4: Nom du candidat: | AE4: =IF(INDEX((Bilan!B5:B34),(MATCH(RIGHT(CELL("nomfichier",A1),LEN(CELL("nomfichier",A1))-FIND("]",CELL("nomfichier",A1))),Bilan!F5:F34,0)))="","",INDEX((Bilan!B5:B34),(MATCH(RIGHT(CELL("nomfichier",A1),LEN(CELL("nomfichier",A1))-FIND("]",CELL("nomfichier",A1))),Bilan!F5:F34,0)))) -> 
X5: Prénom :
X6: Date de l'évaluation: | AV6: Choisisser votre situation
A7: Lieu d’évaluation :
A8: Etablissement
A9: Entreprise :
A10: Description sommaire du travail demandé :
A11: =IF($AV$7="","",IF($AV$7="A",IF(U32_A!A11="","",U32_A!A11),IF($AV$7="B",IF(U32_B!A11="","",U32_B!A11),IF($AV$7="C",IF(U32_C!A11="","",U32_C!A11),IF($AV$7="D",IF(U32_D!A11="","",U32_D!A11),IF($AV$7="E",IF(U32_E!A11="","",U32_E!A11),IF($AV$7="F",IF(U32_F!A11="","",U32_F!A11),IF($AV$7="G",IF(U32_G!A11="","",U32_G!A11),IF($AV$7="H",IF(U32_H!A11="","",U32_H!A11),""))))))))) ->  | B11: =IF($AV$7="","",IF($AV$7="A",IF(U32_A!B11="","",U32_A!B11),IF($AV$7="B",IF(U32_B!B11="","",U32_B!B11),IF($AV$7="C",IF(U32_C!B11="","",U32_C!B11),IF($AV$7="D",IF(U32_D!B11="","",U32_D!B11),IF($AV$7="E",IF(U32_E!B11="","",U32_E!B11),IF($AV$7="F",IF(U32_F!B11="","",U32_F!B11),IF($AV$7="G",IF(U32_G!B11="","",U32_G!B11),IF($AV$7="H",IF(U32_H!B11="","",U32_H!B11),""))))))))) ->  | C11: =IF($AV$7="","",IF($AV$7="A",IF(U32_A!C11="","",U32_A!C11),IF($AV$7="B",IF(U32_B!C11="","",U32_B!C11),IF($AV$7="C",IF(U32_C!C11="","",U32_C!C11),IF($AV$7="D",IF(U32_D!C11="","",U32_D!C11),IF($AV$7="E",IF(U32_E!C11="","",U32_E!C11),IF($AV$7="F",IF(U32_F!C11="","",U32_F!C11),IF($AV$7="G",IF(U32_G!C11="","",U32_G!C11),IF($AV$7="H",IF(U32_H!C11="","",U32_H!C11),""))))))))) ->  | D11: =IF($AV$7="","",IF($AV$7="A",IF(U32_A!D11="","",U32_A!D11),IF($AV$7="B",IF(U32_B!D11="","",U32_B!D11),IF($AV$7="C",IF(U32_C!D11="","",U32_C!D11),IF($AV$7="D",IF(U32_D!D11="","",U32_D!D11),IF($AV$7="E",IF(U32_E!D11="","",U32_E!D11),IF($AV$7="F",IF(U32_F!D11="","",U32_F!D11),IF($AV$7="G",IF(U32_G!D11="","",U32_G!D11),IF($AV$7="H",IF(U32_H!D11="","",U32_H!D11),""))))))))) ->  | E11: =IF($AV$7="","",IF($AV$7="A",IF(U32_A!E11="","",U32_A!E11),IF($AV$7="B",IF(U32_B!E11="","",U32_B!E11),IF($AV$7="C",IF(U32_C!E11="","",U32_C!E11),IF($AV$7="D",IF(U32_D!E11="","",U32_D!E11),IF($AV$7="E",IF(U32_E!E11="","",U32_E!E11),IF($AV$7="F",IF(U32_F!E11="","",U32_F!E11),IF($AV$7="G",IF(U32_G!E11="","",U32_G!E11),IF($AV$7="H",IF(U32_H!E11="","",U32_H!E11),""))))))))) ->  | F11: =IF($AV$7="","",IF($AV$7="A",IF(U32_A!F11="","",U32_A!F11),IF($AV$7="B",IF(U32_B!F11="","",U32_B!F11),IF($AV$7="C",IF(U32_C!F11="","",U32_C!F11),IF($AV$7="D",IF(U32_D!F11="","",U32_D!F11),IF($AV$7="E",IF(U32_E!F11="","",U32_E!F11),IF($AV$7="F",IF(U32_F!F11="","",U32_F!F11),IF($AV$7="G",IF(U32_G!F11="","",U32_G!F11),IF($AV$7="H",IF(U32_H!F11="","",U32_H!F11),""))))))))) ->  | G11: =IF($AV$7="","",IF($AV$7="A",IF(U32_A!G11="","",U32_A!G11),IF($AV$7="B",IF(U32_B!G11="","",U32_B!G11),IF($AV$7="C",IF(U32_C!G11="","",U32_C!G11),IF($AV$7="D",IF(U32_D!G11="","",U32_D!G11),IF($AV$7="E",IF(U32_E!G11="","",U32_E!G11),IF($AV$7="F",IF(U32_F!G11="","",U32_F!G11),IF($AV$7="G",IF(U32_G!G11="","",U32_G!G11),IF($AV$7="H",IF(U32_H!G11="","",U32_H!G11),""))))))))) ->  | H11: =IF($AV$7="","",IF($AV$7="A",IF(U32_A!H11="","",U32_A!H11),IF($AV$7="B",IF(U32_B!H11="","",U32_B!H11),IF($AV$7="C",IF(U32_C!H11="","",U32_C!H11),IF($AV$7="D",IF(U32_D!H11="","",U32_D!H11),IF($AV$7="E",IF(U32_E!H11="","",U32_E!H11),IF($AV$7="F",IF(U32_F!H11="","",U32_F!H11),IF($AV$7="G",IF(U32_G!H11="","",U32_G!H11),IF($AV$7="H",IF(U32_H!H11="","",U32_H!H11),""))))))))) ->  | I11: =IF($AV$7="","",IF($AV$7="A",IF(U32_A!I11="","",U32_A!I11),IF($AV$7="B",IF(U32_B!I11="","",U32_B!I11),IF($AV$7="C",IF(U32_C!I11="","",U32_C!I11),IF($AV$7="D",IF(U32_D!I11="","",U32_D!I11),IF($AV$7="E",IF(U32_E!I11="","",U32_E!I11),IF($AV$7="F",IF(U32_F!I11="","",U32_F!I11),IF($AV$7="G",IF(U32_G!I11="","",U32_G!I11),IF($AV$7="H",IF(U32_H!I11="","",U32_H!I11),""))))))))) ->  | J11: =IF($AV$7="","",IF($AV$7="A",IF(U32_A!J11="","",U32_A!J11),IF($AV$7="B",IF(U32_B!J11="","",U32_B!J11),IF($AV$7="C",IF(U32_C!J11="","",U32_C!J11),IF($AV$7="D",IF(U32_D!J11="","",U32_D!J11),IF($AV$7="E",IF(U32_E!J11="","",U32_E!J11),IF($AV$7="F",IF(U32_F!J11="","",U32_F!J11),IF($AV$7="G",IF(U32_G!J11="","",U32_G!J11),IF($AV$7="H",IF(U32_H!J11="","",U32_H!J11),""))))))))) ->  | K11: =IF($AV$7="","",IF($AV$7="A",IF(U32_A!K11="","",U32_A!K11),IF($AV$7="B",IF(U32_B!K11="","",U32_B!K11),IF($AV$7="C",IF(U32_C!K11="","",U32_C!K11),IF($AV$7="D",IF(U32_D!K11="","",U32_D!K11),IF($AV$7="E",IF(U32_E!K11="","",U32_E!K11),IF($AV$7="F",IF(U32_F!K11="","",U32_F!K11),IF($AV$7="G",IF(U32_G!K11="","",U32_G!K11),IF($AV$7="H",IF(U32_H!K11="","",U32_H!K11),""))))))))) ->  | L11: =IF($AV$7="","",IF($AV$7="A",IF(U32_A!L11="","",U32_A!L11),IF($AV$7="B",IF(U32_B!L11="","",U32_B!L11),IF($AV$7="C",IF(U32_C!L11="","",U32_C!L11),IF($AV$7="D",IF(U32_D!L11="","",U32_D!L11),IF($AV$7="E",IF(U32_E!L11="","",U32_E!L11),IF($AV$7="F",IF(U32_F!L11="","",U32_F!L11),IF($AV$7="G",IF(U32_G!L11="","",U32_G!L11),IF($AV$7="H",IF(U32_H!L11="","",U32_H!L11),""))))))))) ->  | M11: =IF($AV$7="","",IF($AV$7="A",IF(U32_A!M11="","",U32_A!M11),IF($AV$7="B",IF(U32_B!M11="","",U32_B!M11),IF($AV$7="C",IF(U32_C!M11="","",U32_C!M11),IF($AV$7="D",IF(U32_D!M11="","",U32_D!M11),IF($AV$7="E",IF(U32_E!M11="","",U32_E!M11),IF($AV$7="F",IF(U32_F!M11="","",U32_F!M11),IF($AV$7="G",IF(U32_G!M11="","",U32_G!M11),IF($AV$7="H",IF(U32_H!M11="","",U32_H!M11),""))))))))) ->  | N11: =IF($AV$7="","",IF($AV$7="A",IF(U32_A!N11="","",U32_A!N11),IF($AV$7="B",IF(U32_B!N11="","",U32_B!N11),IF($AV$7="C",IF(U32_C!N11="","",U32_C!N11),IF($AV$7="D",IF(U32_D!N11="","",U32_D!N11),IF($AV$7="E",IF(U32_E!N11="","",U32_E!N11),IF($AV$7="F",IF(U32_F!N11="","",U32_F!N11),IF($AV$7="G",IF(U32_G!N11="","",U32_G!N11),IF($AV$7="H",IF(U32_H!N11="","",U32_H!N11),""))))))))) ->  | O11: =IF($AV$7="","",IF($AV$7="A",IF(U32_A!O11="","",U32_A!O11),IF($AV$7="B",IF(U32_B!O11="","",U32_B!O11),IF($AV$7="C",IF(U32_C!O11="","",U32_C!O11),IF($AV$7="D",IF(U32_D!O11="","",U32_D!O11),IF($AV$7="E",IF(U32_E!O11="","",U32_E!O11),IF($AV$7="F",IF(U32_F!O11="","",U32_F!O11),IF($AV$7="G",IF(U32_G!O11="","",U32_G!O11),IF($AV$7="H",IF(U32_H!O11="","",U32_H!O11),""))))))))) ->  | P11: =IF($AV$7="","",IF($AV$7="A",IF(U32_A!P11="","",U32_A!P11),IF($AV$7="B",IF(U32_B!P11="","",U32_B!P11),IF($AV$7="C",IF(U32_C!P11="","",U32_C!P11),IF($AV$7="D",IF(U32_D!P11="","",U32_D!P11),IF($AV$7="E",IF(U32_E!P11="","",U32_E!P11),IF($AV$7="F",IF(U32_F!P11="","",U32_F!P11),IF($AV$7="G",IF(U32_G!P11="","",U32_G!P11),IF($AV$7="H",IF(U32_H!P11="","",U32_H!P11),""))))))))) ->  | Q11: =IF($AV$7="","",IF($AV$7="A",IF(U32_A!Q11="","",U32_A!Q11),IF($AV$7="B",IF(U32_B!Q11="","",U32_B!Q11),IF($AV$7="C",IF(U32_C!Q11="","",U32_C!Q11),IF($AV$7="D",IF(U32_D!Q11="","",U32_D!Q11),IF($AV$7="E",IF(U32_E!Q11="","",U32_E!Q11),IF($AV$7="F",IF(U32_F!Q11="","",U32_F!Q11),IF($AV$7="G",IF(U32_G!Q11="","",U32_G!Q11),IF($AV$7="H",IF(U32_H!Q11="","",U32_H!Q11),""))))))))) ->  | R11: =IF($AV$7="","",IF($AV$7="A",IF(U32_A!R11="","",U32_A!R11),IF($AV$7="B",IF(U32_B!R11="","",U32_B!R11),IF($AV$7="C",IF(U32_C!R11="","",U32_C!R11),IF($AV$7="D",IF(U32_D!R11="","",U32_D!R11),IF($AV$7="E",IF(U32_E!R11="","",U32_E!R11),IF($AV$7="F",IF(U32_F!R11="","",U32_F!R11),IF($AV$7="G",IF(U32_G!R11="","",U32_G!R11),IF($AV$7="H",IF(U32_H!R11="","",U32_H!R11),""))))))))) ->  | S11: =IF($AV$7="","",IF($AV$7="A",IF(U32_A!S11="","",U32_A!S11),IF($AV$7="B",IF(U32_B!S11="","",U32_B!S11),IF($AV$7="C",IF(U32_C!S11="","",U32_C!S11),IF($AV$7="D",IF(U32_D!S11="","",U32_D!S11),IF($AV$7="E",IF(U32_E!S11="","",U32_E!S11),IF($AV$7="F",IF(U32_F!S11="","",U32_F!S11),IF($AV$7="G",IF(U32_G!S11="","",U32_G!S11),IF($AV$7="H",IF(U32_H!S11="","",U32_H!S11),""))))))))) ->  | T11: =IF($AV$7="","",IF($AV$7="A",IF(U32_A!T11="","",U32_A!T11),IF($AV$7="B",IF(U32_B!T11="","",U32_B!T11),IF($AV$7="C",IF(U32_C!T11="","",U32_C!T11),IF($AV$7="D",IF(U32_D!T11="","",U32_D!T11),IF($AV$7="E",IF(U32_E!T11="","",U32_E!T11),IF($AV$7="F",IF(U32_F!T11="","",U32_F!T11),IF($AV$7="G",IF(U32_G!T11="","",U32_G!T11),IF($AV$7="H",IF(U32_H!T11="","",U32_H!T11),""))))))))) ->  | U11: =IF($AV$7="","",IF($AV$7="A",IF(U32_A!U11="","",U32_A!U11),IF($AV$7="B",IF(U32_B!U11="","",U32_B!U11),IF($AV$7="C",IF(U32_C!U11="","",U32_C!U11),IF($AV$7="D",IF(U32_D!U11="","",U32_D!U11),IF($AV$7="E",IF(U32_E!U11="","",U32_E!U11),IF($AV$7="F",IF(U32_F!U11="","",U32_F!U11),IF($AV$7="G",IF(U32_G!U11="","",U32_G!U11),IF($AV$7="H",IF(U32_H!U11="","",U32_H!U11),""))))))))) ->  | V11: =IF($AV$7="","",IF($AV$7="A",IF(U32_A!V11="","",U32_A!V11),IF($AV$7="B",IF(U32_B!V11="","",U32_B!V11),IF($AV$7="C",IF(U32_C!V11="","",U32_C!V11),IF($AV$7="D",IF(U32_D!V11="","",U32_D!V11),IF($AV$7="E",IF(U32_E!V11="","",U32_E!V11),IF($AV$7="F",IF(U32_F!V11="","",U32_F!V11),IF($AV$7="G",IF(U32_G!V11="","",U32_G!V11),IF($AV$7="H",IF(U32_H!V11="","",U32_H!V11),""))))))))) ->  | W11: =IF($AV$7="","",IF($AV$7="A",IF(U32_A!W11="","",U32_A!W11),IF($AV$7="B",IF(U32_B!W11="","",U32_B!W11),IF($AV$7="C",IF(U32_C!W11="","",U32_C!W11),IF($AV$7="D",IF(U32_D!W11="","",U32_D!W11),IF($AV$7="E",IF(U32_E!W11="","",U32_E!W11),IF($AV$7="F",IF(U32_F!W11="","",U32_F!W11),IF($AV$7="G",IF(U32_G!W11="","",U32_G!W11),IF($AV$7="H",IF(U32_H!W11="","",U32_H!W11),""))))))))) ->  | X11: =IF($AV$7="","",IF($AV$7="A",IF(U32_A!X11="","",U32_A!X11),IF($AV$7="B",IF(U32_B!X11="","",U32_B!X11),IF($AV$7="C",IF(U32_C!X11="","",U32_C!X11),IF($AV$7="D",IF(U32_D!X11="","",U32_D!X11),IF($AV$7="E",IF(U32_E!X11="","",U32_E!X11),IF($AV$7="F",IF(U32_F!X11="","",U32_F!X11),IF($AV$7="G",IF(U32_G!X11="","",U32_G!X11),IF($AV$7="H",IF(U32_H!X11="","",U32_H!X11),""))))))))) ->  | Y11: =IF($AV$7="","",IF($AV$7="A",IF(U32_A!Y11="","",U32_A!Y11),IF($AV$7="B",IF(U32_B!Y11="","",U32_B!Y11),IF($AV$7="C",IF(U32_C!Y11="","",U32_C!Y11),IF($AV$7="D",IF(U32_D!Y11="","",U32_D!Y11),IF($AV$7="E",IF(U32_E!Y11="","",U32_E!Y11),IF($AV$7="F",IF(U32_F!Y11="","",U32_F!Y11),IF($AV$7="G",IF(U32_G!Y11="","",U32_G!Y11),IF($AV$7="H",IF(U32_H!Y11="","",U32_H!Y11),""))))))))) ->  | Z11: =IF($AV$7="","",IF($AV$7="A",IF(U32_A!Z11="","",U32_A!Z11),IF($AV$7="B",IF(U32_B!Z11="","",U32_B!Z11),IF($AV$7="C",IF(U32_C!Z11="","",U32_C!Z11),IF($AV$7="D",IF(U32_D!Z11="","",U32_D!Z11),IF($AV$7="E",IF(U32_E!Z11="","",U32_E!Z11),IF($AV$7="F",IF(U32_F!Z11="","",U32_F!Z11),IF($AV$7="G",IF(U32_G!Z11="","",U32_G!Z11),IF($AV$7="H",IF(U32_H!Z11="","",U32_H!Z11),""))))))))) ->  | AA11: =IF($AV$7="","",IF($AV$7="A",IF(U32_A!AA11="","",U32_A!AA11),IF($AV$7="B",IF(U32_B!AA11="","",U32_B!AA11),IF($AV$7="C",IF(U32_C!AA11="","",U32_C!AA11),IF($AV$7="D",IF(U32_D!AA11="","",U32_D!AA11),IF($AV$7="E",IF(U32_E!AA11="","",U32_E!AA11),IF($AV$7="F",IF(U32_F!AA11="","",U32_F!AA11),IF($AV$7="G",IF(U32_G!AA11="","",U32_G!AA11),IF($AV$7="H",IF(U32_H!AA11="","",U32_H!AA11),""))))))))) ->  | AB11: =IF($AV$7="","",IF($AV$7="A",IF(U32_A!AB11="","",U32_A!AB11),IF($AV$7="B",IF(U32_B!AB11="","",U32_B!AB11),IF($AV$7="C",IF(U32_C!AB11="","",U32_C!AB11),IF($AV$7="D",IF(U32_D!AB11="","",U32_D!AB11),IF($AV$7="E",IF(U32_E!AB11="","",U32_E!AB11),IF($AV$7="F",IF(U32_F!AB11="","",U32_F!AB11),IF($AV$7="G",IF(U32_G!AB11="","",U32_G!AB11),IF($AV$7="H",IF(U32_H!AB11="","",U32_H!AB11),""))))))))) ->  | AC11: =IF($AV$7="","",IF($AV$7="A",IF(U32_A!AC11="","",U32_A!AC11),IF($AV$7="B",IF(U32_B!AC11="","",U32_B!AC11),IF($AV$7="C",IF(U32_C!AC11="","",U32_C!AC11),IF($AV$7="D",IF(U32_D!AC11="","",U32_D!AC11),IF($AV$7="E",IF(U32_E!AC11="","",U32_E!AC11),IF($AV$7="F",IF(U32_F!AC11="","",U32_F!AC11),IF($AV$7="G",IF(U32_G!AC11="","",U32_G!AC11),IF($AV$7="H",IF(U32_H!AC11="","",U32_H!AC11),""))))))))) ->  | AD11: =IF($AV$7="","",IF($AV$7="A",IF(U32_A!AD11="","",U32_A!AD11),IF($AV$7="B",IF(U32_B!AD11="","",U32_B!AD11),IF($AV$7="C",IF(U32_C!AD11="","",U32_C!AD11),IF($AV$7="D",IF(U32_D!AD11="","",U32_D!AD11),IF($AV$7="E",IF(U32_E!AD11="","",U32_E!AD11),IF($AV$7="F",IF(U32_F!AD11="","",U32_F!AD11),IF($AV$7="G",IF(U32_G!AD11="","",U32_G!AD11),IF($AV$7="H",IF(U32_H!AD11="","",U32_H!AD11),""))))))))) ->  | AE11: =IF($AV$7="","",IF($AV$7="A",IF(U32_A!AE11="","",U32_A!AE11),IF($AV$7="B",IF(U32_B!AE11="","",U32_B!AE11),IF($AV$7="C",IF(U32_C!AE11="","",U32_C!AE11),IF($AV$7="D",IF(U32_D!AE11="","",U32_D!AE11),IF($AV$7="E",IF(U32_E!AE11="","",U32_E!AE11),IF($AV$7="F",IF(U32_F!AE11="","",U32_F!AE11),IF($AV$7="G",IF(U32_G!AE11="","",U32_G!AE11),IF($AV$7="H",IF(U32_H!AE11="","",U32_H!AE11),""))))))))) ->  | AF11: =IF($AV$7="","",IF($AV$7="A",IF(U32_A!AF11="","",U32_A!AF11),IF($AV$7="B",IF(U32_B!AF11="","",U32_B!AF11),IF($AV$7="C",IF(U32_C!AF11="","",U32_C!AF11),IF($AV$7="D",IF(U32_D!AF11="","",U32_D!AF11),IF($AV$7="E",IF(U32_E!AF11="","",U32_E!AF11),IF($AV$7="F",IF(U32_F!AF11="","",U32_F!AF11),IF($AV$7="G",IF(U32_G!AF11="","",U32_G!AF11),IF($AV$7="H",IF(U32_H!AF11="","",U32_H!AF11),""))))))))) ->  | AG11: =IF($AV$7="","",IF($AV$7="A",IF(U32_A!AG11="","",U32_A!AG11),IF($AV$7="B",IF(U32_B!AG11="","",U32_B!AG11),IF($AV$7="C",IF(U32_C!AG11="","",U32_C!AG11),IF($AV$7="D",IF(U32_D!AG11="","",U32_D!AG11),IF($AV$7="E",IF(U32_E!AG11="","",U32_E!AG11),IF($AV$7="F",IF(U32_F!AG11="","",U32_F!AG11),IF($AV$7="G",IF(U32_G!AG11="","",U32_G!AG11),IF($AV$7="H",IF(U32_H!AG11="","",U32_H!AG11),""))))))))) ->  | AH11: =IF($AV$7="","",IF($AV$7="A",IF(U32_A!AH11="","",U32_A!AH11),IF($AV$7="B",IF(U32_B!AH11="","",U32_B!AH11),IF($AV$7="C",IF(U32_C!AH11="","",U32_C!AH11),IF($AV$7="D",IF(U32_D!AH11="","",U32_D!AH11),IF($AV$7="E",IF(U32_E!AH11="","",U32_E!AH11),IF($AV$7="F",IF(U32_F!AH11="","",U32_F!AH11),IF($AV$7="G",IF(U32_G!AH11="","",U32_G!AH11),IF($AV$7="H",IF(U32_H!AH11="","",U32_H!AH11),""))))))))) ->  | AI11: =IF($AV$7="","",IF($AV$7="A",IF(U32_A!AI11="","",U32_A!AI11),IF($AV$7="B",IF(U32_B!AI11="","",U32_B!AI11),IF($AV$7="C",IF(U32_C!AI11="","",U32_C!AI11),IF($AV$7="D",IF(U32_D!AI11="","",U32_D!AI11),IF($AV$7="E",IF(U32_E!AI11="","",U32_E!AI11),IF($AV$7="F",IF(U32_F!AI11="","",U32_F!AI11),IF($AV$7="G",IF(U32_G!AI11="","",U32_G!AI11),IF($AV$7="H",IF(U32_H!AI11="","",U32_H!AI11),""))))))))) ->  | AJ11: =IF($AV$7="","",IF($AV$7="A",IF(U32_A!AJ11="","",U32_A!AJ11),IF($AV$7="B",IF(U32_B!AJ11="","",U32_B!AJ11),IF($AV$7="C",IF(U32_C!AJ11="","",U32_C!AJ11),IF($AV$7="D",IF(U32_D!AJ11="","",U32_D!AJ11),IF($AV$7="E",IF(U32_E!AJ11="","",U32_E!AJ11),IF($AV$7="F",IF(U32_F!AJ11="","",U32_F!AJ11),IF($AV$7="G",IF(U32_G!AJ11="","",U32_G!AJ11),IF($AV$7="H",IF(U32_H!AJ11="","",U32_H!AJ11),""))))))))) ->  | AK11: =IF($AV$7="","",IF($AV$7="A",IF(U32_A!AK11="","",U32_A!AK11),IF($AV$7="B",IF(U32_B!AK11="","",U32_B!AK11),IF($AV$7="C",IF(U32_C!AK11="","",U32_C!AK11),IF($AV$7="D",IF(U32_D!AK11="","",U32_D!AK11),IF($AV$7="E",IF(U32_E!AK11="","",U32_E!AK11),IF($AV$7="F",IF(U32_F!AK11="","",U32_F!AK11),IF($AV$7="G",IF(U32_G!AK11="","",U32_G!AK11),IF($AV$7="H",IF(U32_H!AK11="","",U32_H!AK11),""))))))))) ->  | AL11: =IF($AV$7="","",IF($AV$7="A",IF(U32_A!AL11="","",U32_A!AL11),IF($AV$7="B",IF(U32_B!AL11="","",U32_B!AL11),IF($AV$7="C",IF(U32_C!AL11="","",U32_C!AL11),IF($AV$7="D",IF(U32_D!AL11="","",U32_D!AL11),IF($AV$7="E",IF(U32_E!AL11="","",U32_E!AL11),IF($AV$7="F",IF(U32_F!AL11="","",U32_F!AL11),IF($AV$7="G",IF(U32_G!AL11="","",U32_G!AL11),IF($AV$7="H",IF(U32_H!AL11="","",U32_H!AL11),""))))))))) ->  | AM11: =IF($AV$7="","",IF($AV$7="A",IF(U32_A!AM11="","",U32_A!AM11),IF($AV$7="B",IF(U32_B!AM11="","",U32_B!AM11),IF($AV$7="C",IF(U32_C!AM11="","",U32_C!AM11),IF($AV$7="D",IF(U32_D!AM11="","",U32_D!AM11),IF($AV$7="E",IF(U32_E!AM11="","",U32_E!AM11),IF($AV$7="F",IF(U32_F!AM11="","",U32_F!AM11),IF($AV$7="G",IF(U32_G!AM11="","",U32_G!AM11),IF($AV$7="H",IF(U32_H!AM11="","",U32_H!AM11),""))))))))) ->  | AN11: =IF($AV$7="","",IF($AV$7="A",IF(U32_A!AN11="","",U32_A!AN11),IF($AV$7="B",IF(U32_B!AN11="","",U32_B!AN11),IF($AV$7="C",IF(U32_C!AN11="","",U32_C!AN11),IF($AV$7="D",IF(U32_D!AN11="","",U32_D!AN11),IF($AV$7="E",IF(U32_E!AN11="","",U32_E!AN11),IF($AV$7="F",IF(U32_F!AN11="","",U32_F!AN11),IF($AV$7="G",IF(U32_G!AN11="","",U32_G!AN11),IF($AV$7="H",IF(U32_H!AN11="","",U32_H!AN11),""))))))))) ->  | AO11: =IF($AV$7="","",IF($AV$7="A",IF(U32_A!AO11="","",U32_A!AO11),IF($AV$7="B",IF(U32_B!AO11="","",U32_B!AO11),IF($AV$7="C",IF(U32_C!AO11="","",U32_C!AO11),IF($AV$7="D",IF(U32_D!AO11="","",U32_D!AO11),IF($AV$7="E",IF(U32_E!AO11="","",U32_E!AO11),IF($AV$7="F",IF(U32_F!AO11="","",U32_F!AO11),IF($AV$7="G",IF(U32_G!AO11="","",U32_G!AO11),IF($AV$7="H",IF(U32_H!AO11="","",U32_H!AO11),""))))))))) ->  | AP11: =IF($AV$7="","",IF($AV$7="A",IF(U32_A!AP11="","",U32_A!AP11),IF($AV$7="B",IF(U32_B!AP11="","",U32_B!AP11),IF($AV$7="C",IF(U32_C!AP11="","",U32_C!AP11),IF($AV$7="D",IF(U32_D!AP11="","",U32_D!AP11),IF($AV$7="E",IF(U32_E!AP11="","",U32_E!AP11),IF($AV$7="F",IF(U32_F!AP11="","",U32_F!AP11),IF($AV$7="G",IF(U32_G!AP11="","",U32_G!AP11),IF($AV$7="H",IF(U32_H!AP11="","",U32_H!AP11),""))))))))) ->  | AQ11: =IF($AV$7="","",IF($AV$7="A",IF(U32_A!AQ11="","",U32_A!AQ11),IF($AV$7="B",IF(U32_B!AQ11="","",U32_B!AQ11),IF($AV$7="C",IF(U32_C!AQ11="","",U32_C!AQ11),IF($AV$7="D",IF(U32_D!AQ11="","",U32_D!AQ11),IF($AV$7="E",IF(U32_E!AQ11="","",U32_E!AQ11),IF($AV$7="F",IF(U32_F!AQ11="","",U32_F!AQ11),IF($AV$7="G",IF(U32_G!AQ11="","",U32_G!AQ11),IF($AV$7="H",IF(U32_H!AQ11="","",U32_H!AQ11),""))))))))) ->  | AR11: =IF($AV$7="","",IF($AV$7="A",IF(U32_A!AR11="","",U32_A!AR11),IF($AV$7="B",IF(U32_B!AR11="","",U32_B!AR11),IF($AV$7="C",IF(U32_C!AR11="","",U32_C!AR11),IF($AV$7="D",IF(U32_D!AR11="","",U32_D!AR11),IF($AV$7="E",IF(U32_E!AR11="","",U32_E!AR11),IF($AV$7="F",IF(U32_F!AR11="","",U32_F!AR11),IF($AV$7="G",IF(U32_G!AR11="","",U32_G!AR11),IF($AV$7="H",IF(U32_H!AR11="","",U32_H!AR11),""))))))))) ->  | AS11: =IF($AV$7="","",IF($AV$7="A",IF(U32_A!AS11="","",U32_A!AS11),IF($AV$7="B",IF(U32_B!AS11="","",U32_B!AS11),IF($AV$7="C",IF(U32_C!AS11="","",U32_C!AS11),IF($AV$7="D",IF(U32_D!AS11="","",U32_D!AS11),IF($AV$7="E",IF(U32_E!AS11="","",U32_E!AS11),IF($AV$7="F",IF(U32_F!AS11="","",U32_F!AS11),IF($AV$7="G",IF(U32_G!AS11="","",U32_G!AS11),IF($AV$7="H",IF(U32_H!AS11="","",U32_H!AS11),""))))))))) ->  | AT11: =IF($AV$7="","",IF($AV$7="A",IF(U32_A!AT11="","",U32_A!AT11),IF($AV$7="B",IF(U32_B!AT11="","",U32_B!AT11),IF($AV$7="C",IF(U32_C!AT11="","",U32_C!AT11),IF($AV$7="D",IF(U32_D!AT11="","",U32_D!AT11),IF($AV$7="E",IF(U32_E!AT11="","",U32_E!AT11),IF($AV$7="F",IF(U32_F!AT11="","",U32_F!AT11),IF($AV$7="G",IF(U32_G!AT11="","",U32_G!AT11),IF($AV$7="H",IF(U32_H!AT11="","",U32_H!AT11),""))))))))) -> 
A13: Données fournies au candidat
A14: =IF($AV$7="","",IF($AV$7="A",IF(U32_A!A14="","",U32_A!A14),IF($AV$7="B",IF(U32_B!A14="","",U32_B!A14),IF($AV$7="C",IF(U32_C!A14="","",U32_C!A14),IF($AV$7="D",IF(U32_D!A14="","",U32_D!A14),IF($AV$7="E",IF(U32_E!A14="","",U32_E!A14),IF($AV$7="F",IF(U32_F!A14="","",U32_F!A14),IF($AV$7="G",IF(U32_G!A14="","",U32_G!A14),IF($AV$7="H",IF(U32_H!A14="","",U32_H!A14),""))))))))) ->  | B14: Un véhicule, un système ou sous-système | X14: =IF($AV$7="","",IF($AV$7="A",IF(U32_A!X14="","",U32_A!X14),IF($AV$7="B",IF(U32_B!X14="","",U32_B!X14),IF($AV$7="C",IF(U32_C!X14="","",U32_C!X14),IF($AV$7="D",IF(U32_D!X14="","",U32_D!X14),IF($AV$7="E",IF(U32_E!X14="","",U32_E!X14),IF($AV$7="F",IF(U32_F!X14="","",U32_F!X14),IF($AV$7="G",IF(U32_G!X14="","",U32_G!X14),IF($AV$7="H",IF(U32_H!X14="","",U32_H!X14),""))))))))) ->  | Y14: Outils d’aide au diagnostic (internes à l’entreprise et à distance)
A15: =IF($AV$7="","",IF($AV$7="A",IF(U32_A!A15="","",U32_A!A15),IF($AV$7="B",IF(U32_B!A15="","",U32_B!A15),IF($AV$7="C",IF(U32_C!A15="","",U32_C!A15),IF($AV$7="D",IF(U32_D!A15="","",U32_D!A15),IF($AV$7="E",IF(U32_E!A15="","",U32_E!A15),IF($AV$7="F",IF(U32_F!A15="","",U32_F!A15),IF($AV$7="G",IF(U32_G!A15="","",U32_G!A15),IF($AV$7="H",IF(U32_H!A15="","",U32_H!A15),""))))))))) ->  | B15: Un ou plusieurs éléments d’un système en dysfonctionnement. | X15: =IF($AV$7="","",IF($AV$7="A",IF(U32_A!X15="","",U32_A!X15),IF($AV$7="B",IF(U32_B!X15="","",U32_B!X15),IF($AV$7="C",IF(U32_C!X15="","",U32_C!X15),IF($AV$7="D",IF(U32_D!X15="","",U32_D!X15),IF($AV$7="E",IF(U32_E!X15="","",U32_E!X15),IF($AV$7="F",IF(U32_F!X15="","",U32_F!X15),IF($AV$7="G",IF(U32_G!X15="","",U32_G!X15),IF($AV$7="H",IF(U32_H!X15="","",U32_H!X15),""))))))))) ->  | Y15: Protections intérieures et extérieures
A16: =IF($AV$7="","",IF($AV$7="A",IF(U32_A!A16="","",U32_A!A16),IF($AV$7="B",IF(U32_B!A16="","",U32_B!A16),IF($AV$7="C",IF(U32_C!A16="","",U32_C!A16),IF($AV$7="D",IF(U32_D!A16="","",U32_D!A16),IF($AV$7="E",IF(U32_E!A16="","",U32_E!A16),IF($AV$7="F",IF(U32_F!A16="","",U32_F!A16),IF($AV$7="G",IF(U32_G!A16="","",U32_G!A16),IF($AV$7="H",IF(U32_H!A16="","",U32_H!A16),""))))))))) ->  | B16: Présence du client | X16: =IF($AV$7="","",IF($AV$7="A",IF(U32_A!X16="","",U32_A!X16),IF($AV$7="B",IF(U32_B!X16="","",U32_B!X16),IF($AV$7="C",IF(U32_C!X16="","",U32_C!X16),IF($AV$7="D",IF(U32_D!X16="","",U32_D!X16),IF($AV$7="E",IF(U32_E!X16="","",U32_E!X16),IF($AV$7="F",IF(U32_F!X16="","",U32_F!X16),IF($AV$7="G",IF(U32_G!X16="","",U32_G!X16),IF($AV$7="H",IF(U32_H!X16="","",U32_H!X16),""))))))))) ->  | Y16: Équipements, outillages et notices d’utilisation nécessaires à l’intervention.
A17: =IF($AV$7="","",IF($AV$7="A",IF(U32_A!A17="","",U32_A!A17),IF($AV$7="B",IF(U32_B!A17="","",U32_B!A17),IF($AV$7="C",IF(U32_C!A17="","",U32_C!A17),IF($AV$7="D",IF(U32_D!A17="","",U32_D!A17),IF($AV$7="E",IF(U32_E!A17="","",U32_E!A17),IF($AV$7="F",IF(U32_F!A17="","",U32_F!A17),IF($AV$7="G",IF(U32_G!A17="","",U32_G!A17),IF($AV$7="H",IF(U32_H!A17="","",U32_H!A17),""))))))))) ->  | B17: Ordre de réparation | X17: =IF($AV$7="","",IF($AV$7="A",IF(U32_A!X17="","",U32_A!X17),IF($AV$7="B",IF(U32_B!X17="","",U32_B!X17),IF($AV$7="C",IF(U32_C!X17="","",U32_C!X17),IF($AV$7="D",IF(U32_D!X17="","",U32_D!X17),IF($AV$7="E",IF(U32_E!X17="","",U32_E!X17),IF($AV$7="F",IF(U32_F!X17="","",U32_F!X17),IF($AV$7="G",IF(U32_G!X17="","",U32_G!X17),IF($AV$7="H",IF(U32_H!X17="","",U32_H!X17),""))))))))) ->  | Y17: Appareils de mesures et de contrôles fixes ou embarqués avec les notices d’utilisation.
A18: =IF($AV$7="","",IF($AV$7="A",IF(U32_A!A18="","",U32_A!A18),IF($AV$7="B",IF(U32_B!A18="","",U32_B!A18),IF($AV$7="C",IF(U32_C!A18="","",U32_C!A18),IF($AV$7="D",IF(U32_D!A18="","",U32_D!A18),IF($AV$7="E",IF(U32_E!A18="","",U32_E!A18),IF($AV$7="F",IF(U32_F!A18="","",U32_F!A18),IF($AV$7="G",IF(U32_G!A18="","",U32_G!A18),IF($AV$7="H",IF(U32_H!A18="","",U32_H!A18),""))))))))) ->  | B18: Description de l’anomalie constatée et/ou de ses effets | X18: =IF($AV$7="","",IF($AV$7="A",IF(U32_A!X18="","",U32_A!X18),IF($AV$7="B",IF(U32_B!X18="","",U32_B!X18),IF($AV$7="C",IF(U32_C!X18="","",U32_C!X18),IF($AV$7="D",IF(U32_D!X18="","",U32_D!X18),IF($AV$7="E",IF(U32_E!X18="","",U32_E!X18),IF($AV$7="F",IF(U32_F!X18="","",U32_F!X18),IF($AV$7="G",IF(U32_G!X18="","",U32_G!X18),IF($AV$7="H",IF(U32_H!X18="","",U32_H!X18),""))))))))) ->  | Y18: Résultats des mesures et contrôles.
A19: =IF($AV$7="","",IF($AV$7="A",IF(U32_A!A19="","",U32_A!A19),IF($AV$7="B",IF(U32_B!A19="","",U32_B!A19),IF($AV$7="C",IF(U32_C!A19="","",U32_C!A19),IF($AV$7="D",IF(U32_D!A19="","",U32_D!A19),IF($AV$7="E",IF(U32_E!A19="","",U32_E!A19),IF($AV$7="F",IF(U32_F!A19="","",U32_F!A19),IF($AV$7="G",IF(U32_G!A19="","",U32_G!A19),IF($AV$7="H",IF(U32_H!A19="","",U32_H!A19),""))))))))) ->  | B19: Historique technique du véhicule (documents de suivi) | X19: =IF($AV$7="","",IF($AV$7="A",IF(U32_A!X19="","",U32_A!X19),IF($AV$7="B",IF(U32_B!X19="","",U32_B!X19),IF($AV$7="C",IF(U32_C!X19="","",U32_C!X19),IF($AV$7="D",IF(U32_D!X19="","",U32_D!X19),IF($AV$7="E",IF(U32_E!X19="","",U32_E!X19),IF($AV$7="F",IF(U32_F!X19="","",U32_F!X19),IF($AV$7="G",IF(U32_G!X19="","",U32_G!X19),IF($AV$7="H",IF(U32_H!X19="","",U32_H!X19),""))))))))) ->  | Y19: Un essai à effectuer si besoin
A20: =IF($AV$7="","",IF($AV$7="A",IF(U32_A!A20="","",U32_A!A20),IF($AV$7="B",IF(U32_B!A20="","",U32_B!A20),IF($AV$7="C",IF(U32_C!A20="","",U32_C!A20),IF($AV$7="D",IF(U32_D!A20="","",U32_D!A20),IF($AV$7="E",IF(U32_E!A20="","",U32_E!A20),IF($AV$7="F",IF(U32_F!A20="","",U32_F!A20),IF($AV$7="G",IF(U32_G!A20="","",U32_G!A20),IF($AV$7="H",IF(U32_H!A20="","",U32_H!A20),""))))))))) ->  | B20: Documentation technique du véhicule (données constructeur) | X20: =IF($AV$7="","",IF($AV$7="A",IF(U32_A!X20="","",U32_A!X20),IF($AV$7="B",IF(U32_B!X20="","",U32_B!X20),IF($AV$7="C",IF(U32_C!X20="","",U32_C!X20),IF($AV$7="D",IF(U32_D!X20="","",U32_D!X20),IF($AV$7="E",IF(U32_E!X20="","",U32_E!X20),IF($AV$7="F",IF(U32_F!X20="","",U32_F!X20),IF($AV$7="G",IF(U32_G!X20="","",U32_G!X20),IF($AV$7="H",IF(U32_H!X20="","",U32_H!X20),""))))))))) ->  | Y20: La réglementation.
A21: =IF($AV$7="","",IF($AV$7="A",IF(U32_A!A21="","",U32_A!A21),IF($AV$7="B",IF(U32_B!A21="","",U32_B!A21),IF($AV$7="C",IF(U32_C!A21="","",U32_C!A21),IF($AV$7="D",IF(U32_D!A21="","",U32_D!A21),IF($AV$7="E",IF(U32_E!A21="","",U32_E!A21),IF($AV$7="F",IF(U32_F!A21="","",U32_F!A21),IF($AV$7="G",IF(U32_G!A21="","",U32_G!A21),IF($AV$7="H",IF(U32_H!A21="","",U32_H!A21),""))))))))) ->  | B21: Planning de charge de l’atelier | X21: =IF($AV$7="","",IF($AV$7="A",IF(U32_A!X21="","",U32_A!X21),IF($AV$7="B",IF(U32_B!X21="","",U32_B!X21),IF($AV$7="C",IF(U32_C!X21="","",U32_C!X21),IF($AV$7="D",IF(U32_D!X21="","",U32_D!X21),IF($AV$7="E",IF(U32_E!X21="","",U32_E!X21),IF($AV$7="F",IF(U32_F!X21="","",U32_F!X21),IF($AV$7="G",IF(U32_G!X21="","",U32_G!X21),IF($AV$7="H",IF(U32_H!X21="","",U32_H!X21),""))))))))) ->  | Y21: Matériel de nettoyage et de remise en état
A22: =IF($AV$7="","",IF($AV$7="A",IF(U32_A!A22="","",U32_A!A22),IF($AV$7="B",IF(U32_B!A22="","",U32_B!A22),IF($AV$7="C",IF(U32_C!A22="","",U32_C!A22),IF($AV$7="D",IF(U32_D!A22="","",U32_D!A22),IF($AV$7="E",IF(U32_E!A22="","",U32_E!A22),IF($AV$7="F",IF(U32_F!A22="","",U32_F!A22),IF($AV$7="G",IF(U32_G!A22="","",U32_G!A22),IF($AV$7="H",IF(U32_H!A22="","",U32_H!A22),""))))))))) ->  | B22: Poste de travail | X22: =IF($AV$7="","",IF($AV$7="A",IF(U32_A!X22="","",U32_A!X22),IF($AV$7="B",IF(U32_B!X22="","",U32_B!X22),IF($AV$7="C",IF(U32_C!X22="","",U32_C!X22),IF($AV$7="D",IF(U32_D!X22="","",U32_D!X22),IF($AV$7="E",IF(U32_E!X22="","",U32_E!X22),IF($AV$7="F",IF(U32_F!X22="","",U32_F!X22),IF($AV$7="G",IF(U32_G!X22="","",U32_G!X22),IF($AV$7="H",IF(U32_H!X22="","",U32_H!X22),""))))))))) ->  | Y22: Déchets résultants d’une intervention sur un véhicule ou bateau.
A23: =IF($AV$7="","",IF($AV$7="A",IF(U32_A!A23="","",U32_A!A23),IF($AV$7="B",IF(U32_B!A23="","",U32_B!A23),IF($AV$7="C",IF(U32_C!A23="","",U32_C!A23),IF($AV$7="D",IF(U32_D!A23="","",U32_D!A23),IF($AV$7="E",IF(U32_E!A23="","",U32_E!A23),IF($AV$7="F",IF(U32_F!A23="","",U32_F!A23),IF($AV$7="G",IF(U32_G!A23="","",U32_G!A23),IF($AV$7="H",IF(U32_H!A23="","",U32_H!A23),""))))))))) ->  | B23: Les matériels de manutention et leurs notices d’utilisation | X23: =IF($AV$7="","",IF($AV$7="A",IF(U32_A!X23="","",U32_A!X23),IF($AV$7="B",IF(U32_B!X23="","",U32_B!X23),IF($AV$7="C",IF(U32_C!X23="","",U32_C!X23),IF($AV$7="D",IF(U32_D!X23="","",U32_D!X23),IF($AV$7="E",IF(U32_E!X23="","",U32_E!X23),IF($AV$7="F",IF(U32_F!X23="","",U32_F!X23),IF($AV$7="G",IF(U32_G!X23="","",U32_G!X23),IF($AV$7="H",IF(U32_H!X23="","",U32_H!X23),""))))))))) ->  | Y23: Bacs et conteneurs de récupération.
A24: =IF($AV$7="","",IF($AV$7="A",IF(U32_A!A24="","",U32_A!A24),IF($AV$7="B",IF(U32_B!A24="","",U32_B!A24),IF($AV$7="C",IF(U32_C!A24="","",U32_C!A24),IF($AV$7="D",IF(U32_D!A24="","",U32_D!A24),IF($AV$7="E",IF(U32_E!A24="","",U32_E!A24),IF($AV$7="F",IF(U32_F!A24="","",U32_F!A24),IF($AV$7="G",IF(U32_G!A24="","",U32_G!A24),IF($AV$7="H",IF(U32_H!A24="","",U32_H!A24),""))))))))) ->  | B24: Liste des opérations effectuées | X24: =IF($AV$7="","",IF($AV$7="A",IF(U32_A!X24="","",U32_A!X24),IF($AV$7="B",IF(U32_B!X24="","",U32_B!X24),IF($AV$7="C",IF(U32_C!X24="","",U32_C!X24),IF($AV$7="D",IF(U32_D!X24="","",U32_D!X24),IF($AV$7="E",IF(U32_E!X24="","",U32_E!X24),IF($AV$7="F",IF(U32_F!X24="","",U32_F!X24),IF($AV$7="G",IF(U32_G!X24="","",U32_G!X24),IF($AV$7="H",IF(U32_H!X24="","",U32_H!X24),""))))))))) ->  | Y24: Les outils de communication
A25: =IF($AV$7="","",IF($AV$7="A",IF(U32_A!A25="","",U32_A!A25),IF($AV$7="B",IF(U32_B!A25="","",U32_B!A25),IF($AV$7="C",IF(U32_C!A25="","",U32_C!A25),IF($AV$7="D",IF(U32_D!A25="","",U32_D!A25),IF($AV$7="E",IF(U32_E!A25="","",U32_E!A25),IF($AV$7="F",IF(U32_F!A25="","",U32_F!A25),IF($AV$7="G",IF(U32_G!A25="","",U32_G!A25),IF($AV$7="H",IF(U32_H!A25="","",U32_H!A25),""))))))))) ->  | B25: L’accessoire ou l’équipement à poser | X25: =IF($AV$7="","",IF($AV$7="A",IF(U32_A!X25="","",U32_A!X25),IF($AV$7="B",IF(U32_B!X25="","",U32_B!X25),IF($AV$7="C",IF(U32_C!X25="","",U32_C!X25),IF($AV$7="D",IF(U32_D!X25="","",U32_D!X25),IF($AV$7="E",IF(U32_E!X25="","",U32_E!X25),IF($AV$7="F",IF(U32_F!X25="","",U32_F!X25),IF($AV$7="G",IF(U32_G!X25="","",U32_G!X25),IF($AV$7="H",IF(U32_H!X25="","",U32_H!X25),""))))))))) -> 
A26: =IF($AV$7="","",IF($AV$7="A",IF(U32_A!A26="","",U32_A!A26),IF($AV$7="B",IF(U32_B!A26="","",U32_B!A26),IF($AV$7="C",IF(U32_C!A26="","",U32_C!A26),IF($AV$7="D",IF(U32_D!A26="","",U32_D!A26),IF($AV$7="E",IF(U32_E!A26="","",U32_E!A26),IF($AV$7="F",IF(U32_F!A26="","",U32_F!A26),IF($AV$7="G",IF(U32_G!A26="","",U32_G!A26),IF($AV$7="H",IF(U32_H!A26="","",U32_H!A26),""))))))))) ->  | B26: Liste des pièces et des fournitures | X26: =IF($AV$7="","",IF($AV$7="A",IF(U32_A!X26="","",U32_A!X26),IF($AV$7="B",IF(U32_B!X26="","",U32_B!X26),IF($AV$7="C",IF(U32_C!X26="","",U32_C!X26),IF($AV$7="D",IF(U32_D!X26="","",U32_D!X26),IF($AV$7="E",IF(U32_E!X26="","",U32_E!X26),IF($AV$7="F",IF(U32_F!X26="","",U32_F!X26),IF($AV$7="G",IF(U32_G!X26="","",U32_G!X26),IF($AV$7="H",IF(U32_H!X26="","",U32_H!X26),""))))))))) -> 
A27: ÇRepérer les données fournies | Y27: ÇRepérer les données fournies
A28: Travail demandé
A29: =IF($AV$7="","",IF($AV$7="A",IF(U32_A!A29="","",U32_A!A29),IF($AV$7="B",IF(U32_B!A29="","",U32_B!A29),IF($AV$7="C",IF(U32_C!A29="","",U32_C!A29),IF($AV$7="D",IF(U32_D!A29="","",U32_D!A29),IF($AV$7="E",IF(U32_E!A29="","",U32_E!A29),IF($AV$7="F",IF(U32_F!A29="","",U32_F!A29),IF($AV$7="G",IF(U32_G!A29="","",U32_G!A29),IF($AV$7="H",IF(U32_H!A29="","",U32_H!A29),""))))))))) ->  | B29: A2T1 | D29: Mettre le véhicule en situation d'intervention, organiser son poste de travail | X29: =IF($AV$7="","",IF($AV$7="A",IF(U32_A!X29="","",U32_A!X29),IF($AV$7="B",IF(U32_B!X29="","",U32_B!X29),IF($AV$7="C",IF(U32_C!X29="","",U32_C!X29),IF($AV$7="D",IF(U32_D!X29="","",U32_D!X29),IF($AV$7="E",IF(U32_E!X29="","",U32_E!X29),IF($AV$7="F",IF(U32_F!X29="","",U32_F!X29),IF($AV$7="G",IF(U32_G!X29="","",U32_G!X29),IF($AV$7="H",IF(U32_H!X29="","",U32_H!X29),""))))))))) ->  | Y29: A3T1 | AA29: Organiser son intervention et pratiquer l'auto contrôle de son activité
A30: =IF($AV$7="","",IF($AV$7="A",IF(U32_A!A30="","",U32_A!A30),IF($AV$7="B",IF(U32_B!A30="","",U32_B!A30),IF($AV$7="C",IF(U32_C!A30="","",U32_C!A30),IF($AV$7="D",IF(U32_D!A30="","",U32_D!A30),IF($AV$7="E",IF(U32_E!A30="","",U32_E!A30),IF($AV$7="F",IF(U32_F!A30="","",U32_F!A30),IF($AV$7="G",IF(U32_G!A30="","",U32_G!A30),IF($AV$7="H",IF(U32_H!A30="","",U32_H!A30),""))))))))) ->  | B30: A2T2 | D30: Émettre des hypothèses sur le dysfonctionnement | X30: =IF($AV$7="","",IF($AV$7="A",IF(U32_A!X30="","",U32_A!X30),IF($AV$7="B",IF(U32_B!X30="","",U32_B!X30),IF($AV$7="C",IF(U32_C!X30="","",U32_C!X30),IF($AV$7="D",IF(U32_D!X30="","",U32_D!X30),IF($AV$7="E",IF(U32_E!X30="","",U32_E!X30),IF($AV$7="F",IF(U32_F!X30="","",U32_F!X30),IF($AV$7="G",IF(U32_G!X30="","",U32_G!X30),IF($AV$7="H",IF(U32_H!X30="","",U32_H!X30),""))))))))) ->  | Y30: A3T2 | AA30: Appliquer les procédures,
A31: =IF($AV$7="","",IF($AV$7="A",IF(U32_A!A31="","",U32_A!A31),IF($AV$7="B",IF(U32_B!A31="","",U32_B!A31),IF($AV$7="C",IF(U32_C!A31="","",U32_C!A31),IF($AV$7="D",IF(U32_D!A31="","",U32_D!A31),IF($AV$7="E",IF(U32_E!A31="","",U32_E!A31),IF($AV$7="F",IF(U32_F!A31="","",U32_F!A31),IF($AV$7="G",IF(U32_G!A31="","",U32_G!A31),IF($AV$7="H",IF(U32_H!A31="","",U32_H!A31),""))))))))) ->  | B31: A2T3 | D31: Collecter, analyser, interpréter, traiter toutes les informations techniques nécessaires à l'intervention | X31: =IF($AV$7="","",IF($AV$7="A",IF(U32_A!X31="","",U32_A!X31),IF($AV$7="B",IF(U32_B!X31="","",U32_B!X31),IF($AV$7="C",IF(U32_C!X31="","",U32_C!X31),IF($AV$7="D",IF(U32_D!X31="","",U32_D!X31),IF($AV$7="E",IF(U32_E!X31="","",U32_E!X31),IF($AV$7="F",IF(U32_F!X31="","",U32_F!X31),IF($AV$7="G",IF(U32_G!X31="","",U32_G!X31),IF($AV$7="H",IF(U32_H!X31="","",U32_H!X31),""))))))))) ->  | Y31: A3T3 | AA31: Poser, déposer, démonter, remonter les organes des différents systèmes
A32: =IF($AV$7="","",IF($AV$7="A",IF(U32_A!A32="","",U32_A!A32),IF($AV$7="B",IF(U32_B!A32="","",U32_B!A32),IF($AV$7="C",IF(U32_C!A32="","",U32_C!A32),IF($AV$7="D",IF(U32_D!A32="","",U32_D!A32),IF($AV$7="E",IF(U32_E!A32="","",U32_E!A32),IF($AV$7="F",IF(U32_F!A32="","",U32_F!A32),IF($AV$7="G",IF(U32_G!A32="","",U32_G!A32),IF($AV$7="H",IF(U32_H!A32="","",U32_H!A32),""))))))))) ->  | B32: A2T4 | D32: Choisir les contrôles, les mesures, les essais à réaliser | X32: =IF($AV$7="","",IF($AV$7="A",IF(U32_A!X32="","",U32_A!X32),IF($AV$7="B",IF(U32_B!X32="","",U32_B!X32),IF($AV$7="C",IF(U32_C!X32="","",U32_C!X32),IF($AV$7="D",IF(U32_D!X32="","",U32_D!X32),IF($AV$7="E",IF(U32_E!X32="","",U32_E!X32),IF($AV$7="F",IF(U32_F!X32="","",U32_F!X32),IF($AV$7="G",IF(U32_G!X32="","",U32_G!X32),IF($AV$7="H",IF(U32_H!X32="","",U32_H!X32),""))))))))) ->  | Y32: A3T4 | AA32: Changer ou réparer les organes des différents systèmes
A33: =IF($AV$7="","",IF($AV$7="A",IF(U32_A!A33="","",U32_A!A33),IF($AV$7="B",IF(U32_B!A33="","",U32_B!A33),IF($AV$7="C",IF(U32_C!A33="","",U32_C!A33),IF($AV$7="D",IF(U32_D!A33="","",U32_D!A33),IF($AV$7="E",IF(U32_E!A33="","",U32_E!A33),IF($AV$7="F",IF(U32_F!A33="","",U32_F!A33),IF($AV$7="G",IF(U32_G!A33="","",U32_G!A33),IF($AV$7="H",IF(U32_H!A33="","",U32_H!A33),""))))))))) ->  | B33: A2T5 | D33: Mettre en œuvre un matériel d’aide au diagnostic | X33: =IF($AV$7="","",IF($AV$7="A",IF(U32_A!X33="","",U32_A!X33),IF($AV$7="B",IF(U32_B!X33="","",U32_B!X33),IF($AV$7="C",IF(U32_C!X33="","",U32_C!X33),IF($AV$7="D",IF(U32_D!X33="","",U32_D!X33),IF($AV$7="E",IF(U32_E!X33="","",U32_E!X33),IF($AV$7="F",IF(U32_F!X33="","",U32_F!X33),IF($AV$7="G",IF(U32_G!X33="","",U32_G!X33),IF($AV$7="H",IF(U32_H!X33="","",U32_H!X33),""))))))))) ->  | Y33: A3T5 | AA33: Régler les organes et les systèmes conformément aux données constructeur
A34: =IF($AV$7="","",IF($AV$7="A",IF(U32_A!A34="","",U32_A!A34),IF($AV$7="B",IF(U32_B!A34="","",U32_B!A34),IF($AV$7="C",IF(U32_C!A34="","",U32_C!A34),IF($AV$7="D",IF(U32_D!A34="","",U32_D!A34),IF($AV$7="E",IF(U32_E!A34="","",U32_E!A34),IF($AV$7="F",IF(U32_F!A34="","",U32_F!A34),IF($AV$7="G",IF(U32_G!A34="","",U32_G!A34),IF($AV$7="H",IF(U32_H!A34="","",U32_H!A34),""))))))))) ->  | B34: A2T6 | D34: Mesurer, contrôler les caractéristiques mécaniques, hydrauliques, électriques, pneumatiques | X34: =IF($AV$7="","",IF($AV$7="A",IF(U32_A!X34="","",U32_A!X34),IF($AV$7="B",IF(U32_B!X34="","",U32_B!X34),IF($AV$7="C",IF(U32_C!X34="","",U32_C!X34),IF($AV$7="D",IF(U32_D!X34="","",U32_D!X34),IF($AV$7="E",IF(U32_E!X34="","",U32_E!X34),IF($AV$7="F",IF(U32_F!X34="","",U32_F!X34),IF($AV$7="G",IF(U32_G!X34="","",U32_G!X34),IF($AV$7="H",IF(U32_H!X34="","",U32_H!X34),""))))))))) ->  | Y34: A3T6 | AA34: Contrôler les performances et mettre au point le véhicule ou le bateau
A35: =IF($AV$7="","",IF($AV$7="A",IF(U32_A!A35="","",U32_A!A35),IF($AV$7="B",IF(U32_B!A35="","",U32_B!A35),IF($AV$7="C",IF(U32_C!A35="","",U32_C!A35),IF($AV$7="D",IF(U32_D!A35="","",U32_D!A35),IF($AV$7="E",IF(U32_E!A35="","",U32_E!A35),IF($AV$7="F",IF(U32_F!A35="","",U32_F!A35),IF($AV$7="G",IF(U32_G!A35="","",U32_G!A35),IF($AV$7="H",IF(U32_H!A35="","",U32_H!A35),""))))))))) ->  | B35: A2T7 | D35: Interpréter les résultats, identifier le (ou les) élément(s) défectueux | X35: =IF($AV$7="","",IF($AV$7="A",IF(U32_A!X35="","",U32_A!X35),IF($AV$7="B",IF(U32_B!X35="","",U32_B!X35),IF($AV$7="C",IF(U32_C!X35="","",U32_C!X35),IF($AV$7="D",IF(U32_D!X35="","",U32_D!X35),IF($AV$7="E",IF(U32_E!X35="","",U32_E!X35),IF($AV$7="F",IF(U32_F!X35="","",U32_F!X35),IF($AV$7="G",IF(U32_G!X35="","",U32_G!X35),IF($AV$7="H",IF(U32_H!X35="","",U32_H!X35),""))))))))) ->  | Y35: A3T7 | AA35: Mettre en conformité le fonctionnement du véhicule en appliquant les normes en vigueur
A36: =IF($AV$7="","",IF($AV$7="A",IF(U32_A!A36="","",U32_A!A36),IF($AV$7="B",IF(U32_B!A36="","",U32_B!A36),IF($AV$7="C",IF(U32_C!A36="","",U32_C!A36),IF($AV$7="D",IF(U32_D!A36="","",U32_D!A36),IF($AV$7="E",IF(U32_E!A36="","",U32_E!A36),IF($AV$7="F",IF(U32_F!A36="","",U32_F!A36),IF($AV$7="G",IF(U32_G!A36="","",U32_G!A36),IF($AV$7="H",IF(U32_H!A36="","",U32_H!A36),""))))))))) ->  | B36: A2T8 | D36: Réaliser les essais | X36: =IF($AV$7="","",IF($AV$7="A",IF(U32_A!X36="","",U32_A!X36),IF($AV$7="B",IF(U32_B!X36="","",U32_B!X36),IF($AV$7="C",IF(U32_C!X36="","",U32_C!X36),IF($AV$7="D",IF(U32_D!X36="","",U32_D!X36),IF($AV$7="E",IF(U32_E!X36="","",U32_E!X36),IF($AV$7="F",IF(U32_F!X36="","",U32_F!X36),IF($AV$7="G",IF(U32_G!X36="","",U32_G!X36),IF($AV$7="H",IF(U32_H!X36="","",U32_H!X36),""))))))))) ->  | Y36: A3T8 | AA36: Fournir les éléments nécessaires à la facturation
A37: =IF($AV$7="","",IF($AV$7="A",IF(U32_A!A37="","",U32_A!A37),IF($AV$7="B",IF(U32_B!A37="","",U32_B!A37),IF($AV$7="C",IF(U32_C!A37="","",U32_C!A37),IF($AV$7="D",IF(U32_D!A37="","",U32_D!A37),IF($AV$7="E",IF(U32_E!A37="","",U32_E!A37),IF($AV$7="F",IF(U32_F!A37="","",U32_F!A37),IF($AV$7="G",IF(U32_G!A37="","",U32_G!A37),IF($AV$7="H",IF(U32_H!A37="","",U32_H!A37),""))))))))) ->  | B37: A2T9 | D37: Apprécier si le dysfonctionnement et/ou son origine ont pu entraîner des conséquences sur d’autres composants ou fonctions | X37: =IF($AV$7="","",IF($AV$7="A",IF(U32_A!X37="","",U32_A!X37),IF($AV$7="B",IF(U32_B!X37="","",U32_B!X37),IF($AV$7="C",IF(U32_C!X37="","",U32_C!X37),IF($AV$7="D",IF(U32_D!X37="","",U32_D!X37),IF($AV$7="E",IF(U32_E!X37="","",U32_E!X37),IF($AV$7="F",IF(U32_F!X37="","",U32_F!X37),IF($AV$7="G",IF(U32_G!X37="","",U32_G!X37),IF($AV$7="H",IF(U32_H!X37="","",U32_H!X37),""))))))))) ->  | Y37: A3T9 | AA37: Maintenir en état (son poste de travail)
A38: Consulter le référentiel des activités professionnelles pour obtenir le détail des tâches.
A39: Ç Repérer les tâches demandées (ce sont celles qui correspondent à l’unité dans le référentiel de certification, à l’exclusion de toute autre)
A40: Appréciation globale et proposition de note :
A42: Noms et signatures des évaluateurs : | AJ42: Note proposée : | AO42: =IF(AI168="","",AI168) ->  | AR42: /20
AJ43: Note affectée de son coefficient : | AO43: =IF(AO42="","",AO42*3) ->  | AR43: /60
A44: Nota important : Les compétences référencées C111, C112, C121, C122, C123, C124, C125, C126, C141, C142, C222, C223, C227, C311, C312, C315, C411, C412, C413., sont aussi mentionnées dans les épreuves E31 et E33. On veillera à ne pas en évaluer certaines dans plusieurs épreuves. Un choix judicieux de la répartition des compétences à évaluer sur l’ensemble des situations d’évaluation est donc à faire globalement pour les trois épreuves.
A48: Baccalauréat professionnel « maintenance des véhicules automobiles » – Unité U 32 | AI48: Validé | AM48: - Synthèse +
A50: C 2.1 - Organiser son poste de travail | AE50: Evalué | AI50: =IF(AE50="Non Evalué","NE",IF(AE50="Evalué","E","")) -> E | AJ50: =COUNTIF(AI52:AK67,"Validé") -> 0 | AK50: =COUNTIF(AI52:AK67,"Non Validé") -> 0 | AL50: =COUNTIF(AI52:AK67,"Non Evalué") -> 0 | AV50: =IF(AE50="","Souhaitez-vous évaluer la C2.1 ?",IF(AND(AE50="Non Evalué",OR(AI52="Validé",AI54="Validé",AI56="Validé",AI58="Validé",AI60="Validé",AI62="Validé",AI64="Validé",AI66="Validé",AI52="Non Validé",AI54="Non Validé",AI56="Non Validé",AI58="Non Validé",AI60="Non Validé",AI62="Non Validé",AI64="Non Validé",AI66="Non Validé")),"Vous avez choisi de ne pas évaluer la C2.1. Ne rien indiquez dans la colonne Validé.",IF(AND(AE50="Evalué",OR(AI52="",AI54="",AI56="",AI58="",AI60="",AI62="",AI64="",AI66="")),"Vous avez choisi d'évaluer la C2.1. Indiquez pour chaques actions : Validé, Non Validé ou Non Evalué.",IF(OR(AE50="Non Evalué",(AJ50+AK50)=0),"",CONCATENATE(ROUND((AL51),0)," % d'actions validées. ",AJ50," validée(s) sur ",AJ50+AK50," . Conseil: Grisez ",ROUND((AL51)*8/100,0)," colonnes"))))) -> Vous avez choisi d'évaluer la C2.1. Indiquez pour chaques actions : Validé, Non Validé ou Non Evalué.
AJ51: =SUMPRODUCT((AI52:AL67="Validé")*(Bareme!AE108:AE123)) -> 0 | AK51: =SUMPRODUCT((AI52:AK67="Non Validé")*(Bareme!AE108:AE123)) -> 0 | AL51: =100*SUM(AY52:BA67)/SUMPRODUCT((AL52:AL67<>"x")*(Bareme!AE108:AE123)) -> 0
A52: C 211 | D52: Choisir une aire de travail et ses équipements (adaptés au diagnostic ou à l’intervention) | N52: Le poste choisi correspond à la réparation à effectuer | AI52: =IF(AL52="","",IF(AL52="x","Non Evalué",(IF(AL52=0,"Non Validé","Validé")))) ->  | AM52: Commentaires: | AV52: 0 | AY52: =IF(AL52="","",IF(AL52="x","",IF(AL52=0,0,Bareme!AE108*AL52/3))) -> 
N54: L’hygiène, la sécurité et l’ergonomie sont pris en compte. | AI54: =IF(AL54="","",IF(AL54="x","Non Evalué",(IF(AL54=0,"Non Validé","Validé")))) ->  | AY54: =IF(AL54="","",IF(AL54="x","",IF(AL54=0,0,Bareme!AE110*AL54/3))) -> 
A56: C 212 | D56: Positionner et conditionner le véhicule. | N56: Le positionnement n’appelle aucune remarque sur le plan de la sécurité et de l’ergonomie. | AI56: =IF(AL56="","",IF(AL56="x","Non Evalué",(IF(AL56=0,"Non Validé","Validé")))) ->  | AV56: Nota : les compétences en couleur rouge sont spécifiques au CAP MVA. * correspondance des critères de performances du BAC et CAP MVA | AY56: =IF(AL56="","",IF(AL56="x","",IF(AL56=0,0,Bareme!AE112*AL56/3))) -> 
N58: La protection du véhicule est assurée. | AI58: =IF(AL58="","",IF(AL58="x","Non Evalué",(IF(AL58=0,"Non Validé","Validé")))) ->  | AY58: =IF(AL58="","",IF(AL58="x","",IF(AL58=0,0,Bareme!AE114*AL58/3))) -> 
N60: L’intégrité du véhicule est respectée. | AI60: =IF(AL60="","",IF(AL60="x","Non Evalué",(IF(AL60=0,"Non Validé","Validé")))) ->  | AY60: =IF(AL60="","",IF(AL60="x","",IF(AL60=0,0,Bareme!AE116*AL60/3))) -> 
A62: C 213 | D62: Maintenir en état son poste de travail | N62: Le poste de travail et les équipements utilisés sont nettoyés, rangés et remis en état. | AI62: =IF(AL62="","",IF(AL62="x","Non Evalué",(IF(AL62=0,"Non Validé","Validé")))) ->  | AY62: =IF(AL62="","",IF(AL62="x","",IF(AL62=0,0,Bareme!AE118*AL62/3))) -> 
N64: Les déchets sont classés et évacués dans le respect des normes ou des prescriptions de l’entreprise. | AI64: =IF(AL64="","",IF(AL64="x","Non Evalué",(IF(AL64=0,"Non Validé","Validé")))) ->  | AY64: =IF(AL64="","",IF(AL64="x","",IF(AL64=0,0,Bareme!AE120*AL64/3))) -> 
N66: L’hygiène, la sécurité et l’ergonomie sont pris en compte. | AI66: =IF(AL66="","",IF(AL66="x","Non Evalué",(IF(AL66=0,"Non Validé","Validé")))) ->  | AY66: =IF(AL66="","",IF(AL66="x","",IF(AL66=0,0,Bareme!AE122*AL66/3))) -> 
A68: C 2.2 - Diagnostiquer | AE68: Evalué | AI68: =IF(AE68="Non Evalué","NE",IF(AE68="Evalué","E","")) -> E | AJ68: =COUNTIF(AI70:AK93,"Validé") -> 0 | AK68: =COUNTIF(AI70:AK93,"Non Validé") -> 0 | AL68: =COUNTIF(AI70:AK93,"Non Evalué") -> 0 | AV68: =IF(AE68="","Souhaitez-vous évaluer la C2.2 ?",IF(AND(AE68="Non Evalué",OR(AI70="Validé",AI72="Validé",AI74="Validé",AI76="Validé",AI78="Validé",AI80="Validé",AI82="Validé",AI84="Validé",AI86="Validé",AI88="Validé",AI90="Validé",AI92="Validé",AI70="Non Validé",AI72="Non Validé",AI74="Non Validé",AI76="Non Validé",AI78="Non Validé",AI80="Non Validé",AI82="Non Validé",AI84="Non Validé",AI86="Non Validé",AI88="Non Validé",AI90="Non Validé",AI92="Non Validé")),"Vous avez choisi de ne pas évaluer la C2.2. Ne rien indiquez dans la colonne Validé.",IF(AND(AE68="Evalué",OR(AI70="",AI72="",AI74="",AI76="",AI78="",AI80="",AI82="",AI84="",AI86="",AI88="",AI90="",AI92="")),"Vous avez choisi d'évaluer la C2.2 Indiquez pour chaques actions : Validé, Non Validé ou Non Evalué.",IF(OR(AE68="Non Evalué",(AJ68+AK68)=0),"",CONCATENATE(ROUND((AL69),0)," % d'actions validées. ",AJ68," validée(s) sur ",AJ68+AK68," . Conseil: Grisez ",ROUND((AL69)*8/100,0)," colonnes"))))) -> Vous avez choisi d'évaluer la C2.2 Indiquez pour chaques actions : Validé, Non Validé ou Non Evalué.
AJ69: =SUMPRODUCT((AI70:AK93="Validé")*(Bareme!AE126:AE149)) -> 0 | AK69: =SUMPRODUCT((AI70:AK93="Non Validé")*(Bareme!AE126:AE149)) -> 0 | AL69: =100*SUM(AY70:BA93)/SUMPRODUCT((AL70:AL93<>"x")*(Bareme!AE126:AE149)) -> 0
A70: C 222 | D70: Choisir et définir les essais, les mesures, les contrôles à réaliser, adapter le processus de contrôle si besoin. | N70: Le choix et la définition des essais sont conformes. | AI70: =IF(AL70="","",IF(AL70="x","Non Evalué",(IF(AL70=0,"Non Validé","Validé")))) ->  | AV70: 0 | AY70: =IF(AL70="","",IF(AL70="x","",IF(AL70=0,0,Bareme!AE126*AL70/3))) -> 
N72: Le choix des mesures et contrôles assure l’efficacité et la rapidité du diagnostic. | AI72: =IF(AL72="","",IF(AL72="x","Non Evalué",(IF(AL72=0,"Non Validé","Validé")))) ->  | AY72: =IF(AL72="","",IF(AL72="x","",IF(AL72=0,0,Bareme!AE128*AL72/3))) -> 
N74: L’hygiène, la sécurité et l’ergonomie sont pris en compte. | AI74: =IF(AL74="","",IF(AL74="x","Non Evalué",(IF(AL74=0,"Non Validé","Validé")))) ->  | AY74: =IF(AL74="","",IF(AL74="x","",IF(AL74=0,0,Bareme!AE130*AL74/3))) -> 
AM75: Commentaires: | AV75: Nota : les compétences en couleur rouge sont spécifiques au CAP MVA. * correspondance des critères de performances du BAC et CAP MVA
A76: C 223 C 341 C 343 | D76: Mettre en œuvre les essais et mesures prévus, analyser la démarche utilisée. | N76: Les essais et mesures sont réalisés selon les procédures et garantissent l’intégrité des personnes et des biens. * | AI76: =IF(AL76="","",IF(AL76="x","Non Evalué",(IF(AL76=0,"Non Validé","Validé")))) ->  | AY76: =IF(AL76="","",IF(AL76="x","",IF(AL76=0,0,Bareme!AE132*AL76/3))) -> 
N78: Les résultats relevés sont exprimés dans l’unité et l’ordre de grandeur de la valeur attendue. * | AI78: =IF(AL78="","",IF(AL78="x","Non Evalué",(IF(AL78=0,"Non Validé","Validé")))) ->  | AY78: =IF(AL78="","",IF(AL78="x","",IF(AL78=0,0,Bareme!AE134*AL78/3))) -> 
N80: L'analyse de la démarche utilisée est cohérente. | AI80: =IF(AL80="","",IF(AL80="x","Non Evalué",(IF(AL80=0,"Non Validé","Validé")))) ->  | AY80: =IF(AL80="","",IF(AL80="x","",IF(AL80=0,0,Bareme!AE136*AL80/3))) -> 
A82: C 224 C 343 | D82: Interpréter les relevés et identi-fier le ou les élément(s) défectueux. | N82: Seuls les éléments défectueux sont signalés. * | AI82: =IF(AL82="","",IF(AL82="x","Non Evalué",(IF(AL82=0,"Non Validé","Validé")))) ->  | AY82: =IF(AL82="","",IF(AL82="x","",IF(AL82=0,0,Bareme!AE138*AL82/3))) -> 
N84: Les résultats des mesures sont correctement interprétés.* | AI84: =IF(AL84="","",IF(AL84="x","Non Evalué",(IF(AL84=0,"Non Validé","Validé")))) ->  | AY84: =IF(AL84="","",IF(AL84="x","",IF(AL84=0,0,Bareme!AE140*AL84/3))) -> 
A86: C 225 | D86: Identifier la ou les cause(s) du dysfonctionnement et mettre en œuvre une autre procédure pour confirmer le diagnostic initial. | N86: La (ou les) cause(s) du dysfonctionnement est (sont) identi-fiée(s) sans ambiguïté. | AI86: =IF(AL86="","",IF(AL86="x","Non Evalué",(IF(AL86=0,"Non Validé","Validé")))) ->  | AY86: =IF(AL86="","",IF(AL86="x","",IF(AL86=0,0,Bareme!AE142*AL86/3))) -> 
N88: Le contrôle complémentaire confirme le diagnostic. | AI88: =IF(AL88="","",IF(AL88="x","Non Evalué",(IF(AL88=0,"Non Validé","Validé")))) ->  | AY88: =IF(AL88="","",IF(AL88="x","",IF(AL88=0,0,Bareme!AE144*AL88/3))) -> 
A90: C 226 C 344 | D90: Recenser les conséquences sur un autre système ou composant. | N90: Les incidences possibles sur un ou plusieurs autres systèmes sont recensées. | AI90: =IF(AL90="","",IF(AL90="x","Non Evalué",(IF(AL90=0,"Non Validé","Validé")))) ->  | AY90: =IF(AL90="","",IF(AL90="x","",IF(AL90=0,0,Bareme!AE146*AL90/3))) -> 
N92: Le choix des contrôles à mettre en œuvre est pertinent.* | AI92: =IF(AL92="","",IF(AL92="x","Non Evalué",(IF(AL92=0,"Non Validé","Validé")))) ->  | AY92: =IF(AL92="","",IF(AL92="x","",IF(AL92=0,0,Bareme!AE148*AL92/3))) -> 
A94: C 3.1 : Réaliser une intervention sur systèmes complexes. | AE94: Evalué | AI94: =IF(AE94="Non Evalué","NE",IF(AE94="Evalué","E","")) -> E | AJ94: =COUNTIF(AI96:AK119,"Validé") -> 0 | AK94: =COUNTIF(AI96:AK119,"Non Validé") -> 0 | AL94: =COUNTIF(AI96:AK119,"Non Evalué") -> 0 | AV94: =IF(AE94="","Souhaitez-vous évaluer la C3.1 ?",IF(AND(AE94="Non Evalué",OR(AI96="Validé",AI98="Validé",AI100="Validé",AI102="Validé",AI104="Validé",AI106="Validé",AI108="Validé",AI110="Validé",AI112="Validé",AI114="Validé",AI116="Validé",AI118="Validé",AI96="Non Validé",AI98="Non Validé",AI100="Non Validé",AI102="Non Validé",AI104="Non Validé",AI106="Non Validé",AI108="Non Validé",AI110="Non Validé",AI112="Non Validé",AI114="Non Validé",AI116="Non Validé",AI118="Non Validé")),"Vous avez choisi de ne pas évaluer la C3.1. Ne rien indiquez dans la colonne Validé.",IF(AND(AE94="Evalué",OR(AI96="",AI98="",AI100="",AI102="",AI104="",AI106="",AI108="N",AI110="",AI112="",AI114="",AI116="",AI118="")),"Vous avez choisi d'évaluer la C3.1 Indiquez pour chaques actions : Validé, Non Validé ou Non Evalué.",IF(OR(AE94="Non Evalué",(AJ94+AK94)=0),"",CONCATENATE(ROUND((AL95),0)," % d'actions validées. ",AJ94," validée(s) sur ",AJ94+AK94," . Conseil: Grisez ",ROUND((AL95)*8/100,0)," colonnes"))))) -> Vous avez choisi d'évaluer la C3.1 Indiquez pour chaques actions : Validé, Non Validé ou Non Evalué.
AJ95: =SUMPRODUCT((AI96:AK119="Validé")*(Bareme!AE152:AE175)) -> 0 | AK95: =SUMPRODUCT((AI96:AK119="Non Validé")*(Bareme!AE152:AE175)) -> 0 | AL95: =100*SUM(AY96:BA119)/SUMPRODUCT((AL96:AL119<>"x")*(Bareme!AE152:AE175)) -> 0
A96: C311 C 332 | D96: Déposer, reposer, poser un élément ou un sous-ensemble. | N96: Le temps d’intervention est économiquement acceptable | AI96: =IF(AL96="","",IF(AL96="x","Non Evalué",(IF(AL96=0,"Non Validé","Validé")))) ->  | AV96: 0 | AY96: =IF(AL96="","",IF(AL96="x","",IF(AL96=0,0,Bareme!AE152*AL96/3))) -> 
N98: Le véhicule, le bateau ou le système est remis en conformité.* | AI98: =IF(AL98="","",IF(AL98="x","Non Evalué",(IF(AL98=0,"Non Validé","Validé")))) ->  | AY98: =IF(AL98="","",IF(AL98="x","",IF(AL98=0,0,Bareme!AE154*AL98/3))) -> 
N100: L’action n’appelle aucune remarque sur le plan de la sécurité. Elle est conforme au cahier des charges constructeur. * | AI100: =IF(AL100="","",IF(AL100="x","Non Evalué",(IF(AL100=0,"Non Validé","Validé")))) ->  | AV100: Nota : les compétences en couleur rouge sont spécifiques au CAP MVA. * correspondance des critères de performances du BAC et CAP MVA | AY100: =IF(AL100="","",IF(AL100="x","",IF(AL100=0,0,Bareme!AE156*AL100/3))) -> 
A102: C 312 C 333 C 352 | D102: Démonter, remettre en conformité, remonter les éléments et les organes. | N102: Le temps d’intervention est économiquement acceptable. | AI102: =IF(AL102="","",IF(AL102="x","Non Evalué",(IF(AL102=0,"Non Validé","Validé")))) ->  | AY102: =IF(AL102="","",IF(AL102="x","",IF(AL102=0,0,Bareme!AE158*AL102/3))) -> 
N104: L’élément est remis en conformité * | AI104: =IF(AL104="","",IF(AL104="x","Non Evalué",(IF(AL104=0,"Non Validé","Validé")))) ->  | AY104: =IF(AL104="","",IF(AL104="x","",IF(AL104=0,0,Bareme!AE160*AL104/3))) -> 
AM105: Commentaires:
N106: L’action garantit l’intégrité des personnes et des biens, elle est conforme au cahier des charges constructeur * | AI106: =IF(AL106="","",IF(AL106="x","Non Evalué",(IF(AL106=0,"Non Validé","Validé")))) ->  | AY106: =IF(AL106="","",IF(AL106="x","",IF(AL106=0,0,Bareme!AE162*AL106/3))) -> 
A108: C 313 C 351 C 352 | D108: Réaliser la mise au point du véhicule et s'assurer de la fiabilité des réglages. | N108: Les performances ou caractéristiques sont vérifiées et con-formes aux prescriptions du constructeur. * | AI108: =IF(AL108="","",IF(AL108="x","Non Evalué",(IF(AL108=0,"Non Validé","Validé")))) ->  | AY108: =IF(AL108="","",IF(AL108="x","",IF(AL108=0,0,Bareme!AE164*AL108/3))) -> 
N110: L'intervention est conforme à l'ordre de réparation. | AI110: =IF(AL110="","",IF(AL110="x","Non Evalué",(IF(AL110=0,"Non Validé","Validé")))) ->  | AY110: =IF(AL110="","",IF(AL110="x","",IF(AL110=0,0,Bareme!AE166*AL110/3))) -> 
A112: C 314 | D112: Contrôler les performances et les caractéristiques du véhicule. | N112: Les performances ou caractéristiques sont vérifiées et con-formes aux prescriptions du constructeur. | AI112: =IF(AL112="","",IF(AL112="x","Non Evalué",(IF(AL112=0,"Non Validé","Validé")))) ->  | AY112: =IF(AL112="","",IF(AL112="x","",IF(AL112=0,0,Bareme!AE168*AL112/3))) -> 
N114: L'intervention est conforme à l'OR. | AI114: =IF(AL114="","",IF(AL114="x","Non Evalué",(IF(AL114=0,"Non Validé","Validé")))) ->  | AY114: =IF(AL114="","",IF(AL114="x","",IF(AL114=0,0,Bareme!AE170*AL114/3))) -> 
A116: C 315 | D116: Identifier et signaler les manquements aux prescriptions réglementaires sur la sécurité des véhicules ou des bateaux de plaisance. | N116: La réglementation en vigueur du point de vue sécurité est respectée. | AI116: =IF(AL116="","",IF(AL116="x","Non Evalué",(IF(AL116=0,"Non Validé","Validé")))) ->  | AY116: =IF(AL116="","",IF(AL116="x","",IF(AL116=0,0,Bareme!AE172*AL116/3))) -> 
N118: Les anomalies sont identifiées et signalées. | AI118: =IF(AL118="","",IF(AL118="x","Non Evalué",(IF(AL118=0,"Non Validé","Validé")))) ->  | AY118: =IF(AL118="","",IF(AL118="x","",IF(AL118=0,0,Bareme!AE174*AL118/3))) -> 
A120: Baccalauréat professionnel « maintenance des véhicules automobiles » – Unité U 32 | AI120: Validé | AM120: - Synthèse +
A122: C41 - Évaluer la qualité de son intervention | AE122: Evalué | AI122: =IF(AE122="Non Evalué","NE",IF(AE122="Evalué","E","")) -> E | AJ122: =COUNTIF(AI124:AK133,"Validé") -> 0 | AK122: =COUNTIF(AI124:AK133,"Non Validé") -> 0 | AL122: =COUNTIF(AI124:AK133,"Non Evalué") -> 0 | AV122: =IF(AE122="","Souhaitez-vous évaluer la C4.1 ?",IF(AND(AE122="Non Evalué",OR(AI124="Validé",AI126="Validé",AI128="Validé",AI130="Validé",AI132="Validé",AI124="Non Validé",AI126="Non Validé",AI128="Non Validé",AI130="Non Validé",AI132="Non Validé")),"Vous avez choisi de ne pas évaluer la C4.1. Ne rien indiquez dans la colonne Validé.",IF(AND(AE122="Evalué",OR(AI124="",AI126="",AI128="",AI130="",AI132="")),"Vous avez choisi d'évaluer la C4.1. Indiquez pour chaques actions : Validé, Non Validé ou Non Evalué.",IF(OR(AE122="Non Evalué",(AJ122+AK122)=0),"",CONCATENATE(ROUND((AL123),0)," % d'actions validées. ",AJ122," validée(s) sur ",AJ122+AK122," . Conseil: Grisez ",ROUND((AL123)*8/100,0)," colonnes"))))) -> Vous avez choisi d'évaluer la C4.1. Indiquez pour chaques actions : Validé, Non Validé ou Non Evalué.
AJ123: =SUMPRODUCT((AI124:AK133="Validé")*(Bareme!AE178:AE187)) -> 0 | AK123: =SUMPRODUCT((AI124:AK133="Non Validé")*(Bareme!AE178:AE187)) -> 0 | AL123: =100*SUM(AY124:BA133)/SUMPRODUCT((AL124:AL133<>"x")*(Bareme!AE178:AE187)) -> 0
A124: C 411 C332 333 C351 352 C113 | D124: Effectuer le contrôle qualité de son intervention (auto contrôle) et rédiger un compte rendu d'essai. | N124: La qualité de l’intervention est validée. * | AI124: =IF(AL124="","",IF(AL124="x","Non Evalué",(IF(AL124=0,"Non Validé","Validé")))) ->  | AM124: Commentaires: | AV124: 0 | AY124: =IF(AL124="","",IF(AL124="x","",IF(AL124=0,0,Bareme!AE178*AL124/3))) -> 
N126: La procédure qualité de l’entreprise est respectée. | AI126: =IF(AL126="","",IF(AL126="x","Non Evalué",(IF(AL126=0,"Non Validé","Validé")))) ->  | AV126: Nota : les compétences en couleur rouge sont spécifiques au CAP MVA. * correspondance des critères de performances du BAC et CAP MVA | AY126: =IF(AL126="","",IF(AL126="x","",IF(AL126=0,0,Bareme!AE180*AL126/3))) -> 
N128: Le compte rendu est cohérent. * | AI128: =IF(AL128="","",IF(AL128="x","Non Evalué",(IF(AL128=0,"Non Validé","Validé")))) ->  | AY128: =IF(AL128="","",IF(AL128="x","",IF(AL128=0,0,Bareme!AE182*AL128/3))) -> 
A130: C 412 C332 333 C351 352 | D130: Apprécier les risques profes-sionnels liés à l’intervention. | N130: L’intervention ne présente pas de risques d’accidents ou d’atteinte à la santé. * | AI130: =IF(AL130="","",IF(AL130="x","Non Evalué",(IF(AL130=0,"Non Validé","Validé")))) ->  | AY130: =IF(AL130="","",IF(AL130="x","",IF(AL130=0,0,Bareme!AE184*AL130/3))) -> 
N132: Les situations dangereuses sont signalées. | AI132: =IF(AL132="","",IF(AL132="x","Non Evalué",(IF(AL132=0,"Non Validé","Validé")))) ->  | AY132: =IF(AL132="","",IF(AL132="x","",IF(AL132=0,0,Bareme!AE186*AL132/3))) -> 
A134: C 1 2 - Informer le client et l'entreprise sur la nature de l'intervention | AE134: Evalué | AI134: =IF(AE134="Non Evalué","NE",IF(AE134="Evalué","E","")) -> E | AJ134: =COUNTIF(AI136:AK139,"Validé") -> 0 | AK134: =COUNTIF(AI136:AK139,"Non Validé") -> 0 | AL134: =COUNTIF(AI136:AK139,"Non Evalué") -> 0 | AV134: =IF(AE134="","Souhaitez-vous évaluer la C1.2 ?",IF(AND(AE134="Non Evalué",OR(AI136="Validé",AI138="Validé",AI136="Non Validé",AI138="Non Validé",)),"Vous avez choisi de ne pas évaluer la C1.2. Ne rien indiquez dans la colonne Validé.",IF(AND(AE134="Evalué",OR(AI136="",AI138="")),"Vous avez choisi d'évaluer la C1.2. Indiquez pour chaques actions : Validé, Non Validé ou Non Evalué.",IF(OR(AE134="Non Evalué",(AJ134+AK134)=0),"",CONCATENATE(ROUND((AL135),0)," % d'actions validées. ",AJ134," validée(s) sur ",AJ134+AK134," . Conseil: Grisez ",ROUND((AL135)*8/100,0)," colonnes"))))) -> Vous avez choisi d'évaluer la C1.2. Indiquez pour chaques actions : Validé, Non Validé ou Non Evalué.
AJ135: =SUMPRODUCT((AI136:AK139="Validé")*(Bareme!AE190:AE193)) -> 0 | AK135: =SUMPRODUCT((AI136:AK139="Non Validé")*(Bareme!AE190:AE193)) -> 0 | AL135: =100*SUM(AY136:BA139)/SUMPRODUCT((AL136:AL139<>"x")*(Bareme!AE190:AE193)) -> 0
A136: C 124 C 113 C 114 | D136: Compléter les documents de suivi et fournir les éléments né-cessaires à la facturation. | N136: Les documents sont correctement renseignés. * | AI136: =IF(AL136="","",IF(AL136="x","Non Evalué",(IF(AL136=0,"Non Validé","Validé")))) ->  | AM136: Commentaires: | AV136: 0 | AY136: =IF(AL136="","",IF(AL136="x","",IF(AL136=0,0,Bareme!AE190*AL136/3))) -> 
N138: La liste des éléments nécessaires à la facturation est fournie sans omission. | AI138: =IF(AL138="","",IF(AL138="x","Non Evalué",(IF(AL138=0,"Non Validé","Validé")))) ->  | AY138: =IF(AL138="","",IF(AL138="x","",IF(AL138=0,0,Bareme!AE192*AL138/3))) -> 
A140: C 1.3 - Collecter les données techniques | AE140: Evalué | AI140: =IF(AE140="Non Evalué","NE",IF(AE140="Evalué","E","")) -> E | AJ140: =COUNTIF(AI142,"Validé") -> 0 | AK140: =COUNTIF(AI142,"Non Validé") -> 0 | AL140: =COUNTIF(AI142,"Non Evalué") -> 0 | AV140: =IF(AE140="","Souhaitez-vous évaluer la C1.3?",IF(AND(AE140="Non Evalué",OR(AI142="Validé",AI142="Non Validé")),"Vous avez choisi de ne pas évaluer la C1.3. Ne rien indiquez dans la colonne Validé.",IF(AND(AE140="Evalué",OR(AI142="")),"Vous avez choisi d'évaluer la C1.3. Indiquez pour chaques actions : Validé, Non Validé ou Non Evalué.",IF(OR(AE140="Non Evalué",(AJ140+AK140)=0),"",CONCATENATE(ROUND((AL141),0)," % d'actions validées. ",AJ140," validée(s) sur ",AJ140+AK140," . Conseil: Grisez ",ROUND((AL141)*8/100,0)," colonnes"))))) -> Vous avez choisi d'évaluer la C1.3. Indiquez pour chaques actions : Validé, Non Validé ou Non Evalué.
AJ141: =SUMPRODUCT((AI142="Validé")*(Bareme!AE196)) -> 0 | AK141: =SUMPRODUCT((AI142="Non Validé")*(Bareme!AE196)) -> 0 | AL141: =100*SUM(AY142:AY144)/SUMPRODUCT((AL142:AL144<>"x")*(Bareme!AE196:AE198)) -> 0
A142: C 131 | D142: Collecter toutes les données nécessaires à une intervention | N142: Toutes les données, techniques et réglementaires, sont correctement recensées et collectées | AI142: =IF(AL142="","",IF(AL142="x","Non Evalué",(IF(AL142=0,"Non Validé","Validé")))) ->  | AM142: Commentaires: | AV142: 0 | AY142: =IF(AL142="","",IF(AL142="x","",IF(AL142=0,0,Bareme!AE196*AL142/3))) -> 
E165: =IF(OR(I178="",(AND(AE50="",AE68="",AE94="",AE122="",AE134="",AE140=""))=0),"",CONCATENATE("PROPOSITION: ",CEILING(I178,0.5),"/20 (",ROUND(100*COUNTIF(U176:U181,"E")/(COUNTIF(U176:U181,"E")+COUNTIF(U176:U181,"NE")),0),"% des compétences évaluées).")) -> PROPOSITION: 0/20 (100% des compétences évaluées).
E168: Proposition des évaluateurs:
C173: Ne pas effacer
O174: =CONCATENATE("Statistique U32 de ",$AE$4) -> 
O175: Compétences | P175: =IF(AE4="","",AE4) ->  | Q175: Satisfaction maximale | R175: Satisfaction moyenne | S175: =CONCATENATE("Statistique U31 de ",$AE$4) ->  | T175: Coefficients | U175: Validée ou Non Validée
C176: Somme | I176: =SUMPRODUCT((P176:P181)) -> 0 | K176: =SUM(Q176:Q181) -> 800 | O176: =A140 -> C 1.3 - Collecter les données techniques | P176: =IF(OR(U176="NE",U176=""),"",S176*T176) -> 0 | Q176: =IF(OR(U176="NE",U176=""),"",T176*8) -> 80 | R176: =IF(OR(U176="NE",U176=""),"",Q176/2) -> 40 | S176: =IF($AV$142="","",$AV$142) -> 0 | T176: =Bareme!AE194 -> 10 | U176: =IF(AI140="","",AI140) -> E
O177: =A50 -> C 2.1 - Organiser son poste de travail | P177: 0 | Q177: 80 | R177: 40 | S177: =IF($AV$52="","",$AV$52) -> 0 | T177: =Bareme!AE106 -> 10 | U177: =IF(AI50="","",AI50) -> E
C178: Moyenne /20 | I178: =IF($K$176=0,"",K178*$I$176/$K$176) -> 0 | K178: 20 | O178: =A68 -> C 2.2 - Diagnostiquer | P178: 0 | Q178: 200 | R178: 100 | S178: =IF($AV$70="","",$AV$70) -> 0 | T178: =Bareme!AE124 -> 25 | U178: =IF(AI68="","",AI68) -> E
O179: =A94 -> C 3.1 : Réaliser une intervention sur systèmes complexes. | P179: 0 | Q179: 280 | R179: 140 | S179: =IF($AV$96="","",$AV$96) -> 0 | T179: =Bareme!AE150 -> 35 | U179: =IF(AI94="","",AI94) -> E
C180: Moyenne /40 | I180: =IF($K$176=0,"",K180*$I$176/$K$176) -> 0 | K180: 40 | O180: =A122 -> C41 - Évaluer la qualité de son intervention | P180: 0 | Q180: 80 | R180: 40 | S180: =IF($AV$124="","",$AV$124) -> 0 | T180: =Bareme!AE176 -> 10 | U180: =IF(AI122="","",AI122) -> E
O181: =A134 -> C 1 2 - Informer le client et l'entreprise sur la nature de l'intervention | P181: 0 | Q181: 80 | R181: 40 | S181: =IF($AV$136="","",$AV$136) -> 0 | T181: =Bareme!AE194 -> 10 | U181: =IF(AI134="","",AI134) -> E
C182: Ne pas effacer

Sheet U33 (hidden)
A1: Baccalauréat professionnel « maintenance des véhicules automobiles »
A2: Épreuve E3.3 (Unité U3.3) : Intervention sur un système de haute technicité
A3: Établissement : (tampon) | X3: Session : | AE3: =IF(Bilan!B2="","",Bilan!B2) -> 2012
A4: =IF(Bilan!B3="","",Bilan!B3) -> LP de l'académie de grenoble | X4: Nom du candidat: | AE4: =IF(INDEX((Bilan!B5:B34),(MATCH(RIGHT(CELL("nomfichier",A1),LEN(CELL("nomfichier",A1))-FIND("]",CELL("nomfichier",A1))),Bilan!H5:H34,0)))="","",INDEX((Bilan!B5:B34),(MATCH(RIGHT(CELL("nomfichier",A1),LEN(CELL("nomfichier",A1))-FIND("]",CELL("nomfichier",A1))),Bilan!H5:H34,0)))) -> 
X5: Prénom :
X6: Date de l'évaluation: | AV6: Choisisser votre situation
A7: Lieu d’évaluation :
A8: Etablissement
A9: Entreprise :
A10: Description sommaire du travail demandé :
A11: =IF($AV$7="","",IF($AV$7="A",IF(U33_A!A11="","",U33_A!A11),IF($AV$7="B",IF(U33_B!A11="","",U33_B!A11),IF($AV$7="C",IF(U33_C!A11="","",U33_C!A11),IF($AV$7="D",IF(U33_D!A11="","",U33_D!A11),IF($AV$7="E",IF(U33_E!A11="","",U33_E!A11),IF($AV$7="F",IF(U33_F!A11="","",U33_F!A11),IF($AV$7="G",IF(U33_G!A11="","",U33_G!A11),IF($AV$7="H",IF(U33_H!A11="","",U33_H!A11),""))))))))) ->  | B11: =IF($AV$7="","",IF($AV$7="A",IF(U33_A!B11="","",U33_A!B11),IF($AV$7="B",IF(U33_B!B11="","",U33_B!B11),IF($AV$7="C",IF(U33_C!B11="","",U33_C!B11),IF($AV$7="D",IF(U33_D!B11="","",U33_D!B11),IF($AV$7="E",IF(U33_E!B11="","",U33_E!B11),IF($AV$7="F",IF(U33_F!B11="","",U33_F!B11),IF($AV$7="G",IF(U33_G!B11="","",U33_G!B11),IF($AV$7="H",IF(U33_H!B11="","",U33_H!B11),""))))))))) ->  | C11: =IF($AV$7="","",IF($AV$7="A",IF(U33_A!C11="","",U33_A!C11),IF($AV$7="B",IF(U33_B!C11="","",U33_B!C11),IF($AV$7="C",IF(U33_C!C11="","",U33_C!C11),IF($AV$7="D",IF(U33_D!C11="","",U33_D!C11),IF($AV$7="E",IF(U33_E!C11="","",U33_E!C11),IF($AV$7="F",IF(U33_F!C11="","",U33_F!C11),IF($AV$7="G",IF(U33_G!C11="","",U33_G!C11),IF($AV$7="H",IF(U33_H!C11="","",U33_H!C11),""))))))))) ->  | D11: =IF($AV$7="","",IF($AV$7="A",IF(U33_A!D11="","",U33_A!D11),IF($AV$7="B",IF(U33_B!D11="","",U33_B!D11),IF($AV$7="C",IF(U33_C!D11="","",U33_C!D11),IF($AV$7="D",IF(U33_D!D11="","",U33_D!D11),IF($AV$7="E",IF(U33_E!D11="","",U33_E!D11),IF($AV$7="F",IF(U33_F!D11="","",U33_F!D11),IF($AV$7="G",IF(U33_G!D11="","",U33_G!D11),IF($AV$7="H",IF(U33_H!D11="","",U33_H!D11),""))))))))) ->  | E11: =IF($AV$7="","",IF($AV$7="A",IF(U33_A!E11="","",U33_A!E11),IF($AV$7="B",IF(U33_B!E11="","",U33_B!E11),IF($AV$7="C",IF(U33_C!E11="","",U33_C!E11),IF($AV$7="D",IF(U33_D!E11="","",U33_D!E11),IF($AV$7="E",IF(U33_E!E11="","",U33_E!E11),IF($AV$7="F",IF(U33_F!E11="","",U33_F!E11),IF($AV$7="G",IF(U33_G!E11="","",U33_G!E11),IF($AV$7="H",IF(U33_H!E11="","",U33_H!E11),""))))))))) ->  | F11: =IF($AV$7="","",IF($AV$7="A",IF(U33_A!F11="","",U33_A!F11),IF($AV$7="B",IF(U33_B!F11="","",U33_B!F11),IF($AV$7="C",IF(U33_C!F11="","",U33_C!F11),IF($AV$7="D",IF(U33_D!F11="","",U33_D!F11),IF($AV$7="E",IF(U33_E!F11="","",U33_E!F11),IF($AV$7="F",IF(U33_F!F11="","",U33_F!F11),IF($AV$7="G",IF(U33_G!F11="","",U33_G!F11),IF($AV$7="H",IF(U33_H!F11="","",U33_H!F11),""))))))))) ->  | G11: =IF($AV$7="","",IF($AV$7="A",IF(U33_A!G11="","",U33_A!G11),IF($AV$7="B",IF(U33_B!G11="","",U33_B!G11),IF($AV$7="C",IF(U33_C!G11="","",U33_C!G11),IF($AV$7="D",IF(U33_D!G11="","",U33_D!G11),IF($AV$7="E",IF(U33_E!G11="","",U33_E!G11),IF($AV$7="F",IF(U33_F!G11="","",U33_F!G11),IF($AV$7="G",IF(U33_G!G11="","",U33_G!G11),IF($AV$7="H",IF(U33_H!G11="","",U33_H!G11),""))))))))) ->  | H11: =IF($AV$7="","",IF($AV$7="A",IF(U33_A!H11="","",U33_A!H11),IF($AV$7="B",IF(U33_B!H11="","",U33_B!H11),IF($AV$7="C",IF(U33_C!H11="","",U33_C!H11),IF($AV$7="D",IF(U33_D!H11="","",U33_D!H11),IF($AV$7="E",IF(U33_E!H11="","",U33_E!H11),IF($AV$7="F",IF(U33_F!H11="","",U33_F!H11),IF($AV$7="G",IF(U33_G!H11="","",U33_G!H11),IF($AV$7="H",IF(U33_H!H11="","",U33_H!H11),""))))))))) ->  | I11: =IF($AV$7="","",IF($AV$7="A",IF(U33_A!I11="","",U33_A!I11),IF($AV$7="B",IF(U33_B!I11="","",U33_B!I11),IF($AV$7="C",IF(U33_C!I11="","",U33_C!I11),IF($AV$7="D",IF(U33_D!I11="","",U33_D!I11),IF($AV$7="E",IF(U33_E!I11="","",U33_E!I11),IF($AV$7="F",IF(U33_F!I11="","",U33_F!I11),IF($AV$7="G",IF(U33_G!I11="","",U33_G!I11),IF($AV$7="H",IF(U33_H!I11="","",U33_H!I11),""))))))))) ->  | J11: =IF($AV$7="","",IF($AV$7="A",IF(U33_A!J11="","",U33_A!J11),IF($AV$7="B",IF(U33_B!J11="","",U33_B!J11),IF($AV$7="C",IF(U33_C!J11="","",U33_C!J11),IF($AV$7="D",IF(U33_D!J11="","",U33_D!J11),IF($AV$7="E",IF(U33_E!J11="","",U33_E!J11),IF($AV$7="F",IF(U33_F!J11="","",U33_F!J11),IF($AV$7="G",IF(U33_G!J11="","",U33_G!J11),IF($AV$7="H",IF(U33_H!J11="","",U33_H!J11),""))))))))) ->  | K11: =IF($AV$7="","",IF($AV$7="A",IF(U33_A!K11="","",U33_A!K11),IF($AV$7="B",IF(U33_B!K11="","",U33_B!K11),IF($AV$7="C",IF(U33_C!K11="","",U33_C!K11),IF($AV$7="D",IF(U33_D!K11="","",U33_D!K11),IF($AV$7="E",IF(U33_E!K11="","",U33_E!K11),IF($AV$7="F",IF(U33_F!K11="","",U33_F!K11),IF($AV$7="G",IF(U33_G!K11="","",U33_G!K11),IF($AV$7="H",IF(U33_H!K11="","",U33_H!K11),""))))))))) ->  | L11: =IF($AV$7="","",IF($AV$7="A",IF(U33_A!L11="","",U33_A!L11),IF($AV$7="B",IF(U33_B!L11="","",U33_B!L11),IF($AV$7="C",IF(U33_C!L11="","",U33_C!L11),IF($AV$7="D",IF(U33_D!L11="","",U33_D!L11),IF($AV$7="E",IF(U33_E!L11="","",U33_E!L11),IF($AV$7="F",IF(U33_F!L11="","",U33_F!L11),IF($AV$7="G",IF(U33_G!L11="","",U33_G!L11),IF($AV$7="H",IF(U33_H!L11="","",U33_H!L11),""))))))))) ->  | M11: =IF($AV$7="","",IF($AV$7="A",IF(U33_A!M11="","",U33_A!M11),IF($AV$7="B",IF(U33_B!M11="","",U33_B!M11),IF($AV$7="C",IF(U33_C!M11="","",U33_C!M11),IF($AV$7="D",IF(U33_D!M11="","",U33_D!M11),IF($AV$7="E",IF(U33_E!M11="","",U33_E!M11),IF($AV$7="F",IF(U33_F!M11="","",U33_F!M11),IF($AV$7="G",IF(U33_G!M11="","",U33_G!M11),IF($AV$7="H",IF(U33_H!M11="","",U33_H!M11),""))))))))) ->  | N11: =IF($AV$7="","",IF($AV$7="A",IF(U33_A!N11="","",U33_A!N11),IF($AV$7="B",IF(U33_B!N11="","",U33_B!N11),IF($AV$7="C",IF(U33_C!N11="","",U33_C!N11),IF($AV$7="D",IF(U33_D!N11="","",U33_D!N11),IF($AV$7="E",IF(U33_E!N11="","",U33_E!N11),IF($AV$7="F",IF(U33_F!N11="","",U33_F!N11),IF($AV$7="G",IF(U33_G!N11="","",U33_G!N11),IF($AV$7="H",IF(U33_H!N11="","",U33_H!N11),""))))))))) ->  | O11: =IF($AV$7="","",IF($AV$7="A",IF(U33_A!O11="","",U33_A!O11),IF($AV$7="B",IF(U33_B!O11="","",U33_B!O11),IF($AV$7="C",IF(U33_C!O11="","",U33_C!O11),IF($AV$7="D",IF(U33_D!O11="","",U33_D!O11),IF($AV$7="E",IF(U33_E!O11="","",U33_E!O11),IF($AV$7="F",IF(U33_F!O11="","",U33_F!O11),IF($AV$7="G",IF(U33_G!O11="","",U33_G!O11),IF($AV$7="H",IF(U33_H!O11="","",U33_H!O11),""))))))))) ->  | P11: =IF($AV$7="","",IF($AV$7="A",IF(U33_A!P11="","",U33_A!P11),IF($AV$7="B",IF(U33_B!P11="","",U33_B!P11),IF($AV$7="C",IF(U33_C!P11="","",U33_C!P11),IF($AV$7="D",IF(U33_D!P11="","",U33_D!P11),IF($AV$7="E",IF(U33_E!P11="","",U33_E!P11),IF($AV$7="F",IF(U33_F!P11="","",U33_F!P11),IF($AV$7="G",IF(U33_G!P11="","",U33_G!P11),IF($AV$7="H",IF(U33_H!P11="","",U33_H!P11),""))))))))) ->  | Q11: =IF($AV$7="","",IF($AV$7="A",IF(U33_A!Q11="","",U33_A!Q11),IF($AV$7="B",IF(U33_B!Q11="","",U33_B!Q11),IF($AV$7="C",IF(U33_C!Q11="","",U33_C!Q11),IF($AV$7="D",IF(U33_D!Q11="","",U33_D!Q11),IF($AV$7="E",IF(U33_E!Q11="","",U33_E!Q11),IF($AV$7="F",IF(U33_F!Q11="","",U33_F!Q11),IF($AV$7="G",IF(U33_G!Q11="","",U33_G!Q11),IF($AV$7="H",IF(U33_H!Q11="","",U33_H!Q11),""))))))))) ->  | R11: =IF($AV$7="","",IF($AV$7="A",IF(U33_A!R11="","",U33_A!R11),IF($AV$7="B",IF(U33_B!R11="","",U33_B!R11),IF($AV$7="C",IF(U33_C!R11="","",U33_C!R11),IF($AV$7="D",IF(U33_D!R11="","",U33_D!R11),IF($AV$7="E",IF(U33_E!R11="","",U33_E!R11),IF($AV$7="F",IF(U33_F!R11="","",U33_F!R11),IF($AV$7="G",IF(U33_G!R11="","",U33_G!R11),IF($AV$7="H",IF(U33_H!R11="","",U33_H!R11),""))))))))) ->  | S11: =IF($AV$7="","",IF($AV$7="A",IF(U33_A!S11="","",U33_A!S11),IF($AV$7="B",IF(U33_B!S11="","",U33_B!S11),IF($AV$7="C",IF(U33_C!S11="","",U33_C!S11),IF($AV$7="D",IF(U33_D!S11="","",U33_D!S11),IF($AV$7="E",IF(U33_E!S11="","",U33_E!S11),IF($AV$7="F",IF(U33_F!S11="","",U33_F!S11),IF($AV$7="G",IF(U33_G!S11="","",U33_G!S11),IF($AV$7="H",IF(U33_H!S11="","",U33_H!S11),""))))))))) ->  | T11: =IF($AV$7="","",IF($AV$7="A",IF(U33_A!T11="","",U33_A!T11),IF($AV$7="B",IF(U33_B!T11="","",U33_B!T11),IF($AV$7="C",IF(U33_C!T11="","",U33_C!T11),IF($AV$7="D",IF(U33_D!T11="","",U33_D!T11),IF($AV$7="E",IF(U33_E!T11="","",U33_E!T11),IF($AV$7="F",IF(U33_F!T11="","",U33_F!T11),IF($AV$7="G",IF(U33_G!T11="","",U33_G!T11),IF($AV$7="H",IF(U33_H!T11="","",U33_H!T11),""))))))))) ->  | U11: =IF($AV$7="","",IF($AV$7="A",IF(U33_A!U11="","",U33_A!U11),IF($AV$7="B",IF(U33_B!U11="","",U33_B!U11),IF($AV$7="C",IF(U33_C!U11="","",U33_C!U11),IF($AV$7="D",IF(U33_D!U11="","",U33_D!U11),IF($AV$7="E",IF(U33_E!U11="","",U33_E!U11),IF($AV$7="F",IF(U33_F!U11="","",U33_F!U11),IF($AV$7="G",IF(U33_G!U11="","",U33_G!U11),IF($AV$7="H",IF(U33_H!U11="","",U33_H!U11),""))))))))) ->  | V11: =IF($AV$7="","",IF($AV$7="A",IF(U33_A!V11="","",U33_A!V11),IF($AV$7="B",IF(U33_B!V11="","",U33_B!V11),IF($AV$7="C",IF(U33_C!V11="","",U33_C!V11),IF($AV$7="D",IF(U33_D!V11="","",U33_D!V11),IF($AV$7="E",IF(U33_E!V11="","",U33_E!V11),IF($AV$7="F",IF(U33_F!V11="","",U33_F!V11),IF($AV$7="G",IF(U33_G!V11="","",U33_G!V11),IF($AV$7="H",IF(U33_H!V11="","",U33_H!V11),""))))))))) ->  | W11: =IF($AV$7="","",IF($AV$7="A",IF(U33_A!W11="","",U33_A!W11),IF($AV$7="B",IF(U33_B!W11="","",U33_B!W11),IF($AV$7="C",IF(U33_C!W11="","",U33_C!W11),IF($AV$7="D",IF(U33_D!W11="","",U33_D!W11),IF($AV$7="E",IF(U33_E!W11="","",U33_E!W11),IF($AV$7="F",IF(U33_F!W11="","",U33_F!W11),IF($AV$7="G",IF(U33_G!W11="","",U33_G!W11),IF($AV$7="H",IF(U33_H!W11="","",U33_H!W11),""))))))))) ->  | X11: =IF($AV$7="","",IF($AV$7="A",IF(U33_A!X11="","",U33_A!X11),IF($AV$7="B",IF(U33_B!X11="","",U33_B!X11),IF($AV$7="C",IF(U33_C!X11="","",U33_C!X11),IF($AV$7="D",IF(U33_D!X11="","",U33_D!X11),IF($AV$7="E",IF(U33_E!X11="","",U33_E!X11),IF($AV$7="F",IF(U33_F!X11="","",U33_F!X11),IF($AV$7="G",IF(U33_G!X11="","",U33_G!X11),IF($AV$7="H",IF(U33_H!X11="","",U33_H!X11),""))))))))) ->  | Y11: =IF($AV$7="","",IF($AV$7="A",IF(U33_A!Y11="","",U33_A!Y11),IF($AV$7="B",IF(U33_B!Y11="","",U33_B!Y11),IF($AV$7="C",IF(U33_C!Y11="","",U33_C!Y11),IF($AV$7="D",IF(U33_D!Y11="","",U33_D!Y11),IF($AV$7="E",IF(U33_E!Y11="","",U33_E!Y11),IF($AV$7="F",IF(U33_F!Y11="","",U33_F!Y11),IF($AV$7="G",IF(U33_G!Y11="","",U33_G!Y11),IF($AV$7="H",IF(U33_H!Y11="","",U33_H!Y11),""))))))))) ->  | Z11: =IF($AV$7="","",IF($AV$7="A",IF(U33_A!Z11="","",U33_A!Z11),IF($AV$7="B",IF(U33_B!Z11="","",U33_B!Z11),IF($AV$7="C",IF(U33_C!Z11="","",U33_C!Z11),IF($AV$7="D",IF(U33_D!Z11="","",U33_D!Z11),IF($AV$7="E",IF(U33_E!Z11="","",U33_E!Z11),IF($AV$7="F",IF(U33_F!Z11="","",U33_F!Z11),IF($AV$7="G",IF(U33_G!Z11="","",U33_G!Z11),IF($AV$7="H",IF(U33_H!Z11="","",U33_H!Z11),""))))))))) ->  | AA11: =IF($AV$7="","",IF($AV$7="A",IF(U33_A!AA11="","",U33_A!AA11),IF($AV$7="B",IF(U33_B!AA11="","",U33_B!AA11),IF($AV$7="C",IF(U33_C!AA11="","",U33_C!AA11),IF($AV$7="D",IF(U33_D!AA11="","",U33_D!AA11),IF($AV$7="E",IF(U33_E!AA11="","",U33_E!AA11),IF($AV$7="F",IF(U33_F!AA11="","",U33_F!AA11),IF($AV$7="G",IF(U33_G!AA11="","",U33_G!AA11),IF($AV$7="H",IF(U33_H!AA11="","",U33_H!AA11),""))))))))) ->  | AB11: =IF($AV$7="","",IF($AV$7="A",IF(U33_A!AB11="","",U33_A!AB11),IF($AV$7="B",IF(U33_B!AB11="","",U33_B!AB11),IF($AV$7="C",IF(U33_C!AB11="","",U33_C!AB11),IF($AV$7="D",IF(U33_D!AB11="","",U33_D!AB11),IF($AV$7="E",IF(U33_E!AB11="","",U33_E!AB11),IF($AV$7="F",IF(U33_F!AB11="","",U33_F!AB11),IF($AV$7="G",IF(U33_G!AB11="","",U33_G!AB11),IF($AV$7="H",IF(U33_H!AB11="","",U33_H!AB11),""))))))))) ->  | AC11: =IF($AV$7="","",IF($AV$7="A",IF(U33_A!AC11="","",U33_A!AC11),IF($AV$7="B",IF(U33_B!AC11="","",U33_B!AC11),IF($AV$7="C",IF(U33_C!AC11="","",U33_C!AC11),IF($AV$7="D",IF(U33_D!AC11="","",U33_D!AC11),IF($AV$7="E",IF(U33_E!AC11="","",U33_E!AC11),IF($AV$7="F",IF(U33_F!AC11="","",U33_F!AC11),IF($AV$7="G",IF(U33_G!AC11="","",U33_G!AC11),IF($AV$7="H",IF(U33_H!AC11="","",U33_H!AC11),""))))))))) ->  | AD11: =IF($AV$7="","",IF($AV$7="A",IF(U33_A!AD11="","",U33_A!AD11),IF($AV$7="B",IF(U33_B!AD11="","",U33_B!AD11),IF($AV$7="C",IF(U33_C!AD11="","",U33_C!AD11),IF($AV$7="D",IF(U33_D!AD11="","",U33_D!AD11),IF($AV$7="E",IF(U33_E!AD11="","",U33_E!AD11),IF($AV$7="F",IF(U33_F!AD11="","",U33_F!AD11),IF($AV$7="G",IF(U33_G!AD11="","",U33_G!AD11),IF($AV$7="H",IF(U33_H!AD11="","",U33_H!AD11),""))))))))) ->  | AE11: =IF($AV$7="","",IF($AV$7="A",IF(U33_A!AE11="","",U33_A!AE11),IF($AV$7="B",IF(U33_B!AE11="","",U33_B!AE11),IF($AV$7="C",IF(U33_C!AE11="","",U33_C!AE11),IF($AV$7="D",IF(U33_D!AE11="","",U33_D!AE11),IF($AV$7="E",IF(U33_E!AE11="","",U33_E!AE11),IF($AV$7="F",IF(U33_F!AE11="","",U33_F!AE11),IF($AV$7="G",IF(U33_G!AE11="","",U33_G!AE11),IF($AV$7="H",IF(U33_H!AE11="","",U33_H!AE11),""))))))))) ->  | AF11: =IF($AV$7="","",IF($AV$7="A",IF(U33_A!AF11="","",U33_A!AF11),IF($AV$7="B",IF(U33_B!AF11="","",U33_B!AF11),IF($AV$7="C",IF(U33_C!AF11="","",U33_C!AF11),IF($AV$7="D",IF(U33_D!AF11="","",U33_D!AF11),IF($AV$7="E",IF(U33_E!AF11="","",U33_E!AF11),IF($AV$7="F",IF(U33_F!AF11="","",U33_F!AF11),IF($AV$7="G",IF(U33_G!AF11="","",U33_G!AF11),IF($AV$7="H",IF(U33_H!AF11="","",U33_H!AF11),""))))))))) ->  | AG11: =IF($AV$7="","",IF($AV$7="A",IF(U33_A!AG11="","",U33_A!AG11),IF($AV$7="B",IF(U33_B!AG11="","",U33_B!AG11),IF($AV$7="C",IF(U33_C!AG11="","",U33_C!AG11),IF($AV$7="D",IF(U33_D!AG11="","",U33_D!AG11),IF($AV$7="E",IF(U33_E!AG11="","",U33_E!AG11),IF($AV$7="F",IF(U33_F!AG11="","",U33_F!AG11),IF($AV$7="G",IF(U33_G!AG11="","",U33_G!AG11),IF($AV$7="H",IF(U33_H!AG11="","",U33_H!AG11),""))))))))) ->  | AH11: =IF($AV$7="","",IF($AV$7="A",IF(U33_A!AH11="","",U33_A!AH11),IF($AV$7="B",IF(U33_B!AH11="","",U33_B!AH11),IF($AV$7="C",IF(U33_C!AH11="","",U33_C!AH11),IF($AV$7="D",IF(U33_D!AH11="","",U33_D!AH11),IF($AV$7="E",IF(U33_E!AH11="","",U33_E!AH11),IF($AV$7="F",IF(U33_F!AH11="","",U33_F!AH11),IF($AV$7="G",IF(U33_G!AH11="","",U33_G!AH11),IF($AV$7="H",IF(U33_H!AH11="","",U33_H!AH11),""))))))))) ->  | AI11: =IF($AV$7="","",IF($AV$7="A",IF(U33_A!AI11="","",U33_A!AI11),IF($AV$7="B",IF(U33_B!AI11="","",U33_B!AI11),IF($AV$7="C",IF(U33_C!AI11="","",U33_C!AI11),IF($AV$7="D",IF(U33_D!AI11="","",U33_D!AI11),IF($AV$7="E",IF(U33_E!AI11="","",U33_E!AI11),IF($AV$7="F",IF(U33_F!AI11="","",U33_F!AI11),IF($AV$7="G",IF(U33_G!AI11="","",U33_G!AI11),IF($AV$7="H",IF(U33_H!AI11="","",U33_H!AI11),""))))))))) ->  | AJ11: =IF($AV$7="","",IF($AV$7="A",IF(U33_A!AJ11="","",U33_A!AJ11),IF($AV$7="B",IF(U33_B!AJ11="","",U33_B!AJ11),IF($AV$7="C",IF(U33_C!AJ11="","",U33_C!AJ11),IF($AV$7="D",IF(U33_D!AJ11="","",U33_D!AJ11),IF($AV$7="E",IF(U33_E!AJ11="","",U33_E!AJ11),IF($AV$7="F",IF(U33_F!AJ11="","",U33_F!AJ11),IF($AV$7="G",IF(U33_G!AJ11="","",U33_G!AJ11),IF($AV$7="H",IF(U33_H!AJ11="","",U33_H!AJ11),""))))))))) ->  | AK11: =IF($AV$7="","",IF($AV$7="A",IF(U33_A!AK11="","",U33_A!AK11),IF($AV$7="B",IF(U33_B!AK11="","",U33_B!AK11),IF($AV$7="C",IF(U33_C!AK11="","",U33_C!AK11),IF($AV$7="D",IF(U33_D!AK11="","",U33_D!AK11),IF($AV$7="E",IF(U33_E!AK11="","",U33_E!AK11),IF($AV$7="F",IF(U33_F!AK11="","",U33_F!AK11),IF($AV$7="G",IF(U33_G!AK11="","",U33_G!AK11),IF($AV$7="H",IF(U33_H!AK11="","",U33_H!AK11),""))))))))) ->  | AL11: =IF($AV$7="","",IF($AV$7="A",IF(U33_A!AL11="","",U33_A!AL11),IF($AV$7="B",IF(U33_B!AL11="","",U33_B!AL11),IF($AV$7="C",IF(U33_C!AL11="","",U33_C!AL11),IF($AV$7="D",IF(U33_D!AL11="","",U33_D!AL11),IF($AV$7="E",IF(U33_E!AL11="","",U33_E!AL11),IF($AV$7="F",IF(U33_F!AL11="","",U33_F!AL11),IF($AV$7="G",IF(U33_G!AL11="","",U33_G!AL11),IF($AV$7="H",IF(U33_H!AL11="","",U33_H!AL11),""))))))))) ->  | AM11: =IF($AV$7="","",IF($AV$7="A",IF(U33_A!AM11="","",U33_A!AM11),IF($AV$7="B",IF(U33_B!AM11="","",U33_B!AM11),IF($AV$7="C",IF(U33_C!AM11="","",U33_C!AM11),IF($AV$7="D",IF(U33_D!AM11="","",U33_D!AM11),IF($AV$7="E",IF(U33_E!AM11="","",U33_E!AM11),IF($AV$7="F",IF(U33_F!AM11="","",U33_F!AM11),IF($AV$7="G",IF(U33_G!AM11="","",U33_G!AM11),IF($AV$7="H",IF(U33_H!AM11="","",U33_H!AM11),""))))))))) ->  | AN11: =IF($AV$7="","",IF($AV$7="A",IF(U33_A!AN11="","",U33_A!AN11),IF($AV$7="B",IF(U33_B!AN11="","",U33_B!AN11),IF($AV$7="C",IF(U33_C!AN11="","",U33_C!AN11),IF($AV$7="D",IF(U33_D!AN11="","",U33_D!AN11),IF($AV$7="E",IF(U33_E!AN11="","",U33_E!AN11),IF($AV$7="F",IF(U33_F!AN11="","",U33_F!AN11),IF($AV$7="G",IF(U33_G!AN11="","",U33_G!AN11),IF($AV$7="H",IF(U33_H!AN11="","",U33_H!AN11),""))))))))) ->  | AO11: =IF($AV$7="","",IF($AV$7="A",IF(U33_A!AO11="","",U33_A!AO11),IF($AV$7="B",IF(U33_B!AO11="","",U33_B!AO11),IF($AV$7="C",IF(U33_C!AO11="","",U33_C!AO11),IF($AV$7="D",IF(U33_D!AO11="","",U33_D!AO11),IF($AV$7="E",IF(U33_E!AO11="","",U33_E!AO11),IF($AV$7="F",IF(U33_F!AO11="","",U33_F!AO11),IF($AV$7="G",IF(U33_G!AO11="","",U33_G!AO11),IF($AV$7="H",IF(U33_H!AO11="","",U33_H!AO11),""))))))))) ->  | AP11: =IF($AV$7="","",IF($AV$7="A",IF(U33_A!AP11="","",U33_A!AP11),IF($AV$7="B",IF(U33_B!AP11="","",U33_B!AP11),IF($AV$7="C",IF(U33_C!AP11="","",U33_C!AP11),IF($AV$7="D",IF(U33_D!AP11="","",U33_D!AP11),IF($AV$7="E",IF(U33_E!AP11="","",U33_E!AP11),IF($AV$7="F",IF(U33_F!AP11="","",U33_F!AP11),IF($AV$7="G",IF(U33_G!AP11="","",U33_G!AP11),IF($AV$7="H",IF(U33_H!AP11="","",U33_H!AP11),""))))))))) ->  | AQ11: =IF($AV$7="","",IF($AV$7="A",IF(U33_A!AQ11="","",U33_A!AQ11),IF($AV$7="B",IF(U33_B!AQ11="","",U33_B!AQ11),IF($AV$7="C",IF(U33_C!AQ11="","",U33_C!AQ11),IF($AV$7="D",IF(U33_D!AQ11="","",U33_D!AQ11),IF($AV$7="E",IF(U33_E!AQ11="","",U33_E!AQ11),IF($AV$7="F",IF(U33_F!AQ11="","",U33_F!AQ11),IF($AV$7="G",IF(U33_G!AQ11="","",U33_G!AQ11),IF($AV$7="H",IF(U33_H!AQ11="","",U33_H!AQ11),""))))))))) ->  | AR11: =IF($AV$7="","",IF($AV$7="A",IF(U33_A!AR11="","",U33_A!AR11),IF($AV$7="B",IF(U33_B!AR11="","",U33_B!AR11),IF($AV$7="C",IF(U33_C!AR11="","",U33_C!AR11),IF($AV$7="D",IF(U33_D!AR11="","",U33_D!AR11),IF($AV$7="E",IF(U33_E!AR11="","",U33_E!AR11),IF($AV$7="F",IF(U33_F!AR11="","",U33_F!AR11),IF($AV$7="G",IF(U33_G!AR11="","",U33_G!AR11),IF($AV$7="H",IF(U33_H!AR11="","",U33_H!AR11),""))))))))) ->  | AS11: =IF($AV$7="","",IF($AV$7="A",IF(U33_A!AS11="","",U33_A!AS11),IF($AV$7="B",IF(U33_B!AS11="","",U33_B!AS11),IF($AV$7="C",IF(U33_C!AS11="","",U33_C!AS11),IF($AV$7="D",IF(U33_D!AS11="","",U33_D!AS11),IF($AV$7="E",IF(U33_E!AS11="","",U33_E!AS11),IF($AV$7="F",IF(U33_F!AS11="","",U33_F!AS11),IF($AV$7="G",IF(U33_G!AS11="","",U33_G!AS11),IF($AV$7="H",IF(U33_H!AS11="","",U33_H!AS11),""))))))))) ->  | AT11: =IF($AV$7="","",IF($AV$7="A",IF(U33_A!AT11="","",U33_A!AT11),IF($AV$7="B",IF(U33_B!AT11="","",U33_B!AT11),IF($AV$7="C",IF(U33_C!AT11="","",U33_C!AT11),IF($AV$7="D",IF(U33_D!AT11="","",U33_D!AT11),IF($AV$7="E",IF(U33_E!AT11="","",U33_E!AT11),IF($AV$7="F",IF(U33_F!AT11="","",U33_F!AT11),IF($AV$7="G",IF(U33_G!AT11="","",U33_G!AT11),IF($AV$7="H",IF(U33_H!AT11="","",U33_H!AT11),""))))))))) -> 
A13: Données fournies au candidat
A14: =IF($AV$7="","",IF($AV$7="A",IF(U33_A!A14="","",U33_A!A14),IF($AV$7="B",IF(U33_B!A14="","",U33_B!A14),IF($AV$7="C",IF(U33_C!A14="","",U33_C!A14),IF($AV$7="D",IF(U33_D!A14="","",U33_D!A14),IF($AV$7="E",IF(U33_E!A14="","",U33_E!A14),IF($AV$7="F",IF(U33_F!A14="","",U33_F!A14),IF($AV$7="G",IF(U33_G!A14="","",U33_G!A14),IF($AV$7="H",IF(U33_H!A14="","",U33_H!A14),""))))))))) ->  | B14: Un véhicule, un système ou sous-système | X14: =IF($AV$7="","",IF($AV$7="A",IF(U33_A!X14="","",U33_A!X14),IF($AV$7="B",IF(U33_B!X14="","",U33_B!X14),IF($AV$7="C",IF(U33_C!X14="","",U33_C!X14),IF($AV$7="D",IF(U33_D!X14="","",U33_D!X14),IF($AV$7="E",IF(U33_E!X14="","",U33_E!X14),IF($AV$7="F",IF(U33_F!X14="","",U33_F!X14),IF($AV$7="G",IF(U33_G!X14="","",U33_G!X14),IF($AV$7="H",IF(U33_H!X14="","",U33_H!X14),""))))))))) ->  | Y14: Outils d’aide au diagnostic (internes à l’entreprise et à distance)
A15: =IF($AV$7="","",IF($AV$7="A",IF(U33_A!A15="","",U33_A!A15),IF($AV$7="B",IF(U33_B!A15="","",U33_B!A15),IF($AV$7="C",IF(U33_C!A15="","",U33_C!A15),IF($AV$7="D",IF(U33_D!A15="","",U33_D!A15),IF($AV$7="E",IF(U33_E!A15="","",U33_E!A15),IF($AV$7="F",IF(U33_F!A15="","",U33_F!A15),IF($AV$7="G",IF(U33_G!A15="","",U33_G!A15),IF($AV$7="H",IF(U33_H!A15="","",U33_H!A15),""))))))))) ->  | B15: Un ou plusieurs éléments d’un système en dysfonctionnement. | X15: =IF($AV$7="","",IF($AV$7="A",IF(U33_A!X15="","",U33_A!X15),IF($AV$7="B",IF(U33_B!X15="","",U33_B!X15),IF($AV$7="C",IF(U33_C!X15="","",U33_C!X15),IF($AV$7="D",IF(U33_D!X15="","",U33_D!X15),IF($AV$7="E",IF(U33_E!X15="","",U33_E!X15),IF($AV$7="F",IF(U33_F!X15="","",U33_F!X15),IF($AV$7="G",IF(U33_G!X15="","",U33_G!X15),IF($AV$7="H",IF(U33_H!X15="","",U33_H!X15),""))))))))) ->  | Y15: Protections intérieures et extérieures
A16: =IF($AV$7="","",IF($AV$7="A",IF(U33_A!A16="","",U33_A!A16),IF($AV$7="B",IF(U33_B!A16="","",U33_B!A16),IF($AV$7="C",IF(U33_C!A16="","",U33_C!A16),IF($AV$7="D",IF(U33_D!A16="","",U33_D!A16),IF($AV$7="E",IF(U33_E!A16="","",U33_E!A16),IF($AV$7="F",IF(U33_F!A16="","",U33_F!A16),IF($AV$7="G",IF(U33_G!A16="","",U33_G!A16),IF($AV$7="H",IF(U33_H!A16="","",U33_H!A16),""))))))))) ->  | B16: Présence du client | X16: =IF($AV$7="","",IF($AV$7="A",IF(U33_A!X16="","",U33_A!X16),IF($AV$7="B",IF(U33_B!X16="","",U33_B!X16),IF($AV$7="C",IF(U33_C!X16="","",U33_C!X16),IF($AV$7="D",IF(U33_D!X16="","",U33_D!X16),IF($AV$7="E",IF(U33_E!X16="","",U33_E!X16),IF($AV$7="F",IF(U33_F!X16="","",U33_F!X16),IF($AV$7="G",IF(U33_G!X16="","",U33_G!X16),IF($AV$7="H",IF(U33_H!X16="","",U33_H!X16),""))))))))) ->  | Y16: Équipements, outillages et notices d’utilisation nécessaires à l’intervention.
A17: =IF($AV$7="","",IF($AV$7="A",IF(U33_A!A17="","",U33_A!A17),IF($AV$7="B",IF(U33_B!A17="","",U33_B!A17),IF($AV$7="C",IF(U33_C!A17="","",U33_C!A17),IF($AV$7="D",IF(U33_D!A17="","",U33_D!A17),IF($AV$7="E",IF(U33_E!A17="","",U33_E!A17),IF($AV$7="F",IF(U33_F!A17="","",U33_F!A17),IF($AV$7="G",IF(U33_G!A17="","",U33_G!A17),IF($AV$7="H",IF(U33_H!A17="","",U33_H!A17),""))))))))) ->  | B17: Ordre de réparation | X17: =IF($AV$7="","",IF($AV$7="A",IF(U33_A!X17="","",U33_A!X17),IF($AV$7="B",IF(U33_B!X17="","",U33_B!X17),IF($AV$7="C",IF(U33_C!X17="","",U33_C!X17),IF($AV$7="D",IF(U33_D!X17="","",U33_D!X17),IF($AV$7="E",IF(U33_E!X17="","",U33_E!X17),IF($AV$7="F",IF(U33_F!X17="","",U33_F!X17),IF($AV$7="G",IF(U33_G!X17="","",U33_G!X17),IF($AV$7="H",IF(U33_H!X17="","",U33_H!X17),""))))))))) ->  | Y17: Appareils de mesures et de contrôles fixes ou embarqués avec les notices d’utilisation.
A18: =IF($AV$7="","",IF($AV$7="A",IF(U33_A!A18="","",U33_A!A18),IF($AV$7="B",IF(U33_B!A18="","",U33_B!A18),IF($AV$7="C",IF(U33_C!A18="","",U33_C!A18),IF($AV$7="D",IF(U33_D!A18="","",U33_D!A18),IF($AV$7="E",IF(U33_E!A18="","",U33_E!A18),IF($AV$7="F",IF(U33_F!A18="","",U33_F!A18),IF($AV$7="G",IF(U33_G!A18="","",U33_G!A18),IF($AV$7="H",IF(U33_H!A18="","",U33_H!A18),""))))))))) ->  | B18: Description de l’anomalie constatée et/ou de ses effets | X18: =IF($AV$7="","",IF($AV$7="A",IF(U33_A!X18="","",U33_A!X18),IF($AV$7="B",IF(U33_B!X18="","",U33_B!X18),IF($AV$7="C",IF(U33_C!X18="","",U33_C!X18),IF($AV$7="D",IF(U33_D!X18="","",U33_D!X18),IF($AV$7="E",IF(U33_E!X18="","",U33_E!X18),IF($AV$7="F",IF(U33_F!X18="","",U33_F!X18),IF($AV$7="G",IF(U33_G!X18="","",U33_G!X18),IF($AV$7="H",IF(U33_H!X18="","",U33_H!X18),""))))))))) ->  | Y18: Résultats des mesures et contrôles.
A19: =IF($AV$7="","",IF($AV$7="A",IF(U33_A!A19="","",U33_A!A19),IF($AV$7="B",IF(U33_B!A19="","",U33_B!A19),IF($AV$7="C",IF(U33_C!A19="","",U33_C!A19),IF($AV$7="D",IF(U33_D!A19="","",U33_D!A19),IF($AV$7="E",IF(U33_E!A19="","",U33_E!A19),IF($AV$7="F",IF(U33_F!A19="","",U33_F!A19),IF($AV$7="G",IF(U33_G!A19="","",U33_G!A19),IF($AV$7="H",IF(U33_H!A19="","",U33_H!A19),""))))))))) ->  | B19: Historique technique du véhicule (documents de suivi) | X19: =IF($AV$7="","",IF($AV$7="A",IF(U33_A!X19="","",U33_A!X19),IF($AV$7="B",IF(U33_B!X19="","",U33_B!X19),IF($AV$7="C",IF(U33_C!X19="","",U33_C!X19),IF($AV$7="D",IF(U33_D!X19="","",U33_D!X19),IF($AV$7="E",IF(U33_E!X19="","",U33_E!X19),IF($AV$7="F",IF(U33_F!X19="","",U33_F!X19),IF($AV$7="G",IF(U33_G!X19="","",U33_G!X19),IF($AV$7="H",IF(U33_H!X19="","",U33_H!X19),""))))))))) ->  | Y19: Un essai à effectuer si besoin
A20: =IF($AV$7="","",IF($AV$7="A",IF(U33_A!A20="","",U33_A!A20),IF($AV$7="B",IF(U33_B!A20="","",U33_B!A20),IF($AV$7="C",IF(U33_C!A20="","",U33_C!A20),IF($AV$7="D",IF(U33_D!A20="","",U33_D!A20),IF($AV$7="E",IF(U33_E!A20="","",U33_E!A20),IF($AV$7="F",IF(U33_F!A20="","",U33_F!A20),IF($AV$7="G",IF(U33_G!A20="","",U33_G!A20),IF($AV$7="H",IF(U33_H!A20="","",U33_H!A20),""))))))))) ->  | B20: Documentation technique du véhicule (données constructeur) | X20: =IF($AV$7="","",IF($AV$7="A",IF(U33_A!X20="","",U33_A!X20),IF($AV$7="B",IF(U33_B!X20="","",U33_B!X20),IF($AV$7="C",IF(U33_C!X20="","",U33_C!X20),IF($AV$7="D",IF(U33_D!X20="","",U33_D!X20),IF($AV$7="E",IF(U33_E!X20="","",U33_E!X20),IF($AV$7="F",IF(U33_F!X20="","",U33_F!X20),IF($AV$7="G",IF(U33_G!X20="","",U33_G!X20),IF($AV$7="H",IF(U33_H!X20="","",U33_H!X20),""))))))))) ->  | Y20: La réglementation.
A21: =IF($AV$7="","",IF($AV$7="A",IF(U33_A!A21="","",U33_A!A21),IF($AV$7="B",IF(U33_B!A21="","",U33_B!A21),IF($AV$7="C",IF(U33_C!A21="","",U33_C!A21),IF($AV$7="D",IF(U33_D!A21="","",U33_D!A21),IF($AV$7="E",IF(U33_E!A21="","",U33_E!A21),IF($AV$7="F",IF(U33_F!A21="","",U33_F!A21),IF($AV$7="G",IF(U33_G!A21="","",U33_G!A21),IF($AV$7="H",IF(U33_H!A21="","",U33_H!A21),""))))))))) ->  | B21: Planning de charge de l’atelier | X21: =IF($AV$7="","",IF($AV$7="A",IF(U33_A!X21="","",U33_A!X21),IF($AV$7="B",IF(U33_B!X21="","",U33_B!X21),IF($AV$7="C",IF(U33_C!X21="","",U33_C!X21),IF($AV$7="D",IF(U33_D!X21="","",U33_D!X21),IF($AV$7="E",IF(U33_E!X21="","",U33_E!X21),IF($AV$7="F",IF(U33_F!X21="","",U33_F!X21),IF($AV$7="G",IF(U33_G!X21="","",U33_G!X21),IF($AV$7="H",IF(U33_H!X21="","",U33_H!X21),""))))))))) ->  | Y21: Matériel de nettoyage et de remise en état
A22: =IF($AV$7="","",IF($AV$7="A",IF(U33_A!A22="","",U33_A!A22),IF($AV$7="B",IF(U33_B!A22="","",U33_B!A22),IF($AV$7="C",IF(U33_C!A22="","",U33_C!A22),IF($AV$7="D",IF(U33_D!A22="","",U33_D!A22),IF($AV$7="E",IF(U33_E!A22="","",U33_E!A22),IF($AV$7="F",IF(U33_F!A22="","",U33_F!A22),IF($AV$7="G",IF(U33_G!A22="","",U33_G!A22),IF($AV$7="H",IF(U33_H!A22="","",U33_H!A22),""))))))))) ->  | B22: Poste de travail | X22: =IF($AV$7="","",IF($AV$7="A",IF(U33_A!X22="","",U33_A!X22),IF($AV$7="B",IF(U33_B!X22="","",U33_B!X22),IF($AV$7="C",IF(U33_C!X22="","",U33_C!X22),IF($AV$7="D",IF(U33_D!X22="","",U33_D!X22),IF($AV$7="E",IF(U33_E!X22="","",U33_E!X22),IF($AV$7="F",IF(U33_F!X22="","",U33_F!X22),IF($AV$7="G",IF(U33_G!X22="","",U33_G!X22),IF($AV$7="H",IF(U33_H!X22="","",U33_H!X22),""))))))))) ->  | Y22: Déchets résultants d’une intervention sur un véhicule ou bateau.
A23: =IF($AV$7="","",IF($AV$7="A",IF(U33_A!A23="","",U33_A!A23),IF($AV$7="B",IF(U33_B!A23="","",U33_B!A23),IF($AV$7="C",IF(U33_C!A23="","",U33_C!A23),IF($AV$7="D",IF(U33_D!A23="","",U33_D!A23),IF($AV$7="E",IF(U33_E!A23="","",U33_E!A23),IF($AV$7="F",IF(U33_F!A23="","",U33_F!A23),IF($AV$7="G",IF(U33_G!A23="","",U33_G!A23),IF($AV$7="H",IF(U33_H!A23="","",U33_H!A23),""))))))))) ->  | B23: Les matériels de manutention et leurs notices d’utilisation | X23: =IF($AV$7="","",IF($AV$7="A",IF(U33_A!X23="","",U33_A!X23),IF($AV$7="B",IF(U33_B!X23="","",U33_B!X23),IF($AV$7="C",IF(U33_C!X23="","",U33_C!X23),IF($AV$7="D",IF(U33_D!X23="","",U33_D!X23),IF($AV$7="E",IF(U33_E!X23="","",U33_E!X23),IF($AV$7="F",IF(U33_F!X23="","",U33_F!X23),IF($AV$7="G",IF(U33_G!X23="","",U33_G!X23),IF($AV$7="H",IF(U33_H!X23="","",U33_H!X23),""))))))))) ->  | Y23: Bacs et conteneurs de récupération.
A24: =IF($AV$7="","",IF($AV$7="A",IF(U33_A!A24="","",U33_A!A24),IF($AV$7="B",IF(U33_B!A24="","",U33_B!A24),IF($AV$7="C",IF(U33_C!A24="","",U33_C!A24),IF($AV$7="D",IF(U33_D!A24="","",U33_D!A24),IF($AV$7="E",IF(U33_E!A24="","",U33_E!A24),IF($AV$7="F",IF(U33_F!A24="","",U33_F!A24),IF($AV$7="G",IF(U33_G!A24="","",U33_G!A24),IF($AV$7="H",IF(U33_H!A24="","",U33_H!A24),""))))))))) ->  | B24: Liste des opérations effectuées | X24: =IF($AV$7="","",IF($AV$7="A",IF(U33_A!X24="","",U33_A!X24),IF($AV$7="B",IF(U33_B!X24="","",U33_B!X24),IF($AV$7="C",IF(U33_C!X24="","",U33_C!X24),IF($AV$7="D",IF(U33_D!X24="","",U33_D!X24),IF($AV$7="E",IF(U33_E!X24="","",U33_E!X24),IF($AV$7="F",IF(U33_F!X24="","",U33_F!X24),IF($AV$7="G",IF(U33_G!X24="","",U33_G!X24),IF($AV$7="H",IF(U33_H!X24="","",U33_H!X24),""))))))))) ->  | Y24: Les outils de communication
A25: =IF($AV$7="","",IF($AV$7="A",IF(U33_A!A25="","",U33_A!A25),IF($AV$7="B",IF(U33_B!A25="","",U33_B!A25),IF($AV$7="C",IF(U33_C!A25="","",U33_C!A25),IF($AV$7="D",IF(U33_D!A25="","",U33_D!A25),IF($AV$7="E",IF(U33_E!A25="","",U33_E!A25),IF($AV$7="F",IF(U33_F!A25="","",U33_F!A25),IF($AV$7="G",IF(U33_G!A25="","",U33_G!A25),IF($AV$7="H",IF(U33_H!A25="","",U33_H!A25),""))))))))) ->  | B25: L’accessoire ou l’équipement à poser | X25: =IF($AV$7="","",IF($AV$7="A",IF(U33_A!X25="","",U33_A!X25),IF($AV$7="B",IF(U33_B!X25="","",U33_B!X25),IF($AV$7="C",IF(U33_C!X25="","",U33_C!X25),IF($AV$7="D",IF(U33_D!X25="","",U33_D!X25),IF($AV$7="E",IF(U33_E!X25="","",U33_E!X25),IF($AV$7="F",IF(U33_F!X25="","",U33_F!X25),IF($AV$7="G",IF(U33_G!X25="","",U33_G!X25),IF($AV$7="H",IF(U33_H!X25="","",U33_H!X25),""))))))))) -> 
A26: =IF($AV$7="","",IF($AV$7="A",IF(U33_A!A26="","",U33_A!A26),IF($AV$7="B",IF(U33_B!A26="","",U33_B!A26),IF($AV$7="C",IF(U33_C!A26="","",U33_C!A26),IF($AV$7="D",IF(U33_D!A26="","",U33_D!A26),IF($AV$7="E",IF(U33_E!A26="","",U33_E!A26),IF($AV$7="F",IF(U33_F!A26="","",U33_F!A26),IF($AV$7="G",IF(U33_G!A26="","",U33_G!A26),IF($AV$7="H",IF(U33_H!A26="","",U33_H!A26),""))))))))) ->  | B26: Liste des pièces et des fournitures | X26: =IF($AV$7="","",IF($AV$7="A",IF(U33_A!X26="","",U33_A!X26),IF($AV$7="B",IF(U33_B!X26="","",U33_B!X26),IF($AV$7="C",IF(U33_C!X26="","",U33_C!X26),IF($AV$7="D",IF(U33_D!X26="","",U33_D!X26),IF($AV$7="E",IF(U33_E!X26="","",U33_E!X26),IF($AV$7="F",IF(U33_F!X26="","",U33_F!X26),IF($AV$7="G",IF(U33_G!X26="","",U33_G!X26),IF($AV$7="H",IF(U33_H!X26="","",U33_H!X26),""))))))))) -> 
A27: ÇRepérer les données fournies | Y27: ÇRepérer les données fournies
A28: Travail demandé
A29: =IF($AV$7="","",IF($AV$7="A",IF(U33_A!A29="","",U33_A!A29),IF($AV$7="B",IF(U33_B!A29="","",U33_B!A29),IF($AV$7="C",IF(U33_C!A29="","",U33_C!A29),IF($AV$7="D",IF(U33_D!A29="","",U33_D!A29),IF($AV$7="E",IF(U33_E!A29="","",U33_E!A29),IF($AV$7="F",IF(U33_F!A29="","",U33_F!A29),IF($AV$7="G",IF(U33_G!A29="","",U33_G!A29),IF($AV$7="H",IF(U33_H!A29="","",U33_H!A29),""))))))))) ->  | B29: A1T5 | D29: Rédiger un ordre de réparation et établir un devis | X29: =IF($AV$7="","",IF($AV$7="A",IF(U33_A!X29="","",U33_A!X29),IF($AV$7="B",IF(U33_B!X29="","",U33_B!X29),IF($AV$7="C",IF(U33_C!X29="","",U33_C!X29),IF($AV$7="D",IF(U33_D!X29="","",U33_D!X29),IF($AV$7="E",IF(U33_E!X29="","",U33_E!X29),IF($AV$7="F",IF(U33_F!X29="","",U33_F!X29),IF($AV$7="G",IF(U33_G!X29="","",U33_G!X29),IF($AV$7="H",IF(U33_H!X29="","",U33_H!X29),""))))))))) ->  | Y29: A2T8 | AA29: Réaliser les essais
A30: =IF($AV$7="","",IF($AV$7="A",IF(U33_A!A30="","",U33_A!A30),IF($AV$7="B",IF(U33_B!A30="","",U33_B!A30),IF($AV$7="C",IF(U33_C!A30="","",U33_C!A30),IF($AV$7="D",IF(U33_D!A30="","",U33_D!A30),IF($AV$7="E",IF(U33_E!A30="","",U33_E!A30),IF($AV$7="F",IF(U33_F!A30="","",U33_F!A30),IF($AV$7="G",IF(U33_G!A30="","",U33_G!A30),IF($AV$7="H",IF(U33_H!A30="","",U33_H!A30),""))))))))) ->  | B30: A2T2 | D30: Émettre des hypothèses sur le dysfonctionnement | X30: =IF($AV$7="","",IF($AV$7="A",IF(U33_A!X30="","",U33_A!X30),IF($AV$7="B",IF(U33_B!X30="","",U33_B!X30),IF($AV$7="C",IF(U33_C!X30="","",U33_C!X30),IF($AV$7="D",IF(U33_D!X30="","",U33_D!X30),IF($AV$7="E",IF(U33_E!X30="","",U33_E!X30),IF($AV$7="F",IF(U33_F!X30="","",U33_F!X30),IF($AV$7="G",IF(U33_G!X30="","",U33_G!X30),IF($AV$7="H",IF(U33_H!X30="","",U33_H!X30),""))))))))) ->  | Y30: A2T9 | AA30: Apprécier si le dysfonctionnement et/ou son origine ont pu entraîner des conséquences sur d’autres composants ou fonctions
A31: =IF($AV$7="","",IF($AV$7="A",IF(U33_A!A31="","",U33_A!A31),IF($AV$7="B",IF(U33_B!A31="","",U33_B!A31),IF($AV$7="C",IF(U33_C!A31="","",U33_C!A31),IF($AV$7="D",IF(U33_D!A31="","",U33_D!A31),IF($AV$7="E",IF(U33_E!A31="","",U33_E!A31),IF($AV$7="F",IF(U33_F!A31="","",U33_F!A31),IF($AV$7="G",IF(U33_G!A31="","",U33_G!A31),IF($AV$7="H",IF(U33_H!A31="","",U33_H!A31),""))))))))) ->  | B31: A2T3 | D31: Collecter, analyser, interpréter, traiter toutes les informations techniques nécessaires à l'intervention | X31: =IF($AV$7="","",IF($AV$7="A",IF(U33_A!X31="","",U33_A!X31),IF($AV$7="B",IF(U33_B!X31="","",U33_B!X31),IF($AV$7="C",IF(U33_C!X31="","",U33_C!X31),IF($AV$7="D",IF(U33_D!X31="","",U33_D!X31),IF($AV$7="E",IF(U33_E!X31="","",U33_E!X31),IF($AV$7="F",IF(U33_F!X31="","",U33_F!X31),IF($AV$7="G",IF(U33_G!X31="","",U33_G!X31),IF($AV$7="H",IF(U33_H!X31="","",U33_H!X31),""))))))))) ->  | Y31: A2T10 | AA31: Proposer l’intervention à réaliser
A32: =IF($AV$7="","",IF($AV$7="A",IF(U33_A!A32="","",U33_A!A32),IF($AV$7="B",IF(U33_B!A32="","",U33_B!A32),IF($AV$7="C",IF(U33_C!A32="","",U33_C!A32),IF($AV$7="D",IF(U33_D!A32="","",U33_D!A32),IF($AV$7="E",IF(U33_E!A32="","",U33_E!A32),IF($AV$7="F",IF(U33_F!A32="","",U33_F!A32),IF($AV$7="G",IF(U33_G!A32="","",U33_G!A32),IF($AV$7="H",IF(U33_H!A32="","",U33_H!A32),""))))))))) ->  | B32: A2T4 | D32: Choisir les contrôles, les mesures, les essais à réaliser | X32: =IF($AV$7="","",IF($AV$7="A",IF(U33_A!X32="","",U33_A!X32),IF($AV$7="B",IF(U33_B!X32="","",U33_B!X32),IF($AV$7="C",IF(U33_C!X32="","",U33_C!X32),IF($AV$7="D",IF(U33_D!X32="","",U33_D!X32),IF($AV$7="E",IF(U33_E!X32="","",U33_E!X32),IF($AV$7="F",IF(U33_F!X32="","",U33_F!X32),IF($AV$7="G",IF(U33_G!X32="","",U33_G!X32),IF($AV$7="H",IF(U33_H!X32="","",U33_H!X32),""))))))))) ->  | Y32: A3T2 | AA32: Appliquer les procédures,
A33: =IF($AV$7="","",IF($AV$7="A",IF(U33_A!A33="","",U33_A!A33),IF($AV$7="B",IF(U33_B!A33="","",U33_B!A33),IF($AV$7="C",IF(U33_C!A33="","",U33_C!A33),IF($AV$7="D",IF(U33_D!A33="","",U33_D!A33),IF($AV$7="E",IF(U33_E!A33="","",U33_E!A33),IF($AV$7="F",IF(U33_F!A33="","",U33_F!A33),IF($AV$7="G",IF(U33_G!A33="","",U33_G!A33),IF($AV$7="H",IF(U33_H!A33="","",U33_H!A33),""))))))))) ->  | B33: A2T5 | D33: Mettre en œuvre un matériel d’aide au diagnostic | X33: =IF($AV$7="","",IF($AV$7="A",IF(U33_A!X33="","",U33_A!X33),IF($AV$7="B",IF(U33_B!X33="","",U33_B!X33),IF($AV$7="C",IF(U33_C!X33="","",U33_C!X33),IF($AV$7="D",IF(U33_D!X33="","",U33_D!X33),IF($AV$7="E",IF(U33_E!X33="","",U33_E!X33),IF($AV$7="F",IF(U33_F!X33="","",U33_F!X33),IF($AV$7="G",IF(U33_G!X33="","",U33_G!X33),IF($AV$7="H",IF(U33_H!X33="","",U33_H!X33),""))))))))) ->  | Y33: A3T5 | AA33: Régler les organes et les systèmes conformément aux données constructeur
A34: =IF($AV$7="","",IF($AV$7="A",IF(U33_A!A34="","",U33_A!A34),IF($AV$7="B",IF(U33_B!A34="","",U33_B!A34),IF($AV$7="C",IF(U33_C!A34="","",U33_C!A34),IF($AV$7="D",IF(U33_D!A34="","",U33_D!A34),IF($AV$7="E",IF(U33_E!A34="","",U33_E!A34),IF($AV$7="F",IF(U33_F!A34="","",U33_F!A34),IF($AV$7="G",IF(U33_G!A34="","",U33_G!A34),IF($AV$7="H",IF(U33_H!A34="","",U33_H!A34),""))))))))) ->  | B34: A2T6 | D34: Mesurer, contrôler les caractéristiques mécaniques, hydrauliques, électriques, pneumatiques | X34: =IF($AV$7="","",IF($AV$7="A",IF(U33_A!X34="","",U33_A!X34),IF($AV$7="B",IF(U33_B!X34="","",U33_B!X34),IF($AV$7="C",IF(U33_C!X34="","",U33_C!X34),IF($AV$7="D",IF(U33_D!X34="","",U33_D!X34),IF($AV$7="E",IF(U33_E!X34="","",U33_E!X34),IF($AV$7="F",IF(U33_F!X34="","",U33_F!X34),IF($AV$7="G",IF(U33_G!X34="","",U33_G!X34),IF($AV$7="H",IF(U33_H!X34="","",U33_H!X34),""))))))))) ->  | Y34: A3T6 | AA34: Contrôler les performances et mettre au point le véhicule ou le bateau
A35: =IF($AV$7="","",IF($AV$7="A",IF(U33_A!A35="","",U33_A!A35),IF($AV$7="B",IF(U33_B!A35="","",U33_B!A35),IF($AV$7="C",IF(U33_C!A35="","",U33_C!A35),IF($AV$7="D",IF(U33_D!A35="","",U33_D!A35),IF($AV$7="E",IF(U33_E!A35="","",U33_E!A35),IF($AV$7="F",IF(U33_F!A35="","",U33_F!A35),IF($AV$7="G",IF(U33_G!A35="","",U33_G!A35),IF($AV$7="H",IF(U33_H!A35="","",U33_H!A35),""))))))))) ->  | B35: A2T7 | D35: Interpréter les résultats, identifier le (ou les) élément(s) défectueux | X35: =IF($AV$7="","",IF($AV$7="A",IF(U33_A!X35="","",U33_A!X35),IF($AV$7="B",IF(U33_B!X35="","",U33_B!X35),IF($AV$7="C",IF(U33_C!X35="","",U33_C!X35),IF($AV$7="D",IF(U33_D!X35="","",U33_D!X35),IF($AV$7="E",IF(U33_E!X35="","",U33_E!X35),IF($AV$7="F",IF(U33_F!X35="","",U33_F!X35),IF($AV$7="G",IF(U33_G!X35="","",U33_G!X35),IF($AV$7="H",IF(U33_H!X35="","",U33_H!X35),""))))))))) -> 
A36: Consulter le référentiel des activités professionnelles pour obtenir le détail des tâches.
A37: Ç Repérer les tâches demandées (ce sont celles qui correspondent à l’unité dans le référentiel de certification, à l’exclusion de toute autre)
A38: Appréciation globale et proposition de note :
A40: Noms et signatures des évaluateurs : | AJ40: Note proposée : | AO40: =IF(AI134="","",AI134) ->  | AR40: /20
AJ41: Note affectée de son coefficient : | AO41: =IF(AO40="","",AO40*3) ->  | AR41: /60
A42: Nota important : Les compétences référencées C111, C112, C121, C122, C123, C124, C125, C126, C141, C142, C222, C223, C227, C311, C312, C315, C411, C412, C413., sont aussi mentionnées dans les épreuves E31 et E32. On veillera à ne pas en évaluer certaines dans plusieurs épreuves. Un choix judicieux de la répartition des compétences à évaluer sur l’ensemble des situations d’évaluation est donc à faire globalement pour les trois épreuves.
A46: Baccalauréat professionnel « maintenance des véhicules automobiles » – Unité U 33 | AI46: Validé | AM46: - Synthèse +
A48: C 1.3 - Collecter les données techniques | AE48: Evalué | AI48: =IF(AE48="Non Evalué","NE",IF(AE48="Evalué","E","")) -> E | AJ48: =COUNTIF(AI50:AL55,"Validé") -> 0 | AK48: =COUNTIF(AI50:AL55,"Non Validé") -> 0 | AL48: =COUNTIF(AI50:AL55,"Non Evalué") -> 0 | AV48: =IF(AE48="","Souhaitez-vous évaluer la C1.3 ?",IF(AND(AE48="Non Evalué",OR(AI50="Validé",AI52="Validé",AI54="Validé",AI50="Non Validé",AI52="Non Validé",AI54="Non Validé",)),"Vous avez choisi de ne pas évaluer la C1.3. Ne rien indiquez dans la colonne Validé.",IF(AND(AE48="Evalué",OR(AI50="",AI52="",AI54="")),"Vous avez choisi d'évaluer la C1.3. Indiquez pour chaques actions : Validé, Non Validé ou Non Evalué.",IF(OR(AE48="Non Evalué",(AJ48+AK48)=0),"",CONCATENATE(ROUND((100*AJ49/(AJ49+AK49)),0)," % d'actions validées. ",AJ48," validée(s) sur ",AJ48+AK48," . Conseil: Au maximum , grisez ",ROUND((100*AJ49/(AJ49+AK49))*8/100,0)," colonnes"))))) -> Vous avez choisi d'évaluer la C1.3. Indiquez pour chaques actions : Validé, Non Validé ou Non Evalué.
AJ49: =SUMPRODUCT((AI50:AL55="Validé")*(Bareme!AE204:AE209)) -> 0 | AK49: =SUMPRODUCT((AI50:AL55="Non Validé")*(Bareme!AE204:AE209)) -> 0
A50: C 131 | D50: Collecter toutes les données nécessaires à une intervention | N50: Toutes les données, techniques et réglementaires, sont correctement recensées et collectées. | AV50: 0
AM51: Commentaires:
A52: C 132 | D52: Utiliser les outils de communication. | N52: L’utilisation des outils est maîtrisée.
N54: Les saisies sont exploitables.
A56: C 2.2 : Diagnostiquer | AE56: Evalué | AI56: =IF(AE56="Non Evalué","NE",IF(AE56="Evalué","E","")) -> E | AJ56: =COUNTIF(AI58:AL93,"Validé") -> 0 | AK56: =COUNTIF(AI58:AL93,"Non Validé") -> 0 | AL56: =COUNTIF(AI58:AL93,"Non Evalué") -> 0 | AV56: =IF(AE56="","Souhaitez-vous évaluer la C2.2 ?",IF(AND(AE56="Non Evalué",OR(AI58="Validé",AI60="Validé",AI62="Validé",AI64="Validé",AI66="Validé",AI68="Validé",AI70="Validé",AI72="Validé",AI74="Validé",AI76="Validé",AI78="Validé",AI80="Validé",AI82="Validé",AI84="Validé",AI86="Validé",AI88="Validé",AI90="Validé",AI92="Validé",AI58="Non Validé",AI60="Non Validé",AI62="Non Validé",AI64="Non Validé",AI66="Non Validé",AI68="Non Validé",AI70="Non Validé",AI72="Non Validé",AI74="Non Validé",AI76="Non Validé",AI78="Non Validé",AI80="Non Validé",AI82="Non Validé",AI84="Non Validé",AI86="Non Validé",AI88="Non Validé",AI90="Non Validé",AI92="Non Validé")),"Vous avez choisi de ne pas évaluer la C2.2. Ne rien indiquez dans la colonne Validé.",IF(AND(AE56="Evalué",OR(AI58="",AI60="",AI62="",AI64="",AI66="",AI68="",AI70="",AI72="",AI74="",AI76="",AI78="",AI80="",AI82="",AI84="",AI86="",AI88="",AI90="",AI92="")),"Vous avez choisi d'évaluer la C2.2. Indiquez pour chaques actions : Validé, Non Validé ou Non Evalué.",IF(OR(AE56="Non Evalué",(AJ56+AK56)=0),"",CONCATENATE(ROUND((100*AJ57/(AJ57+AK57)),0)," % d'actions validées. ",AJ56," validée(s) sur ",AJ56+AK56," . Conseil: Au maximum , grisez ",ROUND((100*AJ57/(AJ57+AK57))*8/100,0)," colonnes"))))) -> Vous avez choisi d'évaluer la C2.2. Indiquez pour chaques actions : Validé, Non Validé ou Non Evalué.
AJ57: =SUMPRODUCT((AI58:AL93="Validé")*(Bareme!AE212:AE247)) -> 0 | AK57: =SUMPRODUCT((AI58:AL93="Non Validé")*(Bareme!AE212:AE247)) -> 0
A58: C 221 | D58: Analyser, interpréter, traiter toutes les informations nécessaires au diagnostic et émettre des hypothèses. | N58: Le traitement de la documentation est rationnel et adaptée. | AV58: 0
N60: L’analyse et l’interprétation des informations sont cohérentes.
N62: Les hypothèses énoncées sont plausibles.
A64: C 222 | D64: Choisir et définir les essais, les mesures, les contrôles à réaliser, adapter le processus de contrôle si besoin. | N64: Le choix et la définition des essais sont conformes.
N66: Le choix des mesures et contrôles assure l’efficacité et la rapidité du diagnostic.
N68: L’hygiène, la sécurité et l’ergonomie sont pris en compte.
A70: C 223 | D70: Mettre en œuvre les essais et mesures prévus, analyser la démarche utilisée. | N70: Les essais et mesures sont réalisés selon les procédures et garantissent l’intégrité des personnes et des biens.
N72: Les résultats relevés sont exprimés dans l’unité et l’ordre de grandeur de la valeur attendue.
AM73: Commentaires:
N74: L'analyse de la démarche utilisée est cohérente.
A76: C 224 | D76: Interpréter les relevés et identifier le ou les élément(s) défectueux. | N76: Seuls les éléments défectueux sont signalés.
N78: Les résultats des mesures sont correctement interprétés.
A80: C 225 | D80: Identifier la ou les cause(s) du dysfonctionnement et mettre en œuvre une autre procédure pour confirmer le diagnostic initial. | N80: La (ou les) cause(s) du dysfonctionnement est (sont) identifiée(s) sans ambiguïté.
N82: Le contrôle complémentaire confirme le diagnostic.
A84: C 226 | D84: Recenser les conséquences sur un autre système ou composant. | N84: Les incidences possibles sur un ou plusieurs autres systèmes sont recensées.
N86: Le choix des contrôles à mettre en œuvre est pertinent.
A88: C 227 | D88: Décider de l'intervention à réaliser et définir son processus opératoire s'il y a lieu. | N88: La proposition d’intervention est justifiée,
N90: Elle tient compte des contraintes techniques et économiques et de l’objectif de l’intervention (dépannage ou réparation)
N92: Le processus proposé est adapté.
A94: C 3.1 - Réaliser une intervention sur un système complexe | AE94: Evalué | AI94: =IF(AE94="Non Evalué","NE",IF(AE94="Evalué","E","")) -> E | AJ94: =COUNTIF(AI96:AL103,"Validé") -> 0 | AK94: =COUNTIF(AI96:AL103,"Non Validé") -> 0 | AL94: =COUNTIF(AI96:AL103,"Non Evalué") -> 0 | AV94: =IF(AE94="","Souhaitez-vous évaluer la C3.1?",IF(AND(AE94="Non Evalué",OR(AI96="Validé",AI98="Validé",AI100="Validé",AI102="Validé",AI96="Non Validé",AI98="Non Validé",AI100="Non Validé",AI102="Non Validé")),"Vous avez choisi de ne pas évaluer la C3.1. Ne rien indiquez dans la colonne Validé.",IF(AND(AE94="Evalué",OR(AI96="",AI98="",AI100="",AI102="")),"Vous avez choisi d'évaluer la C3.1. Indiquez pour chaques actions : Validé, Non Validé ou Non Evalué.",IF(OR(AE94="Non Evalué",(AJ94+AK94)=0),"",CONCATENATE(ROUND((100*AJ95/(AJ95+AK95)),0)," % d'actions validées. ",AJ94," validée(s) sur ",AJ94+AK94," . Conseil: Au maximum , grisez ",ROUND((100*AJ95/(AJ95+AK95))*8/100,0)," colonnes"))))) -> Vous avez choisi d'évaluer la C3.1. Indiquez pour chaques actions : Validé, Non Validé ou Non Evalué.
AJ95: =SUMPRODUCT((AI96:AL103="Validé")*(Bareme!AE250:AE257)) -> 0 | AK95: =SUMPRODUCT((AI96:AL103="Non Validé")*(Bareme!AE250:AE257)) -> 0
A96: C 313 | D96: Réaliser la mise au point du véhicule et s'assurer de la fiabilité des réglages. | N96: Les performances ou caractéristiques sont vérifiées et conformes aux prescriptions du constructeur. | AV96: 0
N98: L'intervention est conforme à l'ordre de réparation.
AM99: Commentaires:
A100: C 314 | D100: Contrôler les performances et les caractéristiques du véhicule. | N100: Les performances ou caractéristiques sont vérifiées et conformes aux prescriptions du constructeur.
N102: L'intervention est conforme à l'OR.
A104: C 4.1 - Évaluer la qualité de son intervention | AE104: Evalué | AI104: =IF(AE104="Non Evalué","NE",IF(AE104="Evalué","E","")) -> E | AJ104: =COUNTIF(AI106:AL109,"Validé") -> 0 | AK104: =COUNTIF(AI106:AL109,"Non Validé") -> 0 | AL104: =COUNTIF(AI106:AL109,"Non Evalué") -> 0 | AV104: =IF(AE104="","Souhaitez-vous évaluer la C4.1 ?",IF(AND(AE104="Non Evalué",OR(AI106="Validé",AI108="Validé",AI106="Non Validé",AI108="Non Validé")),"Vous avez choisi de ne pas évaluer la C4.1. Ne rien indiquez dans la colonne Validé.",IF(AND(AE104="Evalué",OR(AI106="",AI108="")),"Vous avez choisi d'évaluer la C4.1. Indiquez pour chaques actions : Validé, Non Validé ou Non Evalué.",IF(OR(AE104="Non Evalué",(AJ104+AK104)=0),"",CONCATENATE(ROUND((100*AJ105/(AJ105+AK105)),0)," % d'actions validées. ",AJ104," validée(s) sur ",AJ104+AK104," . Conseil: Au maximum , grisez ",ROUND((100*AJ105/(AJ105+AK105))*8/100,0)," colonnes"))))) -> Vous avez choisi d'évaluer la C4.1. Indiquez pour chaques actions : Validé, Non Validé ou Non Evalué.
AJ105: =SUMPRODUCT((AI106:AL109="Validé")*(Bareme!AE260:AE263)) -> 0 | AK105: =SUMPRODUCT((AI106:AL109="Non Validé")*(Bareme!AE260:AE263)) -> 0
A106: C 412 | D106: Apprécier les risques professionnels liés à l’intervention. | N106: L’intervention ne présente pas de risques d’accidents ou d’atteinte à la santé. | AM106: Commentaires: | AV106: 0
N108: Les situations dangereuses sont signalées.
E131: =IF(OR(J143="",(AND(AE48="",AE56="",AE94="",AE104=""))),"",CONCATENATE("PROPOSITION: ",CEILING(J143,0.5),"/20 (",ROUND(100*COUNTIF(V141:V144,"E")/(COUNTIF(V141:V144,"E")+COUNTIF(V141:V144,"NE")),0),"% des compétences Validées).")) -> PROPOSITION: 0/20 (100% des compétences Validées).
E134: Proposition des évaluateurs:
C138: Ne pas effacer
P139: =CONCATENATE("Statistique U33 de ",$AE$4) -> 
P140: Compétences | Q140: =IF(AE4="","",AE4) ->  | R140: Satisfaction maximale | S140: Satisfaction moyenne | T140: =CONCATENATE("Statistique U31 de ",$AE$4) ->  | U140: Coefficients | V140: Validée ou Non Validée
D141: Somme | J141: =SUMPRODUCT((Q141:Q144)) -> 0 | L141: =SUM(R141:R144) -> 800 | P141: =A48 -> C 1.3 - Collecter les données techniques | Q141: =IF(OR(V141="NE",V141=""),"",T141*U141) -> 0 | R141: =IF(OR(V141="NE",V141=""),"",U141*8) -> 96 | S141: =IF(OR(V141="NE",V141=""),"",R141/2) -> 48 | T141: =IF($AV$50="","",$AV$50) -> 0 | U141: =Bareme!AE202 -> 12 | V141: =IF(AI48="","",AI48) -> E
P142: =A56 -> C 2.2 : Diagnostiquer | Q142: =IF(OR(V142="NE",V142=""),"",T142*U142) -> 0 | R142: =IF(OR(V142="NE",V142=""),"",U142*8) -> 480 | S142: =IF(OR(V142="NE",V142=""),"",R142/2) -> 240 | T142: =IF($AV$58="","",$AV$58) -> 0 | U142: =Bareme!AE210 -> 60 | V142: =IF(AI56="","",AI56) -> E
D143: Moyenne /20 | J143: =IF($L$141=0,"",L143*$J$141/$L$141) -> 0 | L143: 20 | P143: =A94 -> C 3.1 - Réaliser une intervention sur un système complexe | Q143: =IF(OR(V143="NE",V143=""),"",T143*U143) -> 0 | R143: =IF(OR(V143="NE",V143=""),"",U143*8) -> 160 | S143: =IF(OR(V143="NE",V143=""),"",R143/2) -> 80 | T143: =IF($AV$96="","",$AV$96) -> 0 | U143: =Bareme!AE248 -> 20 | V143: =IF(AI94="","",AI94) -> E
P144: =A104 -> C 4.1 - Évaluer la qualité de son intervention | Q144: =IF(OR(V144="NE",V144=""),"",T144*U144) -> 0 | R144: =IF(OR(V144="NE",V144=""),"",U144*8) -> 64 | S144: =IF(OR(V144="NE",V144=""),"",R144/2) -> 32 | T144: =IF($AV$106="","",$AV$106) -> 0 | U144: =Bareme!AE258 -> 8 | V144: =IF(AI104="","",AI104) -> E
D145: Moyenne /40 | J145: =IF($L$141=0,"",L145*$J$141/$L$141) -> 0 | L145: 40
D147: Ne pas effacer

Sheet EP22_01 (hidden)
A1: Certificat d'aptitude professionnelle « Maintenance des véhicules automobiles »
A2: EP2.2 - Contrôle et réglage sur système ou sous-système mettant en oeuvre des énergies énergies auxiliaires
A3: Établissement : (tampon) | X3: Session :
X4: Nom du candidat: | AE4: =IF(INDEX((Bilan!B5:B34),(MATCH(RIGHT(CELL("nomfichier",A1),LEN(CELL("nomfichier",A1))-FIND("]",CELL("nomfichier",A1))),Bilan!S5:S34,0)))="","",INDEX((Bilan!B5:B34),(MATCH(RIGHT(CELL("nomfichier",A1),LEN(CELL("nomfichier",A1))-FIND("]",CELL("nomfichier",A1))),Bilan!S5:S34,0)))) -> Jean Dupond | AF4: =IF(#REF!="","",#REF!) ->  | AG4: =IF(#REF!="","",#REF!) ->  | AH4: =IF(#REF!="","",#REF!) ->  | AI4: =IF(#REF!="","",#REF!) ->  | AJ4: =IF(#REF!="","",#REF!) ->  | AK4: =IF(#REF!="","",#REF!) ->  | AL4: =IF(#REF!="","",#REF!) ->  | AM4: =IF(#REF!="","",#REF!) ->  | AN4: =IF(#REF!="","",#REF!) ->  | AO4: =IF(#REF!="","",#REF!) ->  | AP4: =IF(#REF!="","",#REF!) ->  | AQ4: =IF(#REF!="","",#REF!) ->  | AR4: =IF(#REF!="","",#REF!) ->  | AS4: =IF(#REF!="","",#REF!) ->  | AT4: =IF(#REF!="","",#REF!) -> 
X5: Prénom : | AE5: =IF(#REF!="","",#REF!) ->  | AF5: =IF(#REF!="","",#REF!) ->  | AG5: =IF(#REF!="","",#REF!) ->  | AH5: =IF(#REF!="","",#REF!) ->  | AI5: =IF(#REF!="","",#REF!) ->  | AJ5: =IF(#REF!="","",#REF!) ->  | AK5: =IF(#REF!="","",#REF!) ->  | AL5: =IF(#REF!="","",#REF!) ->  | AM5: =IF(#REF!="","",#REF!) ->  | AN5: =IF(#REF!="","",#REF!) ->  | AO5: =IF(#REF!="","",#REF!) ->  | AP5: =IF(#REF!="","",#REF!) ->  | AQ5: =IF(#REF!="","",#REF!) ->  | AR5: =IF(#REF!="","",#REF!) ->  | AS5: =IF(#REF!="","",#REF!) ->  | AT5: =IF(#REF!="","",#REF!) -> 
X6: Date de l'évaluation:
A7: Lieu d’évaluation :
A8: Etablissement
A9: Entreprise :
A10: Description sommaire du travail demandé :
A13: Données fournies au candidat | AV13: Cette grille EP22 est automatiquement construite d'après les renseignements donnés dans la grille E32. A remplir: - appréciation globale - proposition des évaluateurs - d'éventuels commentaires
B14: Un véhicule, un système ou sous-système | Y14: Outils d’aide au diagnostic (internes à l’entreprise et à distance)
B15: Un ou plusieurs éléments d’un système en dysfonctionnement. | Y15: Protections intérieures et extérieures
B16: Présence du client | Y16: Équipements, outillages et notices d’utilisation nécessaires à l’intervention.
B17: Ordre de réparation | Y17: Appareils de mesures et de contrôles fixes ou embarqués avec les notices d’utilisation.
B18: Description de l’anomalie constatée et/ou de ses effets | Y18: Résultats des mesures et contrôles.
B19: Historique technique du véhicule (documents de suivi) | Y19: Un essai à effectuer si besoin
B20: Documentation technique du véhicule (données constructeur) | Y20: La réglementation.
B21: Planning de charge de l’atelier | Y21: Matériel de nettoyage et de remise en état
B22: Poste de travail | Y22: Déchets résultants d’une intervention sur un véhicule ou bateau.
B23: Les matériels de manutention et leurs notices d’utilisation | Y23: Bacs et conteneurs de récupération.
B24: Liste des opérations effectuées | Y24: Les outils de communication
B25: L’accessoire ou l’équipement à poser
B26: Liste des pièces et des fournitures
A27: ÇRepérer les données fournies | Y27: ÇRepérer les données fournies
A28: Travail demandé
B29: A1T1 | D29: Accueillir le client et/ou le conducteur , écouter sa demande. | Y29: A2T7 | AA29: Réinitialiser les indicateurs de maintenance
B30: A1T2 | D30: Réceptionner le véhicule après attribution par le chef d’atelier. | Y30: A2T12 | AA30: Valider la qualité de l'intervention
B31: A1T3 | D31: Effectuer un diagnostic visuel de premier niveau en appliquant les procédures de contrôle. | Y31: A2T13 | AA31: Remettre en état le poste de travail
B32: A2T1 | D32: Organiser le poste de travail, préparer le véhicule à l’intervention | Y32: A3T1 | AA32: Rendre compte de l'intervention réalisée à l’entreprise et/ou au client ou au conducteur.
B33: A2T2 | D33: Prendre connaissance, interpréter, traiter les informations de la procédure fournie | Y33: A3T3 | AA33: Signaler à la hiérarchie et/ou au client et/ou au conducteur les anomalies constatées
B34: A2T5 | D34: Réaliser des mesures simples sur des organes mécaniques, électriques, hydrauliques, pneumatiques.
B35: A2T6 | D35: Effectuer des réglages selon les normes du constructeur et/ou de la réglementation
A36: Consulter le référentiel des activités professionnelles pour obtenir le détail des tâches.
A37: Ç Repérer les tâches demandées (ce sont celles qui correspondent à l’unité dans le référentiel de certification, à l’exclusion de toute autre)
A38: Appréciation globale et proposition de note :
AJ40: Note proposée : | AO40: =IF(AI126="","",AI126) ->  | AR40: /10
AJ41: A additionner avec la note d'EP2.1
A42: Certificat d'aptitude professionnelle « Maintenance des véhicules automobiles » – EP2.2 | AI42: Validé | AM42: - Synthèse +
A44: C1.1 - Communiquer avec la hiérarchie, le client et/ou l’utilisateur | AE44: =IF(AL44=10,"Non Evalué","Evalué") -> Non Evalué | AI44: =IF(AE44="Non Evalué","NE",IF(AE44="Evalué","E","")) -> NE | AJ44: =COUNTIF(AI46:AL65,"Validé") -> 0 | AK44: =COUNTIF(AI46:AL65,"Non Validé") -> 0 | AL44: =COUNTIF(AI46:AL65,"Non Evalué") -> 10 | BB44: NoteEP32 | BC44: Correspondance EP32 (AL)
AJ45: =SUMPRODUCT((AI46:AL65="Validé")*(Bareme!AE269:AE288)) -> 0 | AK45: =SUMPRODUCT((AI46:AL65="Non Validé")*(Bareme!AE269:AE288)) -> 0 | AL45: =100*SUM(AY46:BA65)/SUMPRODUCT((AL46:AL65<>"x")*(Bareme!AE269:AE288)) -> 
A46: C 111 | D46: Accueillir un client, écouter sa demande. | N46: Le client est courtoisement accueilli, les règles de politesse sont appliquées. | AI46: =IF(AL46="","Non Evalué",IF(AL46="x","Non Evalué",(IF(AL46=0,"Non Validé","Validé")))) -> Non Evalué | AL46: =IF(BB46="","x",IF(BB46="x","x",IF(BB46=0,0,IF(BB46=1,2,IF(BB46=2,3,3))))) -> x | AV46: =IF(AE44="Non Evalué","",ROUND((AL45)*8/100,0)) ->  | AY46: =IF(AL46="","",IF(AL46="x","",IF(AL46=0,0,Bareme!AE269*AL46/3))) -> 
AM47: Commentaires:
N48: Le client est mis en rapport avec la personne compétente. | AI48: =IF(AL48="","Non Evalué",IF(AL48="x","Non Evalué",(IF(AL48=0,"Non Validé","Validé")))) -> Non Evalué | AL48: =IF(BB48="","x",IF(BB48="x","x",IF(BB48=0,0,IF(BB48=1,2,IF(BB48=2,3,3))))) -> x | AY48: =IF(AL48="","",IF(AL48="x","",IF(AL48=0,0,Bareme!AE271*AL48/3))) -> 
A50: C 112 | D50: Réceptionner le véhicule confié. | N50: Le véhicule est correctement identifié. | AI50: =IF(AL50="","Non Evalué",IF(AL50="x","Non Evalué",(IF(AL50=0,"Non Validé","Validé")))) -> Non Evalué | AL50: =IF(BB50="","x",IF(BB50="x","x",IF(BB50=0,0,IF(BB50=1,2,IF(BB50=2,3,3))))) -> x | AY50: =IF(AL50="","",IF(AL50="x","",IF(AL50=0,0,Bareme!AE273*AL50/3))) -> 
N52: Le bilan du contrôle, olfactif, sonore ou visuel est conforme à l’état du véhicule ou du matériel. | AI52: =IF(AL52="","Non Evalué",IF(AL52="x","Non Evalué",(IF(AL52=0,"Non Validé","Validé")))) -> Non Evalué | AL52: =IF(BB52="","x",IF(BB52="x","x",IF(BB52=0,0,IF(BB52=1,2,IF(BB52=2,3,3))))) -> x | AY52: =IF(AL52="","",IF(AL52="x","",IF(AL52=0,0,Bareme!AE275*AL52/3))) -> 
N54: Les anomalies constatées lors de la réception sont correctement consignées. | AI54: =IF(AL54="","Non Evalué",IF(AL54="x","Non Evalué",(IF(AL54=0,"Non Validé","Validé")))) -> Non Evalué | AL54: =IF(BB54="","x",IF(BB54="x","x",IF(BB54=0,0,IF(BB54=1,2,IF(BB54=2,3,3))))) -> x | AY54: =IF(AL54="","",IF(AL54="x","",IF(AL54=0,0,Bareme!AE277*AL54/3))) -> 
A56: C 113 | D56: Rendre compte à l’entreprise et/ou au client du travail effectué | N56: Les travaux réalisés sont clairement expliqués. | AI56: =IF(AL56="","Non Evalué",IF(AL56="x","Non Evalué",(IF(AL56=0,"Non Validé","Validé")))) -> Non Evalué | AL56: =IF(BB56="","x",IF(BB56="x","x",IF(BB56=0,0,IF(BB56=1,2,IF(BB56=2,3,3))))) -> x | AY56: =IF(AL56="","",IF(AL56="x","",IF(AL56=0,0,Bareme!AE279*AL56/3))) ->  | BC56: 132
N58: Les prochaines interventions nécessaires sont signalées et/ou consignées dans le livret d'entretien ou sur la facture. | AI58: =IF(AL58="","Non Evalué",IF(AL58="x","Non Evalué",(IF(AL58=0,"Non Validé","Validé")))) -> Non Evalué | AL58: =IF(BB58="","x",IF(BB58="x","x",IF(BB58=0,0,IF(BB58=1,2,IF(BB58=2,3,3))))) -> x | AY58: =IF(AL58="","",IF(AL58="x","",IF(AL58=0,0,Bareme!AE281*AL58/3))) ->  | BC58: 136
A60: C114 | D60: Renseigner les documents de suivi et fournir la liste des éléments utilisés nécessaires pour la facturation. | N60: Les éléments indiqués sont conformes au travail effectué. | AI60: =IF(AL60="","Non Evalué",IF(AL60="x","Non Evalué",(IF(AL60=0,"Non Validé","Validé")))) -> Non Evalué | AL60: =IF(BB60="","x",IF(BB60="x","x",IF(BB60=0,0,IF(BB60=1,2,IF(BB60=2,3,3))))) -> x | AY60: =IF(AL60="","",IF(AL60="x","",IF(AL60=0,0,Bareme!AE283*AL60/3))) ->  | BC60: 136
N62: Aucun oubli n’est constaté. | AI62: =IF(AL62="","Non Evalué",IF(AL62="x","Non Evalué",(IF(AL62=0,"Non Validé","Validé")))) -> Non Evalué | AL62: =IF(BB62="","x",IF(BB62="x","x",IF(BB62=0,0,IF(BB62=1,2,IF(BB62=2,3,3))))) -> x | AY62: =IF(AL62="","",IF(AL62="x","",IF(AL62=0,0,Bareme!AE285*AL62/3))) -> 
N64: L’utilisation des outils informatiques est maîtrisée. | AI64: =IF(AL64="","Non Evalué",IF(AL64="x","Non Evalué",(IF(AL64=0,"Non Validé","Validé")))) -> Non Evalué | AL64: =IF(BB64="","x",IF(BB64="x","x",IF(BB64=0,0,IF(BB64=1,2,IF(BB64=2,3,3))))) -> x | AY64: =IF(AL64="","",IF(AL64="x","",IF(AL64=0,0,Bareme!AE287*AL64/3))) -> 
A66: C 3.3 - Démonter remonter des sous ensembles | AE66: =IF(AL66=8,"Non Evalué","Evalué") -> Non Evalué | AI66: =IF(AE66="Non Evalué","NE",IF(AE66="Evalué","E","")) -> NE | AJ66: =COUNTIF(AI68:AL83,"Validé") -> 0 | AK66: =COUNTIF(AI68:AL83,"Non Validé") -> 0 | AL66: =COUNTIF(AI68:AL83,"Non Evalué") -> 8
AJ67: =SUMPRODUCT((AI68:AL83="Validé")*(Bareme!AE291:AE306)) -> 0 | AK67: =SUMPRODUCT((AI68:AL83="Non Validé")*(Bareme!AE291:AE306)) -> 0 | AL67: =100*SUM(AY68:BA83)/SUMPRODUCT((AL68:AL83<>"x")*(Bareme!AE291:AE306)) -> 
A68: C 332 | D68: Monter des équipements et accessoires sur des supports pré équipés | N68: L’accessoire ou l’équipement est monté en conformité en respectant les prescriptions du constructeur et/ou de l'équipementier ou la procédure fournie. | AI68: =IF(AL68="","Non Evalué",IF(AL68="x","Non Evalué",(IF(AL68=0,"Non Validé","Validé")))) -> Non Evalué | AL68: =IF(BB68="","x",IF(BB68="x","x",IF(BB68=0,0,IF(BB68=1,2,IF(BB68=2,3,3))))) -> x | AV68: =IF(AE66="Non Evalué","",ROUND((AL67)*8/100,0)) ->  | AY68: =IF(AL68="","",IF(AL68="x","",IF(AL68=0,0,Bareme!AE291*AL68/3))) ->  | BC68: 98
AM69: Commentaires
N70: Les connexions sont réalisées en conformité. | AI70: =IF(AL70="","Non Evalué",IF(AL70="x","Non Evalué",(IF(AL70=0,"Non Validé","Validé")))) -> Non Evalué | AL70: =IF(BB70="","x",IF(BB70="x","x",IF(BB70=0,0,IF(BB70=1,2,IF(BB70=2,3,3))))) -> x | AY70: =IF(AL70="","",IF(AL70="x","",IF(AL70=0,0,Bareme!AE293*AL70/3))) ->  | BC70: 100
N72: L’action respecte les règles en matière d’hygiène, sécurité et de respect de l'environnement. | AI72: =IF(AL72="","Non Evalué",IF(AL72="x","Non Evalué",(IF(AL72=0,"Non Validé","Validé")))) -> Non Evalué | AL72: =IF(BB72="","x",IF(BB72="x","x",IF(BB72=0,0,IF(BB72=1,2,IF(BB72=2,3,3))))) -> x | AY72: =IF(AL72="","",IF(AL72="x","",IF(AL72=0,0,Bareme!AE295*AL72/3))) ->  | BC72: 130
N74: Aucune détérioration n’est constatée | AI74: =IF(AL74="","Non Evalué",IF(AL74="x","Non Evalué",(IF(AL74=0,"Non Validé","Validé")))) -> Non Evalué | AL74: =IF(BB74="","x",IF(BB74="x","x",IF(BB74=0,0,IF(BB74=1,2,IF(BB74=2,3,3))))) -> x | AY74: =IF(AL74="","",IF(AL74="x","",IF(AL74=0,0,Bareme!AE297*AL74/3))) ->  | BC74: 124
A76: C 333 | D76: Réaliser des opérations de remise en état et/ou de réparation. | N76: Les opérations sont réalisées en conformité | AI76: =IF(AL76="","Non Evalué",IF(AL76="x","Non Evalué",(IF(AL76=0,"Non Validé","Validé")))) -> Non Evalué | AL76: =IF(BB76="","x",IF(BB76="x","x",IF(BB76=0,0,IF(BB76=1,2,IF(BB76=2,3,3))))) -> x | AY76: =IF(AL76="","",IF(AL76="x","",IF(AL76=0,0,Bareme!AE299*AL76/3))) ->  | BC76: 106
N78: La réparation est fonctionnelle | AI78: =IF(AL78="","Non Evalué",IF(AL78="x","Non Evalué",(IF(AL78=0,"Non Validé","Validé")))) -> Non Evalué | AL78: =IF(BB78="","x",IF(BB78="x","x",IF(BB78=0,0,IF(BB78=1,2,IF(BB78=2,3,3))))) -> x | AY78: =IF(AL78="","",IF(AL78="x","",IF(AL78=0,0,Bareme!AE301*AL78/3))) ->  | BC78: 104
N80: L’action respecte les règles en matière d’hygiène, sécurité et de respect de l'environnement. | AI80: =IF(AL80="","Non Evalué",IF(AL80="x","Non Evalué",(IF(AL80=0,"Non Validé","Validé")))) -> Non Evalué | AL80: =IF(BB80="","x",IF(BB80="x","x",IF(BB80=0,0,IF(BB80=1,2,IF(BB80=2,3,3))))) -> x | AY80: =IF(AL80="","",IF(AL80="x","",IF(AL80=0,0,Bareme!AE303*AL80/3))) ->  | BC80: 130
N82: Aucune détérioration n’est constatée | AI82: =IF(AL82="","Non Evalué",IF(AL82="x","Non Evalué",(IF(AL82=0,"Non Validé","Validé")))) -> Non Evalué | AL82: =IF(BB82="","x",IF(BB82="x","x",IF(BB82=0,0,IF(BB82=1,2,IF(BB82=2,3,3))))) -> x | AY82: =IF(AL82="","",IF(AL82="x","",IF(AL82=0,0,Bareme!AE305*AL82/3))) ->  | BC82: 124
A84: C 3.4 - Mesurer – contrôler | AE84: =IF(AL84=10,"Non Evalué","Evalué") -> Non Evalué | AI84: =IF(AE84="Non Evalué","NE",IF(AE84="Evalué","E","")) -> NE | AJ84: =COUNTIF(AI86:AL105,"Validé") -> 0 | AK84: =COUNTIF(AI86:AL105,"Non Validé") -> 0 | AL84: =COUNTIF(AI86:AL105,"Non Evalué") -> 10
AJ85: =SUMPRODUCT((AI86:AL105="Validé")*(Bareme!AE309:AE328)) -> 0 | AK85: =SUMPRODUCT((AI86:AL105="Non Validé")*(Bareme!AE309:AE328)) -> 0 | AL85: =100*SUM(AY86:BA105)/SUMPRODUCT((AL86:AL105<>"x")*(Bareme!AE309:AE328)) -> 
A86: C 341 | D86: Réaliser les mesures, les contrôles sur les organes mécaniques. | N86: L'intégrité des appareils de contrôle et de mesure est respectée. | AI86: =IF(AL86="","Non Evalué",IF(AL86="x","Non Evalué",(IF(AL86=0,"Non Validé","Validé")))) -> Non Evalué | AL86: =IF(BB86="","x",IF(BB86="x","x",IF(BB86=0,0,IF(BB86=1,2,IF(BB86=2,3,3))))) -> x | AV86: =IF(AE84="Non Evalué","",ROUND((AL85)*8/100,0)) ->  | AY86: =IF(AL86="","",IF(AL86="x","",IF(AL86=0,0,Bareme!AE309*AL86/3))) ->  | BC86: 76
N88: Les mesures et les contrôles sont réalisés selon les procédures du constructeur et/ou de l'équipementier. | AI88: =IF(AL88="","Non Evalué",IF(AL88="x","Non Evalué",(IF(AL88=0,"Non Validé","Validé")))) -> Non Evalué | AL88: =IF(BB88="","x",IF(BB88="x","x",IF(BB88=0,0,IF(BB88=1,2,IF(BB88=2,3,3))))) -> x | AY88: =IF(AL88="","",IF(AL88="x","",IF(AL88=0,0,Bareme!AE311*AL88/3))) ->  | BC88: 76
N90: Les résultats relevés sont exprimés dans l’unité attendue avec la précision requise. | AI90: =IF(AL90="","Non Evalué",IF(AL90="x","Non Evalué",(IF(AL90=0,"Non Validé","Validé")))) -> Non Evalué | AL90: =IF(BB90="","x",IF(BB90="x","x",IF(BB90=0,0,IF(BB90=1,2,IF(BB90=2,3,3))))) -> x | AY90: =IF(AL90="","",IF(AL90="x","",IF(AL90=0,0,Bareme!AE313*AL90/3))) ->  | BC90: 78
A92: C 342 | D92: Réaliser les mesures, les contrôles sur circuits hydrauliques, électriques et pneumatiques. | N92: L'intégrité des appareils de contrôle et de mesure est respectée. | AI92: =IF(AL92="","Non Evalué",IF(AL92="x","Non Evalué",(IF(AL92=0,"Non Validé","Validé")))) -> Non Evalué | AL92: =IF(BB92="","x",IF(BB92="x","x",IF(BB92=0,0,IF(BB92=1,2,IF(BB92=2,3,3))))) -> x | AY92: =IF(AL92="","",IF(AL92="x","",IF(AL92=0,0,Bareme!AE315*AL92/3))) ->  | BC92: 76
N94: Les mesures et les contrôles sont réalisés selon les procédures du constructeur et/ou de l'équipementier. | AI94: =IF(AL94="","Non Evalué",IF(AL94="x","Non Evalué",(IF(AL94=0,"Non Validé","Validé")))) -> Non Evalué | AL94: =IF(BB94="","x",IF(BB94="x","x",IF(BB94=0,0,IF(BB94=1,2,IF(BB94=2,3,3))))) -> x | AY94: =IF(AL94="","",IF(AL94="x","",IF(AL94=0,0,Bareme!AE317*AL94/3))) ->  | BC94: 76
N96: Les résultats relevés sont exprimés dans l’unité attendue avec la précision requise. | AI96: =IF(AL96="","Non Evalué",IF(AL96="x","Non Evalué",(IF(AL96=0,"Non Validé","Validé")))) -> Non Evalué | AL96: =IF(BB96="","x",IF(BB96="x","x",IF(BB96=0,0,IF(BB96=1,2,IF(BB96=2,3,3))))) -> x | AY96: =IF(AL96="","",IF(AL96="x","",IF(AL96=0,0,Bareme!AE319*AL96/3))) ->  | BC96: 78
A98: C 343 | D98: Identifier le ou les élément(s) défectueux. | N98: Les résultats des mesures sont correctement interprétés. | AI98: =IF(AL98="","Non Evalué",IF(AL98="x","Non Evalué",(IF(AL98=0,"Non Validé","Validé")))) -> Non Evalué | AL98: =IF(BB98="","x",IF(BB98="x","x",IF(BB98=0,0,IF(BB98=1,2,IF(BB98=2,3,3))))) -> x | AM98: Commentaires: | AY98: =IF(AL98="","",IF(AL98="x","",IF(AL98=0,0,Bareme!AE321*AL98/3))) ->  | BC98: 84
N100: Le ou les éléments défectueux est ou sont signalé(s). | AI100: =IF(AL100="","Non Evalué",IF(AL100="x","Non Evalué",(IF(AL100=0,"Non Validé","Validé")))) -> Non Evalué | AL100: =IF(BB100="","x",IF(BB100="x","x",IF(BB100=0,0,IF(BB100=1,2,IF(BB100=2,3,3))))) -> x | AY100: =IF(AL100="","",IF(AL100="x","",IF(AL100=0,0,Bareme!AE323*AL100/3))) ->  | BC100: 82
A102: C 344 | D102: Signaler les anomalies périphériques. | N102: Les anomalies constatées durant l’intervention sont consignées. | AI102: =IF(AL102="","Non Evalué",IF(AL102="x","Non Evalué",(IF(AL102=0,"Non Validé","Validé")))) -> Non Evalué | AL102: =IF(BB102="","x",IF(BB102="x","x",IF(BB102=0,0,IF(BB102=1,2,IF(BB102=2,3,3))))) -> x | AY102: =IF(AL102="","",IF(AL102="x","",IF(AL102=0,0,Bareme!AE325*AL102/3))) ->  | BC102: 92
N104: L’utilisation des outils informatiques est maîtrisée. | AI104: =IF(AL104="","Non Evalué",IF(AL104="x","Non Evalué",(IF(AL104=0,"Non Validé","Validé")))) -> Non Evalué | AL104: =IF(BB104="","x",IF(BB104="x","x",IF(BB104=0,0,IF(BB104=1,2,IF(BB104=2,3,3))))) -> x | AY104: =IF(AL104="","",IF(AL104="x","",IF(AL104=0,0,Bareme!AE327*AL104/3))) -> 
A106: C 3.5 - Régler des sous-ensembles | AE106: =IF(AL106=7,"Non Evalué","Evalué") -> Non Evalué | AI106: =IF(AE106="Non Evalué","NE",IF(AE106="Evalué","E","")) -> NE | AJ106: =COUNTIF(AI108:AL121,"Validé") -> 0 | AK106: =COUNTIF(AI108:AL121,"Non Validé") -> 0 | AL106: =COUNTIF(AI108:AL121,"Non Evalué") -> 7
AJ107: =SUMPRODUCT((AI108:AL121="Validé")*(Bareme!AE331:AE344)) -> 0 | AK107: =SUMPRODUCT((AI108:AL121="Non Validé")*(Bareme!AE331:AE344)) -> 0 | AL107: =100*SUM(AY108:BA121)/SUMPRODUCT((AL108:AL121<>"x")*(Bareme!AE331:AE344)) -> 
A108: C 351 | D108: Réaliser les réglages sur des sous-ensembles isolés | N108: Les réglages effectués sont conformes à la procédure fournie. | AI108: =IF(AL108="","Non Evalué",IF(AL108="x","Non Evalué",(IF(AL108=0,"Non Validé","Validé")))) -> Non Evalué | AL108: =IF(BB108="","x",IF(BB108="x","x",IF(BB108=0,0,IF(BB108=1,2,IF(BB108=2,3,3))))) -> x | AV108: =IF(AE106="Non Evalué","",ROUND((AL107)*8/100,0)) ->  | AY108: =IF(AL108="","",IF(AL108="x","",IF(AL108=0,0,Bareme!AE331*AL108/3))) ->  | BC108: 108
N110: L’action respecte les règles en matière d’hygiène, sécurité et de respect de l'environnement. | AI110: =IF(AL110="","Non Evalué",IF(AL110="x","Non Evalué",(IF(AL110=0,"Non Validé","Validé")))) -> Non Evalué | AL110: =IF(BB110="","x",IF(BB110="x","x",IF(BB110=0,0,IF(BB110=1,2,IF(BB110=2,3,3))))) -> x | AY110: =IF(AL110="","",IF(AL110="x","",IF(AL110=0,0,Bareme!AE333*AL110/3))) ->  | BC110: 130
N112: Aucune détérioration n’est constatée | AI112: =IF(AL112="","Non Evalué",IF(AL112="x","Non Evalué",(IF(AL112=0,"Non Validé","Validé")))) -> Non Evalué | AL112: =IF(BB112="","x",IF(BB112="x","x",IF(BB112=0,0,IF(BB112=1,2,IF(BB112=2,3,3))))) -> x | AY112: =IF(AL112="","",IF(AL112="x","",IF(AL112=0,0,Bareme!AE335*AL112/3))) ->  | BC112: 124
A114: C 352 | D114: Réaliser les réglages sur des véhicules. | N114: Les conditions de mise en oeuvre sont respectées. | AI114: =IF(AL114="","Non Evalué",IF(AL114="x","Non Evalué",(IF(AL114=0,"Non Validé","Validé")))) -> Non Evalué | AL114: =IF(BB114="","x",IF(BB114="x","x",IF(BB114=0,0,IF(BB114=1,2,IF(BB114=2,3,3))))) -> x | AY114: =IF(AL114="","",IF(AL114="x","",IF(AL114=0,0,Bareme!AE337*AL114/3))) ->  | BC114: 106
AM115: Commentaires:
N116: Les réglages effectués sont conformes aux prescriptions du constructeur et/ou de l'équipementier ou la procédure fournie. | AI116: =IF(AL116="","Non Evalué",IF(AL116="x","Non Evalué",(IF(AL116=0,"Non Validé","Validé")))) -> Non Evalué | AL116: =IF(BB116="","x",IF(BB116="x","x",IF(BB116=0,0,IF(BB116=1,2,IF(BB116=2,3,3))))) -> x | AY116: =IF(AL116="","",IF(AL116="x","",IF(AL116=0,0,Bareme!AE339*AL116/3))) ->  | BC116: 108
N118: L’action respecte les règles en matière d’hygiène, sécurité et de respect de l'environnement. | AI118: =IF(AL118="","Non Evalué",IF(AL118="x","Non Evalué",(IF(AL118=0,"Non Validé","Validé")))) -> Non Evalué | AL118: =IF(BB118="","x",IF(BB118="x","x",IF(BB118=0,0,IF(BB118=1,2,IF(BB118=2,3,3))))) -> x | AY118: =IF(AL118="","",IF(AL118="x","",IF(AL118=0,0,Bareme!AE341*AL118/3))) ->  | BC118: 130
N120: Aucune détérioration n’est constatée | AI120: =IF(AL120="","Non Evalué",IF(AL120="x","Non Evalué",(IF(AL120=0,"Non Validé","Validé")))) -> Non Evalué | AL120: =IF(BB120="","x",IF(BB120="x","x",IF(BB120=0,0,IF(BB120=1,2,IF(BB120=2,3,3))))) -> x | AY120: =IF(AL120="","",IF(AL120="x","",IF(AL120=0,0,Bareme!AE343*AL120/3))) ->  | BC120: 124
E123: =IF(OR(J136="",AND(AE44="",AE66="",AE84="",AE106="")=0),"",CONCATENATE("PROPOSITION: ",CEILING(J136,0.5),"/10 (",ROUND(100*COUNTIF(U133:U136,"E")/(COUNTIF(U133:U136,"E")+COUNTIF(U133:U136,"NE")),0),"% des compétences évaluées).")) -> 
E126: Proposition des évaluateurs:
E130: Ne pas effacer
O131: =CONCATENATE("Statistique EP2.1 de ",#REF!) -> 
O132: Compétences | P132: =IF(AE4="","",AE4) -> Jean Dupond | Q132: Satisfaction maximale | R132: Satisfaction moyenne | S132: =CONCATENATE("Statistique EP2.1 de ",#REF!) ->  | T132: Coefficients | U132: Validée ou Non Validée
O133: =A44 -> C1.1 - Communiquer avec la hiérarchie, le client et/ou l’utilisateur | P133: =IF(OR(U133="NE",U133=""),"",S133*T133) ->  | Q133: =IF(OR(U133="NE",U133=""),"",T133*8) ->  | R133: =IF(OR(U133="NE",U133=""),"",Q133/2) ->  | S133: =IF(AV46="","",AV46) ->  | T133: =Bareme!AE267 -> 10 | U133: =IF(AI44="","",AI44) -> NE
O134: =A66 -> C 3.3 - Démonter remonter des sous ensembles | P134: =IF(OR(U134="NE",U134=""),"",S134*T134) ->  | Q134: =IF(OR(U134="NE",U134=""),"",T134*8) ->  | R134: =IF(OR(U134="NE",U134=""),"",Q134/2) ->  | S134: =IF(AV68="","",AV68) ->  | T134: =Bareme!AE289 -> 10 | U134: =IF(AI66="","",AI66) -> NE
D135: Somme | J135: =SUMPRODUCT((P133:P136)) -> 0 | L135: =SUM(Q133:Q136) -> 0 | O135: =A84 -> C 3.4 - Mesurer – contrôler | S135: =IF(AV86="","",AV86) ->  | T135: =Bareme!AE307 -> 50 | U135: =IF(AI84="","",AI84) -> NE
D136: Moyenne /20 | J136: =IF(L135=0,"",L136*J135/L135) ->  | L136: 10 | O136: =A106 -> C 3.5 - Régler des sous-ensembles | S136: =IF(AV108="","",AV108) ->  | T136: =Bareme!AE329 -> 30 | U136: =IF(AI106="","",AI106) -> NE
F137: Ne pas effacer

Sheet EP22 (hidden)
A1: Certificat d'aptitude professionnelle « Maintenance des véhicules automobiles »
A2: EP2.2 - Contrôle et réglage sur système ou sous-système mettant en oeuvre des énergies énergies auxiliaires
A3: Établissement : (tampon) | X3: Session :
X4: Nom du candidat: | AE4: =IF(INDEX((Bilan!B5:B34),(MATCH(RIGHT(CELL("nomfichier",A1),LEN(CELL("nomfichier",A1))-FIND("]",CELL("nomfichier",A1))),Bilan!S5:S34,0)))="","",INDEX((Bilan!B5:B34),(MATCH(RIGHT(CELL("nomfichier",A1),LEN(CELL("nomfichier",A1))-FIND("]",CELL("nomfichier",A1))),Bilan!S5:S34,0)))) ->  | AF4: =IF(#REF!="","",#REF!) ->  | AG4: =IF(#REF!="","",#REF!) ->  | AH4: =IF(#REF!="","",#REF!) ->  | AI4: =IF(#REF!="","",#REF!) ->  | AJ4: =IF(#REF!="","",#REF!) ->  | AK4: =IF(#REF!="","",#REF!) ->  | AL4: =IF(#REF!="","",#REF!) ->  | AM4: =IF(#REF!="","",#REF!) ->  | AN4: =IF(#REF!="","",#REF!) ->  | AO4: =IF(#REF!="","",#REF!) ->  | AP4: =IF(#REF!="","",#REF!) ->  | AQ4: =IF(#REF!="","",#REF!) ->  | AR4: =IF(#REF!="","",#REF!) ->  | AS4: =IF(#REF!="","",#REF!) ->  | AT4: =IF(#REF!="","",#REF!) -> 
X5: Prénom : | AE5: =IF(#REF!="","",#REF!) ->  | AF5: =IF(#REF!="","",#REF!) ->  | AG5: =IF(#REF!="","",#REF!) ->  | AH5: =IF(#REF!="","",#REF!) ->  | AI5: =IF(#REF!="","",#REF!) ->  | AJ5: =IF(#REF!="","",#REF!) ->  | AK5: =IF(#REF!="","",#REF!) ->  | AL5: =IF(#REF!="","",#REF!) ->  | AM5: =IF(#REF!="","",#REF!) ->  | AN5: =IF(#REF!="","",#REF!) ->  | AO5: =IF(#REF!="","",#REF!) ->  | AP5: =IF(#REF!="","",#REF!) ->  | AQ5: =IF(#REF!="","",#REF!) ->  | AR5: =IF(#REF!="","",#REF!) ->  | AS5: =IF(#REF!="","",#REF!) ->  | AT5: =IF(#REF!="","",#REF!) -> 
X6: Date de l'évaluation:
A7: Lieu d’évaluation :
A8: Etablissement
A9: Entreprise :
A10: Description sommaire du travail demandé :
A13: Données fournies au candidat | AV13: Cette grille EP22 est automatiquement construite d'après les renseignements donnés dans la grille E32. A remplir: - appréciation globale - proposition des évaluateurs - d'éventuels commentaires
B14: Un véhicule, un système ou sous-système | Y14: Outils d’aide au diagnostic (internes à l’entreprise et à distance)
B15: Un ou plusieurs éléments d’un système en dysfonctionnement. | Y15: Protections intérieures et extérieures
B16: Présence du client | Y16: Équipements, outillages et notices d’utilisation nécessaires à l’intervention.
B17: Ordre de réparation | Y17: Appareils de mesures et de contrôles fixes ou embarqués avec les notices d’utilisation.
B18: Description de l’anomalie constatée et/ou de ses effets | Y18: Résultats des mesures et contrôles.
B19: Historique technique du véhicule (documents de suivi) | Y19: Un essai à effectuer si besoin
B20: Documentation technique du véhicule (données constructeur) | Y20: La réglementation.
B21: Planning de charge de l’atelier | Y21: Matériel de nettoyage et de remise en état
B22: Poste de travail | Y22: Déchets résultants d’une intervention sur un véhicule ou bateau.
B23: Les matériels de manutention et leurs notices d’utilisation | Y23: Bacs et conteneurs de récupération.
B24: Liste des opérations effectuées | Y24: Les outils de communication
B25: L’accessoire ou l’équipement à poser
B26: Liste des pièces et des fournitures
A27: ÇRepérer les données fournies | Y27: ÇRepérer les données fournies
A28: Travail demandé
B29: A1T1 | D29: Accueillir le client et/ou le conducteur , écouter sa demande. | Y29: A2T7 | AA29: Réinitialiser les indicateurs de maintenance
B30: A1T2 | D30: Réceptionner le véhicule après attribution par le chef d’atelier. | Y30: A2T12 | AA30: Valider la qualité de l'intervention
B31: A1T3 | D31: Effectuer un diagnostic visuel de premier niveau en appliquant les procédures de contrôle. | Y31: A2T13 | AA31: Remettre en état le poste de travail
B32: A2T1 | D32: Organiser le poste de travail, préparer le véhicule à l’intervention | Y32: A3T1 | AA32: Rendre compte de l'intervention réalisée à l’entreprise et/ou au client ou au conducteur.
B33: A2T2 | D33: Prendre connaissance, interpréter, traiter les informations de la procédure fournie | Y33: A3T3 | AA33: Signaler à la hiérarchie et/ou au client et/ou au conducteur les anomalies constatées
B34: A2T5 | D34: Réaliser des mesures simples sur des organes mécaniques, électriques, hydrauliques, pneumatiques.
B35: A2T6 | D35: Effectuer des réglages selon les normes du constructeur et/ou de la réglementation
A36: Consulter le référentiel des activités professionnelles pour obtenir le détail des tâches.
A37: Ç Repérer les tâches demandées (ce sont celles qui correspondent à l’unité dans le référentiel de certification, à l’exclusion de toute autre)
A38: Appréciation globale et proposition de note :
AJ40: Note proposée : | AO40: =IF(AI126="","",AI126) ->  | AR40: /10
AJ41: A additionner avec la note d'EP2.1
A42: Certificat d'aptitude professionnelle « Maintenance des véhicules automobiles » – EP2.2 | AI42: Validé | AM42: - Synthèse +
A44: C1.1 - Communiquer avec la hiérarchie, le client et/ou l’utilisateur | AE44: =IF(AL44=10,"Non Evalué","Evalué") -> Non Evalué | AI44: =IF(AE44="Non Evalué","NE",IF(AE44="Evalué","E","")) -> NE | AJ44: =COUNTIF(AI46:AL65,"Validé") -> 0 | AK44: =COUNTIF(AI46:AL65,"Non Validé") -> 0 | AL44: =COUNTIF(AI46:AL65,"Non Evalué") -> 10 | BB44: NoteEP32 | BC44: Correspondance EP32 (AL)
AJ45: =SUMPRODUCT((AI46:AL65="Validé")*(Bareme!AE269:AE288)) -> 0 | AK45: =SUMPRODUCT((AI46:AL65="Non Validé")*(Bareme!AE269:AE288)) -> 0 | AL45: =100*SUM(AY46:BA65)/SUMPRODUCT((AL46:AL65<>"x")*(Bareme!AE269:AE288)) -> 
A46: C 111 | D46: Accueillir un client, écouter sa demande. | N46: Le client est courtoisement accueilli, les règles de politesse sont appliquées. | AI46: =IF(AL46="","Non Evalué",IF(AL46="x","Non Evalué",(IF(AL46=0,"Non Validé","Validé")))) -> Non Evalué | AL46: =IF(BB46="","x",IF(BB46="x","x",IF(BB46=0,0,IF(BB46=1,2,IF(BB46=2,3,3))))) -> x | AV46: =IF(AE44="Non Evalué","",ROUND((AL45)*8/100,0)) ->  | AY46: =IF(AL46="","",IF(AL46="x","",IF(AL46=0,0,Bareme!AE269*AL46/3))) -> 
AM47: Commentaires:
N48: Le client est mis en rapport avec la personne compétente. | AI48: =IF(AL48="","Non Evalué",IF(AL48="x","Non Evalué",(IF(AL48=0,"Non Validé","Validé")))) -> Non Evalué | AL48: =IF(BB48="","x",IF(BB48="x","x",IF(BB48=0,0,IF(BB48=1,2,IF(BB48=2,3,3))))) -> x | AY48: =IF(AL48="","",IF(AL48="x","",IF(AL48=0,0,Bareme!AE271*AL48/3))) -> 
A50: C 112 | D50: Réceptionner le véhicule confié. | N50: Le véhicule est correctement identifié. | AI50: =IF(AL50="","Non Evalué",IF(AL50="x","Non Evalué",(IF(AL50=0,"Non Validé","Validé")))) -> Non Evalué | AL50: =IF(BB50="","x",IF(BB50="x","x",IF(BB50=0,0,IF(BB50=1,2,IF(BB50=2,3,3))))) -> x | AY50: =IF(AL50="","",IF(AL50="x","",IF(AL50=0,0,Bareme!AE273*AL50/3))) -> 
N52: Le bilan du contrôle, olfactif, sonore ou visuel est conforme à l’état du véhicule ou du matériel. | AI52: =IF(AL52="","Non Evalué",IF(AL52="x","Non Evalué",(IF(AL52=0,"Non Validé","Validé")))) -> Non Evalué | AL52: =IF(BB52="","x",IF(BB52="x","x",IF(BB52=0,0,IF(BB52=1,2,IF(BB52=2,3,3))))) -> x | AY52: =IF(AL52="","",IF(AL52="x","",IF(AL52=0,0,Bareme!AE275*AL52/3))) -> 
N54: Les anomalies constatées lors de la réception sont correctement consignées. | AI54: =IF(AL54="","Non Evalué",IF(AL54="x","Non Evalué",(IF(AL54=0,"Non Validé","Validé")))) -> Non Evalué | AL54: =IF(BB54="","x",IF(BB54="x","x",IF(BB54=0,0,IF(BB54=1,2,IF(BB54=2,3,3))))) -> x | AY54: =IF(AL54="","",IF(AL54="x","",IF(AL54=0,0,Bareme!AE277*AL54/3))) -> 
A56: C 113 | D56: Rendre compte à l’entreprise et/ou au client du travail effectué | N56: Les travaux réalisés sont clairement expliqués. | AI56: =IF(AL56="","Non Evalué",IF(AL56="x","Non Evalué",(IF(AL56=0,"Non Validé","Validé")))) -> Non Evalué | AL56: =IF(BB56="","x",IF(BB56="x","x",IF(BB56=0,0,IF(BB56=1,2,IF(BB56=2,3,3))))) -> x | AY56: =IF(AL56="","",IF(AL56="x","",IF(AL56=0,0,Bareme!AE279*AL56/3))) ->  | BC56: 132
N58: Les prochaines interventions nécessaires sont signalées et/ou consignées dans le livret d'entretien ou sur la facture. | AI58: =IF(AL58="","Non Evalué",IF(AL58="x","Non Evalué",(IF(AL58=0,"Non Validé","Validé")))) -> Non Evalué | AL58: =IF(BB58="","x",IF(BB58="x","x",IF(BB58=0,0,IF(BB58=1,2,IF(BB58=2,3,3))))) -> x | AY58: =IF(AL58="","",IF(AL58="x","",IF(AL58=0,0,Bareme!AE281*AL58/3))) ->  | BC58: 136
A60: C114 | D60: Renseigner les documents de suivi et fournir la liste des éléments utilisés nécessaires pour la facturation. | N60: Les éléments indiqués sont conformes au travail effectué. | AI60: =IF(AL60="","Non Evalué",IF(AL60="x","Non Evalué",(IF(AL60=0,"Non Validé","Validé")))) -> Non Evalué | AL60: =IF(BB60="","x",IF(BB60="x","x",IF(BB60=0,0,IF(BB60=1,2,IF(BB60=2,3,3))))) -> x | AY60: =IF(AL60="","",IF(AL60="x","",IF(AL60=0,0,Bareme!AE283*AL60/3))) ->  | BC60: 136
N62: Aucun oubli n’est constaté. | AI62: =IF(AL62="","Non Evalué",IF(AL62="x","Non Evalué",(IF(AL62=0,"Non Validé","Validé")))) -> Non Evalué | AL62: =IF(BB62="","x",IF(BB62="x","x",IF(BB62=0,0,IF(BB62=1,2,IF(BB62=2,3,3))))) -> x | AY62: =IF(AL62="","",IF(AL62="x","",IF(AL62=0,0,Bareme!AE285*AL62/3))) -> 
N64: L’utilisation des outils informatiques est maîtrisée. | AI64: =IF(AL64="","Non Evalué",IF(AL64="x","Non Evalué",(IF(AL64=0,"Non Validé","Validé")))) -> Non Evalué | AL64: =IF(BB64="","x",IF(BB64="x","x",IF(BB64=0,0,IF(BB64=1,2,IF(BB64=2,3,3))))) -> x | AY64: =IF(AL64="","",IF(AL64="x","",IF(AL64=0,0,Bareme!AE287*AL64/3))) -> 
A66: C 3.3 - Démonter remonter des sous ensembles | AE66: =IF(AL66=8,"Non Evalué","Evalué") -> Non Evalué | AI66: =IF(AE66="Non Evalué","NE",IF(AE66="Evalué","E","")) -> NE | AJ66: =COUNTIF(AI68:AL83,"Validé") -> 0 | AK66: =COUNTIF(AI68:AL83,"Non Validé") -> 0 | AL66: =COUNTIF(AI68:AL83,"Non Evalué") -> 8
AJ67: =SUMPRODUCT((AI68:AL83="Validé")*(Bareme!AE291:AE306)) -> 0 | AK67: =SUMPRODUCT((AI68:AL83="Non Validé")*(Bareme!AE291:AE306)) -> 0 | AL67: =100*SUM(AY68:BA83)/SUMPRODUCT((AL68:AL83<>"x")*(Bareme!AE291:AE306)) -> 
A68: C 332 | D68: Monter des équipements et accessoires sur des supports pré équipés | N68: L’accessoire ou l’équipement est monté en conformité en respectant les prescriptions du constructeur et/ou de l'équipementier ou la procédure fournie. | AI68: =IF(AL68="","Non Evalué",IF(AL68="x","Non Evalué",(IF(AL68=0,"Non Validé","Validé")))) -> Non Evalué | AL68: =IF(BB68="","x",IF(BB68="x","x",IF(BB68=0,0,IF(BB68=1,2,IF(BB68=2,3,3))))) -> x | AV68: =IF(AE66="Non Evalué","",ROUND((AL67)*8/100,0)) ->  | AY68: =IF(AL68="","",IF(AL68="x","",IF(AL68=0,0,Bareme!AE291*AL68/3))) ->  | BC68: 98
AM69: Commentaires
N70: Les connexions sont réalisées en conformité. | AI70: =IF(AL70="","Non Evalué",IF(AL70="x","Non Evalué",(IF(AL70=0,"Non Validé","Validé")))) -> Non Evalué | AL70: =IF(BB70="","x",IF(BB70="x","x",IF(BB70=0,0,IF(BB70=1,2,IF(BB70=2,3,3))))) -> x | AY70: =IF(AL70="","",IF(AL70="x","",IF(AL70=0,0,Bareme!AE293*AL70/3))) ->  | BC70: 100
N72: L’action respecte les règles en matière d’hygiène, sécurité et de respect de l'environnement. | AI72: =IF(AL72="","Non Evalué",IF(AL72="x","Non Evalué",(IF(AL72=0,"Non Validé","Validé")))) -> Non Evalué | AL72: =IF(BB72="","x",IF(BB72="x","x",IF(BB72=0,0,IF(BB72=1,2,IF(BB72=2,3,3))))) -> x | AY72: =IF(AL72="","",IF(AL72="x","",IF(AL72=0,0,Bareme!AE295*AL72/3))) ->  | BC72: 130
N74: Aucune détérioration n’est constatée | AI74: =IF(AL74="","Non Evalué",IF(AL74="x","Non Evalué",(IF(AL74=0,"Non Validé","Validé")))) -> Non Evalué | AL74: =IF(BB74="","x",IF(BB74="x","x",IF(BB74=0,0,IF(BB74=1,2,IF(BB74=2,3,3))))) -> x | AY74: =IF(AL74="","",IF(AL74="x","",IF(AL74=0,0,Bareme!AE297*AL74/3))) ->  | BC74: 124
A76: C 333 | D76: Réaliser des opérations de remise en état et/ou de réparation. | N76: Les opérations sont réalisées en conformité | AI76: =IF(AL76="","Non Evalué",IF(AL76="x","Non Evalué",(IF(AL76=0,"Non Validé","Validé")))) -> Non Evalué | AL76: =IF(BB76="","x",IF(BB76="x","x",IF(BB76=0,0,IF(BB76=1,2,IF(BB76=2,3,3))))) -> x | AY76: =IF(AL76="","",IF(AL76="x","",IF(AL76=0,0,Bareme!AE299*AL76/3))) ->  | BC76: 106
N78: La réparation est fonctionnelle | AI78: =IF(AL78="","Non Evalué",IF(AL78="x","Non Evalué",(IF(AL78=0,"Non Validé","Validé")))) -> Non Evalué | AL78: =IF(BB78="","x",IF(BB78="x","x",IF(BB78=0,0,IF(BB78=1,2,IF(BB78=2,3,3))))) -> x | AY78: =IF(AL78="","",IF(AL78="x","",IF(AL78=0,0,Bareme!AE301*AL78/3))) ->  | BC78: 104
N80: L’action respecte les règles en matière d’hygiène, sécurité et de respect de l'environnement. | AI80: =IF(AL80="","Non Evalué",IF(AL80="x","Non Evalué",(IF(AL80=0,"Non Validé","Validé")))) -> Non Evalué | AL80: =IF(BB80="","x",IF(BB80="x","x",IF(BB80=0,0,IF(BB80=1,2,IF(BB80=2,3,3))))) -> x | AY80: =IF(AL80="","",IF(AL80="x","",IF(AL80=0,0,Bareme!AE303*AL80/3))) ->  | BC80: 130
N82: Aucune détérioration n’est constatée | AI82: =IF(AL82="","Non Evalué",IF(AL82="x","Non Evalué",(IF(AL82=0,"Non Validé","Validé")))) -> Non Evalué | AL82: =IF(BB82="","x",IF(BB82="x","x",IF(BB82=0,0,IF(BB82=1,2,IF(BB82=2,3,3))))) -> x | AY82: =IF(AL82="","",IF(AL82="x","",IF(AL82=0,0,Bareme!AE305*AL82/3))) ->  | BC82: 124
A84: C 3.4 - Mesurer – contrôler | AE84: =IF(AL84=10,"Non Evalué","Evalué") -> Non Evalué | AI84: =IF(AE84="Non Evalué","NE",IF(AE84="Evalué","E","")) -> NE | AJ84: =COUNTIF(AI86:AL105,"Validé") -> 0 | AK84: =COUNTIF(AI86:AL105,"Non Validé") -> 0 | AL84: =COUNTIF(AI86:AL105,"Non Evalué") -> 10
AJ85: =SUMPRODUCT((AI86:AL105="Validé")*(Bareme!AE309:AE328)) -> 0 | AK85: =SUMPRODUCT((AI86:AL105="Non Validé")*(Bareme!AE309:AE328)) -> 0 | AL85: =100*SUM(AY86:BA105)/SUMPRODUCT((AL86:AL105<>"x")*(Bareme!AE309:AE328)) -> 
A86: C 341 | D86: Réaliser les mesures, les contrôles sur les organes mécaniques. | N86: L'intégrité des appareils de contrôle et de mesure est respectée. | AI86: =IF(AL86="","Non Evalué",IF(AL86="x","Non Evalué",(IF(AL86=0,"Non Validé","Validé")))) -> Non Evalué | AL86: =IF(BB86="","x",IF(BB86="x","x",IF(BB86=0,0,IF(BB86=1,2,IF(BB86=2,3,3))))) -> x | AV86: =IF(AE84="Non Evalué","",ROUND((AL85)*8/100,0)) ->  | AY86: =IF(AL86="","",IF(AL86="x","",IF(AL86=0,0,Bareme!AE309*AL86/3))) ->  | BC86: 76
N88: Les mesures et les contrôles sont réalisés selon les procédures du constructeur et/ou de l'équipementier. | AI88: =IF(AL88="","Non Evalué",IF(AL88="x","Non Evalué",(IF(AL88=0,"Non Validé","Validé")))) -> Non Evalué | AL88: =IF(BB88="","x",IF(BB88="x","x",IF(BB88=0,0,IF(BB88=1,2,IF(BB88=2,3,3))))) -> x | AY88: =IF(AL88="","",IF(AL88="x","",IF(AL88=0,0,Bareme!AE311*AL88/3))) ->  | BC88: 76
N90: Les résultats relevés sont exprimés dans l’unité attendue avec la précision requise. | AI90: =IF(AL90="","Non Evalué",IF(AL90="x","Non Evalué",(IF(AL90=0,"Non Validé","Validé")))) -> Non Evalué | AL90: =IF(BB90="","x",IF(BB90="x","x",IF(BB90=0,0,IF(BB90=1,2,IF(BB90=2,3,3))))) -> x | AY90: =IF(AL90="","",IF(AL90="x","",IF(AL90=0,0,Bareme!AE313*AL90/3))) ->  | BC90: 78
A92: C 342 | D92: Réaliser les mesures, les contrôles sur circuits hydrauliques, électriques et pneumatiques. | N92: L'intégrité des appareils de contrôle et de mesure est respectée. | AI92: =IF(AL92="","Non Evalué",IF(AL92="x","Non Evalué",(IF(AL92=0,"Non Validé","Validé")))) -> Non Evalué | AL92: =IF(BB92="","x",IF(BB92="x","x",IF(BB92=0,0,IF(BB92=1,2,IF(BB92=2,3,3))))) -> x | AY92: =IF(AL92="","",IF(AL92="x","",IF(AL92=0,0,Bareme!AE315*AL92/3))) ->  | BC92: 76
N94: Les mesures et les contrôles sont réalisés selon les procédures du constructeur et/ou de l'équipementier. | AI94: =IF(AL94="","Non Evalué",IF(AL94="x","Non Evalué",(IF(AL94=0,"Non Validé","Validé")))) -> Non Evalué | AL94: =IF(BB94="","x",IF(BB94="x","x",IF(BB94=0,0,IF(BB94=1,2,IF(BB94=2,3,3))))) -> x | AY94: =IF(AL94="","",IF(AL94="x","",IF(AL94=0,0,Bareme!AE317*AL94/3))) ->  | BC94: 76
N96: Les résultats relevés sont exprimés dans l’unité attendue avec la précision requise. | AI96: =IF(AL96="","Non Evalué",IF(AL96="x","Non Evalué",(IF(AL96=0,"Non Validé","Validé")))) -> Non Evalué | AL96: =IF(BB96="","x",IF(BB96="x","x",IF(BB96=0,0,IF(BB96=1,2,IF(BB96=2,3,3))))) -> x | AY96: =IF(AL96="","",IF(AL96="x","",IF(AL96=0,0,Bareme!AE319*AL96/3))) ->  | BC96: 78
A98: C 343 | D98: Identifier le ou les élément(s) défectueux. | N98: Les résultats des mesures sont correctement interprétés. | AI98: =IF(AL98="","Non Evalué",IF(AL98="x","Non Evalué",(IF(AL98=0,"Non Validé","Validé")))) -> Non Evalué | AL98: =IF(BB98="","x",IF(BB98="x","x",IF(BB98=0,0,IF(BB98=1,2,IF(BB98=2,3,3))))) -> x | AM98: Commentaires: | AY98: =IF(AL98="","",IF(AL98="x","",IF(AL98=0,0,Bareme!AE321*AL98/3))) ->  | BC98: 84
N100: Le ou les éléments défectueux est ou sont signalé(s). | AI100: =IF(AL100="","Non Evalué",IF(AL100="x","Non Evalué",(IF(AL100=0,"Non Validé","Validé")))) -> Non Evalué | AL100: =IF(BB100="","x",IF(BB100="x","x",IF(BB100=0,0,IF(BB100=1,2,IF(BB100=2,3,3))))) -> x | AY100: =IF(AL100="","",IF(AL100="x","",IF(AL100=0,0,Bareme!AE323*AL100/3))) ->  | BC100: 82
A102: C 344 | D102: Signaler les anomalies périphériques. | N102: Les anomalies constatées durant l’intervention sont consignées. | AI102: =IF(AL102="","Non Evalué",IF(AL102="x","Non Evalué",(IF(AL102=0,"Non Validé","Validé")))) -> Non Evalué | AL102: =IF(BB102="","x",IF(BB102="x","x",IF(BB102=0,0,IF(BB102=1,2,IF(BB102=2,3,3))))) -> x | AY102: =IF(AL102="","",IF(AL102="x","",IF(AL102=0,0,Bareme!AE325*AL102/3))) ->  | BC102: 92
N104: L’utilisation des outils informatiques est maîtrisée. | AI104: =IF(AL104="","Non Evalué",IF(AL104="x","Non Evalué",(IF(AL104=0,"Non Validé","Validé")))) -> Non Evalué | AL104: =IF(BB104="","x",IF(BB104="x","x",IF(BB104=0,0,IF(BB104=1,2,IF(BB104=2,3,3))))) -> x | AY104: =IF(AL104="","",IF(AL104="x","",IF(AL104=0,0,Bareme!AE327*AL104/3))) -> 
A106: C 3.5 - Régler des sous-ensembles | AE106: =IF(AL106=7,"Non Evalué","Evalué") -> Non Evalué | AI106: =IF(AE106="Non Evalué","NE",IF(AE106="Evalué","E","")) -> NE | AJ106: =COUNTIF(AI108:AL121,"Validé") -> 0 | AK106: =COUNTIF(AI108:AL121,"Non Validé") -> 0 | AL106: =COUNTIF(AI108:AL121,"Non Evalué") -> 7
AJ107: =SUMPRODUCT((AI108:AL121="Validé")*(Bareme!AE331:AE344)) -> 0 | AK107: =SUMPRODUCT((AI108:AL121="Non Validé")*(Bareme!AE331:AE344)) -> 0 | AL107: =100*SUM(AY108:BA121)/SUMPRODUCT((AL108:AL121<>"x")*(Bareme!AE331:AE344)) -> 
A108: C 351 | D108: Réaliser les réglages sur des sous-ensembles isolés | N108: Les réglages effectués sont conformes à la procédure fournie. | AI108: =IF(AL108="","Non Evalué",IF(AL108="x","Non Evalué",(IF(AL108=0,"Non Validé","Validé")))) -> Non Evalué | AL108: =IF(BB108="","x",IF(BB108="x","x",IF(BB108=0,0,IF(BB108=1,2,IF(BB108=2,3,3))))) -> x | AV108: =IF(AE106="Non Evalué","",ROUND((AL107)*8/100,0)) ->  | AY108: =IF(AL108="","",IF(AL108="x","",IF(AL108=0,0,Bareme!AE331*AL108/3))) ->  | BC108: 108
N110: L’action respecte les règles en matière d’hygiène, sécurité et de respect de l'environnement. | AI110: =IF(AL110="","Non Evalué",IF(AL110="x","Non Evalué",(IF(AL110=0,"Non Validé","Validé")))) -> Non Evalué | AL110: =IF(BB110="","x",IF(BB110="x","x",IF(BB110=0,0,IF(BB110=1,2,IF(BB110=2,3,3))))) -> x | AY110: =IF(AL110="","",IF(AL110="x","",IF(AL110=0,0,Bareme!AE333*AL110/3))) ->  | BC110: 130
N112: Aucune détérioration n’est constatée | AI112: =IF(AL112="","Non Evalué",IF(AL112="x","Non Evalué",(IF(AL112=0,"Non Validé","Validé")))) -> Non Evalué | AL112: =IF(BB112="","x",IF(BB112="x","x",IF(BB112=0,0,IF(BB112=1,2,IF(BB112=2,3,3))))) -> x | AY112: =IF(AL112="","",IF(AL112="x","",IF(AL112=0,0,Bareme!AE335*AL112/3))) ->  | BC112: 124
A114: C 352 | D114: Réaliser les réglages sur des véhicules. | N114: Les conditions de mise en oeuvre sont respectées. | AI114: =IF(AL114="","Non Evalué",IF(AL114="x","Non Evalué",(IF(AL114=0,"Non Validé","Validé")))) -> Non Evalué | AL114: =IF(BB114="","x",IF(BB114="x","x",IF(BB114=0,0,IF(BB114=1,2,IF(BB114=2,3,3))))) -> x | AY114: =IF(AL114="","",IF(AL114="x","",IF(AL114=0,0,Bareme!AE337*AL114/3))) ->  | BC114: 106
AM115: Commentaires:
N116: Les réglages effectués sont conformes aux prescriptions du constructeur et/ou de l'équipementier ou la procédure fournie. | AI116: =IF(AL116="","Non Evalué",IF(AL116="x","Non Evalué",(IF(AL116=0,"Non Validé","Validé")))) -> Non Evalué | AL116: =IF(BB116="","x",IF(BB116="x","x",IF(BB116=0,0,IF(BB116=1,2,IF(BB116=2,3,3))))) -> x | AY116: =IF(AL116="","",IF(AL116="x","",IF(AL116=0,0,Bareme!AE339*AL116/3))) ->  | BC116: 108
N118: L’action respecte les règles en matière d’hygiène, sécurité et de respect de l'environnement. | AI118: =IF(AL118="","Non Evalué",IF(AL118="x","Non Evalué",(IF(AL118=0,"Non Validé","Validé")))) -> Non Evalué | AL118: =IF(BB118="","x",IF(BB118="x","x",IF(BB118=0,0,IF(BB118=1,2,IF(BB118=2,3,3))))) -> x | AY118: =IF(AL118="","",IF(AL118="x","",IF(AL118=0,0,Bareme!AE341*AL118/3))) ->  | BC118: 130
N120: Aucune détérioration n’est constatée | AI120: =IF(AL120="","Non Evalué",IF(AL120="x","Non Evalué",(IF(AL120=0,"Non Validé","Validé")))) -> Non Evalué | AL120: =IF(BB120="","x",IF(BB120="x","x",IF(BB120=0,0,IF(BB120=1,2,IF(BB120=2,3,3))))) -> x | AY120: =IF(AL120="","",IF(AL120="x","",IF(AL120=0,0,Bareme!AE343*AL120/3))) ->  | BC120: 124
